{"text_format":"1","workbook":"xlsx","n_sheets":16,"sheets":["HOME","INSTRUCCIONES","INSCRIPCIONES","INSCRIPCIONES MIXTO","USUARIOS","NIVEL ACCESO","DATOS DEPORTISTAS","CLUBS","ENTRE_DELEG","CENTRO NATACION HELIOS","NAUTICO ZARAGOZA","OS NABATERS","CAPRI MEQUINENZA","ARAGON REMO","REMO ZARAGOZA","COMPETICIONES2026"],"not_rendered":{"charts":0,"images":13,"macros":1,"external_links":0,"defined_names":91,"comments":1,"pivot_tables":0},"unopened":[],"bounds":{"document_bytes":16777216,"sheet_cells":100000,"rows_first":2000,"rows_last":500,"rows_between":2000,"halvings":0,"cell_chars":16384,"cell_head_chars":4096},"cells_cut":0,"cells_raw":0,"read":"whole","date_system":"1900"}

{"sheet":"HOME","index":0,"n_rows":21,"n_cols":5,"rows_kept":21,"cut":false,"hidden":false,"merged":[[1,2,2,4],[12,6,12,7],[20,3,20,8],[14,6,14,7]]}
[]
[]
[]
[]
[]
[]
[]
[]
[]
[]
[]
[]
[null,null,null,null,"USUARIO"]
[]
[null,null,null,null,"CONTRASEÑA"]
[]
[]
[]
[]
[]
[null,null,null,{"$f":"IF($G$15=\"\",\"Introduzca Usuario y Contraseña\",IF(USUARIOS!$E$4=FALSE,\"El usuario Ingresado No Existe o la Contraseña Ingresada es Incorrecta\",\"Bienvenido al Sistema\"))","v":"Introduzca Usuario y Contraseña"}]

{"sheet":"INSTRUCCIONES","index":1,"n_rows":66,"n_cols":11,"rows_kept":66,"cut":false,"hidden":false,"merged":[[11,7,13,16],[43,7,45,17]]}
[]
[]
[]
[]
[]
[]
[]
[]
[]
[]
[]
[null,null,null,null,null,null,null,"INSTRUCCIONES RELLENAR HOJA DE INSCRIPCIONES (ir pinchando en cada una de las etiquetas)"]
[]
[]
[null,null,null,null,null,null,null,0,"NUMERACION",null,"SELECCIONE EL NUMERO DE HOJA SEGÚN LA CANTIDAD DE INSCRIPCIONES QUE VAYA A REALIZAR"]
[null,null,null,null,null,null,null,1,"CLUB",null,"EN LA HOJA DE INSCRIPCIONES APARECE AUTOMATICAMENTE"]
[null,null,null,null,null,null,null,2,"COMPETICION",null,"SELECCIONAR DEL DESPLEGABLE"]
[null,null,null,null,null,null,null,3,"LUGAR",null,"RELLENAR DATOS DEL LUGAR DE LA COMPETICION"]
[null,null,null,null,null,null,null,4,"UNIFORME",null,"EN LA HOJA DE INSCRIPCIONES APARECE AUTOMATICAMENTE"]
[null,null,null,null,null,null,null,5,"SELEC. CATEGORIA",null,"SELECCIONE DE ESTA COLUMNA LA CATEGORIA DEL DEPORTISTA"]
[null,null,null,null,null,null,null,6,"NOMBRE",null,"SELECCIONE AL DEPORTISTA"]
[null,null,null,null,null,null,null,7,"CATEGORIA",null,"EN LA HOJA DE INSCRIPCIONES APARECE AUTOMATICAMENTE"]
[null,null,null,null,null,null,null,8,"MODALIDAD",null,"SELECCIONAR DEL DESPLEGABLE"]
[null,null,null,null,null,null,null,9,"EDAD",null,"EN LA HOJA DE INSCRIPCIONES APARECE AUTOMATICAMENTE"]
[null,null,null,null,null,null,null,10,"PUESTO",null,"SELECCIONAR DEL DESPLEGABLE"]
[null,null,null,null,null,null,null,11,"EMBARCACIÓN",null,"SELECCIONAR DEL DESPLEGABLE"]
[null,null,null,null,null,null,null,12,"Nº FICHA",null,"EN LA HOJA DE INSCRIPCIONES APARECE AUTOMATICAMENTE"]
[null,null,null,null,null,null,null,13,"ENTRENADOR",null,"SELECCIONAR DEL DESPLEGABLE"]
[null,null,null,null,null,null,null,14,"D.N.I. ENTRENADOR",null,"EN LA HOJA DE INSCRIPCIONES APARECE AUTOMATICAMENTE"]
[null,null,null,null,null,null,null,15,"CATEGORIA ENTRENADOR",null,"SELECCIONAR DEL DESPLEGABLE"]
[null,null,null,null,null,null,null,16,"DELEGADO",null,"SELECCIONAR DEL DESPLEGABLE"]
[null,null,null,null,null,null,null,17,"D.N.I. DELEGADO",null,"EN LA HOJA DE INSCRIPCIONES APARECE AUTOMATICAMENTE"]
[null,null,null,null,null,null,null,18,"FIRMA Y FECHA",null,"RELLENE LOS DATOS DE FIRMA, LUGAR Y FECHA DE REALIZACION DE LA INSCRIPCION"]
[]
[]
[]
[]
[]
[]
[]
[]
[]
[]
[null,null,null,null,null,null,null,"INSTRUCCIONES RELLENAR HOJA DE INSCRIPCIONES MIXTO (ir pinchando en cada una de las etiquetas)"]
[]
[]
[null,null,null,null,null,null,null,0,"NUMERACION",null,"SELECCIONE EL NUMERO DE HOJA SEGÚN LA CANTIDAD DE INSCRIPCIONES QUE VAYA A REALIZAR"]
[null,null,null,null,null,null,null,1,"CLUB",null,"EN LA HOJA DE INSCRIPCIONES APARECE AUTOMATICAMENTE"]
[null,null,null,null,null,null,null,2,"COMPETICION",null,"SELECCIONAR DEL DESPLEGABLE"]
[null,null,null,null,null,null,null,3,"LUGAR",null,"RELLENAR DATOS DEL LUGAR DE LA COMPETICION"]
[null,null,null,null,null,null,null,4,"UNIFORME",null,"EN LA HOJA DE INSCRIPCIONES MIXTO RELLENAR"]
[null,null,null,null,null,null,null,5,"SELECCION CLUB",null,"SELECCIONE DE ESTA COLUMNA EL CLUB DEL DEPORTISTA"]
[null,null,null,null,null,null,null,6,"SELECCION CATEGORIA",null,"SELECCIONE DE ESTA COLUMNA LA CATEGORIA DEL DEPORTISTA"]
[null,null,null,null,null,null,null,7,"NOMBRE",null,"EN LA HOJA DE INSCRIPCIONES MIXTO SELECCIONE DEL DESPLEGABLE"]
[null,null,null,null,null,null,null,8,"CATEGORIA",null,"EN LA HOJA DE INSCRIPCIONES MIXTO APARECE AUTOMATICAMENTE"]
[null,null,null,null,null,null,null,9,"MODALIDAD",null,"EN LA HOJA DE INSCRIPCIONES MIXTO SELECCIONAR DEL DESPLEGABLE"]
[null,null,null,null,null,null,null,10,"EDAD",null,"EN LA HOJA DE INSCRIPCIONES MIXTO APARECE AUTOMATICAMENTE"]
[null,null,null,null,null,null,null,11,"PUESTO",null,"EN LA HOJA DE INSCRIPCIONES  MIXTO  SELECCIONAR DEL DESPLEGABLE"]
[null,null,null,null,null,null,null,12,"EMBARCACION",null,"EN LA HOJA DE INSCRIPCIONES  MIXTO SELECCIONAR DEL DESPLEGABLE"]
[null,null,null,null,null,null,null,13,"Nº FICHA",null,"EN LA HOJA DE INSCRIPCIONES MIXTO APARECE AUTOMATICAMENTE"]
[null,null,null,null,null,null,null,14,"ENTRENADOR",null,"EN LA HOJA DE INSCRIPCIONES MIXTO SELEECIONE DEL DESPLEGABLE"]
[null,null,null,null,null,null,null,15,"D.N.I. ENTRENADOR",null,"EN LA HOJA DE INSCRIPCIONES MIXTO APARECE AUTOMATICAMENTE"]
[null,null,null,null,null,null,null,16,"CATEGORIA ENTRENADOR",null,"SELECCIONAR DEL DESPLEGABLE"]
[null,null,null,null,null,null,null,17,"DELEGADO",null,"EN LA HOJA DE INSCRIPCIONES MIXTO SELECCIONE DEL DESPLEGABLE"]
[null,null,null,null,null,null,null,18,"D.N.I. DELEGADO",null,"EN LA HOJA DE INSCRIPCIONES MIXTO APARECE AUTOMATICAMENTE"]
[null,null,null,null,null,null,null,19,"FIRMA Y FECHA",null,"RELLENE LOS DATOS DE FIRMA, LUGAR Y FECHA DE REALIZACION DE LA INSCRIPCION"]

{"sheet":"INSCRIPCIONES","index":2,"n_rows":50,"n_cols":70,"rows_kept":50,"cut":false,"hidden":true,"merged":[[5,18,5,22],[5,9,5,12],[7,23,7,49],[9,9,9,49],[11,15,11,49],[13,12,13,27],[13,37,13,49],[17,11,17,26],[17,33,17,49],[20,45,20,50],[21,0,21,8],[21,9,21,15],[21,16,21,18],[21,19,21,20],[21,21,21,36],[21,37,21,44],[21,45,21,50],[20,0,20,8],[20,9,20,15],[20,16,20,18],[20,19,20,20],[20,21,20,36],[20,37,20,44],[21,53,21,63],[22,0,22,8],[22,9,22,15],[22,16,22,18],[22,19,22,20],[22,21,22,36],[22,37,22,44],[22,45,22,50],[22,53,22,63],[23,45,23,50],[23,53,23,63],[24,0,24,8],[24,9,24,15],[24,16,24,18],[24,19,24,20],[24,21,24,36],[24,37,24,44],[24,45,24,50],[24,53,24,63],[23,0,23,8],[23,9,23,15],[23,16,23,18],[23,19,23,20],[23,21,23,36],[23,37,23,44],[25,45,25,50],[25,53,25,63],[26,0,26,8],[26,9,26,15],[26,16,26,18],[26,19,26,20],[26,21,26,36],[26,37,26,44],[26,45,26,50],[26,53,26,63],[25,0,25,8],[25,9,25,15],[25,16,25,18],[25,19,25,20],[25,21,25,36],[25,37,25,44],[27,45,27,50],[27,53,27,63],[28,0,28,8],[28,9,28,15],[28,16,28,18],[28,19,28,20],[28,21,28,36],[28,37,28,44],[28,45,28,50],[28,53,28,63],[27,0,27,8],[27,9,27,15],[27,16,27,18],[27,19,27,20],[27,21,27,36],[27,37,27,44],[29,45,29,50],[29,53,29,63],[30,0,30,8],[30,9,30,15],[30,16,30,18],[30,19,30,20],[30,21,30,36],[30,37,30,44],[30,45,30,50],[30,53,30,63],[29,0,29,8],[29,9,29,15],[29,16,29,18],[29,19,29,20],[29,21,29,36],[29,37,29,44],[31,45,31,50],[31,53,31,63],[32,0,32,8],[32,9,32,15],[32,16,32,18],[32,19,32,20],[32,21,32,36],[32,37,32,44],[32,45,32,50],[32,53,32,63],[31,0,31,8],[31,9,31,15],[31,16,31,18],[31,19,31,20],[31,21,31,36],[31,37,31,44],[33,45,33,50],[33,53,33,63],[34,0,34,8],[34,9,34,15],[34,16,34,18],[34,19,34,20],[34,21,34,36],[34,37,34,44],[34,45,34,50],[34,53,34,63],[33,0,33,8],[33,9,33,15],[33,16,33,18],[33,19,33,20],[33,21,33,36],[33,37,33,44],[35,45,35,50],[35,53,35,63],[36,0,36,8],[36,9,36,15],[36,16,36,18],[36,19,36,20],[36,21,36,36],[36,37,36,44],[36,45,36,50],[36,53,36,63],[35,0,35,8],[35,9,35,15],[35,16,35,18],[35,19,35,20],[35,21,35,36],[35,37,35,44],[47,20,47,30],[47,32,47,33],[47,34,47,35],[47,36,47,45],[47,47,47,49],[37,45,37,50],[37,53,37,63],[40,7,40,30],[40,37,40,49],[42,7,42,33],[44,7,44,30],[44,37,44,49],[37,0,37,8],[37,9,37,15],[37,16,37,18],[37,19,37,20],[37,21,37,36],[37,37,37,44],[40,53,40,63]]}
[]
[null,null,null,null,null,null,null,null,null,null,null,null,null,null,null,null,null,null,null,null,null,null,null,null,"FEDERACIÓN ARAGONESA DE REMO"]
[null,null,null,null,null,null,null,null,null,null,null,null,null,null,"Hoja de inscripción oficial"]
[]
[]
[null,null,null,"Nº DE HOJA",null,null,null,null,null,1,null,null,null,null,null,"DE",null,null,1,null,null,null,null,null,null,null,null,null,null,null,null,null,null,null,null,null,null,null,null,null,null,null,null,null,null,null,null,null,null,null,null,null,null,null,null,null,null,null,null,null,null,null,null,null,null,null,null,null,null,{"$f":"IF(X8=\"CENTRO NATACION HELIOS\",\"TECNICOS_HELIOS\",IF(X8=\"NAUTICO ZARAGOZA\",\"TECNICOS_NAUTICO_ZARAGOZA\",IF(X8=\"OS NABATERS D.F.\",\"TECNICOS_OS_NABATERS_D._F.\",IF(X8=\"REMO ZARAGOZA\",\"TECNICOS_REMO_ZARAGOZA\",IF(X8=\"CAPRI MEQUINENZA\",\"TECNICOS_CAPRI_MEQUINENZA\",IF(X8=\"ARAGON REMO\",\"TECNICOS_ARAGON_REMO\",IF(X8=\"REMO MEQUINENZA\",\"TECNICOS_REMO_MEQUINENZA\")))))))","v":false}]
[]
[null,"Hoja de Inscripción que formula el Club:",null,null,null,null,null,null,null,null,null,null,null,null,null,null,null,null,null,null,null,null,null,{"$f":"HOME!G13","v":0},null,null,null,null,null,null,null,null,null,null,null,null,null,null,null,null,null,null,null,null,null,null,null,null,null,null,null,null,null,null,null,null,null,null,null,null,null,null,null,null,null,null,null,null,null,{"$f":"IF(X8=\"CENTRO NATACION HELIOS\",\"DELEGADOS_HELIOS\",IF(X8=\"NAUTICO ZARAGOZA\",\"DELEGADO_NAUTICO_ZARAGOZA\",IF(X8=\"OS NABATERS D.F.\",\"DELEGADOS_OS_NABATERS_D._F.\",IF(X8=\"REMO ZARAGOZA\",\"DELEGADOS_REMO_ZARAGOZA\",IF(X8=\"CAPRI MEQUINENZA\",\"DELEGADOS_CAPRI_MEQUINENZA\",IF(X8=\"ARAGON REMO\",\"DELEGADOS_ARAGON_REMO\",IF(X8=\"REMO MEQUINENZA\",\"DELEGADOS_REMO_MEQUINENZA\")))))))","v":false}]
[]
[null,"Adscrito a la,",null,null,null,null,null,null,null,"FEDERACIÓN ARAGONESA DE REMO"]
[]
[null,"para PARTICIPAR en, "]
[]
[null,"que se celebrará en ",null,null,null,null,null,null,null,null,null,null,null,null,null,null,null,null,null,null,null,null,null,null,null,null,null,null,null,"durante los dias"]
[]
[null,"INSCRIBE a los equipos más abajo indicados"]
[]
[null,"Colores: Uniforme:",null,null,null,null,null,null,null,null,null,{"$f":"IF(X8=\"ARAGON REMO\",\"AMARILLO Y ROJO\",IF(X8=\"CAPRI MEQUINENZA\",\"ROJO Y BLANCO\",IF(X8=\"CENTRO NATACION HELIOS\",\"AZUL Y BLANCO\",IF(X8=\"NAUTICO ZARAGOZA\",\"ROJO\",IF(X8=\"OS NABATERS D.F.\",\"AMARILLO Y VERDE\",IF(X8=\"REMO MEQUINENZA\",\"ROJO Y BLANCO\",IF(X8=\"REMO ZARAGOZA\",\"ROJO Y BLANCO\"\"\")))))))","v":false},null,null,null,null,null,null,null,null,null,null,null,null,null,null,null,null,null,null,null,null,null,{"$f":"IF(X8=\"ARAGON REMO\",\"AMARILLO Y ROJO\",IF(X8=\"CAPRI MEQUINENZA\",\"ROJO Y BLANCO\",IF(X8=\"CENTRO NATACION HELIOS\",\"AZUL Y BLANCO\",IF(X8=\"NAUTICO ZARAGOZA\",\"ROJO\",IF(X8=\"OS NABATERS D.F.\",\"AMARILLO Y VERDE\",IF(X8=\"REMO MEQUINENZA\",\"ROJO Y BLANCO\",IF(X8=\"REMO ZARAGOZA\",\"ROJO Y BLANCO\"\"\")))))))","v":false}]
[]
[]
["CATEGORIA",null,null,null,null,null,null,null,null,"Modalidad",null,null,null,null,null,null,"Edad",null,null,"Pto",null,"NOMBRE, APELLIDOS",null,null,null,null,null,null,null,null,null,null,null,null,null,null,null,"SEXO",null,null,null,null,null,null,null,"Nº FICHA."]
[{"$f":"IF(BB22=\"BENJAMIN\",\"BENJAMIN\",IF(BB22=\"ALEVIN\",\"ALEVIN\",IF(BB22=\"INFANTIL\",\"INFANTIL\",IF(BB22=\"CADETE\",\"CADETE\",IF(BB22=\"JUVENIL\",\"JUVENIL\",IF(BB22=\"SENIOR\",\"SENIOR\",IF(BB22=\"VETERANO\",\"VETERANO\",IF(BB22=\"BENJAMIN_NZ\",\"BENJAMIN\",IF(BB22=\"ALEVIN_NZ\",\"ALEVIN\",IF(BB22=\"INFANTIL_NZ\",\"INFANTIL\",IF(BB22=\"CADETE_NZ\",\"CADETE\",IF(BB22=\"JUVENIL_NZ\",\"JUVENIL\",IF(BB22=\"SENIOR_NZ\",\"SENIOR\",IF(BB22=\"VETERANO_NZ\",\"VETERANO\",IF(BB22=\"ALEVIN_NB\",\"ALEVIN\",IF(BB22=\"INFANTIL_NB\",\"INFANTIL\",IF(BB22=\"CADETE_NB\",\"CADETE\",IF(BB22=\"JUVENIL_NB\",\"JUVENIL\",IF(BB22=\"SENIOR_NB\",\"SENIOR\",IF(BB22=\"VETERANO_NB\",\"VETERANO\",IF(BB22=\"BENJAMIN_CM\",\"BENJAMIN\",IF(BB22=\"ALEVIN_CM\",\"ALEVIN\",IF(BB22=\"INFANTIL_CM\",\"INFANTIL\",IF(BB22=\"CADETE_CM\",\"CADETE\",IF(BB22=\"JUVENIL_CM\",\"JUVENIL\",IF(BB22=\"SENIOR_CM\",\"SENIOR\",IF(BB22=\"VETERANO_CM\",\"VETERANO\",IF(BB22=\"BENJAMIN_AR\",\"BENJAMIN\",IF(BB22=\"ALEVIN_AR\",\"ALEVIN\",IF(BB22=\"INFANTIL_AR\",\"INFANTIL\",IF(BB22=\"CADETE_AR\",\"CADETE\",IF(BB22=\"JUVENIL_AR\",\"JUVENIL\",IF(BB22=\"SENIOR_AR\",\"SENIOR\",IF(BB22=\"VETERANO_AR\",\"VETERANO\",IF(BB22=\"BENJAMIN_RZ\",\"BENJAMIN\",IF(BB22=\"ALEVIN_RZ\",\"ALEVIN\",IF(BB22=\"INFANTIL_RZ\",\"INFANTIL\",IF(BB22=\"CADETE_RZ\",\"CADETE\",IF(BB22=\"JUVENIL_RZ\",\"JUVENIL\",IF(BB22=\"SENIOR_RZ\",\"SENIOR\",IF(BB22=\"VETERANO_RZ\",\"VETERANO\",\"\")))))))))))))))))))))))))))))))))))))))))","v":""},null,null,null,null,null,null,null,null,null,null,null,null,null,null,null,{"$f":"IF(_xlfn.XLOOKUP(V22,'DATOS DEPORTISTAS'!$M$4:$M$653,'DATOS DEPORTISTAS'!$Q$4:$Q$653,\"\")<30,\"\",(_xlfn.XLOOKUP(V22,'DATOS DEPORTISTAS'!$M$4:$M$653,'DATOS DEPORTISTAS'!$Q$4:$Q$653,\"\")))","v":""},null,null,null,null,null,null,null,null,null,null,null,null,null,null,null,null,null,null,null,null,{"$f":"_xlfn.XLOOKUP(V22,'DATOS DEPORTISTAS'!$M$4:$M$653,'DATOS DEPORTISTAS'!$J$4:$J$653,\"\")","v":0},null,null,null,null,null,null,null,{"$f":"_xlfn.XLOOKUP(V22,'DATOS DEPORTISTAS'!$M$4:$M$653,'DATOS DEPORTISTAS'!$U$4:$U$653,\"\")","v":0}]
[{"$f":"IF(BB23=\"BENJAMIN\",\"BENJAMIN\",IF(BB23=\"ALEVIN\",\"ALEVIN\",IF(BB23=\"INFANTIL\",\"INFANTIL\",IF(BB23=\"CADETE\",\"CADETE\",IF(BB23=\"JUVENIL\",\"JUVENIL\",IF(BB23=\"SENIOR\",\"SENIOR\",IF(BB23=\"VETERANO\",\"VETERANO\",IF(BB23=\"BENJAMIN_NZ\",\"BENJAMIN\",IF(BB23=\"ALEVIN_NZ\",\"ALEVIN\",IF(BB23=\"INFANTIL_NZ\",\"INFANTIL\",IF(BB23=\"CADETE_NZ\",\"CADETE\",IF(BB23=\"JUVENIL_NZ\",\"JUVENIL\",IF(BB23=\"SENIOR_NZ\",\"SENIOR\",IF(BB23=\"VETERANO_NZ\",\"VETERANO\",IF(BB23=\"ALEVIN_NB\",\"ALEVIN\",IF(BB23=\"INFANTIL_NB\",\"INFANTIL\",IF(BB23=\"CADETE_NB\",\"CADETE\",IF(BB23=\"JUVENIL_NB\",\"JUVENIL\",IF(BB23=\"SENIOR_NB\",\"SENIOR\",IF(BB23=\"VETERANO_NB\",\"VETERANO\",IF(BB23=\"BENJAMIN_CM\",\"BENJAMIN\",IF(BB23=\"ALEVIN_CM\",\"ALEVIN\",IF(BB23=\"INFANTIL_CM\",\"INFANTIL\",IF(BB23=\"CADETE_CM\",\"CADETE\",IF(BB23=\"JUVENIL_CM\",\"JUVENIL\",IF(BB23=\"SENIOR_CM\",\"SENIOR\",IF(BB23=\"VETERANO_CM\",\"VETERANO\",IF(BB23=\"BENJAMIN_AR\",\"BENJAMIN\",IF(BB23=\"ALEVIN_AR\",\"ALEVIN\",IF(BB23=\"INFANTIL_AR\",\"INFANTIL\",IF(BB23=\"CADETE_AR\",\"CADETE\",IF(BB23=\"JUVENIL_AR\",\"JUVENIL\",IF(BB23=\"SENIOR_AR\",\"SENIOR\",IF(BB23=\"VETERANO_AR\",\"VETERANO\",IF(BB23=\"BENJAMIN_RZ\",\"BENJAMIN\",IF(BB23=\"ALEVIN_RZ\",\"ALEVIN\",IF(BB23=\"INFANTIL_RZ\",\"INFANTIL\",IF(BB23=\"CADETE_RZ\",\"CADETE\",IF(BB23=\"JUVENIL_RZ\",\"JUVENIL\",IF(BB23=\"SENIOR_RZ\",\"SENIOR\",IF(BB23=\"VETERANO_RZ\",\"VETERANO\",\"\")))))))))))))))))))))))))))))))))))))))))","v":""},null,null,null,null,null,null,null,null,null,null,null,null,null,null,null,{"$f":"IF(_xlfn.XLOOKUP(V23,'DATOS DEPORTISTAS'!$M$4:$M$653,'DATOS DEPORTISTAS'!$Q$4:$Q$653,\"\")<30,\"\",(_xlfn.XLOOKUP(V23,'DATOS DEPORTISTAS'!$M$4:$M$653,'DATOS DEPORTISTAS'!$Q$4:$Q$653,\"\")))","v":""},null,null,null,null,null,null,null,null,null,null,null,null,null,null,null,null,null,null,null,null,{"$f":"_xlfn.XLOOKUP(V23,'DATOS DEPORTISTAS'!$M$4:$M$653,'DATOS DEPORTISTAS'!$J$4:$J$653,\"\")","v":0},null,null,null,null,null,null,null,{"$f":"_xlfn.XLOOKUP(V23,'DATOS DEPORTISTAS'!$M$4:$M$653,'DATOS DEPORTISTAS'!$U$4:$U$653,\"\")","v":0}]
["",null,null,null,null,null,null,null,null,null,null,null,null,null,null,null,{"$f":"IF(_xlfn.XLOOKUP(V24,'DATOS DEPORTISTAS'!$M$4:$M$653,'DATOS DEPORTISTAS'!$Q$4:$Q$653,\"\")<30,\"\",(_xlfn.XLOOKUP(V24,'DATOS DEPORTISTAS'!$M$4:$M$653,'DATOS DEPORTISTAS'!$Q$4:$Q$653,\"\")))","v":""},null,null,null,null,null,null,null,null,null,null,null,null,null,null,null,null,null,null,null,null,{"$f":"_xlfn.XLOOKUP(V24,'DATOS DEPORTISTAS'!$M$4:$M$653,'DATOS DEPORTISTAS'!$J$4:$J$653,\"\")","v":0},null,null,null,null,null,null,null,{"$f":"_xlfn.XLOOKUP(V24,'DATOS DEPORTISTAS'!$M$4:$M$653,'DATOS DEPORTISTAS'!$U$4:$U$653,\"\")","v":0}]
["",null,null,null,null,null,null,null,null,null,null,null,null,null,null,null,{"$f":"IF(_xlfn.XLOOKUP(V25,'DATOS DEPORTISTAS'!$M$4:$M$653,'DATOS DEPORTISTAS'!$Q$4:$Q$653,\"\")<30,\"\",(_xlfn.XLOOKUP(V25,'DATOS DEPORTISTAS'!$M$4:$M$653,'DATOS DEPORTISTAS'!$Q$4:$Q$653,\"\")))","v":""},null,null,null,null,null,null,null,null,null,null,null,null,null,null,null,null,null,null,null,null,{"$f":"_xlfn.XLOOKUP(V25,'DATOS DEPORTISTAS'!$M$4:$M$653,'DATOS DEPORTISTAS'!$J$4:$J$653,\"\")","v":0},null,null,null,null,null,null,null,{"$f":"_xlfn.XLOOKUP(V25,'DATOS DEPORTISTAS'!$M$4:$M$653,'DATOS DEPORTISTAS'!$U$4:$U$653,\"\")","v":0}]
["",null,null,null,null,null,null,null,null,null,null,null,null,null,null,null,{"$f":"IF(_xlfn.XLOOKUP(V26,'DATOS DEPORTISTAS'!$M$4:$M$653,'DATOS DEPORTISTAS'!$Q$4:$Q$653,\"\")<30,\"\",(_xlfn.XLOOKUP(V26,'DATOS DEPORTISTAS'!$M$4:$M$653,'DATOS DEPORTISTAS'!$Q$4:$Q$653,\"\")))","v":""},null,null,null,null,null,null,null,null,null,null,null,null,null,null,null,null,null,null,null,null,{"$f":"_xlfn.XLOOKUP(V26,'DATOS DEPORTISTAS'!$M$4:$M$653,'DATOS DEPORTISTAS'!$J$4:$J$653,\"\")","v":0},null,null,null,null,null,null,null,{"$f":"_xlfn.XLOOKUP(V26,'DATOS DEPORTISTAS'!$M$4:$M$653,'DATOS DEPORTISTAS'!$U$4:$U$653,\"\")","v":0}]
["",null,null,null,null,null,null,null,null,null,null,null,null,null,null,null,{"$f":"IF(_xlfn.XLOOKUP(V27,'DATOS DEPORTISTAS'!$M$4:$M$653,'DATOS DEPORTISTAS'!$Q$4:$Q$653,\"\")<30,\"\",(_xlfn.XLOOKUP(V27,'DATOS DEPORTISTAS'!$M$4:$M$653,'DATOS DEPORTISTAS'!$Q$4:$Q$653,\"\")))","v":""},null,null,null,null,null,null,null,null,null,null,null,null,null,null,null,null,null,null,null,null,{"$f":"_xlfn.XLOOKUP(V27,'DATOS DEPORTISTAS'!$M$4:$M$653,'DATOS DEPORTISTAS'!$J$4:$J$653,\"\")","v":0},null,null,null,null,null,null,null,{"$f":"_xlfn.XLOOKUP(V27,'DATOS DEPORTISTAS'!$M$4:$M$653,'DATOS DEPORTISTAS'!$U$4:$U$653,\"\")","v":0}]
["",null,null,null,null,null,null,null,null,null,null,null,null,null,null,null,{"$f":"IF(_xlfn.XLOOKUP(V28,'DATOS DEPORTISTAS'!$M$4:$M$653,'DATOS DEPORTISTAS'!$Q$4:$Q$653,\"\")<30,\"\",(_xlfn.XLOOKUP(V28,'DATOS DEPORTISTAS'!$M$4:$M$653,'DATOS DEPORTISTAS'!$Q$4:$Q$653,\"\")))","v":""},null,null,null,null,null,null,null,null,null,null,null,null,null,null,null,null,null,null,null,null,{"$f":"_xlfn.XLOOKUP(V28,'DATOS DEPORTISTAS'!$M$4:$M$653,'DATOS DEPORTISTAS'!$J$4:$J$653,\"\")","v":0},null,null,null,null,null,null,null,{"$f":"_xlfn.XLOOKUP(V28,'DATOS DEPORTISTAS'!$M$4:$M$653,'DATOS DEPORTISTAS'!$U$4:$U$653,\"\")","v":0}]
["",null,null,null,null,null,null,null,null,null,null,null,null,null,null,null,{"$f":"IF(_xlfn.XLOOKUP(V29,'DATOS DEPORTISTAS'!$M$4:$M$653,'DATOS DEPORTISTAS'!$Q$4:$Q$653,\"\")<30,\"\",(_xlfn.XLOOKUP(V29,'DATOS DEPORTISTAS'!$M$4:$M$653,'DATOS DEPORTISTAS'!$Q$4:$Q$653,\"\")))","v":""},null,null,null,null,null,null,null,null,null,null,null,null,null,null,null,null,null,null,null,null,{"$f":"_xlfn.XLOOKUP(V29,'DATOS DEPORTISTAS'!$M$4:$M$653,'DATOS DEPORTISTAS'!$J$4:$J$653,\"\")","v":0},null,null,null,null,null,null,null,{"$f":"_xlfn.XLOOKUP(V29,'DATOS DEPORTISTAS'!$M$4:$M$653,'DATOS DEPORTISTAS'!$U$4:$U$653,\"\")","v":0}]
["",null,null,null,null,null,null,null,null,null,null,null,null,null,null,null,{"$f":"IF(_xlfn.XLOOKUP(V30,'DATOS DEPORTISTAS'!$M$4:$M$653,'DATOS DEPORTISTAS'!$Q$4:$Q$653,\"\")<30,\"\",(_xlfn.XLOOKUP(V30,'DATOS DEPORTISTAS'!$M$4:$M$653,'DATOS DEPORTISTAS'!$Q$4:$Q$653,\"\")))","v":""},null,null,null,null,null,null,null,null,null,null,null,null,null,null,null,null,null,null,null,null,{"$f":"_xlfn.XLOOKUP(V30,'DATOS DEPORTISTAS'!$M$4:$M$653,'DATOS DEPORTISTAS'!$J$4:$J$653,\"\")","v":0},null,null,null,null,null,null,null,{"$f":"_xlfn.XLOOKUP(V30,'DATOS DEPORTISTAS'!$M$4:$M$653,'DATOS DEPORTISTAS'!$U$4:$U$653,\"\")","v":0}]
["",null,null,null,null,null,null,null,null,null,null,null,null,null,null,null,{"$f":"IF(_xlfn.XLOOKUP(V31,'DATOS DEPORTISTAS'!$M$4:$M$653,'DATOS DEPORTISTAS'!$Q$4:$Q$653,\"\")<30,\"\",(_xlfn.XLOOKUP(V31,'DATOS DEPORTISTAS'!$M$4:$M$653,'DATOS DEPORTISTAS'!$Q$4:$Q$653,\"\")))","v":""},null,null,null,null,null,null,null,null,null,null,null,null,null,null,null,null,null,null,null,null,{"$f":"_xlfn.XLOOKUP(V31,'DATOS DEPORTISTAS'!$M$4:$M$653,'DATOS DEPORTISTAS'!$J$4:$J$653,\"\")","v":0},null,null,null,null,null,null,null,{"$f":"_xlfn.XLOOKUP(V31,'DATOS DEPORTISTAS'!$M$4:$M$653,'DATOS DEPORTISTAS'!$U$4:$U$653,\"\")","v":0}]
["",null,null,null,null,null,null,null,null,null,null,null,null,null,null,null,{"$f":"IF(_xlfn.XLOOKUP(V32,'DATOS DEPORTISTAS'!$M$4:$M$653,'DATOS DEPORTISTAS'!$Q$4:$Q$653,\"\")<30,\"\",(_xlfn.XLOOKUP(V32,'DATOS DEPORTISTAS'!$M$4:$M$653,'DATOS DEPORTISTAS'!$Q$4:$Q$653,\"\")))","v":""},null,null,null,null,null,null,null,null,null,null,null,null,null,null,null,null,null,null,null,null,{"$f":"_xlfn.XLOOKUP(V32,'DATOS DEPORTISTAS'!$M$4:$M$653,'DATOS DEPORTISTAS'!$J$4:$J$653,\"\")","v":0},null,null,null,null,null,null,null,{"$f":"_xlfn.XLOOKUP(V32,'DATOS DEPORTISTAS'!$M$4:$M$653,'DATOS DEPORTISTAS'!$U$4:$U$653,\"\")","v":0}]
["",null,null,null,null,null,null,null,null,null,null,null,null,null,null,null,{"$f":"IF(_xlfn.XLOOKUP(V33,'DATOS DEPORTISTAS'!$M$4:$M$653,'DATOS DEPORTISTAS'!$Q$4:$Q$653,\"\")<30,\"\",(_xlfn.XLOOKUP(V33,'DATOS DEPORTISTAS'!$M$4:$M$653,'DATOS DEPORTISTAS'!$Q$4:$Q$653,\"\")))","v":""},null,null,null,null,null,null,null,null,null,null,null,null,null,null,null,null,null,null,null,null,{"$f":"_xlfn.XLOOKUP(V33,'DATOS DEPORTISTAS'!$M$4:$M$653,'DATOS DEPORTISTAS'!$J$4:$J$653,\"\")","v":0},null,null,null,null,null,null,null,{"$f":"_xlfn.XLOOKUP(V33,'DATOS DEPORTISTAS'!$M$4:$M$653,'DATOS DEPORTISTAS'!$U$4:$U$653,\"\")","v":0}]
["",null,null,null,null,null,null,null,null,null,null,null,null,null,null,null,{"$f":"IF(_xlfn.XLOOKUP(V34,'DATOS DEPORTISTAS'!$M$4:$M$653,'DATOS DEPORTISTAS'!$Q$4:$Q$653,\"\")<30,\"\",(_xlfn.XLOOKUP(V34,'DATOS DEPORTISTAS'!$M$4:$M$653,'DATOS DEPORTISTAS'!$Q$4:$Q$653,\"\")))","v":""},null,null,null,null,null,null,null,null,null,null,null,null,null,null,null,null,null,null,null,null,{"$f":"_xlfn.XLOOKUP(V34,'DATOS DEPORTISTAS'!$M$4:$M$653,'DATOS DEPORTISTAS'!$J$4:$J$653,\"\")","v":0},null,null,null,null,null,null,null,{"$f":"_xlfn.XLOOKUP(V34,'DATOS DEPORTISTAS'!$M$4:$M$653,'DATOS DEPORTISTAS'!$U$4:$U$653,\"\")","v":0}]
["",null,null,null,null,null,null,null,null,null,null,null,null,null,null,null,{"$f":"IF(_xlfn.XLOOKUP(V35,'DATOS DEPORTISTAS'!$M$4:$M$653,'DATOS DEPORTISTAS'!$Q$4:$Q$653,\"\")<30,\"\",(_xlfn.XLOOKUP(V35,'DATOS DEPORTISTAS'!$M$4:$M$653,'DATOS DEPORTISTAS'!$Q$4:$Q$653,\"\")))","v":""},null,null,null,null,null,null,null,null,null,null,null,null,null,null,null,null,null,null,null,null,{"$f":"_xlfn.XLOOKUP(V35,'DATOS DEPORTISTAS'!$M$4:$M$653,'DATOS DEPORTISTAS'!$J$4:$J$653,\"\")","v":0},null,null,null,null,null,null,null,{"$f":"_xlfn.XLOOKUP(V35,'DATOS DEPORTISTAS'!$M$4:$M$653,'DATOS DEPORTISTAS'!$U$4:$U$653,\"\")","v":0}]
["",null,null,null,null,null,null,null,null,null,null,null,null,null,null,null,{"$f":"IF(_xlfn.XLOOKUP(V36,'DATOS DEPORTISTAS'!$M$4:$M$653,'DATOS DEPORTISTAS'!$Q$4:$Q$653,\"\")<30,\"\",(_xlfn.XLOOKUP(V36,'DATOS DEPORTISTAS'!$M$4:$M$653,'DATOS DEPORTISTAS'!$Q$4:$Q$653,\"\")))","v":""},null,null,null,null,null,null,null,null,null,null,null,null,null,null,null,null,null,null,null,null,{"$f":"_xlfn.XLOOKUP(V36,'DATOS DEPORTISTAS'!$M$4:$M$653,'DATOS DEPORTISTAS'!$J$4:$J$653,\"\")","v":0},null,null,null,null,null,null,null,{"$f":"_xlfn.XLOOKUP(V36,'DATOS DEPORTISTAS'!$M$4:$M$653,'DATOS DEPORTISTAS'!$U$4:$U$653,\"\")","v":0}]
["",null,null,null,null,null,null,null,null,null,null,null,null,null,null,null,{"$f":"IF(_xlfn.XLOOKUP(V37,'DATOS DEPORTISTAS'!$M$4:$M$653,'DATOS DEPORTISTAS'!$Q$4:$Q$653,\"\")<30,\"\",(_xlfn.XLOOKUP(V37,'DATOS DEPORTISTAS'!$M$4:$M$653,'DATOS DEPORTISTAS'!$Q$4:$Q$653,\"\")))","v":""},null,null,null,null,null,null,null,null,null,null,null,null,null,null,null,null,null,null,null,null,{"$f":"_xlfn.XLOOKUP(V37,'DATOS DEPORTISTAS'!$M$4:$M$653,'DATOS DEPORTISTAS'!$J$4:$J$653,\"\")","v":0},null,null,null,null,null,null,null,{"$f":"_xlfn.XLOOKUP(V37,'DATOS DEPORTISTAS'!$M$4:$M$653,'DATOS DEPORTISTAS'!$U$4:$U$653,\"\")","v":0}]
["",null,null,null,null,null,null,null,null,null,null,null,null,null,null,null,{"$f":"IF(_xlfn.XLOOKUP(V38,'DATOS DEPORTISTAS'!$M$4:$M$653,'DATOS DEPORTISTAS'!$Q$4:$Q$653,\"\")<30,\"\",(_xlfn.XLOOKUP(V38,'DATOS DEPORTISTAS'!$M$4:$M$653,'DATOS DEPORTISTAS'!$Q$4:$Q$653,\"\")))","v":""},null,null,null,null,null,null,null,null,null,null,null,null,null,null,null,null,null,null,null,null,{"$f":"_xlfn.XLOOKUP(V38,'DATOS DEPORTISTAS'!$M$4:$M$653,'DATOS DEPORTISTAS'!$J$4:$J$653,\"\")","v":0},null,null,null,null,null,null,null,{"$f":"_xlfn.XLOOKUP(V38,'DATOS DEPORTISTAS'!$M$4:$M$653,'DATOS DEPORTISTAS'!$U$4:$U$653,\"\")","v":0}]
[]
[]
[null,"Entrenador: D. ",null,null,null,null,null,null,null,null,null,null,null,null,null,null,null,null,null,null,null,null,null,null,null,null,null,null,null,null,null,null,"Nº FICHA:",null,null,null,null,{"$f":"_xlfn.XLOOKUP(H41,'DATOS DEPORTISTAS'!$M$4:$M$653,'DATOS DEPORTISTAS'!$U$4:$U$653,\"\")","v":0}]
[]
[null,"Categoría:"]
[]
[null,"Delegado: D.",null,null,null,null,null,null,null,null,null,null,null,null,null,null,null,null,null,null,null,null,null,null,null,null,null,null,null,null,null,null,"Nº FICHA:",null,null,null,null,{"$f":"_xlfn.XLOOKUP(H45,'DATOS DEPORTISTAS'!$M$4:$M$653,'DATOS DEPORTISTAS'!$U$4:$U$653,\"\")","v":0}]
[]
[]
[null,null,null,null,null,null,null,null,null,null,null,null,null,null,null,null,null,null,"En,",null,null,null,null,null,null,null,null,null,null,null,null,",a",null,null,"de",null,null,null,null,null,null,null,null,null,null,null,"de"]
[]
[null,null,null,null,null,null,null,null,null,null,null,null,null,null,null,null,null,null,null,null,null,null,null,null,null,null,null,null,null,null,"WEB:",null," www.farremo.es",null,null,null,null,null,null,null,"email: ",null,null,"farremo@farremo.es"]

{"sheet":"INSCRIPCIONES MIXTO","index":3,"n_rows":50,"n_cols":47,"rows_kept":50,"cut":false,"hidden":true,"merged":[[5,9,5,12],[5,18,5,22],[47,20,47,30],[47,32,47,33],[47,34,47,35],[47,36,47,45],[47,47,47,49],[37,45,37,50],[37,53,37,63],[40,7,40,30],[40,37,40,49],[42,7,42,33],[44,7,44,30],[44,37,44,49],[37,0,37,8],[37,9,37,15],[37,16,37,18],[37,19,37,20],[37,21,37,36],[37,37,37,44],[35,45,35,50],[35,53,35,63],[36,0,36,8],[36,9,36,15],[36,16,36,18],[36,19,36,20],[36,21,36,36],[36,37,36,44],[36,45,36,50],[36,53,36,63],[35,0,35,8],[35,9,35,15],[35,16,35,18],[35,19,35,20],[35,21,35,36],[35,37,35,44],[33,45,33,50],[33,53,33,63],[34,0,34,8],[34,9,34,15],[34,16,34,18],[34,19,34,20],[34,21,34,36],[34,37,34,44],[34,45,34,50],[34,53,34,63],[33,0,33,8],[33,9,33,15],[33,16,33,18],[33,19,33,20],[33,21,33,36],[33,37,33,44],[31,45,31,50],[31,53,31,63],[32,0,32,8],[32,9,32,15],[32,16,32,18],[32,19,32,20],[32,21,32,36],[32,37,32,44],[32,45,32,50],[32,53,32,63],[31,0,31,8],[31,9,31,15],[31,16,31,18],[31,19,31,20],[31,21,31,36],[31,37,31,44],[29,45,29,50],[29,53,29,63],[30,0,30,8],[30,9,30,15],[30,16,30,18],[30,19,30,20],[30,21,30,36],[30,37,30,44],[30,45,30,50],[30,53,30,63],[29,0,29,8],[29,9,29,15],[29,16,29,18],[29,19,29,20],[29,21,29,36],[29,37,29,44],[27,45,27,50],[27,53,27,63],[28,0,28,8],[28,9,28,15],[28,16,28,18],[28,19,28,20],[28,21,28,36],[28,37,28,44],[28,45,28,50],[28,53,28,63],[27,0,27,8],[27,9,27,15],[27,16,27,18],[27,19,27,20],[27,21,27,36],[27,37,27,44],[25,45,25,50],[25,53,25,63],[26,0,26,8],[26,9,26,15],[26,16,26,18],[26,19,26,20],[26,21,26,36],[26,37,26,44],[26,45,26,50],[26,53,26,63],[25,0,25,8],[25,9,25,15],[25,16,25,18],[25,19,25,20],[25,21,25,36],[25,37,25,44],[23,45,23,50],[23,53,23,63],[24,0,24,8],[24,9,24,15],[24,16,24,18],[24,19,24,20],[24,21,24,36],[24,37,24,44],[24,45,24,50],[24,53,24,63],[23,0,23,8],[23,9,23,15],[23,16,23,18],[23,19,23,20],[23,21,23,36],[23,37,23,44],[21,53,21,63],[22,0,22,8],[22,9,22,15],[22,16,22,18],[22,19,22,20],[22,21,22,36],[22,37,22,44],[22,45,22,50],[22,53,22,63],[7,23,7,49],[9,9,9,49],[11,15,11,49],[13,12,13,27],[13,37,13,49],[17,11,17,26],[17,33,17,49],[20,45,20,50],[21,0,21,8],[21,9,21,15],[21,16,21,18],[21,19,21,20],[21,21,21,36],[21,37,21,44],[21,45,21,50],[20,0,20,8],[20,9,20,15],[20,16,20,18],[20,19,20,20],[20,21,20,36],[20,37,20,44]]}
[]
[null,null,null,null,null,null,null,null,null,null,null,null,null,null,null,null,null,null,null,null,null,null,null,null,"FEDERACIÓN ARAGONESA DE REMO"]
[null,null,null,null,null,null,null,null,null,null,null,null,null,null,"Hoja de inscripción oficial"]
[]
[]
[null,null,null,"Nº DE HOJA",null,null,null,null,null,1,null,null,null,null,null,"DE",null,null,1]
[]
[null,"Hoja de Inscripción que formula el Club:"]
[]
[null,"Adscrito a la,",null,null,null,null,null,null,null,"FEDERACIÓN ARAGONESA DE REMO"]
[]
[null,"para PARTICIPAR en, "]
[]
[null,"que se celebrará en ",null,null,null,null,null,null,null,null,null,null,null,null,null,null,null,null,null,null,null,null,null,null,null,null,null,null,null,"durante los dias"]
[]
[null,"INSCRIBE a los equipos más abajo indicados"]
[]
[null,"Colores: Uniforme:"]
[]
[]
["CATEGORIA",null,null,null,null,null,null,null,null,"Modalidad",null,null,null,null,null,null,"Edad",null,null,"Pto",null,"NOMBRE, APELLIDOS",null,null,null,null,null,null,null,null,null,null,null,null,null,null,null,"SEXO",null,null,null,null,null,null,null,"Nº FICHA."]
[{"$f":"IF(BB22=\"BENJAMIN\",\"BENJAMIN\",IF(BB22=\"ALEVIN\",\"ALEVIN\",IF(BB22=\"INFANTIL\",\"INFANTIL\",IF(BB22=\"CADETE\",\"CADETE\",IF(BB22=\"JUVENIL\",\"JUVENIL\",IF(BB22=\"SENIOR\",\"SENIOR\",IF(BB22=\"VETERANO\",\"VETERANO\",IF(BB22=\"BENJAMIN_NZ\",\"BENJAMIN\",IF(BB22=\"ALEVIN_NZ\",\"ALEVIN\",IF(BB22=\"INFANTIL_NZ\",\"INFANTIL\",IF(BB22=\"CADETE_NZ\",\"CADETE\",IF(BB22=\"JUVENIL_NZ\",\"JUVENIL\",IF(BB22=\"SENIOR_NZ\",\"SENIOR\",IF(BB22=\"VETERANO_NZ\",\"VETERANO\",IF(BB22=\"ALEVIN_NB\",\"ALEVIN\",IF(BB22=\"INFANTIL_NB\",\"INFANTIL\",IF(BB22=\"CADETE_NB\",\"CADETE\",IF(BB22=\"JUVENIL_NB\",\"JUVENIL\",IF(BB22=\"SENIOR_NB\",\"SENIOR\",IF(BB22=\"VETERANO_NB\",\"VETERANO\",IF(BB22=\"BENJAMIN_CM\",\"BENJAMIN\",IF(BB22=\"ALEVIN_CM\",\"ALEVIN\",IF(BB22=\"INFANTIL_CM\",\"INFANTIL\",IF(BB22=\"CADETE_CM\",\"CADETE\",IF(BB22=\"JUVENIL_CM\",\"JUVENIL\",IF(BB22=\"SENIOR_CM\",\"SENIOR\",IF(BB22=\"VETERANO_CM\",\"VETERANO\",IF(BB22=\"BENJAMIN_AR\",\"BENJAMIN\",IF(BB22=\"ALEVIN_AR\",\"ALEVIN\",IF(BB22=\"INFANTIL_AR\",\"INFANTIL\",IF(BB22=\"CADETE_AR\",\"CADETE\",IF(BB22=\"JUVENIL_AR\",\"JUVENIL\",IF(BB22=\"SENIOR_AR\",\"SENIOR\",IF(BB22=\"VETERANO_AR\",\"VETERANO\",IF(BB22=\"BENJAMIN_RZ\",\"BENJAMIN\",IF(BB22=\"ALEVIN_RZ\",\"ALEVIN\",IF(BB22=\"INFANTIL_RZ\",\"INFANTIL\",IF(BB22=\"CADETE_RZ\",\"CADETE\",IF(BB22=\"JUVENIL_RZ\",\"JUVENIL\",IF(BB22=\"SENIOR_RZ\",\"SENIOR\",IF(BB22=\"VETERANO_RZ\",\"VETERANO\",\"\")))))))))))))))))))))))))))))))))))))))))","v":""},null,null,null,null,null,null,null,null,null,null,null,null,null,null,null,{"$f":"IF(_xlfn.XLOOKUP(V22,'DATOS DEPORTISTAS'!$M$4:$M$653,'DATOS DEPORTISTAS'!$Q$4:$Q$653,\"\")<30,\"\",(_xlfn.XLOOKUP(V22,'DATOS DEPORTISTAS'!$M$4:$M$653,'DATOS DEPORTISTAS'!$Q$4:$Q$653,\"\")))","v":""},null,null,null,null,null,null,null,null,null,null,null,null,null,null,null,null,null,null,null,null,{"$f":"_xlfn.XLOOKUP(V22,'DATOS DEPORTISTAS'!$M$4:$M$653,'DATOS DEPORTISTAS'!$J$4:$J$653,\"\")","v":0},null,null,null,null,null,null,null,{"$f":"_xlfn.XLOOKUP(V22,'DATOS DEPORTISTAS'!$M$4:$M$653,'DATOS DEPORTISTAS'!$U$4:$U$653,\"\")","v":0}]
[{"$f":"IF(BB23=\"BENJAMIN\",\"BENJAMIN\",IF(BB23=\"ALEVIN\",\"ALEVIN\",IF(BB23=\"INFANTIL\",\"INFANTIL\",IF(BB23=\"CADETE\",\"CADETE\",IF(BB23=\"JUVENIL\",\"JUVENIL\",IF(BB23=\"SENIOR\",\"SENIOR\",IF(BB23=\"VETERANO\",\"VETERANO\",IF(BB23=\"BENJAMIN_NZ\",\"BENJAMIN\",IF(BB23=\"ALEVIN_NZ\",\"ALEVIN\",IF(BB23=\"INFANTIL_NZ\",\"INFANTIL\",IF(BB23=\"CADETE_NZ\",\"CADETE\",IF(BB23=\"JUVENIL_NZ\",\"JUVENIL\",IF(BB23=\"SENIOR_NZ\",\"SENIOR\",IF(BB23=\"VETERANO_NZ\",\"VETERANO\",IF(BB23=\"ALEVIN_NB\",\"ALEVIN\",IF(BB23=\"INFANTIL_NB\",\"INFANTIL\",IF(BB23=\"CADETE_NB\",\"CADETE\",IF(BB23=\"JUVENIL_NB\",\"JUVENIL\",IF(BB23=\"SENIOR_NB\",\"SENIOR\",IF(BB23=\"VETERANO_NB\",\"VETERANO\",IF(BB23=\"BENJAMIN_CM\",\"BENJAMIN\",IF(BB23=\"ALEVIN_CM\",\"ALEVIN\",IF(BB23=\"INFANTIL_CM\",\"INFANTIL\",IF(BB23=\"CADETE_CM\",\"CADETE\",IF(BB23=\"JUVENIL_CM\",\"JUVENIL\",IF(BB23=\"SENIOR_CM\",\"SENIOR\",IF(BB23=\"VETERANO_CM\",\"VETERANO\",IF(BB23=\"BENJAMIN_AR\",\"BENJAMIN\",IF(BB23=\"ALEVIN_AR\",\"ALEVIN\",IF(BB23=\"INFANTIL_AR\",\"INFANTIL\",IF(BB23=\"CADETE_AR\",\"CADETE\",IF(BB23=\"JUVENIL_AR\",\"JUVENIL\",IF(BB23=\"SENIOR_AR\",\"SENIOR\",IF(BB23=\"VETERANO_AR\",\"VETERANO\",IF(BB23=\"BENJAMIN_RZ\",\"BENJAMIN\",IF(BB23=\"ALEVIN_RZ\",\"ALEVIN\",IF(BB23=\"INFANTIL_RZ\",\"INFANTIL\",IF(BB23=\"CADETE_RZ\",\"CADETE\",IF(BB23=\"JUVENIL_RZ\",\"JUVENIL\",IF(BB23=\"SENIOR_RZ\",\"SENIOR\",IF(BB23=\"VETERANO_RZ\",\"VETERANO\",\"\")))))))))))))))))))))))))))))))))))))))))","v":""},null,null,null,null,null,null,null,null,null,null,null,null,null,null,null,{"$f":"IF(_xlfn.XLOOKUP(V23,'DATOS DEPORTISTAS'!$M$4:$M$653,'DATOS DEPORTISTAS'!$Q$4:$Q$653,\"\")<30,\"\",(_xlfn.XLOOKUP(V23,'DATOS DEPORTISTAS'!$M$4:$M$653,'DATOS DEPORTISTAS'!$Q$4:$Q$653,\"\")))","v":""},null,null,null,null,null,null,null,null,null,null,null,null,null,null,null,null,null,null,null,null,{"$f":"_xlfn.XLOOKUP(V23,'DATOS DEPORTISTAS'!$M$4:$M$653,'DATOS DEPORTISTAS'!$J$4:$J$653,\"\")","v":0},null,null,null,null,null,null,null,{"$f":"_xlfn.XLOOKUP(V23,'DATOS DEPORTISTAS'!$M$4:$M$653,'DATOS DEPORTISTAS'!$U$4:$U$653,\"\")","v":0}]
["",null,null,null,null,null,null,null,null,null,null,null,null,null,null,null,{"$f":"IF(_xlfn.XLOOKUP(V24,'DATOS DEPORTISTAS'!$M$4:$M$653,'DATOS DEPORTISTAS'!$Q$4:$Q$653,\"\")<30,\"\",(_xlfn.XLOOKUP(V24,'DATOS DEPORTISTAS'!$M$4:$M$653,'DATOS DEPORTISTAS'!$Q$4:$Q$653,\"\")))","v":""},null,null,null,null,null,null,null,null,null,null,null,null,null,null,null,null,null,null,null,null,{"$f":"_xlfn.XLOOKUP(V24,'DATOS DEPORTISTAS'!$M$4:$M$653,'DATOS DEPORTISTAS'!$J$4:$J$653,\"\")","v":0},null,null,null,null,null,null,null,{"$f":"_xlfn.XLOOKUP(V24,'DATOS DEPORTISTAS'!$M$4:$M$653,'DATOS DEPORTISTAS'!$U$4:$U$653,\"\")","v":0}]
["",null,null,null,null,null,null,null,null,null,null,null,null,null,null,null,{"$f":"IF(_xlfn.XLOOKUP(V25,'DATOS DEPORTISTAS'!$M$4:$M$653,'DATOS DEPORTISTAS'!$Q$4:$Q$653,\"\")<30,\"\",(_xlfn.XLOOKUP(V25,'DATOS DEPORTISTAS'!$M$4:$M$653,'DATOS DEPORTISTAS'!$Q$4:$Q$653,\"\")))","v":""},null,null,null,null,null,null,null,null,null,null,null,null,null,null,null,null,null,null,null,null,{"$f":"_xlfn.XLOOKUP(V25,'DATOS DEPORTISTAS'!$M$4:$M$653,'DATOS DEPORTISTAS'!$J$4:$J$653,\"\")","v":0},null,null,null,null,null,null,null,{"$f":"_xlfn.XLOOKUP(V25,'DATOS DEPORTISTAS'!$M$4:$M$653,'DATOS DEPORTISTAS'!$U$4:$U$653,\"\")","v":0}]
["",null,null,null,null,null,null,null,null,null,null,null,null,null,null,null,{"$f":"IF(_xlfn.XLOOKUP(V26,'DATOS DEPORTISTAS'!$M$4:$M$653,'DATOS DEPORTISTAS'!$Q$4:$Q$653,\"\")<30,\"\",(_xlfn.XLOOKUP(V26,'DATOS DEPORTISTAS'!$M$4:$M$653,'DATOS DEPORTISTAS'!$Q$4:$Q$653,\"\")))","v":""},null,null,null,null,null,null,null,null,null,null,null,null,null,null,null,null,null,null,null,null,{"$f":"_xlfn.XLOOKUP(V26,'DATOS DEPORTISTAS'!$M$4:$M$653,'DATOS DEPORTISTAS'!$J$4:$J$653,\"\")","v":0},null,null,null,null,null,null,null,{"$f":"_xlfn.XLOOKUP(V26,'DATOS DEPORTISTAS'!$M$4:$M$653,'DATOS DEPORTISTAS'!$U$4:$U$653,\"\")","v":0}]
["",null,null,null,null,null,null,null,null,null,null,null,null,null,null,null,{"$f":"IF(_xlfn.XLOOKUP(V27,'DATOS DEPORTISTAS'!$M$4:$M$653,'DATOS DEPORTISTAS'!$Q$4:$Q$653,\"\")<30,\"\",(_xlfn.XLOOKUP(V27,'DATOS DEPORTISTAS'!$M$4:$M$653,'DATOS DEPORTISTAS'!$Q$4:$Q$653,\"\")))","v":""},null,null,null,null,null,null,null,null,null,null,null,null,null,null,null,null,null,null,null,null,{"$f":"_xlfn.XLOOKUP(V27,'DATOS DEPORTISTAS'!$M$4:$M$653,'DATOS DEPORTISTAS'!$J$4:$J$653,\"\")","v":0},null,null,null,null,null,null,null,{"$f":"_xlfn.XLOOKUP(V27,'DATOS DEPORTISTAS'!$M$4:$M$653,'DATOS DEPORTISTAS'!$U$4:$U$653,\"\")","v":0}]
["",null,null,null,null,null,null,null,null,null,null,null,null,null,null,null,{"$f":"IF(_xlfn.XLOOKUP(V28,'DATOS DEPORTISTAS'!$M$4:$M$653,'DATOS DEPORTISTAS'!$Q$4:$Q$653,\"\")<30,\"\",(_xlfn.XLOOKUP(V28,'DATOS DEPORTISTAS'!$M$4:$M$653,'DATOS DEPORTISTAS'!$Q$4:$Q$653,\"\")))","v":""},null,null,null,null,null,null,null,null,null,null,null,null,null,null,null,null,null,null,null,null,{"$f":"_xlfn.XLOOKUP(V28,'DATOS DEPORTISTAS'!$M$4:$M$653,'DATOS DEPORTISTAS'!$J$4:$J$653,\"\")","v":0},null,null,null,null,null,null,null,{"$f":"_xlfn.XLOOKUP(V28,'DATOS DEPORTISTAS'!$M$4:$M$653,'DATOS DEPORTISTAS'!$U$4:$U$653,\"\")","v":0}]
["",null,null,null,null,null,null,null,null,null,null,null,null,null,null,null,{"$f":"IF(_xlfn.XLOOKUP(V29,'DATOS DEPORTISTAS'!$M$4:$M$653,'DATOS DEPORTISTAS'!$Q$4:$Q$653,\"\")<30,\"\",(_xlfn.XLOOKUP(V29,'DATOS DEPORTISTAS'!$M$4:$M$653,'DATOS DEPORTISTAS'!$Q$4:$Q$653,\"\")))","v":""},null,null,null,null,null,null,null,null,null,null,null,null,null,null,null,null,null,null,null,null,{"$f":"_xlfn.XLOOKUP(V29,'DATOS DEPORTISTAS'!$M$4:$M$653,'DATOS DEPORTISTAS'!$J$4:$J$653,\"\")","v":0},null,null,null,null,null,null,null,{"$f":"_xlfn.XLOOKUP(V29,'DATOS DEPORTISTAS'!$M$4:$M$653,'DATOS DEPORTISTAS'!$U$4:$U$653,\"\")","v":0}]
["",null,null,null,null,null,null,null,null,null,null,null,null,null,null,null,{"$f":"IF(_xlfn.XLOOKUP(V30,'DATOS DEPORTISTAS'!$M$4:$M$653,'DATOS DEPORTISTAS'!$Q$4:$Q$653,\"\")<30,\"\",(_xlfn.XLOOKUP(V30,'DATOS DEPORTISTAS'!$M$4:$M$653,'DATOS DEPORTISTAS'!$Q$4:$Q$653,\"\")))","v":""},null,null,null,null,null,null,null,null,null,null,null,null,null,null,null,null,null,null,null,null,{"$f":"_xlfn.XLOOKUP(V30,'DATOS DEPORTISTAS'!$M$4:$M$653,'DATOS DEPORTISTAS'!$J$4:$J$653,\"\")","v":0},null,null,null,null,null,null,null,{"$f":"_xlfn.XLOOKUP(V30,'DATOS DEPORTISTAS'!$M$4:$M$653,'DATOS DEPORTISTAS'!$U$4:$U$653,\"\")","v":0}]
["",null,null,null,null,null,null,null,null,null,null,null,null,null,null,null,{"$f":"IF(_xlfn.XLOOKUP(V31,'DATOS DEPORTISTAS'!$M$4:$M$653,'DATOS DEPORTISTAS'!$Q$4:$Q$653,\"\")<30,\"\",(_xlfn.XLOOKUP(V31,'DATOS DEPORTISTAS'!$M$4:$M$653,'DATOS DEPORTISTAS'!$Q$4:$Q$653,\"\")))","v":""},null,null,null,null,null,null,null,null,null,null,null,null,null,null,null,null,null,null,null,null,{"$f":"_xlfn.XLOOKUP(V31,'DATOS DEPORTISTAS'!$M$4:$M$653,'DATOS DEPORTISTAS'!$J$4:$J$653,\"\")","v":0},null,null,null,null,null,null,null,{"$f":"_xlfn.XLOOKUP(V31,'DATOS DEPORTISTAS'!$M$4:$M$653,'DATOS DEPORTISTAS'!$U$4:$U$653,\"\")","v":0}]
["",null,null,null,null,null,null,null,null,null,null,null,null,null,null,null,{"$f":"IF(_xlfn.XLOOKUP(V32,'DATOS DEPORTISTAS'!$M$4:$M$653,'DATOS DEPORTISTAS'!$Q$4:$Q$653,\"\")<30,\"\",(_xlfn.XLOOKUP(V32,'DATOS DEPORTISTAS'!$M$4:$M$653,'DATOS DEPORTISTAS'!$Q$4:$Q$653,\"\")))","v":""},null,null,null,null,null,null,null,null,null,null,null,null,null,null,null,null,null,null,null,null,{"$f":"_xlfn.XLOOKUP(V32,'DATOS DEPORTISTAS'!$M$4:$M$653,'DATOS DEPORTISTAS'!$J$4:$J$653,\"\")","v":0},null,null,null,null,null,null,null,{"$f":"_xlfn.XLOOKUP(V32,'DATOS DEPORTISTAS'!$M$4:$M$653,'DATOS DEPORTISTAS'!$U$4:$U$653,\"\")","v":0}]
["",null,null,null,null,null,null,null,null,null,null,null,null,null,null,null,{"$f":"IF(_xlfn.XLOOKUP(V33,'DATOS DEPORTISTAS'!$M$4:$M$653,'DATOS DEPORTISTAS'!$Q$4:$Q$653,\"\")<30,\"\",(_xlfn.XLOOKUP(V33,'DATOS DEPORTISTAS'!$M$4:$M$653,'DATOS DEPORTISTAS'!$Q$4:$Q$653,\"\")))","v":""},null,null,null,null,null,null,null,null,null,null,null,null,null,null,null,null,null,null,null,null,{"$f":"_xlfn.XLOOKUP(V33,'DATOS DEPORTISTAS'!$M$4:$M$653,'DATOS DEPORTISTAS'!$J$4:$J$653,\"\")","v":0},null,null,null,null,null,null,null,{"$f":"_xlfn.XLOOKUP(V33,'DATOS DEPORTISTAS'!$M$4:$M$653,'DATOS DEPORTISTAS'!$U$4:$U$653,\"\")","v":0}]
["",null,null,null,null,null,null,null,null,null,null,null,null,null,null,null,{"$f":"IF(_xlfn.XLOOKUP(V34,'DATOS DEPORTISTAS'!$M$4:$M$653,'DATOS DEPORTISTAS'!$Q$4:$Q$653,\"\")<30,\"\",(_xlfn.XLOOKUP(V34,'DATOS DEPORTISTAS'!$M$4:$M$653,'DATOS DEPORTISTAS'!$Q$4:$Q$653,\"\")))","v":""},null,null,null,null,null,null,null,null,null,null,null,null,null,null,null,null,null,null,null,null,{"$f":"_xlfn.XLOOKUP(V34,'DATOS DEPORTISTAS'!$M$4:$M$653,'DATOS DEPORTISTAS'!$J$4:$J$653,\"\")","v":0},null,null,null,null,null,null,null,{"$f":"_xlfn.XLOOKUP(V34,'DATOS DEPORTISTAS'!$M$4:$M$653,'DATOS DEPORTISTAS'!$U$4:$U$653,\"\")","v":0}]
["",null,null,null,null,null,null,null,null,null,null,null,null,null,null,null,{"$f":"IF(_xlfn.XLOOKUP(V35,'DATOS DEPORTISTAS'!$M$4:$M$653,'DATOS DEPORTISTAS'!$Q$4:$Q$653,\"\")<30,\"\",(_xlfn.XLOOKUP(V35,'DATOS DEPORTISTAS'!$M$4:$M$653,'DATOS DEPORTISTAS'!$Q$4:$Q$653,\"\")))","v":""},null,null,null,null,null,null,null,null,null,null,null,null,null,null,null,null,null,null,null,null,{"$f":"_xlfn.XLOOKUP(V35,'DATOS DEPORTISTAS'!$M$4:$M$653,'DATOS DEPORTISTAS'!$J$4:$J$653,\"\")","v":0},null,null,null,null,null,null,null,{"$f":"_xlfn.XLOOKUP(V35,'DATOS DEPORTISTAS'!$M$4:$M$653,'DATOS DEPORTISTAS'!$U$4:$U$653,\"\")","v":0}]
["",null,null,null,null,null,null,null,null,null,null,null,null,null,null,null,{"$f":"IF(_xlfn.XLOOKUP(V36,'DATOS DEPORTISTAS'!$M$4:$M$653,'DATOS DEPORTISTAS'!$Q$4:$Q$653,\"\")<30,\"\",(_xlfn.XLOOKUP(V36,'DATOS DEPORTISTAS'!$M$4:$M$653,'DATOS DEPORTISTAS'!$Q$4:$Q$653,\"\")))","v":""},null,null,null,null,null,null,null,null,null,null,null,null,null,null,null,null,null,null,null,null,{"$f":"_xlfn.XLOOKUP(V36,'DATOS DEPORTISTAS'!$M$4:$M$653,'DATOS DEPORTISTAS'!$J$4:$J$653,\"\")","v":0},null,null,null,null,null,null,null,{"$f":"_xlfn.XLOOKUP(V36,'DATOS DEPORTISTAS'!$M$4:$M$653,'DATOS DEPORTISTAS'!$U$4:$U$653,\"\")","v":0}]
["",null,null,null,null,null,null,null,null,null,null,null,null,null,null,null,{"$f":"IF(_xlfn.XLOOKUP(V37,'DATOS DEPORTISTAS'!$M$4:$M$653,'DATOS DEPORTISTAS'!$Q$4:$Q$653,\"\")<30,\"\",(_xlfn.XLOOKUP(V37,'DATOS DEPORTISTAS'!$M$4:$M$653,'DATOS DEPORTISTAS'!$Q$4:$Q$653,\"\")))","v":""},null,null,null,null,null,null,null,null,null,null,null,null,null,null,null,null,null,null,null,null,{"$f":"_xlfn.XLOOKUP(V37,'DATOS DEPORTISTAS'!$M$4:$M$653,'DATOS DEPORTISTAS'!$J$4:$J$653,\"\")","v":0},null,null,null,null,null,null,null,{"$f":"_xlfn.XLOOKUP(V37,'DATOS DEPORTISTAS'!$M$4:$M$653,'DATOS DEPORTISTAS'!$U$4:$U$653,\"\")","v":0}]
["",null,null,null,null,null,null,null,null,null,null,null,null,null,null,null,{"$f":"IF(_xlfn.XLOOKUP(V38,'DATOS DEPORTISTAS'!$M$4:$M$653,'DATOS DEPORTISTAS'!$Q$4:$Q$653,\"\")<30,\"\",(_xlfn.XLOOKUP(V38,'DATOS DEPORTISTAS'!$M$4:$M$653,'DATOS DEPORTISTAS'!$Q$4:$Q$653,\"\")))","v":""},null,null,null,null,null,null,null,null,null,null,null,null,null,null,null,null,null,null,null,null,{"$f":"_xlfn.XLOOKUP(V38,'DATOS DEPORTISTAS'!$M$4:$M$653,'DATOS DEPORTISTAS'!$J$4:$J$653,\"\")","v":0},null,null,null,null,null,null,null,{"$f":"_xlfn.XLOOKUP(V38,'DATOS DEPORTISTAS'!$M$4:$M$653,'DATOS DEPORTISTAS'!$U$4:$U$653,\"\")","v":0}]
[]
[]
[null,"Entrenador: D. ",null,null,null,null,null,null,null,null,null,null,null,null,null,null,null,null,null,null,null,null,null,null,null,null,null,null,null,null,null,null,"Nº FICHA:",null,null,null,null,{"$f":"_xlfn.XLOOKUP(H41,'DATOS DEPORTISTAS'!$M$4:$M$653,'DATOS DEPORTISTAS'!$U$4:$U$653,\"\")","v":0}]
[]
[null,"Categoría:"]
[]
[null,"Delegado: D.",null,null,null,null,null,null,null,null,null,null,null,null,null,null,null,null,null,null,null,null,null,null,null,null,null,null,null,null,null,null,"Nº FICHA:",null,null,null,null,{"$f":"_xlfn.XLOOKUP(H45,'DATOS DEPORTISTAS'!$M$4:$M$653,'DATOS DEPORTISTAS'!$U$4:$U$653,\"\")","v":0}]
[]
[]
[null,null,null,null,null,"Firma delegado",null,null,null,null,null,null,null,null,null,null,null,"En, ",null,null,null,null,null,null,null,null,null,null,null,null,null,",a ",null,null,"de",null,null,null,null,null,null,null,null,null,null,null,"de"]
[]
[null,null,null,null,null,null,null,null,null,null,null,null,null,null,null,null,null,null,null,null,null,null,null,null,null,null,null,null,null,null,"WEB:",null," www.farremo.es",null,null,null,null,null,null,null,"email: ",null,null,"farremo@farremo.es"]

{"sheet":"USUARIOS","index":4,"n_rows":13,"n_cols":5,"rows_kept":13,"cut":false,"hidden":true,"merged":[]}
[]
[null,"LISTA DE USUARIOS"]
[]
[null,{"$f":"HOME!G13","v":0},{"$f":"VLOOKUP(B4,USUARIOS[[USUARIO]:[CONTRASEÑA]],2,FALSE)","v":{"$error":"#N/A"}},{"$f":"VLOOKUP(B4,USUARIOS[],3,FALSE)","v":{"$error":"#N/A"}},{"$f":"C4=HOME!$G$15","v":{"$error":"#N/A"}}]
[]
[null,"Id","USUARIO","CONTRASEÑA","Tipo Acceso"]
[null,1,"DESARROLLADOR","Zaragoza2024.","Desarrollador"]
[null,2,"PRESIDENTE","PRESIDENTE2024","Administrador"]
[null,3,"CENTRO NATACION HELIOS","HELIOS2024","Usuario"]
[null,4,"NAUTICO ZARAGOZA","NAUTICOZ2024","Usuario"]
[null,5,"OS NABATERS D.F.","NABATERS2024","Usuario"]
[null,6,"CAPRI MEQUINENZA","CAPRI2024","Usuario"]
[null,7,"ARAGON REMO","ARAGONR2024","Usuario"]

{"sheet":"NIVEL ACCESO","index":5,"n_rows":10,"n_cols":4,"rows_kept":10,"cut":false,"hidden":true,"merged":[]}
[]
[]
[]
[]
[]
[]
[null,"ID","Tipo Usuario","Nivel de Acceso"]
[null,1,"Administrador","Acceso a todas las hojas y escritura. Crear Usuarios"]
[null,2,"Administrador1","Acceso a INSCRIPCIONES y DATOS DEPORTISTAS"]
[null,3,"Usuario","Acceso a INSCRIPCIONES"]

{"sheet":"DATOS DEPORTISTAS","index":6,"n_rows":653,"n_cols":66,"rows_kept":653,"cut":false,"hidden":true,"merged":[]}
[1,2,3,4,5,6,7,8,9,10,11,12,13,null,null,null,null,null,null,null,null,"2026-01-01",null,null,2026,null,null,null,2026]
[null,null,null,null,null,null,null,null,null,null,null,null,"COLUMNA ROJO ¡NO TOCAR!"]
["FEM.","BEN.","ALE.","INF.","CAD.","JUV.","SEN.","VET.","CAT.","SEXO (M/F)","APELLIDOS","NOMBRE","NOMBRE COMPLETO","DNI","F. NAC.","AÑO","EDAD EN EL AÑO","MES","EDAD ACTUAL","FECHA TRAMITACIÓN ALTA LICENCIA","Nº LICENCIA","CLUB","LICENCIA FAR DEPORTISTA","LICENCIA FAR ENTRENADOR","LICENCIA FAR DELEGADO","LICENCIA FAR ARBITRO","AUTORIZACION CLUB LICENCIA FER","DATOS ENVÍO COMUNICACIONES","DATOS GRABACIÓN IMAGEN Y VIDEOS INTERNOS","DATOS GRABACIÓN IMAGEN Y VIDEOS RRSS","DATOS GRABACIÓN IMAGEN Y VIDEOS PARA EXTERNOS","LICENCIA FER DEPORTISTA","LICENCIA FER ENTRENADOR","LICENCIA FER DELEGADO","LICENCIA FER ARBITRO"]
[{"$f":"IF(J4=\"F\", 1,0)","v":0},{"$f":"IF(I4=\"B\", 1,0)","v":0},{"$f":"IF(I4=\"A\", 1,0)","v":0},{"$f":"IF(I4=\"I\", 1,0)","v":0},{"$f":"IF(I4=\"C\", 1,0)","v":0},{"$f":"IF(I4=\"J\", 1,0)","v":0},{"$f":"IF(I4=\"S\", 1,0)","v":0},{"$f":"IF(I4=\"V\", 1,0)","v":0},{"$f":"IF((Q4<11),\"BENJAMIN\",IF(OR(Q4=11,Q4=12),\"ALEVIN\",IF(OR(Q4=13,Q4=14),\"INFANTIL\",IF(OR(Q4=15,Q4=16),\"CADETE\",IF(OR(Q4=17,Q4=18),\"JUVENIL\",IF(AND(Q4>18,Q4<31),\"SENIOR\",\"VETERANO\"))))))","v":"VETERANO"},"M","GÓMEZ RODRÍGUEZ","MARCOS",{"$f":"L4&\" \"& K4","v":"MARCOS GÓMEZ RODRÍGUEZ"},"17742359K","1974-03-21",{"$f":"YEAR(O4)","v":1974},{"$f":"$AC$1-P4","v":52},{"$f":"MONTH(O4)","v":3},{"$f":"DATEDIF(O4,TODAY(),\"Y\")","v":52},"2026-02-09",10,"F.A.R.",null,null,null,1]
[{"$f":"IF(J5=\"F\", 1,0)","v":0},{"$f":"IF(I5=\"B\", 1,0)","v":0},{"$f":"IF(I5=\"A\", 1,0)","v":0},{"$f":"IF(I5=\"I\", 1,0)","v":0},{"$f":"IF(I5=\"C\", 1,0)","v":0},{"$f":"IF(I5=\"J\", 1,0)","v":0},{"$f":"IF(I5=\"S\", 1,0)","v":0},{"$f":"IF(I5=\"V\", 1,0)","v":0},"VETERANO","M","CASORRÁN ROYO","DANIEL","DANIEL CASORRÁN ROYO","29111055R","1974-09-28",1974,52,9,51,"2026-02-09",11,"F.A.R.",null,null,null,1]
[{"$f":"IF(J6=\"F\", 1,0)","v":0},{"$f":"IF(I6=\"B\", 1,0)","v":0},{"$f":"IF(I6=\"A\", 1,0)","v":0},{"$f":"IF(I6=\"I\", 1,0)","v":0},{"$f":"IF(I6=\"C\", 1,0)","v":0},{"$f":"IF(I6=\"J\", 1,0)","v":0},{"$f":"IF(I6=\"S\", 1,0)","v":0},{"$f":"IF(I6=\"V\", 1,0)","v":0},"VETERANO","M","MORALES ALCUBIERRE","PEDRO JAVIER","PEDRO JAVIER MORALES ALCUBIERRE","29113029C","1973-06-29",1973,53,6,52,"2026-02-09",12,"F.A.R.",null,null,null,1]
[{"$f":"IF(J7=\"F\", 1,0)","v":0},{"$f":"IF(I7=\"B\", 1,0)","v":0},{"$f":"IF(I7=\"A\", 1,0)","v":0},{"$f":"IF(I7=\"I\", 1,0)","v":0},{"$f":"IF(I7=\"C\", 1,0)","v":0},{"$f":"IF(I7=\"J\", 1,0)","v":0},{"$f":"IF(I7=\"S\", 1,0)","v":0},{"$f":"IF(I7=\"V\", 1,0)","v":0},"VETERANO","M","GONZÁLEZ-ARCE LABORDA","JOSÉ JAVIER","JOSÉ JAVIER GONZÁLEZ-ARCE LABORDA","25157839W","1971-01-25",1971,55,1,55,"2026-03-09",13,"F.A.R.",null,null,null,1]
[{"$f":"IF(J8=\"F\", 1,0)","v":1},{"$f":"IF(I8=\"B\", 1,0)","v":0},{"$f":"IF(I8=\"A\", 1,0)","v":0},{"$f":"IF(I8=\"I\", 1,0)","v":0},{"$f":"IF(I8=\"C\", 1,0)","v":0},{"$f":"IF(I8=\"J\", 1,0)","v":0},{"$f":"IF(I8=\"S\", 1,0)","v":0},{"$f":"IF(I8=\"V\", 1,0)","v":0},"VETERANO","F","CASTELLÓ AYED","BEATRIZ","BEATRIZ CASTELLÓ AYED","29476777E","1977-05-19",1977,49,5,49,"2026-03-09",14,"F.A.R.",null,null,null,1]
[{"$f":"IF(J9=\"F\", 1,0)","v":0},{"$f":"IF(I9=\"B\", 1,0)","v":0},{"$f":"IF(I9=\"A\", 1,0)","v":0},{"$f":"IF(I9=\"I\", 1,0)","v":0},{"$f":"IF(I9=\"C\", 1,0)","v":0},{"$f":"IF(I9=\"J\", 1,0)","v":0},{"$f":"IF(I9=\"S\", 1,0)","v":0},{"$f":"IF(I9=\"V\", 1,0)","v":0},"VETERANO","M","LLOP ROCA","JOSÉ MIGUEL","JOSÉ MIGUEL LLOP ROCA","40889536K","1965-03-30",1965,61,3,61,"2026-03-09",15,"F.A.R.",null,null,null,1]
[null,null,null,null,null,null,null,null,"VETERANO","M","LLOP MONTULL","JESÚS MANUEL","JESÚS MANUEL LLOP MONTULL","73151005B","1958-01-30",{"$f":"YEAR(O10)","v":1958},{"$f":"$AC$1-P10","v":68},{"$f":"MONTH(O10)","v":1},46116,"2026-04-04",16,"F.A.R.",null,null,null,1,null,null,null,null,null,null,null,null,null,null,null,null,null,null,null,null,null,null,null,null,null,null,null,null,null,null,null,null,null,null,null,null,null,null,null,null,null,{"$f":"AJ10+AL10+AN10+AP10+AR10+AT10+AV10+AX10+AZ10+BB10+BD10+BF10+BH10+BJ10","v":0},0]
[null,null,null,null,null,null,null,null,"VETERANO","M","CILLEROS BLÁZQUEZ","EMILIO ANASTASIO","EMILIO ANASTASIO CILLEROS BLÁZQUEZ","17719575F","1966-08-08",1966,60,8,46116,"2026-04-04",17,"F.A.R.",null,null,null,1,null,null,null,null,null,null,null,null,null,null,null,null,null,null,null,null,null,null,null,null,null,null,null,null,null,null,null,null,null,null,null,null,null,null,null,null,null,0,0,1]
[{"$f":"IF(J12=\"F\", 1,0)","v":0},{"$f":"IF(I12=\"B\", 1,0)","v":0},{"$f":"IF(I12=\"A\", 1,0)","v":0},{"$f":"IF(I12=\"I\", 1,0)","v":0},{"$f":"IF(I12=\"C\", 1,0)","v":0},{"$f":"IF(I12=\"J\", 1,0)","v":0},{"$f":"IF(I12=\"S\", 1,0)","v":0},{"$f":"IF(I12=\"V\", 1,0)","v":0},"SENIOR","M","ZAPATA LARROY","ÍÑIGO MIGUEL","ÍÑIGO MIGUEL ZAPATA LARROY","17769865L","2004-01-09",2004,22,1,46116,"2026-04-04",18,"F.A.R.",null,null,null,1,null,null,null,null,null,null,null,null,null,null,null,null,null,null,null,null,null,null,null,null,null,null,null,null,null,null,null,null,null,null,null,null,null,null,null,null,null,0,0]
[{"$f":"IF(J13=\"F\", 1,0)","v":1},{"$f":"IF(I13=\"B\", 1,0)","v":0},{"$f":"IF(I13=\"A\", 1,0)","v":0},{"$f":"IF(I13=\"I\", 1,0)","v":0},{"$f":"IF(I13=\"C\", 1,0)","v":0},{"$f":"IF(I13=\"J\", 1,0)","v":0},{"$f":"IF(I13=\"S\", 1,0)","v":0},{"$f":"IF(I13=\"V\", 1,0)","v":0},"CADETE","F","CUCHÍ NIUBÓ","ALBA","ALBA CUCHÍ NIUBÓ","49750595P","2011-06-27",2011,15,6,14,"2026-01-09",20,"CAPRI MEQUINENZA",1]
[1,0,0,0,0,0,0,0,"INFANTIL","F","MARTÍNEZ CLAVERO","ALBA","ALBA MARTÍNEZ CLAVERO","09825125P","2013-04-13",2013,13,4,13,"2026-01-09",21,"CAPRI MEQUINENZA",1]
[1,0,0,0,0,0,0,0,"ALEVIN","F","LLOP RUEDA","ALICIA","ALICIA LLOP RUEDA","26606280H","2015-11-28",2015,11,11,10,"2026-01-09",22,"CAPRI MEQUINENZA",1]
[1,0,0,0,0,0,0,0,"SENIOR","F","HIERRO GARCÍA","GISELA","GISELA HIERRO GARCÍA","79282536H","2007-11-05",2007,19,11,18,"2026-01-09",23,"CAPRI MEQUINENZA",1]
[1,0,0,0,0,0,0,0,"ALEVIN","F","AGUILAR ROMERO","MARÍA","MARÍA AGUILAR ROMERO","09826037T","2015-03-19",2015,11,3,11,"2026-01-09",24,"CAPRI MEQUINENZA",1]
[0,0,0,0,0,0,0,0,"BENJAMIN","M","GUARDIOLA LOPERA","MAX","MAX GUARDIOLA LOPERA","26606631R","2016-08-28",2016,10,8,9,"2026-01-09",25,"CAPRI MEQUINENZA",1]
[1,0,0,0,0,0,0,0,"BENJAMIN","F","CUCHÍ NIUBÓ","PAULA","PAULA CUCHÍ NIUBÓ","21749861A","2016-01-25",2016,10,1,10,"2026-01-09",26,"CAPRI MEQUINENZA",1]
[0,0,0,0,0,0,0,0,"JUVENIL","M","GUIMERÁ JANIK","PAULO","PAULO GUIMERÁ JANIK","49260776C","2009-11-23",2009,17,11,16,"2026-01-09",27,"CAPRI MEQUINENZA",1]
[0,0,0,0,0,0,0,0,"JUVENIL","M","MARTÍNEZ CLAVERO","YERAY","YERAY MARTÍNEZ CLAVERO","49263892P","2009-05-06",2009,17,5,17,"2026-01-09",28,"CAPRI MEQUINENZA",1]
[0,0,0,0,0,0,0,0,"VETERANO","M","MILLÁN BLASCO","CARLOS","CARLOS MILLÁN BLASCO","25170726D","1977-05-16",1977,49,5,49,"2026-01-09",29,"ARAGÓN REMO",1,null,1]
[0,0,0,0,0,0,0,0,"VETERANO","M","SAN JOSÉ SANTAMARÍA","DAVID","DAVID SAN JOSÉ SANTAMARÍA","25168929Y","1980-12-31",1980,46,12,45,"2026-01-09",30,"ARAGÓN REMO",null,1]
[0,0,0,0,0,0,0,0,"VETERANO","M","LABARTA PINILLA","JOSÉ MANUEL","JOSÉ MANUEL LABARTA PINILLA","25425646C","1964-08-07",1964,62,8,61,"2026-01-09",31,"ARAGÓN REMO",1]
[1,0,0,0,0,0,0,0,"CADETE","F","GONZÁLEZ GARCÍA","ABRIL","ABRIL GONZÁLEZ GARCÍA","49756207P","2011-10-06",2011,15,10,14,"2026-01-09",32,"CAPRI MEQUINENZA",1]
[1,0,0,0,0,0,0,0,"JUVENIL","F","IBARZ BERENGUER","IRATXE","IRATXE IBARZ BERENGUER","52037048P","2009-03-08",2009,17,3,17,"2026-01-09",33,"CAPRI MEQUINENZA",1]
[0,0,0,0,0,0,0,0,"ALEVIN","M","CANTERO ANDRÉS","ALEJANDRO","ALEJANDRO CANTERO ANDRÉS","09825494D","2014-09-12",2014,12,9,11,"2026-01-09",34,"CAPRI MEQUINENZA",1]
[1,0,0,0,0,0,0,0,"CADETE","F","BRUNA PALAU","IRENE","IRENE BRUNA PALAU","49759211E","2010-01-20",2010,16,1,16,"2026-01-09",35,"CAPRI MEQUINENZA",1]
[1,0,0,0,0,0,0,0,"CADETE","F","ARROYO CABALLÉ","MARÍA","MARÍA ARROYO CABALLÉ","26319689F","2011-03-15",2011,15,3,15,"2026-01-09",36,"CAPRI MEQUINENZA",1]
[0,0,0,0,0,0,0,0,"ALEVIN","M","CATALÁN MOYA","ÁLEX","ÁLEX CATALÁN MOYA","09825089H","2014-10-16",2014,12,10,11,"2026-01-09",37,"CAPRI MEQUINENZA",1]
[1,0,0,0,0,0,0,0,"CADETE","F","CASTELLÓ VILA","AROA","AROA CASTELLÓ VILA","21748356Q","2011-10-17",2011,15,10,14,"2026-01-09",38,"CAPRI MEQUINENZA",1]
[0,0,0,0,0,0,0,0,"INFANTIL","M","SANJUÁN SATORRES","IKER","IKER SANJUÁN SATORRES","54989528R","2013-02-21",2013,13,2,13,"2026-01-09",39,"CAPRI MEQUINENZA",1]
[0,0,0,0,0,0,0,0,"SENIOR","M","GODIA SANCHO","IVÁN","IVÁN GODIA SANCHO","73108472M","2007-10-26",2007,19,10,18,"2026-01-09",40,"CAPRI MEQUINENZA",1]
[0,0,0,0,0,0,0,0,"ALEVIN","M","CHERTÓ JIMÉNEZ","JOEL","JOEL CHERTÓ JIMÉNEZ","09825064Q","2014-03-18",2014,12,3,12,"2026-01-09",41,"CAPRI MEQUINENZA",1]
[1,0,0,0,0,0,0,0,"CADETE","F","CATALÁN MOYA","MARINA","MARINA CATALÁN MOYA","49535632A","2010-10-25",2010,16,10,15,"2026-01-09",42,"CAPRI MEQUINENZA",1]
[1,0,0,0,0,0,0,0,"INFANTIL","F","ESTRUGA LLOP","ONA","ONA ESTRUGA LLOP","21749867D","2013-10-20",2013,13,10,12,"2026-01-09",43,"CAPRI MEQUINENZA",1]
[0,0,0,0,0,0,0,0,"BENJAMIN","M","EXPÓSITO VARGAS","IVÁN","IVÁN EXPÓSITO VARGAS","21749862G","2016-03-02",2016,10,3,10,"2026-01-09",44,"CAPRI MEQUINENZA",1]
[0,0,0,0,0,0,0,0,"ALEVIN","M","VIU NOGUÉS","SAÚL","SAÚL VIU NOGUÉS","21749415V","2014-03-06",2014,12,3,12,"2026-01-09",45,"CAPRI MEQUINENZA",1]
[0,0,0,0,0,0,0,0,"VETERANO","M","ROMERA MURILLO","EDUARDO","EDUARDO ROMERA MURILLO","73151020A","1958-01-02",1958,68,1,68,"2026-01-09",46,"CAPRI MEQUINENZA",1]
[0,0,0,0,0,0,0,0,"VETERANO","M","PÉREZ ALONSO","ALFONSO","ALFONSO PÉREZ ALONSO","36076944H","1967-01-23",1967,59,1,59,"2026-01-09",47,"CAPRI MEQUINENZA",1,null,1]
[0,0,0,0,0,0,0,0,"VETERANO","M","VERA RUBERT","ANTONIO MIGUEL","ANTONIO MIGUEL VERA RUBERT","73189189S","1961-05-25",1961,65,5,65,"2026-01-09",48,"CAPRI MEQUINENZA",1]
[0,0,0,0,0,0,0,0,"BENJAMIN","M","CASTELLÓ VILA","MARC","MARC CASTELLÓ VILA","26607783A","2016-07-13",2016,10,7,9,"2026-01-09",49,"CAPRI MEQUINENZA",1]
[0,0,0,0,0,0,0,0,"VETERANO","M","SANJUAN SOLER","CARLOS","CARLOS SANJUAN SOLER","40875177Z","1962-04-24",1962,64,4,64,"2026-01-09",50,"CAPRI MEQUINENZA",1]
[0,0,0,0,0,0,0,0,"JUVENIL","M","RAHIBI VIDALLET","MOHAMED ADAM","MOHAMED ADAM RAHIBI VIDALLET","21761862K","2008-08-09",{"$f":"YEAR(O44)","v":2008},{"$f":"$AC$1-P44","v":18},{"$f":"MONTH(O44)","v":8},17,"2026-01-09",51,"CAPRI MEQUINENZA",1]
[1,0,0,0,0,0,0,0,"BENJAMIN","F","GARCÍA SERRANO","NOA","NOA GARCÍA SERRANO","26607062H","2016-12-10",2016,10,12,9,"2026-01-09",52,"CAPRI MEQUINENZA",1]
[0,0,0,0,0,0,0,0,"BENJAMIN","M","BLAS PEÑALVER","IBAI","IBAI BLAS PEÑALVER","21749866P","2016-03-19",2016,10,3,10,"2026-01-09",53,"CAPRI MEQUINENZA",1]
[0,0,0,0,0,0,0,0,"VETERANO","M","CUCHÍ SAGARRA","DANIEL","DANIEL CUCHÍ SAGARRA","73157434T","1979-10-24",1979,47,10,46,"2026-01-09",54,"CAPRI MEQUINENZA",null,null,1]
[1,0,0,0,0,0,0,0,"ALEVIN","F","JUSTE IBARZ","YUNE","YUNE JUSTE IBARZ","09825130J","2015-02-19",2015,11,2,11,"2026-01-09",55,"CAPRI MEQUINENZA",1]
[0,0,0,0,0,0,0,0,"VETERANO","M","OLIVER CABALLÉ","DAVID","DAVID OLIVER CABALLÉ","73157371Y","1981-01-05",1981,45,1,45,"2026-01-09",56,"CAPRI MEQUINENZA",null,1]
[1,0,0,0,0,0,0,0,"SENIOR","F","STEGHERR LLOP","ELENA","ELENA STEGHERR LLOP","47983604S","2001-11-06",2001,25,11,24,"2026-01-09",57,"CAPRI MEQUINENZA",1]
[1,0,0,0,0,0,0,0,"CADETE","F","EXPÓSITO SORO","IRIA","IRIA EXPÓSITO SORO","21748355S","2010-05-04",2010,16,5,16,"2026-01-09",58,"CAPRI MEQUINENZA",1]
[0,0,0,0,0,0,0,0,"ALEVIN","M","EXPÓSITO SORO","ENZO","ENZO EXPÓSITO SORO","09826034C","2015-06-18",2015,11,6,10,"2026-01-09",59,"CAPRI MEQUINENZA",1]
[0,0,0,0,0,0,0,0,"ALEVIN","M","PI MOSOVSKA","ANDREW","ANDREW PI MOSOVSKA","49943189T","2014-06-30",2014,12,6,11,"2026-01-09",60,"CAPRI MEQUINENZA",1]
[0,0,0,0,0,0,0,0,"INFANTIL","M","CASTELLNOU SOROLLA","IVÁN","IVÁN CASTELLNOU SOROLLA","49538212F","2012-01-19",2012,14,1,14,"2026-01-09",61,"CAPRI MEQUINENZA",1]
[1,0,0,0,0,0,0,0,"ALEVIN","F","RODES ESTRUGA","CARMEN","CARMEN RODES ESTRUGA","21749863M","2015-12-19",2015,11,12,10,"2026-01-09",62,"CAPRI MEQUINENZA",1]
[1,0,0,0,0,0,0,0,"VETERANO","F","CASTRO ARANDA","CONCEPCIÓN","CONCEPCIÓN CASTRO ARANDA","73155606N","1968-11-30",1968,58,11,57,"2026-01-09",63,"CAPRI MEQUINENZA",1,null,1]
[1,0,0,0,0,0,0,0,"VETERANO","F","ANDRÉS CARRILLO","ESTHER","ESTHER ANDRÉS CARRILLO","73082194Q","1983-09-04",1983,43,9,42,"2026-01-09",64,"CAPRI MEQUINENZA",1]
[0,0,0,0,0,0,0,0,"VETERANO","M","LLOP MONTULL","JESÚS MANUEL","JESÚS MANUEL LLOP MONTULL","73151005B","1958-01-30",1958,68,1,68,"2026-01-09",65,"CAPRI MEQUINENZA",1]
[0,0,0,0,0,0,0,0,"VETERANO","M","CATALAN MULA","JUAN ANTONIO ","JUAN ANTONIO  CATALAN MULA","73157353B","1974-08-18",1974,52,8,51,"2026-01-09",66,"CAPRI MEQUINENZA",1]
[1,0,0,0,0,0,0,0,"VETERANO","F","NOGUÉS NICOLÁS","LORENA","LORENA NOGUÉS NICOLÁS","73157408C","1981-07-03",1981,45,7,44,"2026-01-09",67,"CAPRI MEQUINENZA",1]
[1,0,0,0,0,0,0,0,"VETERANO","F","GODIA PI","MARÍA TERESA","MARÍA TERESA GODIA PI","73092010B","1989-08-13",1989,37,8,36,"2026-01-09",68,"CAPRI MEQUINENZA",1]
[1,0,0,0,0,0,0,0,"VETERANO","F","CLAVERO GARCÍA","MARISOL","MARISOL CLAVERO GARCÍA","73204563W","1981-04-10",1981,45,4,45,"2026-01-09",69,"CAPRI MEQUINENZA",1,null,1]
[1,0,0,0,0,0,0,0,"VETERANO","F","LLOP CALLIZO","MERITXELL ","MERITXELL  LLOP CALLIZO","73086549R","1984-08-23",1984,42,8,41,"2026-01-09",70,"CAPRI MEQUINENZA",1]
[1,0,0,0,0,0,0,0,"VETERANO","F","JANIK","PATRYCJA","PATRYCJA JANIK","X9825718A","1979-05-24",1979,47,5,47,"2026-01-09",71,"CAPRI MEQUINENZA",1,null,1]
[1,0,0,0,0,0,0,0,{"$f":"IF((Q65<11),\"BENJAMIN\",IF(OR(Q65=11,Q65=12),\"ALEVIN\",IF(OR(Q65=13,Q65=14),\"INFANTIL\",IF(OR(Q65=15,Q65=16),\"CADETE\",IF(OR(Q65=17,Q65=18),\"JUVENIL\",IF(AND(Q65>18,Q65<31),\"SENIOR\",\"VETERANO\"))))))","v":"VETERANO"},"F","NIUBÓ SOROLLA","ROSANA","ROSANA NIUBÓ SOROLLA","73205871E","1982-01-12",1982,44,1,44,"2026-01-09",72,"CAPRI MEQUINENZA",1,null,1]
[0,0,0,0,0,0,0,0,"VETERANO","M","ESTRUGA GIMENO","VÍCTOR","VÍCTOR ESTRUGA GIMENO","73086539Z","1986-01-14",{"$f":"YEAR(O66)","v":1986},{"$f":"$AC$1-P66","v":40},{"$f":"MONTH(O66)","v":1},40,"2026-01-09",74,"CAPRI MEQUINENZA",1]
[1,0,0,0,0,0,0,0,"VETERANO","F","SANTAELLA MAIRELES","VICTORIA","VICTORIA SANTAELLA MAIRELES","39719729V","1975-05-20",1975,51,5,51,"2026-01-09",75,"CAPRI MEQUINENZA",1]
[1,0,0,0,0,0,0,0,"SENIOR","F","RAMI CASTRO","JULIA","JULIA RAMI CASTRO","47980202V","1998-01-18",1998,28,1,28,"2026-01-09",76,"CAPRI MEQUINENZA",1,null,1]
[0,0,0,0,0,0,0,0,"SENIOR","M","RUBIO LAMBEA","MIGUEL","MIGUEL RUBIO LAMBEA","73089974E","1998-07-27",1998,28,7,27,"2026-01-09",77,"CAPRI MEQUINENZA",1,null,1]
[1,0,0,0,0,0,0,0,"VETERANO","F","CABALLÉ SILVESTRE","RAQUEL","RAQUEL CABALLÉ SILVESTRE","73157378J","1977-06-14",1977,49,6,48,"2026-01-09",78,"CAPRI MEQUINENZA",1]
[0,0,0,0,0,0,0,0,"SENIOR","M","BRIZ ZAMORANO","PABLO",{"$f":"L71&\" \"& K71","v":"PABLO BRIZ ZAMORANO"},"17768134J","1997-03-19",1997,29,3,{"$f":"DATEDIF(O71,TODAY(),\"Y\")","v":29},"2026-01-09",79,"CENTRO NATACION HELIOS",1]
[0,0,0,0,0,0,0,0,"VETERANO","M","LATAS JIMÉNEZ","IVÁN","IVÁN LATAS JIMÉNEZ","29126653M","1981-04-19",1981,45,4,45,"2026-01-09",80,"CENTRO NATACION HELIOS",1,1]
[0,0,0,0,0,0,0,0,"VETERANO","M","ESTEBAN GRAN","VÍCTOR","VÍCTOR ESTEBAN GRAN","17702922Y","1959-11-23",1959,67,11,66,"2026-01-09",81,"CENTRO NATACION HELIOS",1]
[0,0,0,0,0,0,0,0,"VETERANO","M","MELGARES HIDALGO","CARLOS","CARLOS MELGARES HIDALGO","17695224J","1956-12-31",1956,70,12,69,"2026-01-09",82,"CENTRO NATACION HELIOS",1]
[0,0,0,0,0,0,0,0,"VETERANO","M","MUNIESA FERRERO","ALFONSO","ALFONSO MUNIESA FERRERO","17221336V","1964-10-11",1964,62,10,61,"2026-01-09",83,"CENTRO NATACION HELIOS",1,1]
[0,0,0,0,0,0,0,0,"SENIOR","M","BELLO ALVAREZ","DANIEL","DANIEL BELLO ALVAREZ","76735386A","1999-11-08",1999,27,11,26,"2026-02-12",84,"CENTRO NATACION HELIOS",1]
[{"$f":"IF(J77=\"F\", 1,0)","v":0},{"$f":"IF(I77=\"B\", 1,0)","v":0},{"$f":"IF(I77=\"A\", 1,0)","v":0},{"$f":"IF(I77=\"I\", 1,0)","v":0},{"$f":"IF(I77=\"C\", 1,0)","v":0},{"$f":"IF(I77=\"J\", 1,0)","v":0},{"$f":"IF(I77=\"S\", 1,0)","v":0},{"$f":"IF(I77=\"V\", 1,0)","v":0},"VETERANO","M","PRADAS QUERO","GREGORIO","GREGORIO PRADAS QUERO","25483694Q","1982-04-05",1982,44,4,44,"2026-02-09",85,"CENTRO NATACION HELIOS",1]
[0,0,0,0,0,0,0,0,"BENJAMIN","M","ROYO LAVILLA","ÁNGEL","ÁNGEL ROYO LAVILLA","73622993Q","2016-12-21",2016,10,12,9,"2026-01-09",86,"CENTRO NATACION HELIOS",1]
[0,0,0,0,0,0,0,0,"VETERANO","M","CALVO GRACIA","JORGE OCTAVIO","JORGE OCTAVIO CALVO GRACIA","72987625T","1983-01-15",1983,43,1,43,"2026-01-09",87,"CENTRO NATACION HELIOS",1]
[1,0,0,0,0,0,0,0,{"$f":"IF((Q80<11),\"BENJAMIN\",IF(OR(Q80=11,Q80=12),\"ALEVIN\",IF(OR(Q80=13,Q80=14),\"INFANTIL\",IF(OR(Q80=15,Q80=16),\"CADETE\",IF(OR(Q80=17,Q80=18),\"JUVENIL\",IF(AND(Q80>18,Q80<31),\"SENIOR\",\"VETERANO\"))))))","v":"JUVENIL"},"F","ICHASO CEBADERO","IRENE","IRENE ICHASO CEBADERO","73445718W","2009-10-20",2009,17,10,16,"2026-02-12",88,"CENTRO NATACION HELIOS",1]
[0,0,0,0,0,0,0,0,"VETERANO","M","PEIRÓ MESA","JORGE","JORGE PEIRÓ MESA","29117077C","1974-07-23",1974,52,7,51,"2026-02-12",90,"CENTRO NATACION HELIOS",1]
[0,0,0,0,0,0,0,0,"VETERANO","M","BIELSA ARTIDIELLO","JOSÉ MANUEL","JOSÉ MANUEL BIELSA ARTIDIELLO","29091165Y","1964-10-14",1964,62,10,61,"2026-01-09",91,"CENTRO NATACION HELIOS",1]
[0,0,0,0,0,0,0,0,"VETERANO","M","CALAVIA RODRÍGUEZ","JUAN CARLOS","JUAN CARLOS CALAVIA RODRÍGUEZ","25141750J","1964-08-09",1964,62,8,61,"2026-01-09",92,"CENTRO NATACION HELIOS",1]
[0,0,0,0,0,0,0,0,"VETERANO","M","CRESPO ALONSO","JUAN DIEGO","JUAN DIEGO CRESPO ALONSO","25169734Y","1973-09-18",1973,53,9,52,"2026-02-12",93,"CENTRO NATACION HELIOS",1]
[0,0,0,0,0,0,0,0,"SENIOR","M","JURADO PÉREZ","ALEXANDER","ALEXANDER JURADO PÉREZ","25362246P","2006-06-22",2006,20,6,19,"2026-01-09",94,"CENTRO NATACION HELIOS",1]
[0,0,0,0,0,0,0,0,"JUVENIL","M","MARTÍN RANERA","FERNANDO","FERNANDO MARTÍN RANERA","26055852A","2009-06-27",2009,17,6,16,"2026-01-09",95,"CENTRO NATACION HELIOS",1]
[0,0,0,0,0,0,0,0,"JUVENIL","M","CABELLO PIETRZAK","IREK","IREK CABELLO PIETRZAK","25209552B","2008-01-05",2008,18,1,18,"2026-01-09",96,"CENTRO NATACION HELIOS",1]
[0,0,0,0,0,0,0,0,"JUVENIL","M","MONTANER ALFARO","MARTÍN","MARTÍN MONTANER ALFARO","73514251H","2008-06-27",2008,18,6,17,"2026-01-09",97,"CENTRO NATACION HELIOS",1]
[1,0,0,0,0,0,0,0,"INFANTIL","F","MONTANER ALFARO","LUCÍA","LUCÍA MONTANER ALFARO","73514253C","2013-05-17",2013,13,5,13,"2026-01-09",98,"CENTRO NATACION HELIOS",1]
[1,0,0,0,0,0,0,0,"VETERANO","F","PINTO SOLANA","MARTA","MARTA PINTO SOLANA","25153195G","1969-06-10",1969,57,6,56,"2026-01-09",99,"CENTRO NATACION HELIOS",1]
[1,0,0,0,0,0,0,0,"SENIOR","F","ROMEO VICENTE","MARÍA","MARÍA ROMEO VICENTE","26280390S","2006-07-07",2006,20,7,19,"2026-01-09",100,"CENTRO NATACION HELIOS",1]
[1,0,0,0,0,0,0,0,"VETERANO","F","GUTIÉRREZ GIMÉNEZ","TERESA","TERESA GUTIÉRREZ GIMÉNEZ","29101826H","1970-05-28",{"$f":"YEAR(O92)","v":1970},{"$f":"$AC$1-P92","v":56},{"$f":"MONTH(O92)","v":5},56,"2026-01-09",101,"CENTRO NATACION HELIOS",1]
[0,0,0,0,0,0,0,0,"JUVENIL","M","MARTÍN BERNARDOS","NIL","NIL MARTÍN BERNARDOS","17460920X","2008-10-19",2008,18,10,17,"2026-01-09",102,"CENTRO NATACION HELIOS",1]
[1,0,0,0,0,0,0,0,"SENIOR","F","MARCÉN GUTIÉRREZ","PILAR","PILAR MARCÉN GUTIÉRREZ","73428934P","2006-03-09",2006,20,3,20,"2026-01-09",103,"CENTRO NATACION HELIOS",1]
[0,0,0,0,0,0,0,0,"JUVENIL","M","CINCA GARCÍA","VÍCTOR","VÍCTOR CINCA GARCÍA","73235309C","2009-04-01",2009,17,4,17,"2026-01-09",104,"CENTRO NATACION HELIOS",1]
[0,0,0,0,0,0,0,0,"VETERANO","M","CILLEROS BLÁZQUEZ","EMILIO ANASTASIO","EMILIO ANASTASIO CILLEROS BLÁZQUEZ","17719575F","1966-08-08",1966,60,8,59,"2026-01-09",105,"CENTRO NATACION HELIOS",1]
[0,0,0,0,0,0,0,0,"CADETE","M","CAZADOR SERRANO","ERIC","ERIC CAZADOR SERRANO","25363173S","2010-03-11",2010,16,3,16,"2026-01-09",106,"CENTRO NATACION HELIOS",1]
[0,0,0,0,0,0,0,0,"ALEVIN","M","CAZADOR SERRANO","UDAY","UDAY CAZADOR SERRANO","26589449T","2015-08-21",2015,11,8,10,"2026-01-09",107,"CENTRO NATACION HELIOS",1]
[1,0,0,0,0,0,0,0,"INFANTIL","F","LUNA MONTAGUD","ALICIA","ALICIA LUNA MONTAGUD","17472004P","2012-09-02",2012,14,9,13,"2026-01-09",108,"CENTRO NATACION HELIOS",1]
[0,0,0,0,0,0,0,0,"INFANTIL","M","LARROSA GIL","LUIS","LUIS LARROSA GIL","73235608C","2013-08-03",2013,13,8,12,"2026-01-09",109,"CENTRO NATACION HELIOS",1]
[0,0,0,0,0,0,0,0,"CADETE","M","IBAÑEZ VALERO","PABLO VLADIMIR","PABLO VLADIMIR IBAÑEZ VALERO","26589419Q","2010-01-15",2010,16,1,16,"2026-01-09",110,"CENTRO NATACION HELIOS",1]
[0,0,0,0,0,0,0,0,"CADETE","M","SORO FUENTES","JOAQUÍN JESÚS","JOAQUÍN JESÚS SORO FUENTES","73478867P","2011-10-16",2011,15,10,14,"2026-01-09",111,"CENTRO NATACION HELIOS",1]
[0,0,0,0,0,0,0,0,"CADETE","M","MILLÁN GÓMEZ","MARTÍN","MARTÍN MILLÁN GÓMEZ","73052578R","2011-05-16",2011,15,5,15,"2026-01-09",112,"CENTRO NATACION HELIOS",1]
[0,0,0,0,0,0,0,0,"SENIOR","M","DIEZ GARCÍA","PEDRO","PEDRO DIEZ GARCÍA","25210785W","2006-06-13",2006,20,6,19,"2026-01-09",113,"CENTRO NATACION HELIOS",1]
[0,0,0,0,0,0,0,0,"JUVENIL","M","GIRONÉS BENAVENTE","MANUEL","MANUEL GIRONÉS BENAVENTE","73414963K","2008-04-15",2008,18,4,18,"2026-01-09",114,"CENTRO NATACION HELIOS",1]
[0,0,0,0,0,0,0,0,"JUVENIL","M","MELÉNDEZ DEL PICO","MARCO","MARCO MELÉNDEZ DEL PICO","73427660E","2008-11-21",2008,18,11,17,"2026-01-09",115,"CENTRO NATACION HELIOS",1]
[0,0,0,0,0,0,0,0,"JUVENIL","M","MALO VELA","PABLO","PABLO MALO VELA","73237255B","2008-09-08",2008,18,9,17,"2026-01-09",116,"CENTRO NATACION HELIOS",1]
[0,0,0,0,0,0,0,0,"JUVENIL","M","JIMÉNEZ HORNOS","DIEGO","DIEGO JIMÉNEZ HORNOS","26795241B","2008-07-19",2008,18,7,17,"2026-01-09",117,"CENTRO NATACION HELIOS",1]
[1,0,0,0,0,0,0,0,"JUVENIL","F","DIEZ GARCÍA","SANDRA","SANDRA DIEZ GARCÍA","25210786A","2008-07-11",2008,18,7,17,"2026-01-09",118,"CENTRO NATACION HELIOS",1]
[1,0,0,0,0,0,0,0,"VETERANO","F","DIEZ SECO","CRISTINA","CRISTINA DIEZ SECO","29108044A","1972-01-18",1972,54,1,54,"2026-01-09",119,"CENTRO NATACION HELIOS",1]
[0,0,0,0,0,0,0,0,"ALEVIN","M","LENNIKOV IGLESIAS","VÍCTOR","VÍCTOR LENNIKOV IGLESIAS","73235970Z","2015-05-17",2015,11,5,11,"2026-01-09",120,"CENTRO NATACION HELIOS",1]
[0,0,0,0,0,0,0,0,"BENJAMIN","M","JUANA GALVEZ","VICTOR","VICTOR JUANA GALVEZ","30338023B","2017-07-27",2017,9,7,8,"2026-01-09",121,"CENTRO NATACION HELIOS",1]
[0,0,0,0,0,0,0,0,"VETERANO","M","TABUENCA COLERA","JOSÉ","JOSÉ TABUENCA COLERA","17712127B","1962-01-20",1962,64,1,64,"2026-01-09",122,"CENTRO NATACION HELIOS",1]
[0,0,0,0,0,0,0,0,"CADETE","M","GUTIÉRREZ ANDOLZ","GUILLERMO","GUILLERMO GUTIÉRREZ ANDOLZ","73236703B","2011-10-13",2011,15,10,14,"2026-01-09",123,"CENTRO NATACION HELIOS",1]
[0,0,0,0,0,0,0,0,"CADETE","M","VILLORO ANGLÉS","GERMÁN","GERMÁN VILLORO ANGLÉS","73167267N","2010-02-18",2010,16,2,16,"2026-01-09",124,"CENTRO NATACION HELIOS",1]
[0,0,0,0,0,0,0,0,"JUVENIL","M","PERNÍA OYAGA","ÁNGEL","ÁNGEL PERNÍA OYAGA","26275907V","2009-07-31",2009,17,7,16,"2026-01-09",125,"CENTRO NATACION HELIOS",1]
[0,0,0,0,0,0,0,0,"CADETE","M","REMACHA PUSCO","JAVIER","JAVIER REMACHA PUSCO","30334826B","2010-02-18",2010,16,2,16,"2026-01-09",126,"CENTRO NATACION HELIOS",1]
[1,0,0,0,0,0,0,0,"JUVENIL","F","FUERTES VALLÉS","NOA","NOA FUERTES VALLÉS","73290681P","2008-07-28",2008,18,7,17,"2026-01-09",127,"CENTRO NATACION HELIOS",1]
[0,0,0,0,0,0,0,0,"JUVENIL","M","FAÑA GRIÑÓN","JOSÉ MANUEL","JOSÉ MANUEL FAÑA GRIÑÓN","73165419G","2009-04-01",2009,17,4,17,"2026-01-09",128,"CENTRO NATACION HELIOS",1]
[0,0,0,0,0,0,0,0,"BENJAMIN","M","BUEY DE SACADURA","LUIS","LUIS BUEY DE SACADURA","73615211P","2016-04-16",2016,10,4,10,"2026-01-09",129,"CENTRO NATACION HELIOS",1]
[1,0,0,0,0,0,0,0,"BENJAMIN","F","ESPADA CIPRÉS","JIMENA","JIMENA ESPADA CIPRÉS","30338022X","2017-06-29",2017,9,6,8,"2026-01-09",130,"CENTRO NATACION HELIOS",1]
[1,0,0,0,0,0,0,0,"INFANTIL","F","ESPADA CIPRÉS","VALENTINA","VALENTINA ESPADA CIPRÉS","30338021D","2013-03-01",2013,13,3,13,"2026-01-09",131,"CENTRO NATACION HELIOS",1]
[1,0,0,0,0,0,0,0,"JUVENIL","F","MILLÁN GÓMEZ","CHLOÉ","CHLOÉ MILLÁN GÓMEZ","77219625T","2009-05-05",2009,17,5,17,"2026-01-09",132,"CENTRO NATACION HELIOS",1]
[1,0,0,0,0,0,0,0,"CADETE","F","MARTISCA SUSANU","MARÍA ADELINA","MARÍA ADELINA MARTISCA SUSANU","73293319R","2011-01-24",2011,15,1,15,"2026-01-09",133,"CENTRO NATACION HELIOS",1]
[0,0,0,0,0,0,0,0,"VETERANO","M","TORO SOLER","DAVID","DAVID TORO SOLER","76922443R","1985-07-18",1985,41,7,40,"2026-01-09",134,"CAPRI MEQUINENZA",1]
[1,0,0,0,0,0,0,0,"VETERANO","F","LLOP RIAU","ROSA MARÍA",{"$f":"L126&\" \"& K126","v":"ROSA MARÍA LLOP RIAU"},"73155604X","1968-01-27",{"$f":"YEAR(O126)","v":1968},58,{"$f":"MONTH(O126)","v":1},58,"2026-01-09",135,"CAPRI MEQUINENZA",1]
[1,0,0,0,0,0,0,0,"SENIOR","F","GODIA PI","MARÍA PILAR","MARÍA PILAR GODIA PI","73092011N","1996-01-14",1996,30,1,30,"2026-01-12T03:35:43",136,"CAPRI MEQUINENZA",1]
[0,0,0,0,0,0,0,0,"SENIOR","M","MÁRQUEZ GUARDIOLA","AARÓN","AARÓN MÁRQUEZ GUARDIOLA","20561541R","2007-01-08",2007,19,1,19,"2026-01-12T04:05:56",137,"CAPRI MEQUINENZA",1]
[0,0,0,0,0,0,0,0,"VETERANO","M","MIR IBARZ","ORIOL ","ORIOL  MIR IBARZ","7546K3086","1987-09-06",1987,39,9,38,"2026-01-12T04:07:10",138,"CAPRI MEQUINENZA",1]
[0,0,0,0,0,0,0,0,"VETERANO","M","LABORDA VAL","CLEMENTE FERNANDO","CLEMENTE FERNANDO LABORDA VAL","17196036V","1956-11-23",1956,70,11,69,"2026-01-12T04:07:58",139,"NÁUTICO ZARAGOZA",null,null,1]
[0,0,0,0,0,0,0,0,"VETERANO","M","RUIZ IRIBARNE","IGNACIO JOSÉ","IGNACIO JOSÉ RUIZ IRIBARNE","17861548R","1958-04-12",1958,68,4,68,"2026-01-12T04:08:46",140,"NÁUTICO ZARAGOZA",1]
[0,0,0,0,0,0,0,0,"VETERANO","M","LARROY CALVO","JOSÉ MANUEL","JOSÉ MANUEL LARROY CALVO","17201417Q","1958-08-02",1958,68,8,67,"2026-01-12T04:09:28",141,"NÁUTICO ZARAGOZA",null,null,1]
[0,0,0,0,0,0,0,0,"ALEVIN","M","GUTIÉRREZ ANDOLZ","EDUARDO","EDUARDO GUTIÉRREZ ANDOLZ","73236705J","2014-12-16",2014,12,12,11,"2026-01-12T04:10:23",142,"CENTRO NATACION HELIOS",1,null,0]
[1,0,0,0,0,0,0,0,"ALEVIN","F","RELANCIO PASTOR","ALMA","ALMA RELANCIO PASTOR","27352053Q","2015-12-24",2015,11,12,10,"2026-01-13T12:44:34",143,"CENTRO NATACION HELIOS",1]
[1,0,0,0,0,0,0,0,"CADETE","F","RELANCIO PASTOR","MATILDE ESTRELLA","MATILDE ESTRELLA RELANCIO PASTOR","26282294X","2011-11-10",2011,15,11,{"$f":"DATEDIF(O135,TODAY(),\"Y\")","v":14},"2026-01-13T12:44:36",144,"CENTRO NATACION HELIOS",1]
[1,0,0,0,0,0,0,0,"ALEVIN","F","RELANCIO PASTOR","ÁNGELA","ÁNGELA RELANCIO PASTOR","27352052S","2015-12-24",2015,11,12,10,"2026-01-13T12:44:37",145,"CENTRO NATACION HELIOS",1]
[1,0,0,0,0,0,0,0,"ALEVIN","F","RELANCIO PASTOR","ADELA","ADELA RELANCIO PASTOR","27352054V","2014-08-05",2014,12,8,11,"2026-01-13T12:44:40",146,"CENTRO NATACION HELIOS",1]
[0,0,0,0,0,0,0,0,"VETERANO","M","CASTELLÓ ROCA","JORDI","JORDI CASTELLÓ ROCA","17741096T","1978-10-16",1978,48,10,47,"2026-01-20",147,"CAPRI MEQUINENZA",null,null,1]
[0,0,0,0,0,0,0,0,"VETERANO","M","LACASTA AISA","JOSÉ","JOSÉ LACASTA AISA","25154088T","1969-07-14",1969,57,7,56,"2026-02-02",148,"CENTRO NATACION HELIOS",1]
[0,0,0,0,0,0,0,0,"VETERANO","M","ARANDA MARTÍNEZ","PEDRO BENITO","PEDRO BENITO ARANDA MARTÍNEZ","17727417Y","1970-02-19",{"$f":"YEAR(O140)","v":1970},{"$f":"$AC$1-P140","v":56},{"$f":"MONTH(O140)","v":2},56,"2026-02-02",149,"CENTRO NATACION HELIOS",1]
[{"$f":"IF(J141=\"F\", 1,0)","v":0},{"$f":"IF(I141=\"B\", 1,0)","v":0},{"$f":"IF(I141=\"A\", 1,0)","v":0},{"$f":"IF(I141=\"I\", 1,0)","v":0},{"$f":"IF(I141=\"C\", 1,0)","v":0},{"$f":"IF(I141=\"J\", 1,0)","v":0},{"$f":"IF(I141=\"S\", 1,0)","v":0},{"$f":"IF(I141=\"V\", 1,0)","v":0},"VETERANO","M","PÉREZ VICENTE","MIGUEL ÁNGEL","MIGUEL ÁNGEL PÉREZ VICENTE","25159166H","1971-03-26",1971,55,3,55,"2026-02-02",150,"CENTRO NATACION HELIOS",1]
[0,0,0,0,0,0,0,0,"VETERANO","M","DIEZ SECO","ALFREDO","ALFREDO DIEZ SECO","25458198G","1973-04-07",1973,53,4,53,"2026-02-02",151,"CENTRO NATACION HELIOS",1,null,1]
[1,0,0,0,0,0,0,0,"VETERANO","F","ANGLÉS BEL","EVA MARÍA","EVA MARÍA ANGLÉS BEL","25455628X","1973-07-26",1973,53,7,52,"2026-02-02",152,"CENTRO NATACION HELIOS",1]
[1,0,0,0,0,0,0,0,{"$f":"IF((Q144<11),\"BENJAMIN\",IF(OR(Q144=11,Q144=12),\"ALEVIN\",IF(OR(Q144=13,Q144=14),\"INFANTIL\",IF(OR(Q144=15,Q144=16),\"CADETE\",IF(OR(Q144=17,Q144=18),\"JUVENIL\",IF(AND(Q144>18,Q144<31),\"SENIOR\",\"VETERANO\"))))))","v":"VETERANO"},"F","MELO HURTADO","SYLVIA MARÍA","SYLVIA MARÍA MELO HURTADO","Y5813761L","1989-10-04",1989,37,10,36,"2026-02-02",153,"CENTRO NATACION HELIOS",1]
[0,0,0,0,0,0,0,0,"VETERANO","M","AGUILERA ANDRÉS","ÁNGEL","ÁNGEL AGUILERA ANDRÉS","17178108Y","1949-11-07",1949,77,11,76,"2026-02-08",154,"OS NABATERS D.F.",1]
[0,0,0,0,0,0,0,0,{"$f":"IF((Q146<11),\"BENJAMIN\",IF(OR(Q146=11,Q146=12),\"ALEVIN\",IF(OR(Q146=13,Q146=14),\"INFANTIL\",IF(OR(Q146=15,Q146=16),\"CADETE\",IF(OR(Q146=17,Q146=18),\"JUVENIL\",IF(AND(Q146>18,Q146<31),\"SENIOR\",\"VETERANO\"))))))","v":"VETERANO"},"M","EMBARBA LABORDA","JOSÉ MARÍA","JOSÉ MARÍA EMBARBA LABORDA","72963666F","1961-04-15",1961,65,4,65,"2026-02-08",155,"OS NABATERS D.F.",1]
[0,0,0,0,0,0,0,0,"VETERANO","M","BELLED LACASA","LUIS CARLOS","LUIS CARLOS BELLED LACASA","25427822B","1964-06-09",1964,62,6,61,"2026-02-08",156,"OS NABATERS D.F.",1]
[0,0,0,0,0,0,0,0,"VETERANO","M","CAMBERO CENZANO","JOSÉ LUIS","JOSÉ LUIS CAMBERO CENZANO","25444469Y","1969-05-05",1969,57,5,57,"2026-02-08",157,"OS NABATERS D.F.",1]
[0,0,0,0,0,0,0,0,"VETERANO","M","MARTÍNEZ CABELLO","PEDRO IGNACIO","PEDRO IGNACIO MARTÍNEZ CABELLO","17694366Y","1957-04-24",1957,69,4,69,"2026-02-08",158,"OS NABATERS D.F.",null,null,1]
[0,0,0,0,0,0,0,0,"VETERANO","M","DEL AMO SANCHO","ALEJANDRO","ALEJANDRO DEL AMO SANCHO","17754550E","1982-02-05",1982,44,2,44,"2026-02-08",159,"OS NABATERS D.F.",1]
[0,0,0,0,0,0,0,0,"VETERANO","M","SEBASTIÁN BUSTÍN","OMAR","OMAR SEBASTIÁN BUSTÍN","73025719Y","1994-05-11",1994,32,5,32,"2026-02-08",160,"OS NABATERS D.F.",1]
[0,0,0,0,0,0,0,0,"VETERANO","M","SALILLAS MARTÍNEZ","RICARDO","RICARDO SALILLAS MARTÍNEZ","25204984C","1994-12-16",1994,32,12,31,"2026-02-09",161,"OS NABATERS D.F.",1]
[0,0,0,0,0,0,0,0,"VETERANO","M","SANCHO NAVARRO","ANTONIO ANSELMO","ANTONIO ANSELMO SANCHO NAVARRO","17206376F","1961-04-21",1961,65,4,65,"2026-02-08",162,"OS NABATERS D.F.",null,null,1]
[0,0,0,0,0,0,0,0,"VETERANO","M","BEA GONZÁLEZ","MIGUEL","MIGUEL BEA GONZÁLEZ","17205307L","1966-09-26",1966,60,9,59,"2026-02-09",163,"OS NABATERS D.F.",null,null,1]
[0,0,0,0,0,0,0,0,"VETERANO","M","NAVARRO CARRETERO","ROBERTO","ROBERTO NAVARRO CARRETERO","25444641V","1969-10-16",1969,57,10,56,"2026-02-09",164,"OS NABATERS D.F.",1]
[1,0,0,0,0,0,0,0,"SENIOR","F","LAPLANA DÍAZ","CARLOTA","CARLOTA LAPLANA DÍAZ","73477515J","2005-01-18",2005,21,1,21,"2026-02-09",165,"OS NABATERS D.F.",1]
[0,0,0,0,0,0,0,0,"VETERANO","M","MELERO PASCUAL","LUIS JAVIER","LUIS JAVIER MELERO PASCUAL","29102894M","1969-09-17",1969,57,9,56,"2026-02-09",166,"OS NABATERS D.F.",1]
[0,0,0,0,0,0,0,0,"VETERANO","M","RUANO FERNÁNDEZ","GABRIEL JOSÉ","GABRIEL JOSÉ RUANO FERNÁNDEZ","29103088S","1969-03-14",1969,57,3,57,"2026-02-09",167,"OS NABATERS D.F.",1]
[0,0,0,0,0,0,0,0,"VETERANO","M","YUS DÍEZ","JESÚS","JESÚS YUS DÍEZ","73029221N","1994-10-30",1994,32,10,31,"2026-02-09",168,"OS NABATERS D.F.",1]
[0,0,0,0,0,0,0,0,"JUVENIL","M","BOIRA GONZALO","LUIS FRANCISCO","LUIS FRANCISCO BOIRA GONZALO","73271015F","2008-05-23",2008,18,5,18,"2026-02-09",169,"OS NABATERS D.F.",1]
[0,0,0,0,0,0,0,0,"SENIOR","M","SOTOMAYOR MORA","GONZALO ARTURO","GONZALO ARTURO SOTOMAYOR MORA","Z4100844H","2002-01-02",2002,24,1,24,"2026-02-09",170,"CENTRO NATACION HELIOS",1]
[1,0,0,0,0,0,0,0,"SENIOR","F","VICENTE MAGAÑA","LEYA","LEYA VICENTE MAGAÑA","30335167F","2005-09-05",2005,21,9,20,"2026-02-12",171,"OS NABATERS D.F.",1]
[1,0,0,0,0,0,0,0,"SENIOR","F","LÓPEZ CORDOVILLA","ALBA","ALBA LÓPEZ CORDOVILLA","73055467S","2002-02-16",2002,24,2,24,"2026-02-12",172,"OS NABATERS D.F.",1]
[0,0,0,0,0,0,0,0,"SENIOR","M","JIMÉNEZ LOBERA","ANDRÉS","ANDRÉS JIMÉNEZ LOBERA","76974731X","1998-07-13",1998,28,7,27,"2026-02-12",173,"OS NABATERS D.F.",1]
[0,0,0,0,0,0,0,0,"VETERANO","M","BARRACHINA RODRÍGUEZ","JAVIER","JAVIER BARRACHINA RODRÍGUEZ","25454763L","1972-05-02",1972,54,5,54,"2026-02-12",174,"CENTRO NATACION HELIOS",1]
[0,0,0,0,0,0,0,0,"VETERANO","M","BLANCO VELÁZQUEZ","ANDRÉS","ANDRÉS BLANCO VELÁZQUEZ","17737449X","1973-09-11",1973,53,9,52,"2026-02-12",175,"CENTRO NATACION HELIOS",1]
[1,0,0,0,0,0,0,0,"VETERANO","F","PEÑA HERRERO","MARÍA PILAR","MARÍA PILAR PEÑA HERRERO","25450832K","1970-09-30",1970,56,9,55,"2026-02-12",176,"CENTRO NATACION HELIOS",1]
[0,0,0,0,0,0,0,0,"VETERANO","M","ICHASO JIMÉNEZ","RAMÓN","RAMÓN ICHASO JIMÉNEZ","16552855P","1969-08-05",1969,57,8,56,"2026-02-12",177,"CENTRO NATACION HELIOS",1]
[0,0,0,0,0,0,0,0,"SENIOR","M","VICENTE MIRANDA","GUILLÉN","GUILLÉN VICENTE MIRANDA","73448811J","2001-06-16",2001,25,6,24,"2026-02-12",178,"OS NABATERS D.F.",1,1]
[0,0,0,0,0,0,0,0,"SENIOR","M","FLORES CASTILLO","RODRIGO SERGIO","RODRIGO SERGIO FLORES CASTILLO","47134177R","1996-09-28",1996,30,9,29,"2026-02-12",179,"CENTRO NATACION HELIOS",1]
[0,0,0,0,0,0,0,0,"SENIOR","M","PONCE USÓN","JORGE","JORGE PONCE USÓN","25207173R","2000-11-17",2000,26,11,{"$f":"DATEDIF(O171,TODAY(),\"Y\")","v":25},"2026-02-13",180,"OS NABATERS D.F.",null,null,1]
[0,0,0,0,0,0,0,0,"VETERANO","M","DÍEZ DÍEZ","RAÚL","RAÚL DÍEZ DÍEZ","72965532X","1971-05-25",{"$f":"YEAR(O172)","v":1971},{"$f":"$AC$1-P172","v":55},{"$f":"MONTH(O172)","v":5},{"$f":"DATEDIF(O172,TODAY(),\"Y\")","v":55},"2026-02-13",181,"OS NABATERS D.F.",1]
[0,0,0,0,0,0,0,0,"INFANTIL","M","DÍEZ MOZOTA","CÉSAR","CÉSAR DÍEZ MOZOTA","30336254J","2012-11-04",2012,14,11,13,"2026-02-13",182,"OS NABATERS D.F.",1]
[1,0,0,0,0,0,0,0,"SENIOR","F","PONCE USÓN","SUSANA","SUSANA PONCE USÓN","25207172T","2005-04-19",2005,21,4,21,"2026-02-13",183,"OS NABATERS D.F.",null,null,1]
[0,0,0,0,0,0,0,0,"SENIOR","M","AZNAR SAMPER","ADRIÁN",{"$f":"L175&\" \"& K175","v":"ADRIÁN AZNAR SAMPER"},"25356729B","2007-03-09",{"$f":"YEAR(O175)","v":2007},19,{"$f":"MONTH(O175)","v":3},19,"2026-02-13",184,"OS NABATERS D.F.",null,null,1]
[1,0,0,0,0,0,0,0,"SENIOR","F","RUBIO EZPELETA","ANA","ANA RUBIO EZPELETA","17767678V","1997-10-12",1997,29,10,28,"2026-02-13",185,"OS NABATERS D.F.",1]
[1,0,0,0,0,0,0,0,"SENIOR","F","CANO GALLEGO","TATIANA","TATIANA CANO GALLEGO","26058015G","2000-11-13",2000,26,11,25,"2026-02-14",186,"OS NABATERS D.F.",1]
[0,0,0,0,0,0,0,0,"SENIOR","M","OLLOQUI LÁZARO","PEDRO","PEDRO OLLOQUI LÁZARO","77134640T","2005-08-16",2005,21,8,20,"2026-02-14",187,"OS NABATERS D.F.",1]
[1,0,0,0,0,0,0,0,"INFANTIL","F","CABALLERO DE TORO","ALICIA","ALICIA CABALLERO DE TORO","50090040A","2013-01-27",2013,13,1,13,"2026-02-22",188,"OS NABATERS D.F.",1]
[1,0,0,0,0,0,0,0,"VETERANO","F","MATAIX MONTANER","ANDREA LARA","ANDREA LARA MATAIX MONTANER","20453253C","1985-05-09",1985,41,5,41,"2026-02-22",189,"OS NABATERS D.F.",1]
[0,0,0,0,0,0,0,0,"VETERANO","M","ROMEO GIL","JAVIER","JAVIER ROMEO GIL","29114890H","1974-04-21",1974,52,4,52,"2026-02-22",190,"OS NABATERS D.F.",1]
[0,0,0,0,0,0,0,0,"ALEVIN","M","HIDALGO FERNÁNDEZ","LEO","LEO HIDALGO FERNÁNDEZ","73236193F","2014-12-12",2014,12,12,11,"2026-02-22",191,"OS NABATERS D.F.",1]
[0,0,0,0,0,0,0,0,"VETERANO","M","LARROSA AZNAR","SERGIO","SERGIO LARROSA AZNAR","25162264B","1972-05-20",1972,54,5,54,"2026-02-27",192,"CENTRO NATACION HELIOS",1]
[0,0,0,0,0,0,0,0,"VETERANO","M","BIELSA ARTIDIELLO","JULIO","JULIO BIELSA ARTIDIELLO","17728131F","1969-03-29",1969,57,3,57,"2026-02-27",193,"CENTRO NATACION HELIOS",null,null,1]
[1,0,0,0,0,0,0,0,"SENIOR","F","MARTÍN GONZÁLEZ","CLAUDIA","CLAUDIA MARTÍN GONZÁLEZ","50385547E","2004-05-17",2004,22,5,22,"2026-02-27",194,"CENTRO NATACION HELIOS",1]
[1,0,0,0,0,0,0,0,"VETERANO","F","AGUAS GARCÍA","ESMERALDA","ESMERALDA AGUAS GARCÍA","25435710X","1963-09-16",1963,63,9,62,"2026-02-27",195,"CENTRO NATACION HELIOS",1]
[1,0,0,0,0,0,0,0,"CADETE","F","MONTANER ALFARO","SOFÍA","SOFÍA MONTANER ALFARO","73514252L","2010-04-29",2010,16,4,16,"2026-02-27",196,"CENTRO NATACION HELIOS",1]
[0,0,0,0,0,0,0,0,"SENIOR","M","LACRUZ SANZ","FRANCISCO DE ASÍS","FRANCISCO DE ASÍS LACRUZ SANZ","73471366M","2001-03-31",2001,25,3,25,"2026-02-27",197,"CENTRO NATACION HELIOS",1]
[0,0,0,0,0,0,0,0,"VETERANO","M","SEBASTIÁN BELANCHE","JOSÉ GABRIEL","JOSÉ GABRIEL SEBASTIÁN BELANCHE","17160587B","1963-04-30",1963,63,4,63,"2026-02-27",198,"CENTRO NATACION HELIOS",1]
[0,0,0,0,0,0,0,0,"JUVENIL","M","ALONSO ROCHE","IKER","IKER ALONSO ROCHE","25361278Y","2008-12-27",2008,18,12,17,"2026-02-27",199,"CENTRO NATACION HELIOS",1]
[1,0,0,0,0,0,0,0,"VETERANO","F","FERNÁNDEZ RUIZ","MARÍA AZUCENA","MARÍA AZUCENA FERNÁNDEZ RUIZ","29120501V","1976-05-09",1976,50,5,50,"2026-03-02",200,"OS NABATERS D.F.",1]
[0,0,0,0,0,0,0,0,"CADETE","M","MARCOS GARCÍA","DAVID","DAVID MARCOS GARCÍA","71716733L","2011-11-10",2011,15,11,14,"2026-03-02",201,"OS NABATERS D.F.",1]
[0,0,0,0,0,0,0,0,"ALEVIN","M","OBENSA SIERRA","JORGE","JORGE OBENSA SIERRA","73622220W","2014-08-05",2014,12,8,11,"2026-03-02",202,"OS NABATERS D.F.",1]
[1,0,0,0,0,0,0,0,"SENIOR","F","PÉREZ DE ACHA","LEIRE","LEIRE PÉREZ DE ACHA","73163236Y","2001-11-30",2001,25,11,24,"2026-03-02",203,"CENTRO NATACION HELIOS",1]
[0,0,0,0,0,0,0,0,"JUVENIL","M","CANO JIMÉNEZ","DARÍO","DARÍO CANO JIMÉNEZ","49968088J","2009-08-05",2009,17,8,16,"2026-03-03",204,"OS NABATERS D.F.",1]
[0,0,0,0,0,0,0,0,"CADETE","M","CIRIA FERNÁNDEZ","ALBERTO","ALBERTO CIRIA FERNÁNDEZ","77762277J","2011-09-07",2011,15,9,14,"2026-03-03",205,"OS NABATERS D.F.",1]
[1,0,0,0,0,0,0,0,"VETERANO","F","ESTEVAN EIXARCH","ALICIA PILAR","ALICIA PILAR ESTEVAN EIXARCH","25148844T","1966-03-21",1966,60,3,60,"2026-03-03",206,"OS NABATERS D.F.",1]
[0,0,0,0,0,0,0,0,"JUVENIL","M","FERNÁNDEZ MUNARRIZ","MANUEL","MANUEL FERNÁNDEZ MUNARRIZ","18067980P","2009-04-11",2009,17,4,17,"2026-03-03",207,"OS NABATERS D.F.",1]
[0,0,0,0,0,0,0,0,"VETERANO","M","AURED ANTÓN","SERGIO","SERGIO AURED ANTÓN","25483490L","1978-06-11",1978,48,6,47,"2026-03-03",208,"OS NABATERS D.F.",1]
[0,0,0,0,0,0,0,0,"VETERANO","M","OLMO NADAL","DAVID","DAVID OLMO NADAL","29120065H","1977-02-14",1977,49,2,49,"2026-03-03",209,"OS NABATERS D.F.",1]
[1,0,0,0,0,0,0,0,"INFANTIL","F","GIMENO BACHILLER","SIENA","SIENA GIMENO BACHILLER","73237642F","2013-06-16",2013,13,6,12,"2026-03-03",210,"OS NABATERS D.F.",1]
[0,0,0,0,0,0,0,0,"CADETE","M","DUCE CASCANTE","ALEJANDRO","ALEJANDRO DUCE CASCANTE","13353469Z","2011-11-10",2011,15,11,14,"2026-03-03",211,"OS NABATERS D.F.",1]
[1,0,0,0,0,0,0,0,"SENIOR","F","HERNÁNDEZ ROYO","RAQUEL","RAQUEL HERNÁNDEZ ROYO","26279886V","2000-11-29",{"$f":"YEAR(O203)","v":2000},{"$f":"$AC$1-P203","v":26},{"$f":"MONTH(O203)","v":11},25,"2026-03-22",212,"OS NABATERS D.F.",1]
[0,0,0,0,0,0,0,0,"VETERANO","M","LAVILLA TENÍAS","SANTIAGO","SANTIAGO LAVILLA TENÍAS","17767598Y","1994-03-28",1994,32,3,32,"2026-03-22",213,"OS NABATERS D.F.",1]
[{"$f":"IF(J205=\"F\", 1,0)","v":0},{"$f":"IF(I205=\"B\", 1,0)","v":0},{"$f":"IF(I205=\"A\", 1,0)","v":0},{"$f":"IF(I205=\"I\", 1,0)","v":0},{"$f":"IF(I205=\"C\", 1,0)","v":0},{"$f":"IF(I205=\"J\", 1,0)","v":0},{"$f":"IF(I205=\"S\", 1,0)","v":0},{"$f":"IF(I205=\"V\", 1,0)","v":0},"VETERANO","M","HERNÁNDEZ PASCUAL","JOSÉ LUIS","JOSÉ LUIS HERNÁNDEZ PASCUAL","17220733N","1964-06-30",1964,62,6,61,"2026-03-25",214,"OS NABATERS D.F.",1]
[0,0,0,0,0,0,0,0,"INFANTIL","M","SORIA GARCÍA","RUBÉN","RUBÉN SORIA GARCÍA","26307901H","2013-01-10",2013,13,1,13,"2026-03-25",215,"OS NABATERS D.F.",1,null,null,null,null,null,null,null,null,null,null,null,null,null,null,null,null,null,null,1]
[1,0,0,0,0,0,0,0,"SENIOR","F","PEÑA ROMERO DE TEJADA","CELIA","CELIA PEÑA ROMERO DE TEJADA","73444632C","2002-10-01",{"$f":"YEAR(O207)","v":2002},{"$f":"$AC$1-P207","v":24},{"$f":"MONTH(O207)","v":10},23,"2026-04-06",216,"OS NABATERS D.F.",1,null,null,null,null,null,null,null,null,null,null,null,null,1,null,1]
[1,0,0,0,0,0,0,0,"SENIOR","F","HERNANDO FERRER","ANDREA","ANDREA HERNANDO FERRER","73623276T","2004-09-02",2004,22,9,21,"2026-04-06",217,"OS NABATERS D.F.",1,null,null,null,null,null,null,null,null,null,null,null,null,1,null,1,null,null,null,1]
[1,0,0,0,0,0,0,0,"SENIOR","F","DE MIGUEL GRACIA","RAQUEL","RAQUEL DE MIGUEL GRACIA","73475879X","2002-05-12",2002,24,5,24,"2026-04-08",218,"OS NABATERS D.F.",1,null,null,null,null,null,null,null,null,null,null,null,null,1,null,1]
[1,0,0,0,0,0,0,0,{"$f":"IF((Q210<11),\"BENJAMIN\",IF(OR(Q210=11,Q210=12),\"ALEVIN\",IF(OR(Q210=13,Q210=14),\"INFANTIL\",IF(OR(Q210=15,Q210=16),\"CADETE\",IF(OR(Q210=17,Q210=18),\"JUVENIL\",IF(AND(Q210>18,Q210<31),\"SENIOR\",\"VETERANO\"))))))","v":"VETERANO"},"F","GIMÉNEZ HERRERO","MERCEDES","MERCEDES GIMÉNEZ HERRERO","25426937T","1964-12-17",1964,62,12,61,"2026-04-08",219,"OS NABATERS D.F.",1,null,null,null,null,null,null,null,null,null,null,null,null,null,null,1]
[0,0,0,0,0,0,0,0,"SENIOR","M","ARBUES ANDRES","JOSÉ LUIS","JOSÉ LUIS ARBUES ANDRES","73615757W","2002-05-20",2002,24,5,24,"2026-04-11",220,"OS NABATERS D.F.",1,null,null,null,null,null,null,null,null,null,null,null,null,1,null,1,null,null,null,1]
[1,0,0,0,0,0,0,0,"VETERANO","F","GÓMEZ RUBIO","CARMEN","CARMEN GÓMEZ RUBIO","18426362G","1967-05-16",1967,59,5,59,"2026-05-28",221,"OS NABATERS D.F.",1]
[0,0,0,0,0,0,0,0,"VETERANO","M","RICO MORENO","JOSÉ CARMELO","JOSÉ CARMELO RICO MORENO","17123634L","1950-01-20",1950,76,1,76,"2026-05-28",222,"OS NABATERS D.F.",1]
[0,0,0,0,0,0,0,0,"VETERANO","M","BURGUETE URIOL","RAUL","RAUL BURGUETE URIOL","29111878L","1973-11-22",1973,53,11,52,"2026-05-28",223,"OS NABATERS D.F.",null,null,1]
[1,0,0,0,0,0,0,0,"VETERANO","F","CHOMALI","LAURA","LAURA CHOMALI","Y9592624M","1993-10-08",1993,33,10,32,"2026-05-28",224,"OS NABATERS D.F.",1]
[0,0,0,0,0,0,0,0,"SENIOR","M","VILLACAMPA RÍOS","ALEJANDRO","ALEJANDRO VILLACAMPA RÍOS","49381001R","2000-02-09",2000,26,2,26,"2026-05-28",225,"OS NABATERS D.F.",1]
[]
[]
[]
[]
[]
[]
[]
[]
[]
[]
[]
[]
[]
[]
[]
[]
[]
[]
[]
[]
[]
[]
[]
[]
[]
[]
[]
[]
[]
[]
[]
[]
[]
[]
[]
[]
[]
[]
[]
[]
[]
[]
[]
[]
[]
[]
[]
[]
[]
[]
[]
[]
[]
[]
[]
[]
[]
[]
[]
[]
[]
[]
[]
[]
[]
[]
[]
[]
[]
[]
[]
[]
[]
[]
[]
[]
[]
[]
[]
[]
[]
[]
[]
[]
[]
[]
[]
[]
[]
[]
[]
[]
[]
[]
[]
[]
[]
[]
[]
[]
[]
[]
[]
[]
[]
[]
[]
[]
[]
[]
[]
[]
[]
[]
[]
[]
[]
[]
[]
[]
[]
[]
[]
[]
[]
[]
[]
[]
[]
[]
[]
[]
[]
[]
[]
[]
[]
[]
[]
[]
[]
[]
[]
[]
[]
[]
[]
[]
[]
[]
[]
[]
[]
[]
[]
[]
[]
[]
[]
[]
[]
[]
[]
[]
[]
[]
[]
[]
[]
[]
[]
[]
[]
[]
[]
[]
[]
[]
[]
[]
[]
[]
[]
[]
[]
[]
[]
[]
[]
[]
[]
[]
[]
[]
[]
[]
[]
[]
[]
[]
[]
[]
[]
[]
[]
[]
[]
[]
[]
[]
[]
[]
[]
[]
[]
[]
[]
[]
[]
[]
[]
[]
[]
[]
[]
[]
[]
[]
[]
[]
[]
[]
[]
[]
[]
[]
[]
[]
[]
[]
[]
[]
[]
[]
[]
[]
[]
[]
[]
[]
[]
[]
[]
[]
[]
[]
[]
[]
[]
[]
[]
[]
[]
[]
[]
[]
[]
[]
[]
[]
[]
[]
[]
[]
[]
[]
[]
[]
[]
[]
[]
[]
[]
[]
[]
[]
[]
[]
[]
[]
[]
[]
[]
[]
[]
[]
[]
[]
[]
[]
[]
[]
[]
[]
[]
[]
[]
[]
[]
[]
[]
[]
[]
[]
[]
[]
[]
[]
[]
[]
[]
[]
[]
[]
[]
[]
[]
[]
[]
[]
[]
[]
[]
[]
[]
[]
[]
[]
[]
[]
[]
[]
[]
[]
[]
[]
[]
[]
[]
[]
[]
[]
[]
[]
[]
[]
[]
[]
[]
[]
[]
[]
[]
[]
[]
[]
[]
[]
[]
[]
[]
[]
[]
[]
[]
[]
[]
[]
[]
[]
[]
[]
[]
[]
[]
[]
[]
[]
[]
[]
[]
[]
[]
[]
[]
[]
[]
[]
[]
[]
[]
[]
[]
[]
[]
[]
[]
[]
[]
[]
[]
[]
[]
[]
[]
[]
[]
[]
[]
[]
[]
[]
[]
[]
[]
[]
[]
[]
[]
[]
[]
[]
[]
[]
[]
[]
[null,null,null,null,null,null,null,null,null,null,null,null,null,null,null,null,null,null,null,"2025-01-03"]

{"sheet":"CLUBS","index":7,"n_rows":27,"n_cols":8,"rows_kept":27,"cut":false,"hidden":true,"merged":[]}
[]
[]
[null,"CENTRO NATACION HELIOS","NAUTICO ZARAGOZA","OS NABATERS D.F.","REMO ZARAGOZA","CAPRI MEQUINENZA","ARAGON REMO","REMO MEQUINENZA"]
[null,"BENJAMIN","BENJAMIN_NZ","BENJAMIN_NB","BENJAMIN_RZ","BENJAMIN_CM","BENJAMIN_AR","BENJAMIN_RM"]
[null,"ALEVIN","ALEVIN_NZ","ALEVIN_NB","ALEVIN_RZ","ALEVIN_CM","ALEVIN_AR","ALEVIN_RM"]
[null,"INFANTIL","INFANTIL_NZ","INFANTIL_NB","INFANTIL_RZ","INFANTIL_CM","INFANTIL_AR","INFANTIL_RM"]
[null,"CADETE","CADETE_NZ","CADETE_NB","CADETE_RZ","CADETE_CM","CADETE_AR","CADETE_RM"]
[null,"JUVENIL","JUVENIL_NZ","JUVENIL_NB","JUVENIL_RZ","JUVENIL_CM","JUVENIL_AR","JUVENIL_RM"]
[null,"SENIOR","SENIOR_NZ","SENIOR_NB","SENIOR_RZ","SENIOR_CM","SENIOR_AR","SENIOR_RM"]
[null,"VETERANO","VETERANO_NZ","VETERANO_NB","VETERANO_RZ","VETERANO_CM","VETERANO_AR","VETERANO_RM"]
[]
[]
[]
[]
[]
[]
[null,"EMBARCACIONES",null,"PUESTO"]
[null,"1x",null,1]
[null,"2x",null,2]
[null,"2-",null,3]
[null,"2+",null,4]
[null,"4x",null,5]
[null,"4-",null,6]
[null,"4+",null,7]
[null,"8+",null,8]
[null,"YOLA 4+",null,"T"]
[null,"ERGOMETRO"]

{"sheet":"ENTRE_DELEG","index":8,"n_rows":299,"n_cols":26,"rows_kept":299,"cut":false,"hidden":true,"merged":[]}
["CLUB","NOMBRE COMPLETO","LICENCIA FAR ENTRENADOR","LICENCIA FAR DELEGADO",null,null,"CLUB","LICENCIA FAR ENTRENADOR",null,null,null,"CLUB","LICENCIA FAR DELEGADO"]
[{"$f":"'DATOS DEPORTISTAS'!V4","v":"F.A.R."},{"$f":"'DATOS DEPORTISTAS'!M4","v":"MARCOS GÓMEZ RODRÍGUEZ"},{"$f":"'DATOS DEPORTISTAS'!X4","v":0},{"$f":"'DATOS DEPORTISTAS'!Y4","v":0},null,null,"CENTRO NATACION HELIOS",1,null,null,null,"CENTRO NATACION HELIOS",1]
[{"$f":"'DATOS DEPORTISTAS'!V5","v":"F.A.R."},{"$f":"'DATOS DEPORTISTAS'!M5","v":"DANIEL CASORRÁN ROYO"},{"$f":"'DATOS DEPORTISTAS'!X5","v":0},{"$f":"'DATOS DEPORTISTAS'!Y5","v":0},null,null,"ARAGÓN REMO",1,null,null,null,"ARAGÓN REMO",1]
[{"$f":"'DATOS DEPORTISTAS'!V6","v":"F.A.R."},{"$f":"'DATOS DEPORTISTAS'!M6","v":"PEDRO JAVIER MORALES ALCUBIERRE"},{"$f":"'DATOS DEPORTISTAS'!X6","v":0},{"$f":"'DATOS DEPORTISTAS'!Y6","v":0},null,null,"CAPRI MEQUINENZA",1,null,null,null,"CAPRI MEQUINENZA",1]
[{"$f":"'DATOS DEPORTISTAS'!V7","v":"F.A.R."},{"$f":"'DATOS DEPORTISTAS'!M7","v":"JOSÉ JAVIER GONZÁLEZ-ARCE LABORDA"},{"$f":"'DATOS DEPORTISTAS'!X7","v":0},{"$f":"'DATOS DEPORTISTAS'!Y7","v":0},null,null,"OS NABATERS D.F.",1,null,null,null,"OS NABATERS D.F.",1]
[{"$f":"'DATOS DEPORTISTAS'!V8","v":"F.A.R."},{"$f":"'DATOS DEPORTISTAS'!M8","v":"BEATRIZ CASTELLÓ AYED"},{"$f":"'DATOS DEPORTISTAS'!X8","v":0},{"$f":"'DATOS DEPORTISTAS'!Y8","v":0},null,null,"NAUTICO ZARAGOZA",1,null,null,null,"NAUTICO ZARAGOZA",1]
[{"$f":"'DATOS DEPORTISTAS'!V9","v":"F.A.R."},{"$f":"'DATOS DEPORTISTAS'!M9","v":"JOSÉ MIGUEL LLOP ROCA"},{"$f":"'DATOS DEPORTISTAS'!X9","v":0},{"$f":"'DATOS DEPORTISTAS'!Y9","v":0},null,null,"REMO ZARAGOZA",1,null,null,null,"REMO ZARAGOZA",1]
[{"$f":"'DATOS DEPORTISTAS'!V10","v":"F.A.R."},{"$f":"'DATOS DEPORTISTAS'!M10","v":"JESÚS MANUEL LLOP MONTULL"},{"$f":"'DATOS DEPORTISTAS'!X10","v":0},{"$f":"'DATOS DEPORTISTAS'!Y10","v":0},null,null,"REMO MEQUINENZA",1,null,null,null,"REMO MEQUINENZA",1]
[{"$f":"'DATOS DEPORTISTAS'!V11","v":"F.A.R."},{"$f":"'DATOS DEPORTISTAS'!M11","v":"EMILIO ANASTASIO CILLEROS BLÁZQUEZ"},{"$f":"'DATOS DEPORTISTAS'!X11","v":0},{"$f":"'DATOS DEPORTISTAS'!Y11","v":0},null,null,"F.A.R.",1,null,null,null,"F.A.R.",1]
[{"$f":"'DATOS DEPORTISTAS'!V12","v":"F.A.R."},{"$f":"'DATOS DEPORTISTAS'!M12","v":"ÍÑIGO MIGUEL ZAPATA LARROY"},{"$f":"'DATOS DEPORTISTAS'!X12","v":0},{"$f":"'DATOS DEPORTISTAS'!Y12","v":0},null,null,null,null,null,null,null,null,null,null,null,null,null,null,null,"CENTRO NATACION HELIOS","NÁUTICO ZARAGOZA","OS NABATERS D.F.","REMO ZARAGOZA","CAPRI MEQUINENZA","ARAGON REMO","REMO MEQUINENZA"]
[{"$f":"'DATOS DEPORTISTAS'!V13","v":"CAPRI MEQUINENZA"},{"$f":"'DATOS DEPORTISTAS'!M13","v":"ALBA CUCHÍ NIUBÓ"},{"$f":"'DATOS DEPORTISTAS'!X13","v":0},{"$f":"'DATOS DEPORTISTAS'!Y13","v":0},null,null,null,null,null,null,null,null,null,null,null,null,null,null,null,"CENTRO_NATACION_HELIOS","NÁUTICO_ZARAGOZA",null,null,null,"ARAGON_REMO"]
[{"$f":"'DATOS DEPORTISTAS'!V14","v":"CAPRI MEQUINENZA"},{"$f":"'DATOS DEPORTISTAS'!M14","v":"ALBA MARTÍNEZ CLAVERO"},{"$f":"'DATOS DEPORTISTAS'!X14","v":0},{"$f":"'DATOS DEPORTISTAS'!Y14","v":0},null,null,"CLUB","LICENCIA FAR ENTRENADOR",null,null,null,"CLUB","LICENCIA FAR DELEGADO"]
[{"$f":"'DATOS DEPORTISTAS'!V15","v":"CAPRI MEQUINENZA"},{"$f":"'DATOS DEPORTISTAS'!M15","v":"ALICIA LLOP RUEDA"},{"$f":"'DATOS DEPORTISTAS'!X15","v":0},{"$f":"'DATOS DEPORTISTAS'!Y15","v":0},null,null,{"$f":"_xlfn._xlws.FILTER($A$2:$C$505,($A$2:$A$505=G2)*($C$2:$C$505=H2),\"NO ENCONTRADO\")","v":"CENTRO NATACION HELIOS"},"IVÁN LATAS JIMÉNEZ",1,null,null,{"$f":"_xlfn._xlws.FILTER($A$2:$D$505,($A$2:$A$505=L2)*($D$2:$D$505=M2),\"NO ENCONTRADO\")","v":"CENTRO NATACION HELIOS"},"ALFREDO DIEZ SECO",0,1]
[{"$f":"'DATOS DEPORTISTAS'!V16","v":"CAPRI MEQUINENZA"},{"$f":"'DATOS DEPORTISTAS'!M16","v":"GISELA HIERRO GARCÍA"},{"$f":"'DATOS DEPORTISTAS'!X16","v":0},{"$f":"'DATOS DEPORTISTAS'!Y16","v":0},null,null,"CENTRO NATACION HELIOS","ALFONSO MUNIESA FERRERO",1,null,null,"CENTRO NATACION HELIOS","JULIO BIELSA ARTIDIELLO",0,1]
[{"$f":"'DATOS DEPORTISTAS'!V17","v":"CAPRI MEQUINENZA"},{"$f":"'DATOS DEPORTISTAS'!M17","v":"MARÍA AGUILAR ROMERO"},{"$f":"'DATOS DEPORTISTAS'!X17","v":0},{"$f":"'DATOS DEPORTISTAS'!Y17","v":0}]
[{"$f":"'DATOS DEPORTISTAS'!V18","v":"CAPRI MEQUINENZA"},{"$f":"'DATOS DEPORTISTAS'!M18","v":"MAX GUARDIOLA LOPERA"},{"$f":"'DATOS DEPORTISTAS'!X18","v":0},{"$f":"'DATOS DEPORTISTAS'!Y18","v":0}]
[{"$f":"'DATOS DEPORTISTAS'!V19","v":"CAPRI MEQUINENZA"},{"$f":"'DATOS DEPORTISTAS'!M19","v":"PAULA CUCHÍ NIUBÓ"},{"$f":"'DATOS DEPORTISTAS'!X19","v":0},{"$f":"'DATOS DEPORTISTAS'!Y19","v":0}]
[{"$f":"'DATOS DEPORTISTAS'!V20","v":"CAPRI MEQUINENZA"},{"$f":"'DATOS DEPORTISTAS'!M20","v":"PAULO GUIMERÁ JANIK"},{"$f":"'DATOS DEPORTISTAS'!X20","v":0},{"$f":"'DATOS DEPORTISTAS'!Y20","v":0}]
[{"$f":"'DATOS DEPORTISTAS'!V21","v":"CAPRI MEQUINENZA"},{"$f":"'DATOS DEPORTISTAS'!M21","v":"YERAY MARTÍNEZ CLAVERO"},{"$f":"'DATOS DEPORTISTAS'!X21","v":0},{"$f":"'DATOS DEPORTISTAS'!Y21","v":0}]
[{"$f":"'DATOS DEPORTISTAS'!V22","v":"ARAGÓN REMO"},{"$f":"'DATOS DEPORTISTAS'!M22","v":"CARLOS MILLÁN BLASCO"},{"$f":"'DATOS DEPORTISTAS'!X22","v":0},{"$f":"'DATOS DEPORTISTAS'!Y22","v":1}]
[{"$f":"'DATOS DEPORTISTAS'!V23","v":"ARAGÓN REMO"},{"$f":"'DATOS DEPORTISTAS'!M23","v":"DAVID SAN JOSÉ SANTAMARÍA"},{"$f":"'DATOS DEPORTISTAS'!X23","v":1},{"$f":"'DATOS DEPORTISTAS'!Y23","v":0}]
[{"$f":"'DATOS DEPORTISTAS'!V24","v":"ARAGÓN REMO"},{"$f":"'DATOS DEPORTISTAS'!M24","v":"JOSÉ MANUEL LABARTA PINILLA"},{"$f":"'DATOS DEPORTISTAS'!X24","v":0},{"$f":"'DATOS DEPORTISTAS'!Y24","v":0}]
[{"$f":"'DATOS DEPORTISTAS'!V25","v":"CAPRI MEQUINENZA"},{"$f":"'DATOS DEPORTISTAS'!M25","v":"ABRIL GONZÁLEZ GARCÍA"},{"$f":"'DATOS DEPORTISTAS'!X25","v":0},{"$f":"'DATOS DEPORTISTAS'!Y25","v":0}]
[{"$f":"'DATOS DEPORTISTAS'!V26","v":"CAPRI MEQUINENZA"},{"$f":"'DATOS DEPORTISTAS'!M26","v":"IRATXE IBARZ BERENGUER"},{"$f":"'DATOS DEPORTISTAS'!X26","v":0},{"$f":"'DATOS DEPORTISTAS'!Y26","v":0},null,null,"CLUB","LICENCIA FAR ENTRENADOR",null,null,null,"CLUB","LICENCIA FAR DELEGADO"]
[{"$f":"'DATOS DEPORTISTAS'!V27","v":"CAPRI MEQUINENZA"},{"$f":"'DATOS DEPORTISTAS'!M27","v":"ALEJANDRO CANTERO ANDRÉS"},{"$f":"'DATOS DEPORTISTAS'!X27","v":0},{"$f":"'DATOS DEPORTISTAS'!Y27","v":0},null,null,{"$f":"_xlfn._xlws.FILTER($A$2:$C$505,($A$2:$A$505=G3)*($C$2:$C$505=H3),\"NO ENCONTRADO\")","v":"ARAGÓN REMO"},"DAVID SAN JOSÉ SANTAMARÍA",1,null,null,{"$f":"_xlfn._xlws.FILTER($A$2:$D$505,($A$2:$A$505=L3)*($D$2:$D$505=M3),\"NO ENCONTRADO\")","v":"ARAGÓN REMO"},"CARLOS MILLÁN BLASCO",0,1]
[{"$f":"'DATOS DEPORTISTAS'!V28","v":"CAPRI MEQUINENZA"},{"$f":"'DATOS DEPORTISTAS'!M28","v":"IRENE BRUNA PALAU"},{"$f":"'DATOS DEPORTISTAS'!X28","v":0},{"$f":"'DATOS DEPORTISTAS'!Y28","v":0}]
[{"$f":"'DATOS DEPORTISTAS'!V29","v":"CAPRI MEQUINENZA"},{"$f":"'DATOS DEPORTISTAS'!M29","v":"MARÍA ARROYO CABALLÉ"},{"$f":"'DATOS DEPORTISTAS'!X29","v":0},{"$f":"'DATOS DEPORTISTAS'!Y29","v":0}]
[{"$f":"'DATOS DEPORTISTAS'!V30","v":"CAPRI MEQUINENZA"},{"$f":"'DATOS DEPORTISTAS'!M30","v":"ÁLEX CATALÁN MOYA"},{"$f":"'DATOS DEPORTISTAS'!X30","v":0},{"$f":"'DATOS DEPORTISTAS'!Y30","v":0}]
[{"$f":"'DATOS DEPORTISTAS'!V31","v":"CAPRI MEQUINENZA"},{"$f":"'DATOS DEPORTISTAS'!M31","v":"AROA CASTELLÓ VILA"},{"$f":"'DATOS DEPORTISTAS'!X31","v":0},{"$f":"'DATOS DEPORTISTAS'!Y31","v":0}]
[{"$f":"'DATOS DEPORTISTAS'!V32","v":"CAPRI MEQUINENZA"},{"$f":"'DATOS DEPORTISTAS'!M32","v":"IKER SANJUÁN SATORRES"},{"$f":"'DATOS DEPORTISTAS'!X32","v":0},{"$f":"'DATOS DEPORTISTAS'!Y32","v":0}]
[{"$f":"'DATOS DEPORTISTAS'!V33","v":"CAPRI MEQUINENZA"},{"$f":"'DATOS DEPORTISTAS'!M33","v":"IVÁN GODIA SANCHO"},{"$f":"'DATOS DEPORTISTAS'!X33","v":0},{"$f":"'DATOS DEPORTISTAS'!Y33","v":0}]
[{"$f":"'DATOS DEPORTISTAS'!V34","v":"CAPRI MEQUINENZA"},{"$f":"'DATOS DEPORTISTAS'!M34","v":"JOEL CHERTÓ JIMÉNEZ"},{"$f":"'DATOS DEPORTISTAS'!X34","v":0},{"$f":"'DATOS DEPORTISTAS'!Y34","v":0}]
[{"$f":"'DATOS DEPORTISTAS'!V35","v":"CAPRI MEQUINENZA"},{"$f":"'DATOS DEPORTISTAS'!M35","v":"MARINA CATALÁN MOYA"},{"$f":"'DATOS DEPORTISTAS'!X35","v":0},{"$f":"'DATOS DEPORTISTAS'!Y35","v":0}]
[{"$f":"'DATOS DEPORTISTAS'!V36","v":"CAPRI MEQUINENZA"},{"$f":"'DATOS DEPORTISTAS'!M36","v":"ONA ESTRUGA LLOP"},{"$f":"'DATOS DEPORTISTAS'!X36","v":0},{"$f":"'DATOS DEPORTISTAS'!Y36","v":0}]
[{"$f":"'DATOS DEPORTISTAS'!V37","v":"CAPRI MEQUINENZA"},{"$f":"'DATOS DEPORTISTAS'!M37","v":"IVÁN EXPÓSITO VARGAS"},{"$f":"'DATOS DEPORTISTAS'!X37","v":0},{"$f":"'DATOS DEPORTISTAS'!Y37","v":0},null,null,"CLUB","LICENCIA FAR ENTRENADOR",null,null,null,"CLUB","LICENCIA FAR DELEGADO"]
[{"$f":"'DATOS DEPORTISTAS'!V38","v":"CAPRI MEQUINENZA"},{"$f":"'DATOS DEPORTISTAS'!M38","v":"SAÚL VIU NOGUÉS"},{"$f":"'DATOS DEPORTISTAS'!X38","v":0},{"$f":"'DATOS DEPORTISTAS'!Y38","v":0},null,null,{"$f":"_xlfn._xlws.FILTER($A$2:$C$505,($A$2:$A$505=G4)*($C$2:$C$505=H4),\"NO ENCONTRADO\")","v":"CAPRI MEQUINENZA"},"DAVID OLIVER CABALLÉ",1,null,null,{"$f":"_xlfn._xlws.FILTER($A$2:$D$505,($A$2:$A$505=L4)*($D$2:$D$505=M4),\"NO ENCONTRADO\")","v":"CAPRI MEQUINENZA"},"ALFONSO PÉREZ ALONSO",0,1]
[{"$f":"'DATOS DEPORTISTAS'!V39","v":"CAPRI MEQUINENZA"},{"$f":"'DATOS DEPORTISTAS'!M39","v":"EDUARDO ROMERA MURILLO"},{"$f":"'DATOS DEPORTISTAS'!X39","v":0},{"$f":"'DATOS DEPORTISTAS'!Y39","v":0},null,null,null,null,null,null,null,"CAPRI MEQUINENZA","DANIEL CUCHÍ SAGARRA",0,1]
[{"$f":"'DATOS DEPORTISTAS'!V40","v":"CAPRI MEQUINENZA"},{"$f":"'DATOS DEPORTISTAS'!M40","v":"ALFONSO PÉREZ ALONSO"},{"$f":"'DATOS DEPORTISTAS'!X40","v":0},{"$f":"'DATOS DEPORTISTAS'!Y40","v":1},null,null,null,null,null,null,null,"CAPRI MEQUINENZA","CONCEPCIÓN CASTRO ARANDA",0,1]
[{"$f":"'DATOS DEPORTISTAS'!V41","v":"CAPRI MEQUINENZA"},{"$f":"'DATOS DEPORTISTAS'!M41","v":"ANTONIO MIGUEL VERA RUBERT"},{"$f":"'DATOS DEPORTISTAS'!X41","v":0},{"$f":"'DATOS DEPORTISTAS'!Y41","v":0},null,null,null,null,null,null,null,"CAPRI MEQUINENZA","MARISOL CLAVERO GARCÍA",0,1]
[{"$f":"'DATOS DEPORTISTAS'!V42","v":"CAPRI MEQUINENZA"},{"$f":"'DATOS DEPORTISTAS'!M42","v":"MARC CASTELLÓ VILA"},{"$f":"'DATOS DEPORTISTAS'!X42","v":0},{"$f":"'DATOS DEPORTISTAS'!Y42","v":0},null,null,null,null,null,null,null,"CAPRI MEQUINENZA","PATRYCJA JANIK",0,1]
[{"$f":"'DATOS DEPORTISTAS'!V43","v":"CAPRI MEQUINENZA"},{"$f":"'DATOS DEPORTISTAS'!M43","v":"CARLOS SANJUAN SOLER"},{"$f":"'DATOS DEPORTISTAS'!X43","v":0},{"$f":"'DATOS DEPORTISTAS'!Y43","v":0},null,null,null,null,null,null,null,"CAPRI MEQUINENZA","ROSANA NIUBÓ SOROLLA",0,1]
[{"$f":"'DATOS DEPORTISTAS'!V44","v":"CAPRI MEQUINENZA"},{"$f":"'DATOS DEPORTISTAS'!M44","v":"MOHAMED ADAM RAHIBI VIDALLET"},{"$f":"'DATOS DEPORTISTAS'!X44","v":0},{"$f":"'DATOS DEPORTISTAS'!Y44","v":0},null,null,null,null,null,null,null,"CAPRI MEQUINENZA","JULIA RAMI CASTRO",0,1]
[{"$f":"'DATOS DEPORTISTAS'!V45","v":"CAPRI MEQUINENZA"},{"$f":"'DATOS DEPORTISTAS'!M45","v":"NOA GARCÍA SERRANO"},{"$f":"'DATOS DEPORTISTAS'!X45","v":0},{"$f":"'DATOS DEPORTISTAS'!Y45","v":0},null,null,null,null,null,null,null,"CAPRI MEQUINENZA","MIGUEL RUBIO LAMBEA",0,1]
[{"$f":"'DATOS DEPORTISTAS'!V46","v":"CAPRI MEQUINENZA"},{"$f":"'DATOS DEPORTISTAS'!M46","v":"IBAI BLAS PEÑALVER"},{"$f":"'DATOS DEPORTISTAS'!X46","v":0},{"$f":"'DATOS DEPORTISTAS'!Y46","v":0},null,null,null,null,null,null,null,"CAPRI MEQUINENZA","JORDI CASTELLÓ ROCA",0,1]
[{"$f":"'DATOS DEPORTISTAS'!V47","v":"CAPRI MEQUINENZA"},{"$f":"'DATOS DEPORTISTAS'!M47","v":"DANIEL CUCHÍ SAGARRA"},{"$f":"'DATOS DEPORTISTAS'!X47","v":0},{"$f":"'DATOS DEPORTISTAS'!Y47","v":1}]
[{"$f":"'DATOS DEPORTISTAS'!V48","v":"CAPRI MEQUINENZA"},{"$f":"'DATOS DEPORTISTAS'!M48","v":"YUNE JUSTE IBARZ"},{"$f":"'DATOS DEPORTISTAS'!X48","v":0},{"$f":"'DATOS DEPORTISTAS'!Y48","v":0}]
[{"$f":"'DATOS DEPORTISTAS'!V49","v":"CAPRI MEQUINENZA"},{"$f":"'DATOS DEPORTISTAS'!M49","v":"DAVID OLIVER CABALLÉ"},{"$f":"'DATOS DEPORTISTAS'!X49","v":1},{"$f":"'DATOS DEPORTISTAS'!Y49","v":0}]
[{"$f":"'DATOS DEPORTISTAS'!V50","v":"CAPRI MEQUINENZA"},{"$f":"'DATOS DEPORTISTAS'!M50","v":"ELENA STEGHERR LLOP"},{"$f":"'DATOS DEPORTISTAS'!X50","v":0},{"$f":"'DATOS DEPORTISTAS'!Y50","v":0}]
[{"$f":"'DATOS DEPORTISTAS'!V51","v":"CAPRI MEQUINENZA"},{"$f":"'DATOS DEPORTISTAS'!M51","v":"IRIA EXPÓSITO SORO"},{"$f":"'DATOS DEPORTISTAS'!X51","v":0},{"$f":"'DATOS DEPORTISTAS'!Y51","v":0}]
[{"$f":"'DATOS DEPORTISTAS'!V52","v":"CAPRI MEQUINENZA"},{"$f":"'DATOS DEPORTISTAS'!M52","v":"ENZO EXPÓSITO SORO"},{"$f":"'DATOS DEPORTISTAS'!X52","v":0},{"$f":"'DATOS DEPORTISTAS'!Y52","v":0}]
[{"$f":"'DATOS DEPORTISTAS'!V53","v":"CAPRI MEQUINENZA"},{"$f":"'DATOS DEPORTISTAS'!M53","v":"ANDREW PI MOSOVSKA"},{"$f":"'DATOS DEPORTISTAS'!X53","v":0},{"$f":"'DATOS DEPORTISTAS'!Y53","v":0}]
[{"$f":"'DATOS DEPORTISTAS'!V54","v":"CAPRI MEQUINENZA"},{"$f":"'DATOS DEPORTISTAS'!M54","v":"IVÁN CASTELLNOU SOROLLA"},{"$f":"'DATOS DEPORTISTAS'!X54","v":0},{"$f":"'DATOS DEPORTISTAS'!Y54","v":0}]
[{"$f":"'DATOS DEPORTISTAS'!V55","v":"CAPRI MEQUINENZA"},{"$f":"'DATOS DEPORTISTAS'!M55","v":"CARMEN RODES ESTRUGA"},{"$f":"'DATOS DEPORTISTAS'!X55","v":0},{"$f":"'DATOS DEPORTISTAS'!Y55","v":0},null,null,"CLUB","LICENCIA FAR ENTRENADOR",null,null,null,"CLUB","LICENCIA FAR DELEGADO"]
[{"$f":"'DATOS DEPORTISTAS'!V56","v":"CAPRI MEQUINENZA"},{"$f":"'DATOS DEPORTISTAS'!M56","v":"CONCEPCIÓN CASTRO ARANDA"},{"$f":"'DATOS DEPORTISTAS'!X56","v":0},{"$f":"'DATOS DEPORTISTAS'!Y56","v":1},null,null,{"$f":"_xlfn._xlws.FILTER($A$2:$C$505,($A$2:$A$505=G5)*($C$2:$C$505=H5),\"NO ENCONTRADO\")","v":"OS NABATERS D.F."},"GUILLÉN VICENTE MIRANDA",1,null,null,{"$f":"_xlfn._xlws.FILTER($A$2:$D$505,($A$2:$A$505=L5)*($D$2:$D$505=M5),\"NO ENCONTRADO\")","v":"OS NABATERS D.F."},"PEDRO IGNACIO MARTÍNEZ CABELLO",0,1]
[{"$f":"'DATOS DEPORTISTAS'!V57","v":"CAPRI MEQUINENZA"},{"$f":"'DATOS DEPORTISTAS'!M57","v":"ESTHER ANDRÉS CARRILLO"},{"$f":"'DATOS DEPORTISTAS'!X57","v":0},{"$f":"'DATOS DEPORTISTAS'!Y57","v":0},null,null,null,null,null,null,null,"OS NABATERS D.F.","ANTONIO ANSELMO SANCHO NAVARRO",0,1]
[{"$f":"'DATOS DEPORTISTAS'!V58","v":"CAPRI MEQUINENZA"},{"$f":"'DATOS DEPORTISTAS'!M58","v":"JESÚS MANUEL LLOP MONTULL"},{"$f":"'DATOS DEPORTISTAS'!X58","v":0},{"$f":"'DATOS DEPORTISTAS'!Y58","v":0},null,null,null,null,null,null,null,"OS NABATERS D.F.","MIGUEL BEA GONZÁLEZ",0,1]
[{"$f":"'DATOS DEPORTISTAS'!V59","v":"CAPRI MEQUINENZA"},{"$f":"'DATOS DEPORTISTAS'!M59","v":"JUAN ANTONIO  CATALAN MULA"},{"$f":"'DATOS DEPORTISTAS'!X59","v":0},{"$f":"'DATOS DEPORTISTAS'!Y59","v":0},null,null,null,null,null,null,null,"OS NABATERS D.F.","JORGE PONCE USÓN",0,1]
[{"$f":"'DATOS DEPORTISTAS'!V60","v":"CAPRI MEQUINENZA"},{"$f":"'DATOS DEPORTISTAS'!M60","v":"LORENA NOGUÉS NICOLÁS"},{"$f":"'DATOS DEPORTISTAS'!X60","v":0},{"$f":"'DATOS DEPORTISTAS'!Y60","v":0},null,null,null,null,null,null,null,"OS NABATERS D.F.","SUSANA PONCE USÓN",0,1]
[{"$f":"'DATOS DEPORTISTAS'!V61","v":"CAPRI MEQUINENZA"},{"$f":"'DATOS DEPORTISTAS'!M61","v":"MARÍA TERESA GODIA PI"},{"$f":"'DATOS DEPORTISTAS'!X61","v":0},{"$f":"'DATOS DEPORTISTAS'!Y61","v":0},null,null,null,null,null,null,null,"OS NABATERS D.F.","ADRIÁN AZNAR SAMPER",0,1]
[{"$f":"'DATOS DEPORTISTAS'!V62","v":"CAPRI MEQUINENZA"},{"$f":"'DATOS DEPORTISTAS'!M62","v":"MARISOL CLAVERO GARCÍA"},{"$f":"'DATOS DEPORTISTAS'!X62","v":0},{"$f":"'DATOS DEPORTISTAS'!Y62","v":1},null,null,null,null,null,null,null,"OS NABATERS D.F.","RAUL BURGUETE URIOL",0,1]
[{"$f":"'DATOS DEPORTISTAS'!V63","v":"CAPRI MEQUINENZA"},{"$f":"'DATOS DEPORTISTAS'!M63","v":"MERITXELL  LLOP CALLIZO"},{"$f":"'DATOS DEPORTISTAS'!X63","v":0},{"$f":"'DATOS DEPORTISTAS'!Y63","v":0}]
[{"$f":"'DATOS DEPORTISTAS'!V64","v":"CAPRI MEQUINENZA"},{"$f":"'DATOS DEPORTISTAS'!M64","v":"PATRYCJA JANIK"},{"$f":"'DATOS DEPORTISTAS'!X64","v":0},{"$f":"'DATOS DEPORTISTAS'!Y64","v":1}]
[{"$f":"'DATOS DEPORTISTAS'!V65","v":"CAPRI MEQUINENZA"},{"$f":"'DATOS DEPORTISTAS'!M65","v":"ROSANA NIUBÓ SOROLLA"},{"$f":"'DATOS DEPORTISTAS'!X65","v":0},{"$f":"'DATOS DEPORTISTAS'!Y65","v":1}]
[{"$f":"'DATOS DEPORTISTAS'!V66","v":"CAPRI MEQUINENZA"},{"$f":"'DATOS DEPORTISTAS'!M66","v":"VÍCTOR ESTRUGA GIMENO"},{"$f":"'DATOS DEPORTISTAS'!X66","v":0},{"$f":"'DATOS DEPORTISTAS'!Y66","v":0}]
[{"$f":"'DATOS DEPORTISTAS'!V67","v":"CAPRI MEQUINENZA"},{"$f":"'DATOS DEPORTISTAS'!M67","v":"VICTORIA SANTAELLA MAIRELES"},{"$f":"'DATOS DEPORTISTAS'!X67","v":0},{"$f":"'DATOS DEPORTISTAS'!Y67","v":0}]
[{"$f":"'DATOS DEPORTISTAS'!V68","v":"CAPRI MEQUINENZA"},{"$f":"'DATOS DEPORTISTAS'!M68","v":"JULIA RAMI CASTRO"},{"$f":"'DATOS DEPORTISTAS'!X68","v":0},{"$f":"'DATOS DEPORTISTAS'!Y68","v":1},null,null,"CLUB","LICENCIA FAR ENTRENADOR",null,null,null,"CLUB","LICENCIA FAR DELEGADO"]
[{"$f":"'DATOS DEPORTISTAS'!V69","v":"CAPRI MEQUINENZA"},{"$f":"'DATOS DEPORTISTAS'!M69","v":"MIGUEL RUBIO LAMBEA"},{"$f":"'DATOS DEPORTISTAS'!X69","v":0},{"$f":"'DATOS DEPORTISTAS'!Y69","v":1},null,null,{"$f":"_xlfn._xlws.FILTER($A$2:$C$505,($A$2:$A$505=G6)*($C$2:$C$505=H6),\"NO ENCONTRADO\")","v":"NO ENCONTRADO"},null,null,null,null,{"$f":"_xlfn._xlws.FILTER($A$2:$D$505,($A$2:$A$505=L6)*($D$2:$D$505=M6),\"NO ENCONTRADO\")","v":"NO ENCONTRADO"}]
[{"$f":"'DATOS DEPORTISTAS'!V70","v":"CAPRI MEQUINENZA"},{"$f":"'DATOS DEPORTISTAS'!M70","v":"RAQUEL CABALLÉ SILVESTRE"},{"$f":"'DATOS DEPORTISTAS'!X70","v":0},{"$f":"'DATOS DEPORTISTAS'!Y70","v":0}]
[{"$f":"'DATOS DEPORTISTAS'!V71","v":"CENTRO NATACION HELIOS"},{"$f":"'DATOS DEPORTISTAS'!M71","v":"PABLO BRIZ ZAMORANO"},{"$f":"'DATOS DEPORTISTAS'!X71","v":0},{"$f":"'DATOS DEPORTISTAS'!Y71","v":0}]
[{"$f":"'DATOS DEPORTISTAS'!V72","v":"CENTRO NATACION HELIOS"},{"$f":"'DATOS DEPORTISTAS'!M72","v":"IVÁN LATAS JIMÉNEZ"},{"$f":"'DATOS DEPORTISTAS'!X72","v":1},{"$f":"'DATOS DEPORTISTAS'!Y72","v":0}]
[{"$f":"'DATOS DEPORTISTAS'!V73","v":"CENTRO NATACION HELIOS"},{"$f":"'DATOS DEPORTISTAS'!M73","v":"VÍCTOR ESTEBAN GRAN"},{"$f":"'DATOS DEPORTISTAS'!X73","v":0},{"$f":"'DATOS DEPORTISTAS'!Y73","v":0}]
[{"$f":"'DATOS DEPORTISTAS'!V74","v":"CENTRO NATACION HELIOS"},{"$f":"'DATOS DEPORTISTAS'!M74","v":"CARLOS MELGARES HIDALGO"},{"$f":"'DATOS DEPORTISTAS'!X74","v":0},{"$f":"'DATOS DEPORTISTAS'!Y74","v":0}]
[{"$f":"'DATOS DEPORTISTAS'!V75","v":"CENTRO NATACION HELIOS"},{"$f":"'DATOS DEPORTISTAS'!M75","v":"ALFONSO MUNIESA FERRERO"},{"$f":"'DATOS DEPORTISTAS'!X75","v":1},{"$f":"'DATOS DEPORTISTAS'!Y75","v":0}]
[{"$f":"'DATOS DEPORTISTAS'!V76","v":"CENTRO NATACION HELIOS"},{"$f":"'DATOS DEPORTISTAS'!M76","v":"DANIEL BELLO ALVAREZ"},{"$f":"'DATOS DEPORTISTAS'!X76","v":0},{"$f":"'DATOS DEPORTISTAS'!Y76","v":0}]
[{"$f":"'DATOS DEPORTISTAS'!V77","v":"CENTRO NATACION HELIOS"},{"$f":"'DATOS DEPORTISTAS'!M77","v":"GREGORIO PRADAS QUERO"},{"$f":"'DATOS DEPORTISTAS'!X77","v":0},{"$f":"'DATOS DEPORTISTAS'!Y77","v":0}]
[{"$f":"'DATOS DEPORTISTAS'!V78","v":"CENTRO NATACION HELIOS"},{"$f":"'DATOS DEPORTISTAS'!M78","v":"ÁNGEL ROYO LAVILLA"},{"$f":"'DATOS DEPORTISTAS'!X78","v":0},{"$f":"'DATOS DEPORTISTAS'!Y78","v":0}]
[{"$f":"'DATOS DEPORTISTAS'!V79","v":"CENTRO NATACION HELIOS"},{"$f":"'DATOS DEPORTISTAS'!M79","v":"JORGE OCTAVIO CALVO GRACIA"},{"$f":"'DATOS DEPORTISTAS'!X79","v":0},{"$f":"'DATOS DEPORTISTAS'!Y79","v":0}]
[{"$f":"'DATOS DEPORTISTAS'!V80","v":"CENTRO NATACION HELIOS"},{"$f":"'DATOS DEPORTISTAS'!M80","v":"IRENE ICHASO CEBADERO"},{"$f":"'DATOS DEPORTISTAS'!X80","v":0},{"$f":"'DATOS DEPORTISTAS'!Y80","v":0},null,null,"CLUB","LICENCIA FAR ENTRENADOR",null,null,null,"CLUB","LICENCIA FAR DELEGADO"]
[{"$f":"'DATOS DEPORTISTAS'!V81","v":"CENTRO NATACION HELIOS"},{"$f":"'DATOS DEPORTISTAS'!M81","v":"JORGE PEIRÓ MESA"},{"$f":"'DATOS DEPORTISTAS'!X81","v":0},{"$f":"'DATOS DEPORTISTAS'!Y81","v":0},null,null,{"$f":"_xlfn._xlws.FILTER($A$2:$C$505,($A$2:$A$505=G7)*($C$2:$C$505=H7),\"NO ENCONTRADO\")","v":"NO ENCONTRADO"},null,null,null,null,{"$f":"_xlfn._xlws.FILTER($A$2:$D$505,($A$2:$A$505=L7)*($D$2:$D$505=M7),\"NO ENCONTRADO\")","v":"NO ENCONTRADO"}]
[{"$f":"'DATOS DEPORTISTAS'!V82","v":"CENTRO NATACION HELIOS"},{"$f":"'DATOS DEPORTISTAS'!M82","v":"JOSÉ MANUEL BIELSA ARTIDIELLO"},{"$f":"'DATOS DEPORTISTAS'!X82","v":0},{"$f":"'DATOS DEPORTISTAS'!Y82","v":0}]
[{"$f":"'DATOS DEPORTISTAS'!V83","v":"CENTRO NATACION HELIOS"},{"$f":"'DATOS DEPORTISTAS'!M83","v":"JUAN CARLOS CALAVIA RODRÍGUEZ"},{"$f":"'DATOS DEPORTISTAS'!X83","v":0},{"$f":"'DATOS DEPORTISTAS'!Y83","v":0}]
[{"$f":"'DATOS DEPORTISTAS'!V84","v":"CENTRO NATACION HELIOS"},{"$f":"'DATOS DEPORTISTAS'!M84","v":"JUAN DIEGO CRESPO ALONSO"},{"$f":"'DATOS DEPORTISTAS'!X84","v":0},{"$f":"'DATOS DEPORTISTAS'!Y84","v":0}]
[{"$f":"'DATOS DEPORTISTAS'!V85","v":"CENTRO NATACION HELIOS"},{"$f":"'DATOS DEPORTISTAS'!M85","v":"ALEXANDER JURADO PÉREZ"},{"$f":"'DATOS DEPORTISTAS'!X85","v":0},{"$f":"'DATOS DEPORTISTAS'!Y85","v":0}]
[{"$f":"'DATOS DEPORTISTAS'!V86","v":"CENTRO NATACION HELIOS"},{"$f":"'DATOS DEPORTISTAS'!M86","v":"FERNANDO MARTÍN RANERA"},{"$f":"'DATOS DEPORTISTAS'!X86","v":0},{"$f":"'DATOS DEPORTISTAS'!Y86","v":0}]
[{"$f":"'DATOS DEPORTISTAS'!V87","v":"CENTRO NATACION HELIOS"},{"$f":"'DATOS DEPORTISTAS'!M87","v":"IREK CABELLO PIETRZAK"},{"$f":"'DATOS DEPORTISTAS'!X87","v":0},{"$f":"'DATOS DEPORTISTAS'!Y87","v":0}]
[{"$f":"'DATOS DEPORTISTAS'!V88","v":"CENTRO NATACION HELIOS"},{"$f":"'DATOS DEPORTISTAS'!M88","v":"MARTÍN MONTANER ALFARO"},{"$f":"'DATOS DEPORTISTAS'!X88","v":0},{"$f":"'DATOS DEPORTISTAS'!Y88","v":0}]
[{"$f":"'DATOS DEPORTISTAS'!V89","v":"CENTRO NATACION HELIOS"},{"$f":"'DATOS DEPORTISTAS'!M89","v":"LUCÍA MONTANER ALFARO"},{"$f":"'DATOS DEPORTISTAS'!X89","v":0},{"$f":"'DATOS DEPORTISTAS'!Y89","v":0}]
[{"$f":"'DATOS DEPORTISTAS'!V90","v":"CENTRO NATACION HELIOS"},{"$f":"'DATOS DEPORTISTAS'!M90","v":"MARTA PINTO SOLANA"},{"$f":"'DATOS DEPORTISTAS'!X90","v":0},{"$f":"'DATOS DEPORTISTAS'!Y90","v":0}]
[{"$f":"'DATOS DEPORTISTAS'!V91","v":"CENTRO NATACION HELIOS"},{"$f":"'DATOS DEPORTISTAS'!M91","v":"MARÍA ROMEO VICENTE"},{"$f":"'DATOS DEPORTISTAS'!X91","v":0},{"$f":"'DATOS DEPORTISTAS'!Y91","v":0}]
[{"$f":"'DATOS DEPORTISTAS'!V92","v":"CENTRO NATACION HELIOS"},{"$f":"'DATOS DEPORTISTAS'!M92","v":"TERESA GUTIÉRREZ GIMÉNEZ"},{"$f":"'DATOS DEPORTISTAS'!X92","v":0},{"$f":"'DATOS DEPORTISTAS'!Y92","v":0},null,null,"CLUB","LICENCIA FAR ENTRENADOR",null,null,null,"CLUB","LICENCIA FAR DELEGADO"]
[{"$f":"'DATOS DEPORTISTAS'!V93","v":"CENTRO NATACION HELIOS"},{"$f":"'DATOS DEPORTISTAS'!M93","v":"NIL MARTÍN BERNARDOS"},{"$f":"'DATOS DEPORTISTAS'!X93","v":0},{"$f":"'DATOS DEPORTISTAS'!Y93","v":0},null,null,{"$f":"_xlfn._xlws.FILTER($A$2:$C$505,($A$2:$A$505=G8)*($C$2:$C$505=H8),\"NO ENCONTRADO\")","v":"NO ENCONTRADO"},null,null,null,null,{"$f":"_xlfn._xlws.FILTER($A$2:$D$505,($A$2:$A$505=L8)*($D$2:$D$505=M8),\"NO ENCONTRADO\")","v":"NO ENCONTRADO"}]
[{"$f":"'DATOS DEPORTISTAS'!V94","v":"CENTRO NATACION HELIOS"},{"$f":"'DATOS DEPORTISTAS'!M94","v":"PILAR MARCÉN GUTIÉRREZ"},{"$f":"'DATOS DEPORTISTAS'!X94","v":0},{"$f":"'DATOS DEPORTISTAS'!Y94","v":0}]
[{"$f":"'DATOS DEPORTISTAS'!V95","v":"CENTRO NATACION HELIOS"},{"$f":"'DATOS DEPORTISTAS'!M95","v":"VÍCTOR CINCA GARCÍA"},{"$f":"'DATOS DEPORTISTAS'!X95","v":0},{"$f":"'DATOS DEPORTISTAS'!Y95","v":0}]
[{"$f":"'DATOS DEPORTISTAS'!V96","v":"CENTRO NATACION HELIOS"},{"$f":"'DATOS DEPORTISTAS'!M96","v":"EMILIO ANASTASIO CILLEROS BLÁZQUEZ"},{"$f":"'DATOS DEPORTISTAS'!X96","v":0},{"$f":"'DATOS DEPORTISTAS'!Y96","v":0}]
[{"$f":"'DATOS DEPORTISTAS'!V97","v":"CENTRO NATACION HELIOS"},{"$f":"'DATOS DEPORTISTAS'!M97","v":"ERIC CAZADOR SERRANO"},{"$f":"'DATOS DEPORTISTAS'!X97","v":0},{"$f":"'DATOS DEPORTISTAS'!Y97","v":0}]
[{"$f":"'DATOS DEPORTISTAS'!V98","v":"CENTRO NATACION HELIOS"},{"$f":"'DATOS DEPORTISTAS'!M98","v":"UDAY CAZADOR SERRANO"},{"$f":"'DATOS DEPORTISTAS'!X98","v":0},{"$f":"'DATOS DEPORTISTAS'!Y98","v":0}]
[{"$f":"'DATOS DEPORTISTAS'!V99","v":"CENTRO NATACION HELIOS"},{"$f":"'DATOS DEPORTISTAS'!M99","v":"ALICIA LUNA MONTAGUD"},{"$f":"'DATOS DEPORTISTAS'!X99","v":0},{"$f":"'DATOS DEPORTISTAS'!Y99","v":0}]
[{"$f":"'DATOS DEPORTISTAS'!V100","v":"CENTRO NATACION HELIOS"},{"$f":"'DATOS DEPORTISTAS'!M100","v":"LUIS LARROSA GIL"},{"$f":"'DATOS DEPORTISTAS'!X100","v":0},{"$f":"'DATOS DEPORTISTAS'!Y100","v":0}]
[{"$f":"'DATOS DEPORTISTAS'!V101","v":"CENTRO NATACION HELIOS"},{"$f":"'DATOS DEPORTISTAS'!M101","v":"PABLO VLADIMIR IBAÑEZ VALERO"},{"$f":"'DATOS DEPORTISTAS'!X101","v":0},{"$f":"'DATOS DEPORTISTAS'!Y101","v":0}]
[{"$f":"'DATOS DEPORTISTAS'!V102","v":"CENTRO NATACION HELIOS"},{"$f":"'DATOS DEPORTISTAS'!M102","v":"JOAQUÍN JESÚS SORO FUENTES"},{"$f":"'DATOS DEPORTISTAS'!X102","v":0},{"$f":"'DATOS DEPORTISTAS'!Y102","v":0}]
[{"$f":"'DATOS DEPORTISTAS'!V103","v":"CENTRO NATACION HELIOS"},{"$f":"'DATOS DEPORTISTAS'!M103","v":"MARTÍN MILLÁN GÓMEZ"},{"$f":"'DATOS DEPORTISTAS'!X103","v":0},{"$f":"'DATOS DEPORTISTAS'!Y103","v":0},null,null,"C_TODOS","LICENCIA FAR ENTRENADOR",null,null,null,"C_TODOS","LICENCIA FAR DELEGADO"]
[{"$f":"'DATOS DEPORTISTAS'!V104","v":"CENTRO NATACION HELIOS"},{"$f":"'DATOS DEPORTISTAS'!M104","v":"PEDRO DIEZ GARCÍA"},{"$f":"'DATOS DEPORTISTAS'!X104","v":0},{"$f":"'DATOS DEPORTISTAS'!Y104","v":0},null,null,{"$f":"_xlfn._xlws.FILTER(C_ENTRENADOR,C2:C476=H9,\"\")","v":"ARAGÓN REMO"},"DAVID SAN JOSÉ SANTAMARÍA",1,null,null,{"$f":"_xlfn._xlws.FILTER(C_DELEGADO,D2:D476=M9,\"\")","v":"ARAGÓN REMO"},"CARLOS MILLÁN BLASCO",0,1]
[{"$f":"'DATOS DEPORTISTAS'!V105","v":"CENTRO NATACION HELIOS"},{"$f":"'DATOS DEPORTISTAS'!M105","v":"MANUEL GIRONÉS BENAVENTE"},{"$f":"'DATOS DEPORTISTAS'!X105","v":0},{"$f":"'DATOS DEPORTISTAS'!Y105","v":0},null,null,"CAPRI MEQUINENZA","DAVID OLIVER CABALLÉ",1,null,null,"CAPRI MEQUINENZA","ALFONSO PÉREZ ALONSO",0,1]
[{"$f":"'DATOS DEPORTISTAS'!V106","v":"CENTRO NATACION HELIOS"},{"$f":"'DATOS DEPORTISTAS'!M106","v":"MARCO MELÉNDEZ DEL PICO"},{"$f":"'DATOS DEPORTISTAS'!X106","v":0},{"$f":"'DATOS DEPORTISTAS'!Y106","v":0},null,null,"CENTRO NATACION HELIOS","IVÁN LATAS JIMÉNEZ",1,null,null,"CAPRI MEQUINENZA","DANIEL CUCHÍ SAGARRA",0,1]
[{"$f":"'DATOS DEPORTISTAS'!V107","v":"CENTRO NATACION HELIOS"},{"$f":"'DATOS DEPORTISTAS'!M107","v":"PABLO MALO VELA"},{"$f":"'DATOS DEPORTISTAS'!X107","v":0},{"$f":"'DATOS DEPORTISTAS'!Y107","v":0},null,null,"CENTRO NATACION HELIOS","ALFONSO MUNIESA FERRERO",1,null,null,"CAPRI MEQUINENZA","CONCEPCIÓN CASTRO ARANDA",0,1]
[{"$f":"'DATOS DEPORTISTAS'!V108","v":"CENTRO NATACION HELIOS"},{"$f":"'DATOS DEPORTISTAS'!M108","v":"DIEGO JIMÉNEZ HORNOS"},{"$f":"'DATOS DEPORTISTAS'!X108","v":0},{"$f":"'DATOS DEPORTISTAS'!Y108","v":0},null,null,"OS NABATERS D.F.","GUILLÉN VICENTE MIRANDA",1,null,null,"CAPRI MEQUINENZA","MARISOL CLAVERO GARCÍA",0,1]
[{"$f":"'DATOS DEPORTISTAS'!V109","v":"CENTRO NATACION HELIOS"},{"$f":"'DATOS DEPORTISTAS'!M109","v":"SANDRA DIEZ GARCÍA"},{"$f":"'DATOS DEPORTISTAS'!X109","v":0},{"$f":"'DATOS DEPORTISTAS'!Y109","v":0},null,null,null,null,null,null,null,"CAPRI MEQUINENZA","PATRYCJA JANIK",0,1]
[{"$f":"'DATOS DEPORTISTAS'!V110","v":"CENTRO NATACION HELIOS"},{"$f":"'DATOS DEPORTISTAS'!M110","v":"CRISTINA DIEZ SECO"},{"$f":"'DATOS DEPORTISTAS'!X110","v":0},{"$f":"'DATOS DEPORTISTAS'!Y110","v":0},null,null,null,null,null,null,null,"CAPRI MEQUINENZA","ROSANA NIUBÓ SOROLLA",0,1]
[{"$f":"'DATOS DEPORTISTAS'!V111","v":"CENTRO NATACION HELIOS"},{"$f":"'DATOS DEPORTISTAS'!M111","v":"VÍCTOR LENNIKOV IGLESIAS"},{"$f":"'DATOS DEPORTISTAS'!X111","v":0},{"$f":"'DATOS DEPORTISTAS'!Y111","v":0},null,null,null,null,null,null,null,"CAPRI MEQUINENZA","JULIA RAMI CASTRO",0,1]
[{"$f":"'DATOS DEPORTISTAS'!V112","v":"CENTRO NATACION HELIOS"},{"$f":"'DATOS DEPORTISTAS'!M112","v":"VICTOR JUANA GALVEZ"},{"$f":"'DATOS DEPORTISTAS'!X112","v":0},{"$f":"'DATOS DEPORTISTAS'!Y112","v":0},null,null,null,null,null,null,null,"CAPRI MEQUINENZA","MIGUEL RUBIO LAMBEA",0,1]
[{"$f":"'DATOS DEPORTISTAS'!V113","v":"CENTRO NATACION HELIOS"},{"$f":"'DATOS DEPORTISTAS'!M113","v":"JOSÉ TABUENCA COLERA"},{"$f":"'DATOS DEPORTISTAS'!X113","v":0},{"$f":"'DATOS DEPORTISTAS'!Y113","v":0},null,null,null,null,null,null,null,"NÁUTICO ZARAGOZA","CLEMENTE FERNANDO LABORDA VAL",0,1]
[{"$f":"'DATOS DEPORTISTAS'!V114","v":"CENTRO NATACION HELIOS"},{"$f":"'DATOS DEPORTISTAS'!M114","v":"GUILLERMO GUTIÉRREZ ANDOLZ"},{"$f":"'DATOS DEPORTISTAS'!X114","v":0},{"$f":"'DATOS DEPORTISTAS'!Y114","v":0},null,null,null,null,null,null,null,"NÁUTICO ZARAGOZA","JOSÉ MANUEL LARROY CALVO",0,1]
[{"$f":"'DATOS DEPORTISTAS'!V115","v":"CENTRO NATACION HELIOS"},{"$f":"'DATOS DEPORTISTAS'!M115","v":"GERMÁN VILLORO ANGLÉS"},{"$f":"'DATOS DEPORTISTAS'!X115","v":0},{"$f":"'DATOS DEPORTISTAS'!Y115","v":0},null,null,null,null,null,null,null,"CAPRI MEQUINENZA","JORDI CASTELLÓ ROCA",0,1]
[{"$f":"'DATOS DEPORTISTAS'!V116","v":"CENTRO NATACION HELIOS"},{"$f":"'DATOS DEPORTISTAS'!M116","v":"ÁNGEL PERNÍA OYAGA"},{"$f":"'DATOS DEPORTISTAS'!X116","v":0},{"$f":"'DATOS DEPORTISTAS'!Y116","v":0},null,null,null,null,null,null,null,"CENTRO NATACION HELIOS","ALFREDO DIEZ SECO",0,1]
[{"$f":"'DATOS DEPORTISTAS'!V117","v":"CENTRO NATACION HELIOS"},{"$f":"'DATOS DEPORTISTAS'!M117","v":"JAVIER REMACHA PUSCO"},{"$f":"'DATOS DEPORTISTAS'!X117","v":0},{"$f":"'DATOS DEPORTISTAS'!Y117","v":0},null,null,null,null,null,null,null,"OS NABATERS D.F.","PEDRO IGNACIO MARTÍNEZ CABELLO",0,1]
[{"$f":"'DATOS DEPORTISTAS'!V118","v":"CENTRO NATACION HELIOS"},{"$f":"'DATOS DEPORTISTAS'!M118","v":"NOA FUERTES VALLÉS"},{"$f":"'DATOS DEPORTISTAS'!X118","v":0},{"$f":"'DATOS DEPORTISTAS'!Y118","v":0},null,null,null,null,null,null,null,"OS NABATERS D.F.","ANTONIO ANSELMO SANCHO NAVARRO",0,1]
[{"$f":"'DATOS DEPORTISTAS'!V119","v":"CENTRO NATACION HELIOS"},{"$f":"'DATOS DEPORTISTAS'!M119","v":"JOSÉ MANUEL FAÑA GRIÑÓN"},{"$f":"'DATOS DEPORTISTAS'!X119","v":0},{"$f":"'DATOS DEPORTISTAS'!Y119","v":0},null,null,null,null,null,null,null,"OS NABATERS D.F.","MIGUEL BEA GONZÁLEZ",0,1]
[{"$f":"'DATOS DEPORTISTAS'!V120","v":"CENTRO NATACION HELIOS"},{"$f":"'DATOS DEPORTISTAS'!M120","v":"LUIS BUEY DE SACADURA"},{"$f":"'DATOS DEPORTISTAS'!X120","v":0},{"$f":"'DATOS DEPORTISTAS'!Y120","v":0},null,null,null,null,null,null,null,"OS NABATERS D.F.","JORGE PONCE USÓN",0,1]
[{"$f":"'DATOS DEPORTISTAS'!V121","v":"CENTRO NATACION HELIOS"},{"$f":"'DATOS DEPORTISTAS'!M121","v":"JIMENA ESPADA CIPRÉS"},{"$f":"'DATOS DEPORTISTAS'!X121","v":0},{"$f":"'DATOS DEPORTISTAS'!Y121","v":0},null,null,null,null,null,null,null,"OS NABATERS D.F.","SUSANA PONCE USÓN",0,1]
[{"$f":"'DATOS DEPORTISTAS'!V122","v":"CENTRO NATACION HELIOS"},{"$f":"'DATOS DEPORTISTAS'!M122","v":"VALENTINA ESPADA CIPRÉS"},{"$f":"'DATOS DEPORTISTAS'!X122","v":0},{"$f":"'DATOS DEPORTISTAS'!Y122","v":0},null,null,null,null,null,null,null,"OS NABATERS D.F.","ADRIÁN AZNAR SAMPER",0,1]
[{"$f":"'DATOS DEPORTISTAS'!V123","v":"CENTRO NATACION HELIOS"},{"$f":"'DATOS DEPORTISTAS'!M123","v":"CHLOÉ MILLÁN GÓMEZ"},{"$f":"'DATOS DEPORTISTAS'!X123","v":0},{"$f":"'DATOS DEPORTISTAS'!Y123","v":0},null,null,null,null,null,null,null,"CENTRO NATACION HELIOS","JULIO BIELSA ARTIDIELLO",0,1]
[{"$f":"'DATOS DEPORTISTAS'!V124","v":"CENTRO NATACION HELIOS"},{"$f":"'DATOS DEPORTISTAS'!M124","v":"MARÍA ADELINA MARTISCA SUSANU"},{"$f":"'DATOS DEPORTISTAS'!X124","v":0},{"$f":"'DATOS DEPORTISTAS'!Y124","v":0},null,null,null,null,null,null,null,"OS NABATERS D.F.","RAUL BURGUETE URIOL",0,1]
[{"$f":"'DATOS DEPORTISTAS'!V125","v":"CAPRI MEQUINENZA"},{"$f":"'DATOS DEPORTISTAS'!M125","v":"DAVID TORO SOLER"},{"$f":"'DATOS DEPORTISTAS'!X125","v":0},{"$f":"'DATOS DEPORTISTAS'!Y125","v":0}]
[{"$f":"'DATOS DEPORTISTAS'!V126","v":"CAPRI MEQUINENZA"},{"$f":"'DATOS DEPORTISTAS'!M126","v":"ROSA MARÍA LLOP RIAU"},{"$f":"'DATOS DEPORTISTAS'!X126","v":0},{"$f":"'DATOS DEPORTISTAS'!Y126","v":0}]
[{"$f":"'DATOS DEPORTISTAS'!V127","v":"CAPRI MEQUINENZA"},{"$f":"'DATOS DEPORTISTAS'!M127","v":"MARÍA PILAR GODIA PI"},{"$f":"'DATOS DEPORTISTAS'!X127","v":0},{"$f":"'DATOS DEPORTISTAS'!Y127","v":0}]
[{"$f":"'DATOS DEPORTISTAS'!V128","v":"CAPRI MEQUINENZA"},{"$f":"'DATOS DEPORTISTAS'!M128","v":"AARÓN MÁRQUEZ GUARDIOLA"},{"$f":"'DATOS DEPORTISTAS'!X128","v":0},{"$f":"'DATOS DEPORTISTAS'!Y128","v":0}]
[{"$f":"'DATOS DEPORTISTAS'!V129","v":"CAPRI MEQUINENZA"},{"$f":"'DATOS DEPORTISTAS'!M129","v":"ORIOL  MIR IBARZ"},{"$f":"'DATOS DEPORTISTAS'!X129","v":0},{"$f":"'DATOS DEPORTISTAS'!Y129","v":0}]
[{"$f":"'DATOS DEPORTISTAS'!V130","v":"NÁUTICO ZARAGOZA"},{"$f":"'DATOS DEPORTISTAS'!M130","v":"CLEMENTE FERNANDO LABORDA VAL"},{"$f":"'DATOS DEPORTISTAS'!X130","v":0},{"$f":"'DATOS DEPORTISTAS'!Y130","v":1}]
[{"$f":"'DATOS DEPORTISTAS'!V131","v":"NÁUTICO ZARAGOZA"},{"$f":"'DATOS DEPORTISTAS'!M131","v":"IGNACIO JOSÉ RUIZ IRIBARNE"},{"$f":"'DATOS DEPORTISTAS'!X131","v":0},{"$f":"'DATOS DEPORTISTAS'!Y131","v":0}]
[{"$f":"'DATOS DEPORTISTAS'!V132","v":"NÁUTICO ZARAGOZA"},{"$f":"'DATOS DEPORTISTAS'!M132","v":"JOSÉ MANUEL LARROY CALVO"},{"$f":"'DATOS DEPORTISTAS'!X132","v":0},{"$f":"'DATOS DEPORTISTAS'!Y132","v":1}]
[{"$f":"'DATOS DEPORTISTAS'!V133","v":"CENTRO NATACION HELIOS"},{"$f":"'DATOS DEPORTISTAS'!M133","v":"EDUARDO GUTIÉRREZ ANDOLZ"},{"$f":"'DATOS DEPORTISTAS'!X133","v":0},{"$f":"'DATOS DEPORTISTAS'!Y133","v":0}]
[{"$f":"'DATOS DEPORTISTAS'!V134","v":"CENTRO NATACION HELIOS"},{"$f":"'DATOS DEPORTISTAS'!M134","v":"ALMA RELANCIO PASTOR"},{"$f":"'DATOS DEPORTISTAS'!X134","v":0},{"$f":"'DATOS DEPORTISTAS'!Y134","v":0}]
[{"$f":"'DATOS DEPORTISTAS'!V135","v":"CENTRO NATACION HELIOS"},{"$f":"'DATOS DEPORTISTAS'!M135","v":"MATILDE ESTRELLA RELANCIO PASTOR"},{"$f":"'DATOS DEPORTISTAS'!X135","v":0},{"$f":"'DATOS DEPORTISTAS'!Y135","v":0}]
[{"$f":"'DATOS DEPORTISTAS'!V136","v":"CENTRO NATACION HELIOS"},{"$f":"'DATOS DEPORTISTAS'!M136","v":"ÁNGELA RELANCIO PASTOR"},{"$f":"'DATOS DEPORTISTAS'!X136","v":0},{"$f":"'DATOS DEPORTISTAS'!Y136","v":0}]
[{"$f":"'DATOS DEPORTISTAS'!V137","v":"CENTRO NATACION HELIOS"},{"$f":"'DATOS DEPORTISTAS'!M137","v":"ADELA RELANCIO PASTOR"},{"$f":"'DATOS DEPORTISTAS'!X137","v":0},{"$f":"'DATOS DEPORTISTAS'!Y137","v":0}]
[{"$f":"'DATOS DEPORTISTAS'!V138","v":"CAPRI MEQUINENZA"},{"$f":"'DATOS DEPORTISTAS'!M138","v":"JORDI CASTELLÓ ROCA"},{"$f":"'DATOS DEPORTISTAS'!X138","v":0},{"$f":"'DATOS DEPORTISTAS'!Y138","v":1}]
[{"$f":"'DATOS DEPORTISTAS'!V139","v":"CENTRO NATACION HELIOS"},{"$f":"'DATOS DEPORTISTAS'!M139","v":"JOSÉ LACASTA AISA"},{"$f":"'DATOS DEPORTISTAS'!X139","v":0},{"$f":"'DATOS DEPORTISTAS'!Y139","v":0}]
[{"$f":"'DATOS DEPORTISTAS'!V140","v":"CENTRO NATACION HELIOS"},{"$f":"'DATOS DEPORTISTAS'!M140","v":"PEDRO BENITO ARANDA MARTÍNEZ"},{"$f":"'DATOS DEPORTISTAS'!X140","v":0},{"$f":"'DATOS DEPORTISTAS'!Y140","v":0}]
[{"$f":"'DATOS DEPORTISTAS'!V141","v":"CENTRO NATACION HELIOS"},{"$f":"'DATOS DEPORTISTAS'!M141","v":"MIGUEL ÁNGEL PÉREZ VICENTE"},{"$f":"'DATOS DEPORTISTAS'!X141","v":0},{"$f":"'DATOS DEPORTISTAS'!Y141","v":0}]
[{"$f":"'DATOS DEPORTISTAS'!V142","v":"CENTRO NATACION HELIOS"},{"$f":"'DATOS DEPORTISTAS'!M142","v":"ALFREDO DIEZ SECO"},{"$f":"'DATOS DEPORTISTAS'!X142","v":0},{"$f":"'DATOS DEPORTISTAS'!Y142","v":1}]
[{"$f":"'DATOS DEPORTISTAS'!V143","v":"CENTRO NATACION HELIOS"},{"$f":"'DATOS DEPORTISTAS'!M143","v":"EVA MARÍA ANGLÉS BEL"},{"$f":"'DATOS DEPORTISTAS'!X143","v":0},{"$f":"'DATOS DEPORTISTAS'!Y143","v":0}]
[{"$f":"'DATOS DEPORTISTAS'!V144","v":"CENTRO NATACION HELIOS"},{"$f":"'DATOS DEPORTISTAS'!M144","v":"SYLVIA MARÍA MELO HURTADO"},{"$f":"'DATOS DEPORTISTAS'!X144","v":0},{"$f":"'DATOS DEPORTISTAS'!Y144","v":0}]
[{"$f":"'DATOS DEPORTISTAS'!V145","v":"OS NABATERS D.F."},{"$f":"'DATOS DEPORTISTAS'!M145","v":"ÁNGEL AGUILERA ANDRÉS"},{"$f":"'DATOS DEPORTISTAS'!X145","v":0},{"$f":"'DATOS DEPORTISTAS'!Y145","v":0}]
[{"$f":"'DATOS DEPORTISTAS'!V146","v":"OS NABATERS D.F."},{"$f":"'DATOS DEPORTISTAS'!M146","v":"JOSÉ MARÍA EMBARBA LABORDA"},{"$f":"'DATOS DEPORTISTAS'!X146","v":0},{"$f":"'DATOS DEPORTISTAS'!Y146","v":0}]
[{"$f":"'DATOS DEPORTISTAS'!V147","v":"OS NABATERS D.F."},{"$f":"'DATOS DEPORTISTAS'!M147","v":"LUIS CARLOS BELLED LACASA"},{"$f":"'DATOS DEPORTISTAS'!X147","v":0},{"$f":"'DATOS DEPORTISTAS'!Y147","v":0}]
[{"$f":"'DATOS DEPORTISTAS'!V148","v":"OS NABATERS D.F."},{"$f":"'DATOS DEPORTISTAS'!M148","v":"JOSÉ LUIS CAMBERO CENZANO"},{"$f":"'DATOS DEPORTISTAS'!X148","v":0},{"$f":"'DATOS DEPORTISTAS'!Y148","v":0}]
[{"$f":"'DATOS DEPORTISTAS'!V149","v":"OS NABATERS D.F."},{"$f":"'DATOS DEPORTISTAS'!M149","v":"PEDRO IGNACIO MARTÍNEZ CABELLO"},{"$f":"'DATOS DEPORTISTAS'!X149","v":0},{"$f":"'DATOS DEPORTISTAS'!Y149","v":1}]
[{"$f":"'DATOS DEPORTISTAS'!V150","v":"OS NABATERS D.F."},{"$f":"'DATOS DEPORTISTAS'!M150","v":"ALEJANDRO DEL AMO SANCHO"},{"$f":"'DATOS DEPORTISTAS'!X150","v":0},{"$f":"'DATOS DEPORTISTAS'!Y150","v":0}]
[{"$f":"'DATOS DEPORTISTAS'!V151","v":"OS NABATERS D.F."},{"$f":"'DATOS DEPORTISTAS'!M151","v":"OMAR SEBASTIÁN BUSTÍN"},{"$f":"'DATOS DEPORTISTAS'!X151","v":0},{"$f":"'DATOS DEPORTISTAS'!Y151","v":0}]
[{"$f":"'DATOS DEPORTISTAS'!V152","v":"OS NABATERS D.F."},{"$f":"'DATOS DEPORTISTAS'!M152","v":"RICARDO SALILLAS MARTÍNEZ"},{"$f":"'DATOS DEPORTISTAS'!X152","v":0},{"$f":"'DATOS DEPORTISTAS'!Y152","v":0}]
[{"$f":"'DATOS DEPORTISTAS'!V153","v":"OS NABATERS D.F."},{"$f":"'DATOS DEPORTISTAS'!M153","v":"ANTONIO ANSELMO SANCHO NAVARRO"},{"$f":"'DATOS DEPORTISTAS'!X153","v":0},{"$f":"'DATOS DEPORTISTAS'!Y153","v":1}]
[{"$f":"'DATOS DEPORTISTAS'!V154","v":"OS NABATERS D.F."},{"$f":"'DATOS DEPORTISTAS'!M154","v":"MIGUEL BEA GONZÁLEZ"},{"$f":"'DATOS DEPORTISTAS'!X154","v":0},{"$f":"'DATOS DEPORTISTAS'!Y154","v":1}]
[{"$f":"'DATOS DEPORTISTAS'!V155","v":"OS NABATERS D.F."},{"$f":"'DATOS DEPORTISTAS'!M155","v":"ROBERTO NAVARRO CARRETERO"},{"$f":"'DATOS DEPORTISTAS'!X155","v":0},{"$f":"'DATOS DEPORTISTAS'!Y155","v":0}]
[{"$f":"'DATOS DEPORTISTAS'!V156","v":"OS NABATERS D.F."},{"$f":"'DATOS DEPORTISTAS'!M156","v":"CARLOTA LAPLANA DÍAZ"},{"$f":"'DATOS DEPORTISTAS'!X156","v":0},{"$f":"'DATOS DEPORTISTAS'!Y156","v":0}]
[{"$f":"'DATOS DEPORTISTAS'!V157","v":"OS NABATERS D.F."},{"$f":"'DATOS DEPORTISTAS'!M157","v":"LUIS JAVIER MELERO PASCUAL"},{"$f":"'DATOS DEPORTISTAS'!X157","v":0},{"$f":"'DATOS DEPORTISTAS'!Y157","v":0}]
[{"$f":"'DATOS DEPORTISTAS'!V158","v":"OS NABATERS D.F."},{"$f":"'DATOS DEPORTISTAS'!M158","v":"GABRIEL JOSÉ RUANO FERNÁNDEZ"},{"$f":"'DATOS DEPORTISTAS'!X158","v":0},{"$f":"'DATOS DEPORTISTAS'!Y158","v":0}]
[{"$f":"'DATOS DEPORTISTAS'!V159","v":"OS NABATERS D.F."},{"$f":"'DATOS DEPORTISTAS'!M159","v":"JESÚS YUS DÍEZ"},{"$f":"'DATOS DEPORTISTAS'!X159","v":0},{"$f":"'DATOS DEPORTISTAS'!Y159","v":0}]
[{"$f":"'DATOS DEPORTISTAS'!V160","v":"OS NABATERS D.F."},{"$f":"'DATOS DEPORTISTAS'!M160","v":"LUIS FRANCISCO BOIRA GONZALO"},{"$f":"'DATOS DEPORTISTAS'!X160","v":0},{"$f":"'DATOS DEPORTISTAS'!Y160","v":0}]
[{"$f":"'DATOS DEPORTISTAS'!V161","v":"CENTRO NATACION HELIOS"},{"$f":"'DATOS DEPORTISTAS'!M161","v":"GONZALO ARTURO SOTOMAYOR MORA"},{"$f":"'DATOS DEPORTISTAS'!X161","v":0},{"$f":"'DATOS DEPORTISTAS'!Y161","v":0}]
[{"$f":"'DATOS DEPORTISTAS'!V162","v":"OS NABATERS D.F."},{"$f":"'DATOS DEPORTISTAS'!M162","v":"LEYA VICENTE MAGAÑA"},{"$f":"'DATOS DEPORTISTAS'!X162","v":0},{"$f":"'DATOS DEPORTISTAS'!Y162","v":0}]
[{"$f":"'DATOS DEPORTISTAS'!V163","v":"OS NABATERS D.F."},{"$f":"'DATOS DEPORTISTAS'!M163","v":"ALBA LÓPEZ CORDOVILLA"},{"$f":"'DATOS DEPORTISTAS'!X163","v":0},{"$f":"'DATOS DEPORTISTAS'!Y163","v":0}]
[{"$f":"'DATOS DEPORTISTAS'!V164","v":"OS NABATERS D.F."},{"$f":"'DATOS DEPORTISTAS'!M164","v":"ANDRÉS JIMÉNEZ LOBERA"},{"$f":"'DATOS DEPORTISTAS'!X164","v":0},{"$f":"'DATOS DEPORTISTAS'!Y164","v":0}]
[{"$f":"'DATOS DEPORTISTAS'!V165","v":"CENTRO NATACION HELIOS"},{"$f":"'DATOS DEPORTISTAS'!M165","v":"JAVIER BARRACHINA RODRÍGUEZ"},{"$f":"'DATOS DEPORTISTAS'!X165","v":0},{"$f":"'DATOS DEPORTISTAS'!Y165","v":0}]
[{"$f":"'DATOS DEPORTISTAS'!V166","v":"CENTRO NATACION HELIOS"},{"$f":"'DATOS DEPORTISTAS'!M166","v":"ANDRÉS BLANCO VELÁZQUEZ"},{"$f":"'DATOS DEPORTISTAS'!X166","v":0},{"$f":"'DATOS DEPORTISTAS'!Y166","v":0}]
[{"$f":"'DATOS DEPORTISTAS'!V167","v":"CENTRO NATACION HELIOS"},{"$f":"'DATOS DEPORTISTAS'!M167","v":"MARÍA PILAR PEÑA HERRERO"},{"$f":"'DATOS DEPORTISTAS'!X167","v":0},{"$f":"'DATOS DEPORTISTAS'!Y167","v":0}]
[{"$f":"'DATOS DEPORTISTAS'!V168","v":"CENTRO NATACION HELIOS"},{"$f":"'DATOS DEPORTISTAS'!M168","v":"RAMÓN ICHASO JIMÉNEZ"},{"$f":"'DATOS DEPORTISTAS'!X168","v":0},{"$f":"'DATOS DEPORTISTAS'!Y168","v":0}]
[{"$f":"'DATOS DEPORTISTAS'!V169","v":"OS NABATERS D.F."},{"$f":"'DATOS DEPORTISTAS'!M169","v":"GUILLÉN VICENTE MIRANDA"},{"$f":"'DATOS DEPORTISTAS'!X169","v":1},{"$f":"'DATOS DEPORTISTAS'!Y169","v":0}]
[{"$f":"'DATOS DEPORTISTAS'!V170","v":"CENTRO NATACION HELIOS"},{"$f":"'DATOS DEPORTISTAS'!M170","v":"RODRIGO SERGIO FLORES CASTILLO"},{"$f":"'DATOS DEPORTISTAS'!X170","v":0},{"$f":"'DATOS DEPORTISTAS'!Y170","v":0}]
[{"$f":"'DATOS DEPORTISTAS'!V171","v":"OS NABATERS D.F."},{"$f":"'DATOS DEPORTISTAS'!M171","v":"JORGE PONCE USÓN"},{"$f":"'DATOS DEPORTISTAS'!X171","v":0},{"$f":"'DATOS DEPORTISTAS'!Y171","v":1}]
[{"$f":"'DATOS DEPORTISTAS'!V172","v":"OS NABATERS D.F."},{"$f":"'DATOS DEPORTISTAS'!M172","v":"RAÚL DÍEZ DÍEZ"},{"$f":"'DATOS DEPORTISTAS'!X172","v":0},{"$f":"'DATOS DEPORTISTAS'!Y172","v":0}]
[{"$f":"'DATOS DEPORTISTAS'!V173","v":"OS NABATERS D.F."},{"$f":"'DATOS DEPORTISTAS'!M173","v":"CÉSAR DÍEZ MOZOTA"},{"$f":"'DATOS DEPORTISTAS'!X173","v":0},{"$f":"'DATOS DEPORTISTAS'!Y173","v":0}]
[{"$f":"'DATOS DEPORTISTAS'!V174","v":"OS NABATERS D.F."},{"$f":"'DATOS DEPORTISTAS'!M174","v":"SUSANA PONCE USÓN"},{"$f":"'DATOS DEPORTISTAS'!X174","v":0},{"$f":"'DATOS DEPORTISTAS'!Y174","v":1}]
[{"$f":"'DATOS DEPORTISTAS'!V175","v":"OS NABATERS D.F."},{"$f":"'DATOS DEPORTISTAS'!M175","v":"ADRIÁN AZNAR SAMPER"},{"$f":"'DATOS DEPORTISTAS'!X175","v":0},{"$f":"'DATOS DEPORTISTAS'!Y175","v":1}]
[{"$f":"'DATOS DEPORTISTAS'!V176","v":"OS NABATERS D.F."},{"$f":"'DATOS DEPORTISTAS'!M176","v":"ANA RUBIO EZPELETA"},{"$f":"'DATOS DEPORTISTAS'!X176","v":0},{"$f":"'DATOS DEPORTISTAS'!Y176","v":0}]
[{"$f":"'DATOS DEPORTISTAS'!V177","v":"OS NABATERS D.F."},{"$f":"'DATOS DEPORTISTAS'!M177","v":"TATIANA CANO GALLEGO"},{"$f":"'DATOS DEPORTISTAS'!X177","v":0},{"$f":"'DATOS DEPORTISTAS'!Y177","v":0}]
[{"$f":"'DATOS DEPORTISTAS'!V178","v":"OS NABATERS D.F."},{"$f":"'DATOS DEPORTISTAS'!M178","v":"PEDRO OLLOQUI LÁZARO"},{"$f":"'DATOS DEPORTISTAS'!X178","v":0},{"$f":"'DATOS DEPORTISTAS'!Y178","v":0}]
[{"$f":"'DATOS DEPORTISTAS'!V179","v":"OS NABATERS D.F."},{"$f":"'DATOS DEPORTISTAS'!M179","v":"ALICIA CABALLERO DE TORO"},{"$f":"'DATOS DEPORTISTAS'!X179","v":0},{"$f":"'DATOS DEPORTISTAS'!Y179","v":0}]
[{"$f":"'DATOS DEPORTISTAS'!V180","v":"OS NABATERS D.F."},{"$f":"'DATOS DEPORTISTAS'!M180","v":"ANDREA LARA MATAIX MONTANER"},{"$f":"'DATOS DEPORTISTAS'!X180","v":0},{"$f":"'DATOS DEPORTISTAS'!Y180","v":0}]
[{"$f":"'DATOS DEPORTISTAS'!V181","v":"OS NABATERS D.F."},{"$f":"'DATOS DEPORTISTAS'!M181","v":"JAVIER ROMEO GIL"},{"$f":"'DATOS DEPORTISTAS'!X181","v":0},{"$f":"'DATOS DEPORTISTAS'!Y181","v":0}]
[{"$f":"'DATOS DEPORTISTAS'!V182","v":"OS NABATERS D.F."},{"$f":"'DATOS DEPORTISTAS'!M182","v":"LEO HIDALGO FERNÁNDEZ"},{"$f":"'DATOS DEPORTISTAS'!X182","v":0},{"$f":"'DATOS DEPORTISTAS'!Y182","v":0}]
[{"$f":"'DATOS DEPORTISTAS'!V183","v":"CENTRO NATACION HELIOS"},{"$f":"'DATOS DEPORTISTAS'!M183","v":"SERGIO LARROSA AZNAR"},{"$f":"'DATOS DEPORTISTAS'!X183","v":0},{"$f":"'DATOS DEPORTISTAS'!Y183","v":0}]
[{"$f":"'DATOS DEPORTISTAS'!V184","v":"CENTRO NATACION HELIOS"},{"$f":"'DATOS DEPORTISTAS'!M184","v":"JULIO BIELSA ARTIDIELLO"},{"$f":"'DATOS DEPORTISTAS'!X184","v":0},{"$f":"'DATOS DEPORTISTAS'!Y184","v":1}]
[{"$f":"'DATOS DEPORTISTAS'!V185","v":"CENTRO NATACION HELIOS"},{"$f":"'DATOS DEPORTISTAS'!M185","v":"CLAUDIA MARTÍN GONZÁLEZ"},{"$f":"'DATOS DEPORTISTAS'!X185","v":0},{"$f":"'DATOS DEPORTISTAS'!Y185","v":0}]
[{"$f":"'DATOS DEPORTISTAS'!V186","v":"CENTRO NATACION HELIOS"},{"$f":"'DATOS DEPORTISTAS'!M186","v":"ESMERALDA AGUAS GARCÍA"},{"$f":"'DATOS DEPORTISTAS'!X186","v":0},{"$f":"'DATOS DEPORTISTAS'!Y186","v":0}]
[{"$f":"'DATOS DEPORTISTAS'!V187","v":"CENTRO NATACION HELIOS"},{"$f":"'DATOS DEPORTISTAS'!M187","v":"SOFÍA MONTANER ALFARO"},{"$f":"'DATOS DEPORTISTAS'!X187","v":0},{"$f":"'DATOS DEPORTISTAS'!Y187","v":0}]
[{"$f":"'DATOS DEPORTISTAS'!V188","v":"CENTRO NATACION HELIOS"},{"$f":"'DATOS DEPORTISTAS'!M188","v":"FRANCISCO DE ASÍS LACRUZ SANZ"},{"$f":"'DATOS DEPORTISTAS'!X188","v":0},{"$f":"'DATOS DEPORTISTAS'!Y188","v":0}]
[{"$f":"'DATOS DEPORTISTAS'!V189","v":"CENTRO NATACION HELIOS"},{"$f":"'DATOS DEPORTISTAS'!M189","v":"JOSÉ GABRIEL SEBASTIÁN BELANCHE"},{"$f":"'DATOS DEPORTISTAS'!X189","v":0},{"$f":"'DATOS DEPORTISTAS'!Y189","v":0}]
[{"$f":"'DATOS DEPORTISTAS'!V190","v":"CENTRO NATACION HELIOS"},{"$f":"'DATOS DEPORTISTAS'!M190","v":"IKER ALONSO ROCHE"},{"$f":"'DATOS DEPORTISTAS'!X190","v":0},{"$f":"'DATOS DEPORTISTAS'!Y190","v":0}]
[{"$f":"'DATOS DEPORTISTAS'!V191","v":"OS NABATERS D.F."},{"$f":"'DATOS DEPORTISTAS'!M191","v":"MARÍA AZUCENA FERNÁNDEZ RUIZ"},{"$f":"'DATOS DEPORTISTAS'!X191","v":0},{"$f":"'DATOS DEPORTISTAS'!Y191","v":0}]
[{"$f":"'DATOS DEPORTISTAS'!V192","v":"OS NABATERS D.F."},{"$f":"'DATOS DEPORTISTAS'!M192","v":"DAVID MARCOS GARCÍA"},{"$f":"'DATOS DEPORTISTAS'!X192","v":0},{"$f":"'DATOS DEPORTISTAS'!Y192","v":0}]
[{"$f":"'DATOS DEPORTISTAS'!V193","v":"OS NABATERS D.F."},{"$f":"'DATOS DEPORTISTAS'!M193","v":"JORGE OBENSA SIERRA"},{"$f":"'DATOS DEPORTISTAS'!X193","v":0},{"$f":"'DATOS DEPORTISTAS'!Y193","v":0}]
[{"$f":"'DATOS DEPORTISTAS'!V194","v":"CENTRO NATACION HELIOS"},{"$f":"'DATOS DEPORTISTAS'!M194","v":"LEIRE PÉREZ DE ACHA"},{"$f":"'DATOS DEPORTISTAS'!X194","v":0},{"$f":"'DATOS DEPORTISTAS'!Y194","v":0}]
[{"$f":"'DATOS DEPORTISTAS'!V195","v":"OS NABATERS D.F."},{"$f":"'DATOS DEPORTISTAS'!M195","v":"DARÍO CANO JIMÉNEZ"},{"$f":"'DATOS DEPORTISTAS'!X195","v":0},{"$f":"'DATOS DEPORTISTAS'!Y195","v":0}]
[{"$f":"'DATOS DEPORTISTAS'!V196","v":"OS NABATERS D.F."},{"$f":"'DATOS DEPORTISTAS'!M196","v":"ALBERTO CIRIA FERNÁNDEZ"},{"$f":"'DATOS DEPORTISTAS'!X196","v":0},{"$f":"'DATOS DEPORTISTAS'!Y196","v":0}]
[{"$f":"'DATOS DEPORTISTAS'!V197","v":"OS NABATERS D.F."},{"$f":"'DATOS DEPORTISTAS'!M197","v":"ALICIA PILAR ESTEVAN EIXARCH"},{"$f":"'DATOS DEPORTISTAS'!X197","v":0},{"$f":"'DATOS DEPORTISTAS'!Y197","v":0}]
[{"$f":"'DATOS DEPORTISTAS'!V198","v":"OS NABATERS D.F."},{"$f":"'DATOS DEPORTISTAS'!M198","v":"MANUEL FERNÁNDEZ MUNARRIZ"},{"$f":"'DATOS DEPORTISTAS'!X198","v":0},{"$f":"'DATOS DEPORTISTAS'!Y198","v":0}]
[{"$f":"'DATOS DEPORTISTAS'!V199","v":"OS NABATERS D.F."},{"$f":"'DATOS DEPORTISTAS'!M199","v":"SERGIO AURED ANTÓN"},{"$f":"'DATOS DEPORTISTAS'!X199","v":0},{"$f":"'DATOS DEPORTISTAS'!Y199","v":0}]
[{"$f":"'DATOS DEPORTISTAS'!V200","v":"OS NABATERS D.F."},{"$f":"'DATOS DEPORTISTAS'!M200","v":"DAVID OLMO NADAL"},{"$f":"'DATOS DEPORTISTAS'!X200","v":0},{"$f":"'DATOS DEPORTISTAS'!Y200","v":0}]
[{"$f":"'DATOS DEPORTISTAS'!V201","v":"OS NABATERS D.F."},{"$f":"'DATOS DEPORTISTAS'!M201","v":"SIENA GIMENO BACHILLER"},{"$f":"'DATOS DEPORTISTAS'!X201","v":0},{"$f":"'DATOS DEPORTISTAS'!Y201","v":0}]
[{"$f":"'DATOS DEPORTISTAS'!V202","v":"OS NABATERS D.F."},{"$f":"'DATOS DEPORTISTAS'!M202","v":"ALEJANDRO DUCE CASCANTE"},{"$f":"'DATOS DEPORTISTAS'!X202","v":0},{"$f":"'DATOS DEPORTISTAS'!Y202","v":0}]
[{"$f":"'DATOS DEPORTISTAS'!V203","v":"OS NABATERS D.F."},{"$f":"'DATOS DEPORTISTAS'!M203","v":"RAQUEL HERNÁNDEZ ROYO"},{"$f":"'DATOS DEPORTISTAS'!X203","v":0},{"$f":"'DATOS DEPORTISTAS'!Y203","v":0}]
[{"$f":"'DATOS DEPORTISTAS'!V204","v":"OS NABATERS D.F."},{"$f":"'DATOS DEPORTISTAS'!M204","v":"SANTIAGO LAVILLA TENÍAS"},{"$f":"'DATOS DEPORTISTAS'!X204","v":0},{"$f":"'DATOS DEPORTISTAS'!Y204","v":0}]
[{"$f":"'DATOS DEPORTISTAS'!V205","v":"OS NABATERS D.F."},{"$f":"'DATOS DEPORTISTAS'!M205","v":"JOSÉ LUIS HERNÁNDEZ PASCUAL"},{"$f":"'DATOS DEPORTISTAS'!X205","v":0},{"$f":"'DATOS DEPORTISTAS'!Y205","v":0}]
[{"$f":"'DATOS DEPORTISTAS'!V206","v":"OS NABATERS D.F."},{"$f":"'DATOS DEPORTISTAS'!M206","v":"RUBÉN SORIA GARCÍA"},{"$f":"'DATOS DEPORTISTAS'!X206","v":0},{"$f":"'DATOS DEPORTISTAS'!Y206","v":0}]
[{"$f":"'DATOS DEPORTISTAS'!V207","v":"OS NABATERS D.F."},{"$f":"'DATOS DEPORTISTAS'!M207","v":"CELIA PEÑA ROMERO DE TEJADA"},{"$f":"'DATOS DEPORTISTAS'!X207","v":0},{"$f":"'DATOS DEPORTISTAS'!Y207","v":0}]
[{"$f":"'DATOS DEPORTISTAS'!V208","v":"OS NABATERS D.F."},{"$f":"'DATOS DEPORTISTAS'!M208","v":"ANDREA HERNANDO FERRER"},{"$f":"'DATOS DEPORTISTAS'!X208","v":0},{"$f":"'DATOS DEPORTISTAS'!Y208","v":0}]
[{"$f":"'DATOS DEPORTISTAS'!V209","v":"OS NABATERS D.F."},{"$f":"'DATOS DEPORTISTAS'!M209","v":"RAQUEL DE MIGUEL GRACIA"},{"$f":"'DATOS DEPORTISTAS'!X209","v":0},{"$f":"'DATOS DEPORTISTAS'!Y209","v":0}]
[{"$f":"'DATOS DEPORTISTAS'!V210","v":"OS NABATERS D.F."},{"$f":"'DATOS DEPORTISTAS'!M210","v":"MERCEDES GIMÉNEZ HERRERO"},{"$f":"'DATOS DEPORTISTAS'!X210","v":0},{"$f":"'DATOS DEPORTISTAS'!Y210","v":0}]
[{"$f":"'DATOS DEPORTISTAS'!V211","v":"OS NABATERS D.F."},{"$f":"'DATOS DEPORTISTAS'!M211","v":"JOSÉ LUIS ARBUES ANDRES"},{"$f":"'DATOS DEPORTISTAS'!X211","v":0},{"$f":"'DATOS DEPORTISTAS'!Y211","v":0}]
[{"$f":"'DATOS DEPORTISTAS'!V212","v":"OS NABATERS D.F."},{"$f":"'DATOS DEPORTISTAS'!M212","v":"CARMEN GÓMEZ RUBIO"},{"$f":"'DATOS DEPORTISTAS'!X212","v":0},{"$f":"'DATOS DEPORTISTAS'!Y212","v":0}]
[{"$f":"'DATOS DEPORTISTAS'!V213","v":"OS NABATERS D.F."},{"$f":"'DATOS DEPORTISTAS'!M213","v":"JOSÉ CARMELO RICO MORENO"},{"$f":"'DATOS DEPORTISTAS'!X213","v":0},{"$f":"'DATOS DEPORTISTAS'!Y213","v":0}]
[{"$f":"'DATOS DEPORTISTAS'!V214","v":"OS NABATERS D.F."},{"$f":"'DATOS DEPORTISTAS'!M214","v":"RAUL BURGUETE URIOL"},{"$f":"'DATOS DEPORTISTAS'!X214","v":0},{"$f":"'DATOS DEPORTISTAS'!Y214","v":1}]
[{"$f":"'DATOS DEPORTISTAS'!V215","v":"OS NABATERS D.F."},{"$f":"'DATOS DEPORTISTAS'!M215","v":"LAURA CHOMALI"},{"$f":"'DATOS DEPORTISTAS'!X215","v":0},{"$f":"'DATOS DEPORTISTAS'!Y215","v":0}]
[{"$f":"'DATOS DEPORTISTAS'!V216","v":"OS NABATERS D.F."},{"$f":"'DATOS DEPORTISTAS'!M216","v":"ALEJANDRO VILLACAMPA RÍOS"},{"$f":"'DATOS DEPORTISTAS'!X216","v":0},{"$f":"'DATOS DEPORTISTAS'!Y216","v":0}]
[{"$f":"'DATOS DEPORTISTAS'!V217","v":0},{"$f":"'DATOS DEPORTISTAS'!M217","v":0},{"$f":"'DATOS DEPORTISTAS'!X217","v":0},{"$f":"'DATOS DEPORTISTAS'!Y217","v":0}]
[{"$f":"'DATOS DEPORTISTAS'!V218","v":0},{"$f":"'DATOS DEPORTISTAS'!M218","v":0},{"$f":"'DATOS DEPORTISTAS'!X218","v":0},{"$f":"'DATOS DEPORTISTAS'!Y218","v":0}]
[{"$f":"'DATOS DEPORTISTAS'!V219","v":0},{"$f":"'DATOS DEPORTISTAS'!M219","v":0},{"$f":"'DATOS DEPORTISTAS'!X219","v":0},{"$f":"'DATOS DEPORTISTAS'!Y219","v":0}]
[{"$f":"'DATOS DEPORTISTAS'!V227","v":0},{"$f":"'DATOS DEPORTISTAS'!M227","v":0},{"$f":"'DATOS DEPORTISTAS'!X227","v":0},{"$f":"'DATOS DEPORTISTAS'!Y227","v":0}]
[{"$f":"'DATOS DEPORTISTAS'!V228","v":0},{"$f":"'DATOS DEPORTISTAS'!M228","v":0},{"$f":"'DATOS DEPORTISTAS'!X228","v":0},{"$f":"'DATOS DEPORTISTAS'!Y228","v":0}]
[{"$f":"'DATOS DEPORTISTAS'!V229","v":0},{"$f":"'DATOS DEPORTISTAS'!M229","v":0},{"$f":"'DATOS DEPORTISTAS'!X229","v":0},{"$f":"'DATOS DEPORTISTAS'!Y229","v":0}]
[{"$f":"'DATOS DEPORTISTAS'!V230","v":0},{"$f":"'DATOS DEPORTISTAS'!M230","v":0},{"$f":"'DATOS DEPORTISTAS'!X230","v":0},{"$f":"'DATOS DEPORTISTAS'!Y230","v":0}]
[{"$f":"'DATOS DEPORTISTAS'!V231","v":0},{"$f":"'DATOS DEPORTISTAS'!M231","v":0},{"$f":"'DATOS DEPORTISTAS'!X231","v":0},{"$f":"'DATOS DEPORTISTAS'!Y231","v":0}]
[{"$f":"'DATOS DEPORTISTAS'!V232","v":0},{"$f":"'DATOS DEPORTISTAS'!M232","v":0},{"$f":"'DATOS DEPORTISTAS'!X232","v":0},{"$f":"'DATOS DEPORTISTAS'!Y232","v":0}]
[{"$f":"'DATOS DEPORTISTAS'!V233","v":0},{"$f":"'DATOS DEPORTISTAS'!M233","v":0},{"$f":"'DATOS DEPORTISTAS'!X233","v":0},{"$f":"'DATOS DEPORTISTAS'!Y233","v":0}]
[{"$f":"'DATOS DEPORTISTAS'!V234","v":0},{"$f":"'DATOS DEPORTISTAS'!M234","v":0},{"$f":"'DATOS DEPORTISTAS'!X234","v":0},{"$f":"'DATOS DEPORTISTAS'!Y234","v":0}]
[{"$f":"'DATOS DEPORTISTAS'!V235","v":0},{"$f":"'DATOS DEPORTISTAS'!M235","v":0},{"$f":"'DATOS DEPORTISTAS'!X235","v":0},{"$f":"'DATOS DEPORTISTAS'!Y235","v":0}]
[{"$f":"'DATOS DEPORTISTAS'!V236","v":0},{"$f":"'DATOS DEPORTISTAS'!M236","v":0},{"$f":"'DATOS DEPORTISTAS'!X236","v":0},{"$f":"'DATOS DEPORTISTAS'!Y236","v":0}]
[{"$f":"'DATOS DEPORTISTAS'!V237","v":0},{"$f":"'DATOS DEPORTISTAS'!M237","v":0},{"$f":"'DATOS DEPORTISTAS'!X237","v":0},{"$f":"'DATOS DEPORTISTAS'!Y237","v":0}]
[{"$f":"'DATOS DEPORTISTAS'!V238","v":0},{"$f":"'DATOS DEPORTISTAS'!M238","v":0},{"$f":"'DATOS DEPORTISTAS'!X238","v":0},{"$f":"'DATOS DEPORTISTAS'!Y238","v":0}]
[{"$f":"'DATOS DEPORTISTAS'!V239","v":0},{"$f":"'DATOS DEPORTISTAS'!M239","v":0},{"$f":"'DATOS DEPORTISTAS'!X239","v":0},{"$f":"'DATOS DEPORTISTAS'!Y239","v":0}]
[{"$f":"'DATOS DEPORTISTAS'!V240","v":0},{"$f":"'DATOS DEPORTISTAS'!M240","v":0},{"$f":"'DATOS DEPORTISTAS'!X240","v":0},{"$f":"'DATOS DEPORTISTAS'!Y240","v":0}]
[{"$f":"'DATOS DEPORTISTAS'!V241","v":0},{"$f":"'DATOS DEPORTISTAS'!M241","v":0},{"$f":"'DATOS DEPORTISTAS'!X241","v":0},{"$f":"'DATOS DEPORTISTAS'!Y241","v":0}]
[{"$f":"'DATOS DEPORTISTAS'!V242","v":0},{"$f":"'DATOS DEPORTISTAS'!M242","v":0},{"$f":"'DATOS DEPORTISTAS'!X242","v":0},{"$f":"'DATOS DEPORTISTAS'!Y242","v":0}]
[{"$f":"'DATOS DEPORTISTAS'!V243","v":0},{"$f":"'DATOS DEPORTISTAS'!M243","v":0},{"$f":"'DATOS DEPORTISTAS'!X243","v":0},{"$f":"'DATOS DEPORTISTAS'!Y243","v":0}]
[{"$f":"'DATOS DEPORTISTAS'!V244","v":0},{"$f":"'DATOS DEPORTISTAS'!M244","v":0},{"$f":"'DATOS DEPORTISTAS'!X244","v":0},{"$f":"'DATOS DEPORTISTAS'!Y244","v":0}]
[{"$f":"'DATOS DEPORTISTAS'!V245","v":0},{"$f":"'DATOS DEPORTISTAS'!M245","v":0},{"$f":"'DATOS DEPORTISTAS'!X245","v":0},{"$f":"'DATOS DEPORTISTAS'!Y245","v":0}]
[{"$f":"'DATOS DEPORTISTAS'!V246","v":0},{"$f":"'DATOS DEPORTISTAS'!M246","v":0},{"$f":"'DATOS DEPORTISTAS'!X246","v":0},{"$f":"'DATOS DEPORTISTAS'!Y246","v":0}]
[{"$f":"'DATOS DEPORTISTAS'!V247","v":0},{"$f":"'DATOS DEPORTISTAS'!M247","v":0},{"$f":"'DATOS DEPORTISTAS'!X247","v":0},{"$f":"'DATOS DEPORTISTAS'!Y247","v":0}]
[{"$f":"'DATOS DEPORTISTAS'!V248","v":0},{"$f":"'DATOS DEPORTISTAS'!M248","v":0},{"$f":"'DATOS DEPORTISTAS'!X248","v":0},{"$f":"'DATOS DEPORTISTAS'!Y248","v":0}]
[{"$f":"'DATOS DEPORTISTAS'!V249","v":0},{"$f":"'DATOS DEPORTISTAS'!M249","v":0},{"$f":"'DATOS DEPORTISTAS'!X249","v":0},{"$f":"'DATOS DEPORTISTAS'!Y249","v":0}]
[{"$f":"'DATOS DEPORTISTAS'!V250","v":0},{"$f":"'DATOS DEPORTISTAS'!M250","v":0},{"$f":"'DATOS DEPORTISTAS'!X250","v":0},{"$f":"'DATOS DEPORTISTAS'!Y250","v":0}]
[{"$f":"'DATOS DEPORTISTAS'!V251","v":0},{"$f":"'DATOS DEPORTISTAS'!M251","v":0},{"$f":"'DATOS DEPORTISTAS'!X251","v":0},{"$f":"'DATOS DEPORTISTAS'!Y251","v":0}]
[{"$f":"'DATOS DEPORTISTAS'!V252","v":0},{"$f":"'DATOS DEPORTISTAS'!M252","v":0},{"$f":"'DATOS DEPORTISTAS'!X252","v":0},{"$f":"'DATOS DEPORTISTAS'!Y252","v":0}]
[{"$f":"'DATOS DEPORTISTAS'!V253","v":0},{"$f":"'DATOS DEPORTISTAS'!M253","v":0},{"$f":"'DATOS DEPORTISTAS'!X253","v":0},{"$f":"'DATOS DEPORTISTAS'!Y253","v":0}]
[{"$f":"'DATOS DEPORTISTAS'!V254","v":0},{"$f":"'DATOS DEPORTISTAS'!M254","v":0},{"$f":"'DATOS DEPORTISTAS'!X254","v":0},{"$f":"'DATOS DEPORTISTAS'!Y254","v":0}]
[{"$f":"'DATOS DEPORTISTAS'!V255","v":0},{"$f":"'DATOS DEPORTISTAS'!M255","v":0},{"$f":"'DATOS DEPORTISTAS'!X255","v":0},{"$f":"'DATOS DEPORTISTAS'!Y255","v":0}]
[{"$f":"'DATOS DEPORTISTAS'!V256","v":0},{"$f":"'DATOS DEPORTISTAS'!M256","v":0},{"$f":"'DATOS DEPORTISTAS'!X256","v":0},{"$f":"'DATOS DEPORTISTAS'!Y256","v":0}]
[{"$f":"'DATOS DEPORTISTAS'!V257","v":0},{"$f":"'DATOS DEPORTISTAS'!M257","v":0},{"$f":"'DATOS DEPORTISTAS'!X257","v":0},{"$f":"'DATOS DEPORTISTAS'!Y257","v":0}]
[{"$f":"'DATOS DEPORTISTAS'!V258","v":0},{"$f":"'DATOS DEPORTISTAS'!M258","v":0},{"$f":"'DATOS DEPORTISTAS'!X258","v":0},{"$f":"'DATOS DEPORTISTAS'!Y258","v":0}]
[{"$f":"'DATOS DEPORTISTAS'!V259","v":0},{"$f":"'DATOS DEPORTISTAS'!M259","v":0},{"$f":"'DATOS DEPORTISTAS'!X259","v":0},{"$f":"'DATOS DEPORTISTAS'!Y259","v":0}]
[{"$f":"'DATOS DEPORTISTAS'!V260","v":0},{"$f":"'DATOS DEPORTISTAS'!M260","v":0},{"$f":"'DATOS DEPORTISTAS'!X260","v":0},{"$f":"'DATOS DEPORTISTAS'!Y260","v":0}]
[{"$f":"'DATOS DEPORTISTAS'!V261","v":0},{"$f":"'DATOS DEPORTISTAS'!M261","v":0},{"$f":"'DATOS DEPORTISTAS'!X261","v":0},{"$f":"'DATOS DEPORTISTAS'!Y261","v":0}]
[{"$f":"'DATOS DEPORTISTAS'!V262","v":0},{"$f":"'DATOS DEPORTISTAS'!M262","v":0},{"$f":"'DATOS DEPORTISTAS'!X262","v":0},{"$f":"'DATOS DEPORTISTAS'!Y262","v":0}]
[{"$f":"'DATOS DEPORTISTAS'!V263","v":0},{"$f":"'DATOS DEPORTISTAS'!M263","v":0},{"$f":"'DATOS DEPORTISTAS'!X263","v":0},{"$f":"'DATOS DEPORTISTAS'!Y263","v":0}]
[{"$f":"'DATOS DEPORTISTAS'!V264","v":0},{"$f":"'DATOS DEPORTISTAS'!M264","v":0},{"$f":"'DATOS DEPORTISTAS'!X264","v":0},{"$f":"'DATOS DEPORTISTAS'!Y264","v":0}]
[{"$f":"'DATOS DEPORTISTAS'!V265","v":0},{"$f":"'DATOS DEPORTISTAS'!M265","v":0},{"$f":"'DATOS DEPORTISTAS'!X265","v":0},{"$f":"'DATOS DEPORTISTAS'!Y265","v":0}]
[{"$f":"'DATOS DEPORTISTAS'!V266","v":0},{"$f":"'DATOS DEPORTISTAS'!M266","v":0},{"$f":"'DATOS DEPORTISTAS'!X266","v":0},{"$f":"'DATOS DEPORTISTAS'!Y266","v":0}]
[{"$f":"'DATOS DEPORTISTAS'!V267","v":0},{"$f":"'DATOS DEPORTISTAS'!M267","v":0},{"$f":"'DATOS DEPORTISTAS'!X267","v":0},{"$f":"'DATOS DEPORTISTAS'!Y267","v":0}]
[{"$f":"'DATOS DEPORTISTAS'!V268","v":0},{"$f":"'DATOS DEPORTISTAS'!M268","v":0},{"$f":"'DATOS DEPORTISTAS'!X268","v":0},{"$f":"'DATOS DEPORTISTAS'!Y268","v":0}]
[{"$f":"'DATOS DEPORTISTAS'!V269","v":0},{"$f":"'DATOS DEPORTISTAS'!M269","v":0},{"$f":"'DATOS DEPORTISTAS'!X269","v":0},{"$f":"'DATOS DEPORTISTAS'!Y269","v":0}]
[{"$f":"'DATOS DEPORTISTAS'!V270","v":0},{"$f":"'DATOS DEPORTISTAS'!M270","v":0},{"$f":"'DATOS DEPORTISTAS'!X270","v":0},{"$f":"'DATOS DEPORTISTAS'!Y270","v":0}]
[{"$f":"'DATOS DEPORTISTAS'!V271","v":0},{"$f":"'DATOS DEPORTISTAS'!M271","v":0},{"$f":"'DATOS DEPORTISTAS'!X271","v":0},{"$f":"'DATOS DEPORTISTAS'!Y271","v":0}]
[{"$f":"'DATOS DEPORTISTAS'!V272","v":0},{"$f":"'DATOS DEPORTISTAS'!M272","v":0},{"$f":"'DATOS DEPORTISTAS'!X272","v":0},{"$f":"'DATOS DEPORTISTAS'!Y272","v":0}]
[{"$f":"'DATOS DEPORTISTAS'!V273","v":0},{"$f":"'DATOS DEPORTISTAS'!M273","v":0},{"$f":"'DATOS DEPORTISTAS'!X273","v":0},{"$f":"'DATOS DEPORTISTAS'!Y273","v":0}]
[{"$f":"'DATOS DEPORTISTAS'!V274","v":0},{"$f":"'DATOS DEPORTISTAS'!M274","v":0},{"$f":"'DATOS DEPORTISTAS'!X274","v":0},{"$f":"'DATOS DEPORTISTAS'!Y274","v":0}]
[{"$f":"'DATOS DEPORTISTAS'!V275","v":0},{"$f":"'DATOS DEPORTISTAS'!M275","v":0},{"$f":"'DATOS DEPORTISTAS'!X275","v":0},{"$f":"'DATOS DEPORTISTAS'!Y275","v":0}]
[{"$f":"'DATOS DEPORTISTAS'!V276","v":0},{"$f":"'DATOS DEPORTISTAS'!M276","v":0},{"$f":"'DATOS DEPORTISTAS'!X276","v":0},{"$f":"'DATOS DEPORTISTAS'!Y276","v":0}]
[{"$f":"'DATOS DEPORTISTAS'!V277","v":0},{"$f":"'DATOS DEPORTISTAS'!M277","v":0},{"$f":"'DATOS DEPORTISTAS'!X277","v":0},{"$f":"'DATOS DEPORTISTAS'!Y277","v":0}]
[{"$f":"'DATOS DEPORTISTAS'!V278","v":0},{"$f":"'DATOS DEPORTISTAS'!M278","v":0},{"$f":"'DATOS DEPORTISTAS'!X278","v":0},{"$f":"'DATOS DEPORTISTAS'!Y278","v":0}]
[{"$f":"'DATOS DEPORTISTAS'!V279","v":0},{"$f":"'DATOS DEPORTISTAS'!M279","v":0},{"$f":"'DATOS DEPORTISTAS'!X279","v":0},{"$f":"'DATOS DEPORTISTAS'!Y279","v":0}]
[{"$f":"'DATOS DEPORTISTAS'!V280","v":0},{"$f":"'DATOS DEPORTISTAS'!M280","v":0},{"$f":"'DATOS DEPORTISTAS'!X280","v":0},{"$f":"'DATOS DEPORTISTAS'!Y280","v":0}]
[{"$f":"'DATOS DEPORTISTAS'!V281","v":0},{"$f":"'DATOS DEPORTISTAS'!M281","v":0},{"$f":"'DATOS DEPORTISTAS'!X281","v":0},{"$f":"'DATOS DEPORTISTAS'!Y281","v":0}]
[{"$f":"'DATOS DEPORTISTAS'!V282","v":0},{"$f":"'DATOS DEPORTISTAS'!M282","v":0},{"$f":"'DATOS DEPORTISTAS'!X282","v":0},{"$f":"'DATOS DEPORTISTAS'!Y282","v":0}]
[{"$f":"'DATOS DEPORTISTAS'!V283","v":0},{"$f":"'DATOS DEPORTISTAS'!M283","v":0},{"$f":"'DATOS DEPORTISTAS'!X283","v":0},{"$f":"'DATOS DEPORTISTAS'!Y283","v":0}]
[{"$f":"'DATOS DEPORTISTAS'!V284","v":0},{"$f":"'DATOS DEPORTISTAS'!M284","v":0},{"$f":"'DATOS DEPORTISTAS'!X284","v":0},{"$f":"'DATOS DEPORTISTAS'!Y284","v":0}]
[{"$f":"'DATOS DEPORTISTAS'!V285","v":0},{"$f":"'DATOS DEPORTISTAS'!M285","v":0},{"$f":"'DATOS DEPORTISTAS'!X285","v":0},{"$f":"'DATOS DEPORTISTAS'!Y285","v":0}]
[{"$f":"'DATOS DEPORTISTAS'!V286","v":0},{"$f":"'DATOS DEPORTISTAS'!M286","v":0},{"$f":"'DATOS DEPORTISTAS'!X286","v":0},{"$f":"'DATOS DEPORTISTAS'!Y286","v":0}]
[{"$f":"'DATOS DEPORTISTAS'!V287","v":0},{"$f":"'DATOS DEPORTISTAS'!M287","v":0},{"$f":"'DATOS DEPORTISTAS'!X287","v":0},{"$f":"'DATOS DEPORTISTAS'!Y287","v":0}]
[{"$f":"'DATOS DEPORTISTAS'!V288","v":0},{"$f":"'DATOS DEPORTISTAS'!M288","v":0},{"$f":"'DATOS DEPORTISTAS'!X288","v":0},{"$f":"'DATOS DEPORTISTAS'!Y288","v":0}]
[{"$f":"'DATOS DEPORTISTAS'!V289","v":0},{"$f":"'DATOS DEPORTISTAS'!M289","v":0},{"$f":"'DATOS DEPORTISTAS'!X289","v":0},{"$f":"'DATOS DEPORTISTAS'!Y289","v":0}]
[{"$f":"'DATOS DEPORTISTAS'!V290","v":0},{"$f":"'DATOS DEPORTISTAS'!M290","v":0},{"$f":"'DATOS DEPORTISTAS'!X290","v":0},{"$f":"'DATOS DEPORTISTAS'!Y290","v":0}]
[{"$f":"'DATOS DEPORTISTAS'!V291","v":0},{"$f":"'DATOS DEPORTISTAS'!M291","v":0},{"$f":"'DATOS DEPORTISTAS'!X291","v":0},{"$f":"'DATOS DEPORTISTAS'!Y291","v":0}]
[{"$f":"'DATOS DEPORTISTAS'!V292","v":0},{"$f":"'DATOS DEPORTISTAS'!M292","v":0},{"$f":"'DATOS DEPORTISTAS'!X292","v":0},{"$f":"'DATOS DEPORTISTAS'!Y292","v":0}]
[{"$f":"'DATOS DEPORTISTAS'!V293","v":0},{"$f":"'DATOS DEPORTISTAS'!M293","v":0},{"$f":"'DATOS DEPORTISTAS'!X293","v":0},{"$f":"'DATOS DEPORTISTAS'!Y293","v":0}]
[{"$f":"'DATOS DEPORTISTAS'!V294","v":0},{"$f":"'DATOS DEPORTISTAS'!M294","v":0},{"$f":"'DATOS DEPORTISTAS'!X294","v":0},{"$f":"'DATOS DEPORTISTAS'!Y294","v":0}]
[{"$f":"'DATOS DEPORTISTAS'!V295","v":0},{"$f":"'DATOS DEPORTISTAS'!M295","v":0},{"$f":"'DATOS DEPORTISTAS'!X295","v":0},{"$f":"'DATOS DEPORTISTAS'!Y295","v":0}]
[{"$f":"'DATOS DEPORTISTAS'!V296","v":0},{"$f":"'DATOS DEPORTISTAS'!M296","v":0},{"$f":"'DATOS DEPORTISTAS'!X296","v":0},{"$f":"'DATOS DEPORTISTAS'!Y296","v":0}]
[{"$f":"'DATOS DEPORTISTAS'!V297","v":0},{"$f":"'DATOS DEPORTISTAS'!M297","v":0},{"$f":"'DATOS DEPORTISTAS'!X297","v":0},{"$f":"'DATOS DEPORTISTAS'!Y297","v":0}]
[{"$f":"'DATOS DEPORTISTAS'!V298","v":0},{"$f":"'DATOS DEPORTISTAS'!M298","v":0},{"$f":"'DATOS DEPORTISTAS'!X298","v":0},{"$f":"'DATOS DEPORTISTAS'!Y298","v":0}]
[{"$f":"'DATOS DEPORTISTAS'!V299","v":0},{"$f":"'DATOS DEPORTISTAS'!M299","v":0},{"$f":"'DATOS DEPORTISTAS'!X299","v":0},{"$f":"'DATOS DEPORTISTAS'!Y299","v":0}]
[{"$f":"'DATOS DEPORTISTAS'!V300","v":0},{"$f":"'DATOS DEPORTISTAS'!M300","v":0},{"$f":"'DATOS DEPORTISTAS'!X300","v":0},{"$f":"'DATOS DEPORTISTAS'!Y300","v":0}]
[{"$f":"'DATOS DEPORTISTAS'!V301","v":0},{"$f":"'DATOS DEPORTISTAS'!M301","v":0},{"$f":"'DATOS DEPORTISTAS'!X301","v":0},{"$f":"'DATOS DEPORTISTAS'!Y301","v":0}]
[{"$f":"'DATOS DEPORTISTAS'!V302","v":0},{"$f":"'DATOS DEPORTISTAS'!M302","v":0},{"$f":"'DATOS DEPORTISTAS'!X302","v":0},{"$f":"'DATOS DEPORTISTAS'!Y302","v":0}]
[{"$f":"'DATOS DEPORTISTAS'!V303","v":0},{"$f":"'DATOS DEPORTISTAS'!M303","v":0},{"$f":"'DATOS DEPORTISTAS'!X303","v":0},{"$f":"'DATOS DEPORTISTAS'!Y303","v":0}]
[{"$f":"'DATOS DEPORTISTAS'!V304","v":0},{"$f":"'DATOS DEPORTISTAS'!M304","v":0},{"$f":"'DATOS DEPORTISTAS'!X304","v":0},{"$f":"'DATOS DEPORTISTAS'!Y304","v":0}]
[{"$f":"'DATOS DEPORTISTAS'!V305","v":0},{"$f":"'DATOS DEPORTISTAS'!M305","v":0},{"$f":"'DATOS DEPORTISTAS'!X305","v":0},{"$f":"'DATOS DEPORTISTAS'!Y305","v":0}]
[{"$f":"'DATOS DEPORTISTAS'!V306","v":0},{"$f":"'DATOS DEPORTISTAS'!M306","v":0},{"$f":"'DATOS DEPORTISTAS'!X306","v":0},{"$f":"'DATOS DEPORTISTAS'!Y306","v":0}]
[{"$f":"'DATOS DEPORTISTAS'!V307","v":0},{"$f":"'DATOS DEPORTISTAS'!M307","v":0},{"$f":"'DATOS DEPORTISTAS'!X307","v":0},{"$f":"'DATOS DEPORTISTAS'!Y307","v":0}]
[null,null,{"$f":"'DATOS DEPORTISTAS'!X308","v":0},{"$f":"'DATOS DEPORTISTAS'!Y308","v":0}]

{"sheet":"CENTRO NATACION HELIOS","index":9,"n_rows":492,"n_cols":34,"rows_kept":492,"cut":false,"hidden":true,"merged":[]}
[null,"CLUB","CAT.","NOMBRE COMPLETO"]
[null,{"$f":"'DATOS DEPORTISTAS'!V4","v":"F.A.R."},{"$f":"'DATOS DEPORTISTAS'!I4","v":"VETERANO"},{"$f":"'DATOS DEPORTISTAS'!M4","v":"MARCOS GÓMEZ RODRÍGUEZ"},null,null,"CLUB",null,"CATEGORIA"]
[null,{"$f":"'DATOS DEPORTISTAS'!V5","v":"F.A.R."},{"$f":"'DATOS DEPORTISTAS'!I5","v":"VETERANO"},{"$f":"'DATOS DEPORTISTAS'!M5","v":"DANIEL CASORRÁN ROYO"},null,null,{"$f":"_xlfn._xlws.SORT(_xlfn.UNIQUE(Tabla12[CLUB]))","v":0},null,{"$f":"_xlfn._xlws.SORT(_xlfn.UNIQUE(Tabla12[CAT.]))","v":0}]
[null,{"$f":"'DATOS DEPORTISTAS'!V6","v":"F.A.R."},{"$f":"'DATOS DEPORTISTAS'!I6","v":"VETERANO"},{"$f":"'DATOS DEPORTISTAS'!M6","v":"PEDRO JAVIER MORALES ALCUBIERRE"},null,null,"ARAGÓN REMO",null,"ALEVIN"]
[null,{"$f":"'DATOS DEPORTISTAS'!V7","v":"F.A.R."},{"$f":"'DATOS DEPORTISTAS'!I7","v":"VETERANO"},{"$f":"'DATOS DEPORTISTAS'!M7","v":"JOSÉ JAVIER GONZÁLEZ-ARCE LABORDA"},null,null,"CAPRI MEQUINENZA",null,"BENJAMIN"]
[null,{"$f":"'DATOS DEPORTISTAS'!V8","v":"F.A.R."},{"$f":"'DATOS DEPORTISTAS'!I8","v":"VETERANO"},{"$f":"'DATOS DEPORTISTAS'!M8","v":"BEATRIZ CASTELLÓ AYED"},null,null,"CENTRO NATACION HELIOS",null,"CADETE"]
[null,{"$f":"'DATOS DEPORTISTAS'!V9","v":"F.A.R."},{"$f":"'DATOS DEPORTISTAS'!I9","v":"VETERANO"},{"$f":"'DATOS DEPORTISTAS'!M9","v":"JOSÉ MIGUEL LLOP ROCA"},null,null,"F.A.R.",null,"INFANTIL"]
[null,{"$f":"'DATOS DEPORTISTAS'!V10","v":"F.A.R."},{"$f":"'DATOS DEPORTISTAS'!I10","v":"VETERANO"},{"$f":"'DATOS DEPORTISTAS'!M10","v":"JESÚS MANUEL LLOP MONTULL"},null,null,"NÁUTICO ZARAGOZA",null,"JUVENIL"]
[null,{"$f":"'DATOS DEPORTISTAS'!V11","v":"F.A.R."},{"$f":"'DATOS DEPORTISTAS'!I11","v":"VETERANO"},{"$f":"'DATOS DEPORTISTAS'!M11","v":"EMILIO ANASTASIO CILLEROS BLÁZQUEZ"},null,null,"OS NABATERS D.F.",null,"SENIOR"]
[null,{"$f":"'DATOS DEPORTISTAS'!V12","v":"F.A.R."},{"$f":"'DATOS DEPORTISTAS'!I12","v":"SENIOR"},{"$f":"'DATOS DEPORTISTAS'!M12","v":"ÍÑIGO MIGUEL ZAPATA LARROY"},null,null,null,null,"VETERANO"]
[null,{"$f":"'DATOS DEPORTISTAS'!V13","v":"CAPRI MEQUINENZA"},{"$f":"'DATOS DEPORTISTAS'!I13","v":"CADETE"},{"$f":"'DATOS DEPORTISTAS'!M13","v":"ALBA CUCHÍ NIUBÓ"}]
[null,{"$f":"'DATOS DEPORTISTAS'!V14","v":"CAPRI MEQUINENZA"},{"$f":"'DATOS DEPORTISTAS'!I14","v":"INFANTIL"},{"$f":"'DATOS DEPORTISTAS'!M14","v":"ALBA MARTÍNEZ CLAVERO"}]
[null,{"$f":"'DATOS DEPORTISTAS'!V15","v":"CAPRI MEQUINENZA"},{"$f":"'DATOS DEPORTISTAS'!I15","v":"ALEVIN"},{"$f":"'DATOS DEPORTISTAS'!M15","v":"ALICIA LLOP RUEDA"}]
[null,{"$f":"'DATOS DEPORTISTAS'!V16","v":"CAPRI MEQUINENZA"},{"$f":"'DATOS DEPORTISTAS'!I16","v":"SENIOR"},{"$f":"'DATOS DEPORTISTAS'!M16","v":"GISELA HIERRO GARCÍA"},null,null,null,"CLUB","CATEGORIA",null,"CLUB","CATEGORIA",null,null,"CLUB","CATEGORIA",null,null,"CLUB","CATEGORIA",null,null,"CLUB","CATEGORIA",null,null,"CLUB","CATEGORIA",null,null,null,"CLUB","CATEGORIA"]
[null,{"$f":"'DATOS DEPORTISTAS'!V17","v":"CAPRI MEQUINENZA"},{"$f":"'DATOS DEPORTISTAS'!I17","v":"ALEVIN"},{"$f":"'DATOS DEPORTISTAS'!M17","v":"MARÍA AGUILAR ROMERO"},null,null,null,"CENTRO NATACION HELIOS","VETERANO",null,"CENTRO NATACION HELIOS","SENIOR",null,null,"CENTRO NATACION HELIOS","JUVENIL",null,null,"CENTRO NATACION HELIOS","CADETE",null,null,"CENTRO NATACION HELIOS","INFANTIL",null,null,"CENTRO NATACION HELIOS","ALEVIN",null,null,null,"CENTRO NATACION HELIOS","BENJAMIN"]
[null,{"$f":"'DATOS DEPORTISTAS'!V18","v":"CAPRI MEQUINENZA"},{"$f":"'DATOS DEPORTISTAS'!I18","v":"BENJAMIN"},{"$f":"'DATOS DEPORTISTAS'!M18","v":"MAX GUARDIOLA LOPERA"}]
[null,{"$f":"'DATOS DEPORTISTAS'!V19","v":"CAPRI MEQUINENZA"},{"$f":"'DATOS DEPORTISTAS'!I19","v":"BENJAMIN"},{"$f":"'DATOS DEPORTISTAS'!M19","v":"PAULA CUCHÍ NIUBÓ"}]
[null,{"$f":"'DATOS DEPORTISTAS'!V20","v":"CAPRI MEQUINENZA"},{"$f":"'DATOS DEPORTISTAS'!I20","v":"JUVENIL"},{"$f":"'DATOS DEPORTISTAS'!M20","v":"PAULO GUIMERÁ JANIK"},null,null,"CLUB","CAT.","NOMBRE COMPLETO",null,"CLUB","CAT.","NOMBRE COMPLETO",null,"CLUB","CAT.","NOMBRE COMPLETO",null,"CLUB","CAT.","NOMBRE COMPLETO",null,"CLUB","CAT.","NOMBRE COMPLETO",null,"CLUB","CAT.","NOMBRE COMPLETO",null,null,"CLUB","CAT.","NOMBRE COMPLETO"]
[null,{"$f":"'DATOS DEPORTISTAS'!V21","v":"CAPRI MEQUINENZA"},{"$f":"'DATOS DEPORTISTAS'!I21","v":"JUVENIL"},{"$f":"'DATOS DEPORTISTAS'!M21","v":"YERAY MARTÍNEZ CLAVERO"},null,null,{"$f":"_xlfn._xlws.SORT(_xlfn._xlws.FILTER(FILTRADO,(Tabla12[CLUB]=H15)*(Tabla12[CAT.]=I15)),3,1)","v":"CENTRO NATACION HELIOS"},"VETERANO","ALFONSO MUNIESA FERRERO",null,{"$f":"_xlfn._xlws.SORT(_xlfn._xlws.FILTER(FILTRADO,(Tabla12[CLUB]=K15)*(Tabla12[CAT.]=L15)),3,1)","v":"CENTRO NATACION HELIOS"},"SENIOR","ALEXANDER JURADO PÉREZ",null,{"$f":"_xlfn._xlws.SORT(_xlfn._xlws.FILTER(FILTRADO,(Tabla12[CLUB]=O15)*(Tabla12[CAT.]=P15)),3,1)","v":"CENTRO NATACION HELIOS"},"JUVENIL","ÁNGEL PERNÍA OYAGA",null,{"$f":"_xlfn._xlws.SORT(_xlfn._xlws.FILTER(FILTRADO,(Tabla12[CLUB]=S15)*(Tabla12[CAT.]=T15)),3,1)","v":"CENTRO NATACION HELIOS"},"CADETE","ERIC CAZADOR SERRANO",null,{"$f":"_xlfn._xlws.SORT(_xlfn._xlws.FILTER(FILTRADO,(Tabla12[CLUB]=W15)*(Tabla12[CAT.]=X15)),3,1)","v":"CENTRO NATACION HELIOS"},"INFANTIL","ALICIA LUNA MONTAGUD",null,{"$f":"_xlfn._xlws.SORT(_xlfn._xlws.FILTER(FILTRADO,(Tabla12[CLUB]=AA15)*(Tabla12[CAT.]=AB15)),3,1)","v":"CENTRO NATACION HELIOS"},"ALEVIN","ADELA RELANCIO PASTOR",null,null,{"$f":"_xlfn._xlws.SORT(_xlfn._xlws.FILTER(FILTRADO,(Tabla12[CLUB]=AF15)*(Tabla12[CAT.]=AG15)),3,1)","v":"CENTRO NATACION HELIOS"},"BENJAMIN","ÁNGEL ROYO LAVILLA"]
[null,{"$f":"'DATOS DEPORTISTAS'!V22","v":"ARAGÓN REMO"},{"$f":"'DATOS DEPORTISTAS'!I22","v":"VETERANO"},{"$f":"'DATOS DEPORTISTAS'!M22","v":"CARLOS MILLÁN BLASCO"},null,null,"CENTRO NATACION HELIOS","VETERANO","ALFREDO DIEZ SECO",null,"CENTRO NATACION HELIOS","SENIOR","CLAUDIA MARTÍN GONZÁLEZ",null,"CENTRO NATACION HELIOS","JUVENIL","CHLOÉ MILLÁN GÓMEZ",null,"CENTRO NATACION HELIOS","CADETE","GERMÁN VILLORO ANGLÉS",null,"CENTRO NATACION HELIOS","INFANTIL","LUCÍA MONTANER ALFARO",null,"CENTRO NATACION HELIOS","ALEVIN","ALMA RELANCIO PASTOR",null,null,"CENTRO NATACION HELIOS","BENJAMIN","JIMENA ESPADA CIPRÉS"]
[null,{"$f":"'DATOS DEPORTISTAS'!V23","v":"ARAGÓN REMO"},{"$f":"'DATOS DEPORTISTAS'!I23","v":"VETERANO"},{"$f":"'DATOS DEPORTISTAS'!M23","v":"DAVID SAN JOSÉ SANTAMARÍA"},null,null,"CENTRO NATACION HELIOS","VETERANO","ANDRÉS BLANCO VELÁZQUEZ",null,"CENTRO NATACION HELIOS","SENIOR","DANIEL BELLO ALVAREZ",null,"CENTRO NATACION HELIOS","JUVENIL","DIEGO JIMÉNEZ HORNOS",null,"CENTRO NATACION HELIOS","CADETE","GUILLERMO GUTIÉRREZ ANDOLZ",null,"CENTRO NATACION HELIOS","INFANTIL","LUIS LARROSA GIL",null,"CENTRO NATACION HELIOS","ALEVIN","ÁNGELA RELANCIO PASTOR",null,null,"CENTRO NATACION HELIOS","BENJAMIN","LUIS BUEY DE SACADURA"]
[null,{"$f":"'DATOS DEPORTISTAS'!V24","v":"ARAGÓN REMO"},{"$f":"'DATOS DEPORTISTAS'!I24","v":"VETERANO"},{"$f":"'DATOS DEPORTISTAS'!M24","v":"JOSÉ MANUEL LABARTA PINILLA"},null,null,"CENTRO NATACION HELIOS","VETERANO","CARLOS MELGARES HIDALGO",null,"CENTRO NATACION HELIOS","SENIOR","FRANCISCO DE ASÍS LACRUZ SANZ",null,"CENTRO NATACION HELIOS","JUVENIL","FERNANDO MARTÍN RANERA",null,"CENTRO NATACION HELIOS","CADETE","JAVIER REMACHA PUSCO",null,"CENTRO NATACION HELIOS","INFANTIL","VALENTINA ESPADA CIPRÉS",null,"CENTRO NATACION HELIOS","ALEVIN","EDUARDO GUTIÉRREZ ANDOLZ",null,null,"CENTRO NATACION HELIOS","BENJAMIN","VICTOR JUANA GALVEZ"]
[null,{"$f":"'DATOS DEPORTISTAS'!V25","v":"CAPRI MEQUINENZA"},{"$f":"'DATOS DEPORTISTAS'!I25","v":"CADETE"},{"$f":"'DATOS DEPORTISTAS'!M25","v":"ABRIL GONZÁLEZ GARCÍA"},null,null,"CENTRO NATACION HELIOS","VETERANO","CRISTINA DIEZ SECO",null,"CENTRO NATACION HELIOS","SENIOR","GONZALO ARTURO SOTOMAYOR MORA",null,"CENTRO NATACION HELIOS","JUVENIL","IKER ALONSO ROCHE",null,"CENTRO NATACION HELIOS","CADETE","JOAQUÍN JESÚS SORO FUENTES",null,null,null,null,null,"CENTRO NATACION HELIOS","ALEVIN","UDAY CAZADOR SERRANO"]
[null,{"$f":"'DATOS DEPORTISTAS'!V26","v":"CAPRI MEQUINENZA"},{"$f":"'DATOS DEPORTISTAS'!I26","v":"JUVENIL"},{"$f":"'DATOS DEPORTISTAS'!M26","v":"IRATXE IBARZ BERENGUER"},null,null,"CENTRO NATACION HELIOS","VETERANO","EMILIO ANASTASIO CILLEROS BLÁZQUEZ",null,"CENTRO NATACION HELIOS","SENIOR","LEIRE PÉREZ DE ACHA",null,"CENTRO NATACION HELIOS","JUVENIL","IREK CABELLO PIETRZAK",null,"CENTRO NATACION HELIOS","CADETE","MARÍA ADELINA MARTISCA SUSANU",null,null,null,null,null,"CENTRO NATACION HELIOS","ALEVIN","VÍCTOR LENNIKOV IGLESIAS"]
[null,{"$f":"'DATOS DEPORTISTAS'!V27","v":"CAPRI MEQUINENZA"},{"$f":"'DATOS DEPORTISTAS'!I27","v":"ALEVIN"},{"$f":"'DATOS DEPORTISTAS'!M27","v":"ALEJANDRO CANTERO ANDRÉS"},null,null,"CENTRO NATACION HELIOS","VETERANO","ESMERALDA AGUAS GARCÍA",null,"CENTRO NATACION HELIOS","SENIOR","MARÍA ROMEO VICENTE",null,"CENTRO NATACION HELIOS","JUVENIL","IRENE ICHASO CEBADERO",null,"CENTRO NATACION HELIOS","CADETE","MARTÍN MILLÁN GÓMEZ"]
[null,{"$f":"'DATOS DEPORTISTAS'!V28","v":"CAPRI MEQUINENZA"},{"$f":"'DATOS DEPORTISTAS'!I28","v":"CADETE"},{"$f":"'DATOS DEPORTISTAS'!M28","v":"IRENE BRUNA PALAU"},null,null,"CENTRO NATACION HELIOS","VETERANO","EVA MARÍA ANGLÉS BEL",null,"CENTRO NATACION HELIOS","SENIOR","PABLO BRIZ ZAMORANO",null,"CENTRO NATACION HELIOS","JUVENIL","JOSÉ MANUEL FAÑA GRIÑÓN",null,"CENTRO NATACION HELIOS","CADETE","MATILDE ESTRELLA RELANCIO PASTOR"]
[null,{"$f":"'DATOS DEPORTISTAS'!V29","v":"CAPRI MEQUINENZA"},{"$f":"'DATOS DEPORTISTAS'!I29","v":"CADETE"},{"$f":"'DATOS DEPORTISTAS'!M29","v":"MARÍA ARROYO CABALLÉ"},null,null,"CENTRO NATACION HELIOS","VETERANO","GREGORIO PRADAS QUERO",null,"CENTRO NATACION HELIOS","SENIOR","PEDRO DIEZ GARCÍA",null,"CENTRO NATACION HELIOS","JUVENIL","MANUEL GIRONÉS BENAVENTE",null,"CENTRO NATACION HELIOS","CADETE","PABLO VLADIMIR IBAÑEZ VALERO"]
[null,{"$f":"'DATOS DEPORTISTAS'!V30","v":"CAPRI MEQUINENZA"},{"$f":"'DATOS DEPORTISTAS'!I30","v":"ALEVIN"},{"$f":"'DATOS DEPORTISTAS'!M30","v":"ÁLEX CATALÁN MOYA"},null,null,"CENTRO NATACION HELIOS","VETERANO","IVÁN LATAS JIMÉNEZ",null,"CENTRO NATACION HELIOS","SENIOR","PILAR MARCÉN GUTIÉRREZ",null,"CENTRO NATACION HELIOS","JUVENIL","MARCO MELÉNDEZ DEL PICO",null,"CENTRO NATACION HELIOS","CADETE","SOFÍA MONTANER ALFARO"]
[null,{"$f":"'DATOS DEPORTISTAS'!V31","v":"CAPRI MEQUINENZA"},{"$f":"'DATOS DEPORTISTAS'!I31","v":"CADETE"},{"$f":"'DATOS DEPORTISTAS'!M31","v":"AROA CASTELLÓ VILA"},null,null,"CENTRO NATACION HELIOS","VETERANO","JAVIER BARRACHINA RODRÍGUEZ",null,"CENTRO NATACION HELIOS","SENIOR","RODRIGO SERGIO FLORES CASTILLO",null,"CENTRO NATACION HELIOS","JUVENIL","MARTÍN MONTANER ALFARO"]
[null,{"$f":"'DATOS DEPORTISTAS'!V32","v":"CAPRI MEQUINENZA"},{"$f":"'DATOS DEPORTISTAS'!I32","v":"INFANTIL"},{"$f":"'DATOS DEPORTISTAS'!M32","v":"IKER SANJUÁN SATORRES"},null,null,"CENTRO NATACION HELIOS","VETERANO","JORGE OCTAVIO CALVO GRACIA",null,null,null,null,null,"CENTRO NATACION HELIOS","JUVENIL","NIL MARTÍN BERNARDOS"]
[null,{"$f":"'DATOS DEPORTISTAS'!V33","v":"CAPRI MEQUINENZA"},{"$f":"'DATOS DEPORTISTAS'!I33","v":"SENIOR"},{"$f":"'DATOS DEPORTISTAS'!M33","v":"IVÁN GODIA SANCHO"},null,null,"CENTRO NATACION HELIOS","VETERANO","JORGE PEIRÓ MESA",null,null,null,null,null,"CENTRO NATACION HELIOS","JUVENIL","NOA FUERTES VALLÉS"]
[null,{"$f":"'DATOS DEPORTISTAS'!V34","v":"CAPRI MEQUINENZA"},{"$f":"'DATOS DEPORTISTAS'!I34","v":"ALEVIN"},{"$f":"'DATOS DEPORTISTAS'!M34","v":"JOEL CHERTÓ JIMÉNEZ"},null,null,"CENTRO NATACION HELIOS","VETERANO","JOSÉ GABRIEL SEBASTIÁN BELANCHE",null,null,null,null,null,"CENTRO NATACION HELIOS","JUVENIL","PABLO MALO VELA"]
[null,{"$f":"'DATOS DEPORTISTAS'!V35","v":"CAPRI MEQUINENZA"},{"$f":"'DATOS DEPORTISTAS'!I35","v":"CADETE"},{"$f":"'DATOS DEPORTISTAS'!M35","v":"MARINA CATALÁN MOYA"},null,null,"CENTRO NATACION HELIOS","VETERANO","JOSÉ LACASTA AISA",null,null,null,null,null,"CENTRO NATACION HELIOS","JUVENIL","SANDRA DIEZ GARCÍA"]
[null,{"$f":"'DATOS DEPORTISTAS'!V36","v":"CAPRI MEQUINENZA"},{"$f":"'DATOS DEPORTISTAS'!I36","v":"INFANTIL"},{"$f":"'DATOS DEPORTISTAS'!M36","v":"ONA ESTRUGA LLOP"},null,null,"CENTRO NATACION HELIOS","VETERANO","JOSÉ MANUEL BIELSA ARTIDIELLO",null,null,null,null,null,"CENTRO NATACION HELIOS","JUVENIL","VÍCTOR CINCA GARCÍA"]
[null,{"$f":"'DATOS DEPORTISTAS'!V37","v":"CAPRI MEQUINENZA"},{"$f":"'DATOS DEPORTISTAS'!I37","v":"BENJAMIN"},{"$f":"'DATOS DEPORTISTAS'!M37","v":"IVÁN EXPÓSITO VARGAS"},null,null,"CENTRO NATACION HELIOS","VETERANO","JOSÉ TABUENCA COLERA"]
[null,{"$f":"'DATOS DEPORTISTAS'!V38","v":"CAPRI MEQUINENZA"},{"$f":"'DATOS DEPORTISTAS'!I38","v":"ALEVIN"},{"$f":"'DATOS DEPORTISTAS'!M38","v":"SAÚL VIU NOGUÉS"},null,null,"CENTRO NATACION HELIOS","VETERANO","JUAN CARLOS CALAVIA RODRÍGUEZ"]
[null,{"$f":"'DATOS DEPORTISTAS'!V39","v":"CAPRI MEQUINENZA"},{"$f":"'DATOS DEPORTISTAS'!I39","v":"VETERANO"},{"$f":"'DATOS DEPORTISTAS'!M39","v":"EDUARDO ROMERA MURILLO"},null,null,"CENTRO NATACION HELIOS","VETERANO","JUAN DIEGO CRESPO ALONSO"]
[null,{"$f":"'DATOS DEPORTISTAS'!V40","v":"CAPRI MEQUINENZA"},{"$f":"'DATOS DEPORTISTAS'!I40","v":"VETERANO"},{"$f":"'DATOS DEPORTISTAS'!M40","v":"ALFONSO PÉREZ ALONSO"},null,null,"CENTRO NATACION HELIOS","VETERANO","JULIO BIELSA ARTIDIELLO"]
[null,{"$f":"'DATOS DEPORTISTAS'!V41","v":"CAPRI MEQUINENZA"},{"$f":"'DATOS DEPORTISTAS'!I41","v":"VETERANO"},{"$f":"'DATOS DEPORTISTAS'!M41","v":"ANTONIO MIGUEL VERA RUBERT"},null,null,"CENTRO NATACION HELIOS","VETERANO","MARÍA PILAR PEÑA HERRERO"]
[null,{"$f":"'DATOS DEPORTISTAS'!V42","v":"CAPRI MEQUINENZA"},{"$f":"'DATOS DEPORTISTAS'!I42","v":"BENJAMIN"},{"$f":"'DATOS DEPORTISTAS'!M42","v":"MARC CASTELLÓ VILA"},null,null,"CENTRO NATACION HELIOS","VETERANO","MARTA PINTO SOLANA"]
[null,{"$f":"'DATOS DEPORTISTAS'!V43","v":"CAPRI MEQUINENZA"},{"$f":"'DATOS DEPORTISTAS'!I43","v":"VETERANO"},{"$f":"'DATOS DEPORTISTAS'!M43","v":"CARLOS SANJUAN SOLER"},null,null,"CENTRO NATACION HELIOS","VETERANO","MIGUEL ÁNGEL PÉREZ VICENTE"]
[null,{"$f":"'DATOS DEPORTISTAS'!V44","v":"CAPRI MEQUINENZA"},{"$f":"'DATOS DEPORTISTAS'!I44","v":"JUVENIL"},{"$f":"'DATOS DEPORTISTAS'!M44","v":"MOHAMED ADAM RAHIBI VIDALLET"},null,null,"CENTRO NATACION HELIOS","VETERANO","PEDRO BENITO ARANDA MARTÍNEZ"]
[null,{"$f":"'DATOS DEPORTISTAS'!V45","v":"CAPRI MEQUINENZA"},{"$f":"'DATOS DEPORTISTAS'!I45","v":"BENJAMIN"},{"$f":"'DATOS DEPORTISTAS'!M45","v":"NOA GARCÍA SERRANO"},null,null,"CENTRO NATACION HELIOS","VETERANO","RAMÓN ICHASO JIMÉNEZ"]
[null,{"$f":"'DATOS DEPORTISTAS'!V46","v":"CAPRI MEQUINENZA"},{"$f":"'DATOS DEPORTISTAS'!I46","v":"BENJAMIN"},{"$f":"'DATOS DEPORTISTAS'!M46","v":"IBAI BLAS PEÑALVER"},null,null,"CENTRO NATACION HELIOS","VETERANO","SERGIO LARROSA AZNAR"]
[null,{"$f":"'DATOS DEPORTISTAS'!V47","v":"CAPRI MEQUINENZA"},{"$f":"'DATOS DEPORTISTAS'!I47","v":"VETERANO"},{"$f":"'DATOS DEPORTISTAS'!M47","v":"DANIEL CUCHÍ SAGARRA"},null,null,"CENTRO NATACION HELIOS","VETERANO","SYLVIA MARÍA MELO HURTADO"]
[null,{"$f":"'DATOS DEPORTISTAS'!V48","v":"CAPRI MEQUINENZA"},{"$f":"'DATOS DEPORTISTAS'!I48","v":"ALEVIN"},{"$f":"'DATOS DEPORTISTAS'!M48","v":"YUNE JUSTE IBARZ"},null,null,"CENTRO NATACION HELIOS","VETERANO","TERESA GUTIÉRREZ GIMÉNEZ"]
[null,{"$f":"'DATOS DEPORTISTAS'!V49","v":"CAPRI MEQUINENZA"},{"$f":"'DATOS DEPORTISTAS'!I49","v":"VETERANO"},{"$f":"'DATOS DEPORTISTAS'!M49","v":"DAVID OLIVER CABALLÉ"},null,null,"CENTRO NATACION HELIOS","VETERANO","VÍCTOR ESTEBAN GRAN"]
[null,{"$f":"'DATOS DEPORTISTAS'!V50","v":"CAPRI MEQUINENZA"},{"$f":"'DATOS DEPORTISTAS'!I50","v":"SENIOR"},{"$f":"'DATOS DEPORTISTAS'!M50","v":"ELENA STEGHERR LLOP"}]
[null,{"$f":"'DATOS DEPORTISTAS'!V51","v":"CAPRI MEQUINENZA"},{"$f":"'DATOS DEPORTISTAS'!I51","v":"CADETE"},{"$f":"'DATOS DEPORTISTAS'!M51","v":"IRIA EXPÓSITO SORO"}]
[null,{"$f":"'DATOS DEPORTISTAS'!V52","v":"CAPRI MEQUINENZA"},{"$f":"'DATOS DEPORTISTAS'!I52","v":"ALEVIN"},{"$f":"'DATOS DEPORTISTAS'!M52","v":"ENZO EXPÓSITO SORO"}]
[null,{"$f":"'DATOS DEPORTISTAS'!V53","v":"CAPRI MEQUINENZA"},{"$f":"'DATOS DEPORTISTAS'!I53","v":"ALEVIN"},{"$f":"'DATOS DEPORTISTAS'!M53","v":"ANDREW PI MOSOVSKA"}]
[null,{"$f":"'DATOS DEPORTISTAS'!V54","v":"CAPRI MEQUINENZA"},{"$f":"'DATOS DEPORTISTAS'!I54","v":"INFANTIL"},{"$f":"'DATOS DEPORTISTAS'!M54","v":"IVÁN CASTELLNOU SOROLLA"}]
[null,{"$f":"'DATOS DEPORTISTAS'!V55","v":"CAPRI MEQUINENZA"},{"$f":"'DATOS DEPORTISTAS'!I55","v":"ALEVIN"},{"$f":"'DATOS DEPORTISTAS'!M55","v":"CARMEN RODES ESTRUGA"}]
[null,{"$f":"'DATOS DEPORTISTAS'!V56","v":"CAPRI MEQUINENZA"},{"$f":"'DATOS DEPORTISTAS'!I56","v":"VETERANO"},{"$f":"'DATOS DEPORTISTAS'!M56","v":"CONCEPCIÓN CASTRO ARANDA"}]
[null,{"$f":"'DATOS DEPORTISTAS'!V57","v":"CAPRI MEQUINENZA"},{"$f":"'DATOS DEPORTISTAS'!I57","v":"VETERANO"},{"$f":"'DATOS DEPORTISTAS'!M57","v":"ESTHER ANDRÉS CARRILLO"}]
[null,{"$f":"'DATOS DEPORTISTAS'!V58","v":"CAPRI MEQUINENZA"},{"$f":"'DATOS DEPORTISTAS'!I58","v":"VETERANO"},{"$f":"'DATOS DEPORTISTAS'!M58","v":"JESÚS MANUEL LLOP MONTULL"}]
[null,{"$f":"'DATOS DEPORTISTAS'!V59","v":"CAPRI MEQUINENZA"},{"$f":"'DATOS DEPORTISTAS'!I59","v":"VETERANO"},{"$f":"'DATOS DEPORTISTAS'!M59","v":"JUAN ANTONIO  CATALAN MULA"}]
[null,{"$f":"'DATOS DEPORTISTAS'!V60","v":"CAPRI MEQUINENZA"},{"$f":"'DATOS DEPORTISTAS'!I60","v":"VETERANO"},{"$f":"'DATOS DEPORTISTAS'!M60","v":"LORENA NOGUÉS NICOLÁS"}]
[null,{"$f":"'DATOS DEPORTISTAS'!V61","v":"CAPRI MEQUINENZA"},{"$f":"'DATOS DEPORTISTAS'!I61","v":"VETERANO"},{"$f":"'DATOS DEPORTISTAS'!M61","v":"MARÍA TERESA GODIA PI"}]
[null,{"$f":"'DATOS DEPORTISTAS'!V62","v":"CAPRI MEQUINENZA"},{"$f":"'DATOS DEPORTISTAS'!I62","v":"VETERANO"},{"$f":"'DATOS DEPORTISTAS'!M62","v":"MARISOL CLAVERO GARCÍA"}]
[null,{"$f":"'DATOS DEPORTISTAS'!V63","v":"CAPRI MEQUINENZA"},{"$f":"'DATOS DEPORTISTAS'!I63","v":"VETERANO"},{"$f":"'DATOS DEPORTISTAS'!M63","v":"MERITXELL  LLOP CALLIZO"}]
[null,{"$f":"'DATOS DEPORTISTAS'!V64","v":"CAPRI MEQUINENZA"},{"$f":"'DATOS DEPORTISTAS'!I64","v":"VETERANO"},{"$f":"'DATOS DEPORTISTAS'!M64","v":"PATRYCJA JANIK"}]
[null,{"$f":"'DATOS DEPORTISTAS'!V65","v":"CAPRI MEQUINENZA"},{"$f":"'DATOS DEPORTISTAS'!I65","v":"VETERANO"},{"$f":"'DATOS DEPORTISTAS'!M65","v":"ROSANA NIUBÓ SOROLLA"}]
[null,{"$f":"'DATOS DEPORTISTAS'!V66","v":"CAPRI MEQUINENZA"},{"$f":"'DATOS DEPORTISTAS'!I66","v":"VETERANO"},{"$f":"'DATOS DEPORTISTAS'!M66","v":"VÍCTOR ESTRUGA GIMENO"}]
[null,{"$f":"'DATOS DEPORTISTAS'!V67","v":"CAPRI MEQUINENZA"},{"$f":"'DATOS DEPORTISTAS'!I67","v":"VETERANO"},{"$f":"'DATOS DEPORTISTAS'!M67","v":"VICTORIA SANTAELLA MAIRELES"}]
[null,{"$f":"'DATOS DEPORTISTAS'!V68","v":"CAPRI MEQUINENZA"},{"$f":"'DATOS DEPORTISTAS'!I68","v":"SENIOR"},{"$f":"'DATOS DEPORTISTAS'!M68","v":"JULIA RAMI CASTRO"}]
[null,{"$f":"'DATOS DEPORTISTAS'!V69","v":"CAPRI MEQUINENZA"},{"$f":"'DATOS DEPORTISTAS'!I69","v":"SENIOR"},{"$f":"'DATOS DEPORTISTAS'!M69","v":"MIGUEL RUBIO LAMBEA"}]
[null,{"$f":"'DATOS DEPORTISTAS'!V70","v":"CAPRI MEQUINENZA"},{"$f":"'DATOS DEPORTISTAS'!I70","v":"VETERANO"},{"$f":"'DATOS DEPORTISTAS'!M70","v":"RAQUEL CABALLÉ SILVESTRE"}]
[null,{"$f":"'DATOS DEPORTISTAS'!V71","v":"CENTRO NATACION HELIOS"},{"$f":"'DATOS DEPORTISTAS'!I71","v":"SENIOR"},{"$f":"'DATOS DEPORTISTAS'!M71","v":"PABLO BRIZ ZAMORANO"}]
[null,{"$f":"'DATOS DEPORTISTAS'!V72","v":"CENTRO NATACION HELIOS"},{"$f":"'DATOS DEPORTISTAS'!I72","v":"VETERANO"},{"$f":"'DATOS DEPORTISTAS'!M72","v":"IVÁN LATAS JIMÉNEZ"}]
[null,{"$f":"'DATOS DEPORTISTAS'!V73","v":"CENTRO NATACION HELIOS"},{"$f":"'DATOS DEPORTISTAS'!I73","v":"VETERANO"},{"$f":"'DATOS DEPORTISTAS'!M73","v":"VÍCTOR ESTEBAN GRAN"}]
[null,{"$f":"'DATOS DEPORTISTAS'!V74","v":"CENTRO NATACION HELIOS"},{"$f":"'DATOS DEPORTISTAS'!I74","v":"VETERANO"},{"$f":"'DATOS DEPORTISTAS'!M74","v":"CARLOS MELGARES HIDALGO"}]
[null,{"$f":"'DATOS DEPORTISTAS'!V75","v":"CENTRO NATACION HELIOS"},{"$f":"'DATOS DEPORTISTAS'!I75","v":"VETERANO"},{"$f":"'DATOS DEPORTISTAS'!M75","v":"ALFONSO MUNIESA FERRERO"}]
[null,{"$f":"'DATOS DEPORTISTAS'!V76","v":"CENTRO NATACION HELIOS"},{"$f":"'DATOS DEPORTISTAS'!I76","v":"SENIOR"},{"$f":"'DATOS DEPORTISTAS'!M76","v":"DANIEL BELLO ALVAREZ"}]
[null,{"$f":"'DATOS DEPORTISTAS'!V77","v":"CENTRO NATACION HELIOS"},{"$f":"'DATOS DEPORTISTAS'!I77","v":"VETERANO"},{"$f":"'DATOS DEPORTISTAS'!M77","v":"GREGORIO PRADAS QUERO"}]
[null,{"$f":"'DATOS DEPORTISTAS'!V78","v":"CENTRO NATACION HELIOS"},{"$f":"'DATOS DEPORTISTAS'!I78","v":"BENJAMIN"},{"$f":"'DATOS DEPORTISTAS'!M78","v":"ÁNGEL ROYO LAVILLA"}]
[null,{"$f":"'DATOS DEPORTISTAS'!V79","v":"CENTRO NATACION HELIOS"},{"$f":"'DATOS DEPORTISTAS'!I79","v":"VETERANO"},{"$f":"'DATOS DEPORTISTAS'!M79","v":"JORGE OCTAVIO CALVO GRACIA"}]
[null,{"$f":"'DATOS DEPORTISTAS'!V80","v":"CENTRO NATACION HELIOS"},{"$f":"'DATOS DEPORTISTAS'!I80","v":"JUVENIL"},{"$f":"'DATOS DEPORTISTAS'!M80","v":"IRENE ICHASO CEBADERO"}]
[null,{"$f":"'DATOS DEPORTISTAS'!V81","v":"CENTRO NATACION HELIOS"},{"$f":"'DATOS DEPORTISTAS'!I81","v":"VETERANO"},{"$f":"'DATOS DEPORTISTAS'!M81","v":"JORGE PEIRÓ MESA"}]
[null,{"$f":"'DATOS DEPORTISTAS'!V82","v":"CENTRO NATACION HELIOS"},{"$f":"'DATOS DEPORTISTAS'!I82","v":"VETERANO"},{"$f":"'DATOS DEPORTISTAS'!M82","v":"JOSÉ MANUEL BIELSA ARTIDIELLO"}]
[null,{"$f":"'DATOS DEPORTISTAS'!V83","v":"CENTRO NATACION HELIOS"},{"$f":"'DATOS DEPORTISTAS'!I83","v":"VETERANO"},{"$f":"'DATOS DEPORTISTAS'!M83","v":"JUAN CARLOS CALAVIA RODRÍGUEZ"}]
[null,{"$f":"'DATOS DEPORTISTAS'!V84","v":"CENTRO NATACION HELIOS"},{"$f":"'DATOS DEPORTISTAS'!I84","v":"VETERANO"},{"$f":"'DATOS DEPORTISTAS'!M84","v":"JUAN DIEGO CRESPO ALONSO"}]
[null,{"$f":"'DATOS DEPORTISTAS'!V85","v":"CENTRO NATACION HELIOS"},{"$f":"'DATOS DEPORTISTAS'!I85","v":"SENIOR"},{"$f":"'DATOS DEPORTISTAS'!M85","v":"ALEXANDER JURADO PÉREZ"}]
[null,{"$f":"'DATOS DEPORTISTAS'!V86","v":"CENTRO NATACION HELIOS"},{"$f":"'DATOS DEPORTISTAS'!I86","v":"JUVENIL"},{"$f":"'DATOS DEPORTISTAS'!M86","v":"FERNANDO MARTÍN RANERA"}]
[null,{"$f":"'DATOS DEPORTISTAS'!V87","v":"CENTRO NATACION HELIOS"},{"$f":"'DATOS DEPORTISTAS'!I87","v":"JUVENIL"},{"$f":"'DATOS DEPORTISTAS'!M87","v":"IREK CABELLO PIETRZAK"}]
[null,{"$f":"'DATOS DEPORTISTAS'!V88","v":"CENTRO NATACION HELIOS"},{"$f":"'DATOS DEPORTISTAS'!I88","v":"JUVENIL"},{"$f":"'DATOS DEPORTISTAS'!M88","v":"MARTÍN MONTANER ALFARO"}]
[null,{"$f":"'DATOS DEPORTISTAS'!V89","v":"CENTRO NATACION HELIOS"},{"$f":"'DATOS DEPORTISTAS'!I89","v":"INFANTIL"},{"$f":"'DATOS DEPORTISTAS'!M89","v":"LUCÍA MONTANER ALFARO"}]
[null,{"$f":"'DATOS DEPORTISTAS'!V90","v":"CENTRO NATACION HELIOS"},{"$f":"'DATOS DEPORTISTAS'!I90","v":"VETERANO"},{"$f":"'DATOS DEPORTISTAS'!M90","v":"MARTA PINTO SOLANA"}]
[null,{"$f":"'DATOS DEPORTISTAS'!V91","v":"CENTRO NATACION HELIOS"},{"$f":"'DATOS DEPORTISTAS'!I91","v":"SENIOR"},{"$f":"'DATOS DEPORTISTAS'!M91","v":"MARÍA ROMEO VICENTE"}]
[null,{"$f":"'DATOS DEPORTISTAS'!V92","v":"CENTRO NATACION HELIOS"},{"$f":"'DATOS DEPORTISTAS'!I92","v":"VETERANO"},{"$f":"'DATOS DEPORTISTAS'!M92","v":"TERESA GUTIÉRREZ GIMÉNEZ"}]
[null,{"$f":"'DATOS DEPORTISTAS'!V93","v":"CENTRO NATACION HELIOS"},{"$f":"'DATOS DEPORTISTAS'!I93","v":"JUVENIL"},{"$f":"'DATOS DEPORTISTAS'!M93","v":"NIL MARTÍN BERNARDOS"}]
[null,{"$f":"'DATOS DEPORTISTAS'!V94","v":"CENTRO NATACION HELIOS"},{"$f":"'DATOS DEPORTISTAS'!I94","v":"SENIOR"},{"$f":"'DATOS DEPORTISTAS'!M94","v":"PILAR MARCÉN GUTIÉRREZ"}]
[null,{"$f":"'DATOS DEPORTISTAS'!V95","v":"CENTRO NATACION HELIOS"},{"$f":"'DATOS DEPORTISTAS'!I95","v":"JUVENIL"},{"$f":"'DATOS DEPORTISTAS'!M95","v":"VÍCTOR CINCA GARCÍA"}]
[null,{"$f":"'DATOS DEPORTISTAS'!V96","v":"CENTRO NATACION HELIOS"},{"$f":"'DATOS DEPORTISTAS'!I96","v":"VETERANO"},{"$f":"'DATOS DEPORTISTAS'!M96","v":"EMILIO ANASTASIO CILLEROS BLÁZQUEZ"}]
[null,{"$f":"'DATOS DEPORTISTAS'!V97","v":"CENTRO NATACION HELIOS"},{"$f":"'DATOS DEPORTISTAS'!I97","v":"CADETE"},{"$f":"'DATOS DEPORTISTAS'!M97","v":"ERIC CAZADOR SERRANO"}]
[null,{"$f":"'DATOS DEPORTISTAS'!V98","v":"CENTRO NATACION HELIOS"},{"$f":"'DATOS DEPORTISTAS'!I98","v":"ALEVIN"},{"$f":"'DATOS DEPORTISTAS'!M98","v":"UDAY CAZADOR SERRANO"}]
[null,{"$f":"'DATOS DEPORTISTAS'!V99","v":"CENTRO NATACION HELIOS"},{"$f":"'DATOS DEPORTISTAS'!I99","v":"INFANTIL"},{"$f":"'DATOS DEPORTISTAS'!M99","v":"ALICIA LUNA MONTAGUD"}]
[null,{"$f":"'DATOS DEPORTISTAS'!V100","v":"CENTRO NATACION HELIOS"},{"$f":"'DATOS DEPORTISTAS'!I100","v":"INFANTIL"},{"$f":"'DATOS DEPORTISTAS'!M100","v":"LUIS LARROSA GIL"}]
[null,{"$f":"'DATOS DEPORTISTAS'!V101","v":"CENTRO NATACION HELIOS"},{"$f":"'DATOS DEPORTISTAS'!I101","v":"CADETE"},{"$f":"'DATOS DEPORTISTAS'!M101","v":"PABLO VLADIMIR IBAÑEZ VALERO"}]
[null,{"$f":"'DATOS DEPORTISTAS'!V102","v":"CENTRO NATACION HELIOS"},{"$f":"'DATOS DEPORTISTAS'!I102","v":"CADETE"},{"$f":"'DATOS DEPORTISTAS'!M102","v":"JOAQUÍN JESÚS SORO FUENTES"}]
[null,{"$f":"'DATOS DEPORTISTAS'!V103","v":"CENTRO NATACION HELIOS"},{"$f":"'DATOS DEPORTISTAS'!I103","v":"CADETE"},{"$f":"'DATOS DEPORTISTAS'!M103","v":"MARTÍN MILLÁN GÓMEZ"}]
[null,{"$f":"'DATOS DEPORTISTAS'!V104","v":"CENTRO NATACION HELIOS"},{"$f":"'DATOS DEPORTISTAS'!I104","v":"SENIOR"},{"$f":"'DATOS DEPORTISTAS'!M104","v":"PEDRO DIEZ GARCÍA"}]
[null,{"$f":"'DATOS DEPORTISTAS'!V105","v":"CENTRO NATACION HELIOS"},{"$f":"'DATOS DEPORTISTAS'!I105","v":"JUVENIL"},{"$f":"'DATOS DEPORTISTAS'!M105","v":"MANUEL GIRONÉS BENAVENTE"}]
[null,{"$f":"'DATOS DEPORTISTAS'!V106","v":"CENTRO NATACION HELIOS"},{"$f":"'DATOS DEPORTISTAS'!I106","v":"JUVENIL"},{"$f":"'DATOS DEPORTISTAS'!M106","v":"MARCO MELÉNDEZ DEL PICO"}]
[null,{"$f":"'DATOS DEPORTISTAS'!V107","v":"CENTRO NATACION HELIOS"},{"$f":"'DATOS DEPORTISTAS'!I107","v":"JUVENIL"},{"$f":"'DATOS DEPORTISTAS'!M107","v":"PABLO MALO VELA"}]
[null,{"$f":"'DATOS DEPORTISTAS'!V108","v":"CENTRO NATACION HELIOS"},{"$f":"'DATOS DEPORTISTAS'!I108","v":"JUVENIL"},{"$f":"'DATOS DEPORTISTAS'!M108","v":"DIEGO JIMÉNEZ HORNOS"}]
[null,{"$f":"'DATOS DEPORTISTAS'!V109","v":"CENTRO NATACION HELIOS"},{"$f":"'DATOS DEPORTISTAS'!I109","v":"JUVENIL"},{"$f":"'DATOS DEPORTISTAS'!M109","v":"SANDRA DIEZ GARCÍA"}]
[null,{"$f":"'DATOS DEPORTISTAS'!V110","v":"CENTRO NATACION HELIOS"},{"$f":"'DATOS DEPORTISTAS'!I110","v":"VETERANO"},{"$f":"'DATOS DEPORTISTAS'!M110","v":"CRISTINA DIEZ SECO"}]
[null,{"$f":"'DATOS DEPORTISTAS'!V111","v":"CENTRO NATACION HELIOS"},{"$f":"'DATOS DEPORTISTAS'!I111","v":"ALEVIN"},{"$f":"'DATOS DEPORTISTAS'!M111","v":"VÍCTOR LENNIKOV IGLESIAS"}]
[null,{"$f":"'DATOS DEPORTISTAS'!V112","v":"CENTRO NATACION HELIOS"},{"$f":"'DATOS DEPORTISTAS'!I112","v":"BENJAMIN"},{"$f":"'DATOS DEPORTISTAS'!M112","v":"VICTOR JUANA GALVEZ"}]
[null,{"$f":"'DATOS DEPORTISTAS'!V113","v":"CENTRO NATACION HELIOS"},{"$f":"'DATOS DEPORTISTAS'!I113","v":"VETERANO"},{"$f":"'DATOS DEPORTISTAS'!M113","v":"JOSÉ TABUENCA COLERA"}]
[null,{"$f":"'DATOS DEPORTISTAS'!V114","v":"CENTRO NATACION HELIOS"},{"$f":"'DATOS DEPORTISTAS'!I114","v":"CADETE"},{"$f":"'DATOS DEPORTISTAS'!M114","v":"GUILLERMO GUTIÉRREZ ANDOLZ"}]
[null,{"$f":"'DATOS DEPORTISTAS'!V115","v":"CENTRO NATACION HELIOS"},{"$f":"'DATOS DEPORTISTAS'!I115","v":"CADETE"},{"$f":"'DATOS DEPORTISTAS'!M115","v":"GERMÁN VILLORO ANGLÉS"}]
[null,{"$f":"'DATOS DEPORTISTAS'!V116","v":"CENTRO NATACION HELIOS"},{"$f":"'DATOS DEPORTISTAS'!I116","v":"JUVENIL"},{"$f":"'DATOS DEPORTISTAS'!M116","v":"ÁNGEL PERNÍA OYAGA"}]
[null,{"$f":"'DATOS DEPORTISTAS'!V117","v":"CENTRO NATACION HELIOS"},{"$f":"'DATOS DEPORTISTAS'!I117","v":"CADETE"},{"$f":"'DATOS DEPORTISTAS'!M117","v":"JAVIER REMACHA PUSCO"}]
[null,{"$f":"'DATOS DEPORTISTAS'!V118","v":"CENTRO NATACION HELIOS"},{"$f":"'DATOS DEPORTISTAS'!I118","v":"JUVENIL"},{"$f":"'DATOS DEPORTISTAS'!M118","v":"NOA FUERTES VALLÉS"}]
[null,{"$f":"'DATOS DEPORTISTAS'!V119","v":"CENTRO NATACION HELIOS"},{"$f":"'DATOS DEPORTISTAS'!I119","v":"JUVENIL"},{"$f":"'DATOS DEPORTISTAS'!M119","v":"JOSÉ MANUEL FAÑA GRIÑÓN"}]
[null,{"$f":"'DATOS DEPORTISTAS'!V120","v":"CENTRO NATACION HELIOS"},{"$f":"'DATOS DEPORTISTAS'!I120","v":"BENJAMIN"},{"$f":"'DATOS DEPORTISTAS'!M120","v":"LUIS BUEY DE SACADURA"}]
[null,{"$f":"'DATOS DEPORTISTAS'!V121","v":"CENTRO NATACION HELIOS"},{"$f":"'DATOS DEPORTISTAS'!I121","v":"BENJAMIN"},{"$f":"'DATOS DEPORTISTAS'!M121","v":"JIMENA ESPADA CIPRÉS"}]
[null,{"$f":"'DATOS DEPORTISTAS'!V122","v":"CENTRO NATACION HELIOS"},{"$f":"'DATOS DEPORTISTAS'!I122","v":"INFANTIL"},{"$f":"'DATOS DEPORTISTAS'!M122","v":"VALENTINA ESPADA CIPRÉS"}]
[null,{"$f":"'DATOS DEPORTISTAS'!V123","v":"CENTRO NATACION HELIOS"},{"$f":"'DATOS DEPORTISTAS'!I123","v":"JUVENIL"},{"$f":"'DATOS DEPORTISTAS'!M123","v":"CHLOÉ MILLÁN GÓMEZ"}]
[null,{"$f":"'DATOS DEPORTISTAS'!V124","v":"CENTRO NATACION HELIOS"},{"$f":"'DATOS DEPORTISTAS'!I124","v":"CADETE"},{"$f":"'DATOS DEPORTISTAS'!M124","v":"MARÍA ADELINA MARTISCA SUSANU"}]
[null,{"$f":"'DATOS DEPORTISTAS'!V125","v":"CAPRI MEQUINENZA"},{"$f":"'DATOS DEPORTISTAS'!I125","v":"VETERANO"},{"$f":"'DATOS DEPORTISTAS'!M125","v":"DAVID TORO SOLER"}]
[null,{"$f":"'DATOS DEPORTISTAS'!V126","v":"CAPRI MEQUINENZA"},{"$f":"'DATOS DEPORTISTAS'!I126","v":"VETERANO"},{"$f":"'DATOS DEPORTISTAS'!M126","v":"ROSA MARÍA LLOP RIAU"}]
[null,{"$f":"'DATOS DEPORTISTAS'!V127","v":"CAPRI MEQUINENZA"},{"$f":"'DATOS DEPORTISTAS'!I127","v":"SENIOR"},{"$f":"'DATOS DEPORTISTAS'!M127","v":"MARÍA PILAR GODIA PI"}]
[null,{"$f":"'DATOS DEPORTISTAS'!V128","v":"CAPRI MEQUINENZA"},{"$f":"'DATOS DEPORTISTAS'!I128","v":"SENIOR"},{"$f":"'DATOS DEPORTISTAS'!M128","v":"AARÓN MÁRQUEZ GUARDIOLA"}]
[null,{"$f":"'DATOS DEPORTISTAS'!V129","v":"CAPRI MEQUINENZA"},{"$f":"'DATOS DEPORTISTAS'!I129","v":"VETERANO"},{"$f":"'DATOS DEPORTISTAS'!M129","v":"ORIOL  MIR IBARZ"}]
[null,{"$f":"'DATOS DEPORTISTAS'!V130","v":"NÁUTICO ZARAGOZA"},{"$f":"'DATOS DEPORTISTAS'!I130","v":"VETERANO"},{"$f":"'DATOS DEPORTISTAS'!M130","v":"CLEMENTE FERNANDO LABORDA VAL"}]
[null,{"$f":"'DATOS DEPORTISTAS'!V131","v":"NÁUTICO ZARAGOZA"},{"$f":"'DATOS DEPORTISTAS'!I131","v":"VETERANO"},{"$f":"'DATOS DEPORTISTAS'!M131","v":"IGNACIO JOSÉ RUIZ IRIBARNE"}]
[null,{"$f":"'DATOS DEPORTISTAS'!V132","v":"NÁUTICO ZARAGOZA"},{"$f":"'DATOS DEPORTISTAS'!I132","v":"VETERANO"},{"$f":"'DATOS DEPORTISTAS'!M132","v":"JOSÉ MANUEL LARROY CALVO"}]
[null,{"$f":"'DATOS DEPORTISTAS'!V133","v":"CENTRO NATACION HELIOS"},{"$f":"'DATOS DEPORTISTAS'!I133","v":"ALEVIN"},{"$f":"'DATOS DEPORTISTAS'!M133","v":"EDUARDO GUTIÉRREZ ANDOLZ"}]
[null,{"$f":"'DATOS DEPORTISTAS'!V134","v":"CENTRO NATACION HELIOS"},{"$f":"'DATOS DEPORTISTAS'!I134","v":"ALEVIN"},{"$f":"'DATOS DEPORTISTAS'!M134","v":"ALMA RELANCIO PASTOR"}]
[null,{"$f":"'DATOS DEPORTISTAS'!V135","v":"CENTRO NATACION HELIOS"},{"$f":"'DATOS DEPORTISTAS'!I135","v":"CADETE"},{"$f":"'DATOS DEPORTISTAS'!M135","v":"MATILDE ESTRELLA RELANCIO PASTOR"}]
[null,{"$f":"'DATOS DEPORTISTAS'!V136","v":"CENTRO NATACION HELIOS"},{"$f":"'DATOS DEPORTISTAS'!I136","v":"ALEVIN"},{"$f":"'DATOS DEPORTISTAS'!M136","v":"ÁNGELA RELANCIO PASTOR"}]
[null,{"$f":"'DATOS DEPORTISTAS'!V137","v":"CENTRO NATACION HELIOS"},{"$f":"'DATOS DEPORTISTAS'!I137","v":"ALEVIN"},{"$f":"'DATOS DEPORTISTAS'!M137","v":"ADELA RELANCIO PASTOR"}]
[null,{"$f":"'DATOS DEPORTISTAS'!V138","v":"CAPRI MEQUINENZA"},{"$f":"'DATOS DEPORTISTAS'!I138","v":"VETERANO"},{"$f":"'DATOS DEPORTISTAS'!M138","v":"JORDI CASTELLÓ ROCA"}]
[null,{"$f":"'DATOS DEPORTISTAS'!V139","v":"CENTRO NATACION HELIOS"},{"$f":"'DATOS DEPORTISTAS'!I139","v":"VETERANO"},{"$f":"'DATOS DEPORTISTAS'!M139","v":"JOSÉ LACASTA AISA"}]
[null,{"$f":"'DATOS DEPORTISTAS'!V140","v":"CENTRO NATACION HELIOS"},{"$f":"'DATOS DEPORTISTAS'!I140","v":"VETERANO"},{"$f":"'DATOS DEPORTISTAS'!M140","v":"PEDRO BENITO ARANDA MARTÍNEZ"}]
[null,{"$f":"'DATOS DEPORTISTAS'!V141","v":"CENTRO NATACION HELIOS"},{"$f":"'DATOS DEPORTISTAS'!I141","v":"VETERANO"},{"$f":"'DATOS DEPORTISTAS'!M141","v":"MIGUEL ÁNGEL PÉREZ VICENTE"}]
[null,{"$f":"'DATOS DEPORTISTAS'!V142","v":"CENTRO NATACION HELIOS"},{"$f":"'DATOS DEPORTISTAS'!I142","v":"VETERANO"},{"$f":"'DATOS DEPORTISTAS'!M142","v":"ALFREDO DIEZ SECO"}]
[null,{"$f":"'DATOS DEPORTISTAS'!V143","v":"CENTRO NATACION HELIOS"},{"$f":"'DATOS DEPORTISTAS'!I143","v":"VETERANO"},{"$f":"'DATOS DEPORTISTAS'!M143","v":"EVA MARÍA ANGLÉS BEL"}]
[null,{"$f":"'DATOS DEPORTISTAS'!V144","v":"CENTRO NATACION HELIOS"},{"$f":"'DATOS DEPORTISTAS'!I144","v":"VETERANO"},{"$f":"'DATOS DEPORTISTAS'!M144","v":"SYLVIA MARÍA MELO HURTADO"}]
[null,{"$f":"'DATOS DEPORTISTAS'!V145","v":"OS NABATERS D.F."},{"$f":"'DATOS DEPORTISTAS'!I145","v":"VETERANO"},{"$f":"'DATOS DEPORTISTAS'!M145","v":"ÁNGEL AGUILERA ANDRÉS"}]
[null,{"$f":"'DATOS DEPORTISTAS'!V146","v":"OS NABATERS D.F."},{"$f":"'DATOS DEPORTISTAS'!I146","v":"VETERANO"},{"$f":"'DATOS DEPORTISTAS'!M146","v":"JOSÉ MARÍA EMBARBA LABORDA"}]
[null,{"$f":"'DATOS DEPORTISTAS'!V147","v":"OS NABATERS D.F."},{"$f":"'DATOS DEPORTISTAS'!I147","v":"VETERANO"},{"$f":"'DATOS DEPORTISTAS'!M147","v":"LUIS CARLOS BELLED LACASA"}]
[null,{"$f":"'DATOS DEPORTISTAS'!V148","v":"OS NABATERS D.F."},{"$f":"'DATOS DEPORTISTAS'!I148","v":"VETERANO"},{"$f":"'DATOS DEPORTISTAS'!M148","v":"JOSÉ LUIS CAMBERO CENZANO"}]
[null,{"$f":"'DATOS DEPORTISTAS'!V149","v":"OS NABATERS D.F."},{"$f":"'DATOS DEPORTISTAS'!I149","v":"VETERANO"},{"$f":"'DATOS DEPORTISTAS'!M149","v":"PEDRO IGNACIO MARTÍNEZ CABELLO"}]
[null,{"$f":"'DATOS DEPORTISTAS'!V150","v":"OS NABATERS D.F."},{"$f":"'DATOS DEPORTISTAS'!I150","v":"VETERANO"},{"$f":"'DATOS DEPORTISTAS'!M150","v":"ALEJANDRO DEL AMO SANCHO"}]
[null,{"$f":"'DATOS DEPORTISTAS'!V151","v":"OS NABATERS D.F."},{"$f":"'DATOS DEPORTISTAS'!I151","v":"VETERANO"},{"$f":"'DATOS DEPORTISTAS'!M151","v":"OMAR SEBASTIÁN BUSTÍN"}]
[null,{"$f":"'DATOS DEPORTISTAS'!V152","v":"OS NABATERS D.F."},{"$f":"'DATOS DEPORTISTAS'!I152","v":"VETERANO"},{"$f":"'DATOS DEPORTISTAS'!M152","v":"RICARDO SALILLAS MARTÍNEZ"}]
[null,{"$f":"'DATOS DEPORTISTAS'!V153","v":"OS NABATERS D.F."},{"$f":"'DATOS DEPORTISTAS'!I153","v":"VETERANO"},{"$f":"'DATOS DEPORTISTAS'!M153","v":"ANTONIO ANSELMO SANCHO NAVARRO"}]
[null,{"$f":"'DATOS DEPORTISTAS'!V154","v":"OS NABATERS D.F."},{"$f":"'DATOS DEPORTISTAS'!I154","v":"VETERANO"},{"$f":"'DATOS DEPORTISTAS'!M154","v":"MIGUEL BEA GONZÁLEZ"}]
[null,{"$f":"'DATOS DEPORTISTAS'!V155","v":"OS NABATERS D.F."},{"$f":"'DATOS DEPORTISTAS'!I155","v":"VETERANO"},{"$f":"'DATOS DEPORTISTAS'!M155","v":"ROBERTO NAVARRO CARRETERO"}]
[null,{"$f":"'DATOS DEPORTISTAS'!V156","v":"OS NABATERS D.F."},{"$f":"'DATOS DEPORTISTAS'!I156","v":"SENIOR"},{"$f":"'DATOS DEPORTISTAS'!M156","v":"CARLOTA LAPLANA DÍAZ"}]
[null,{"$f":"'DATOS DEPORTISTAS'!V157","v":"OS NABATERS D.F."},{"$f":"'DATOS DEPORTISTAS'!I157","v":"VETERANO"},{"$f":"'DATOS DEPORTISTAS'!M157","v":"LUIS JAVIER MELERO PASCUAL"}]
[null,{"$f":"'DATOS DEPORTISTAS'!V158","v":"OS NABATERS D.F."},{"$f":"'DATOS DEPORTISTAS'!I158","v":"VETERANO"},{"$f":"'DATOS DEPORTISTAS'!M158","v":"GABRIEL JOSÉ RUANO FERNÁNDEZ"}]
[null,{"$f":"'DATOS DEPORTISTAS'!V159","v":"OS NABATERS D.F."},{"$f":"'DATOS DEPORTISTAS'!I159","v":"VETERANO"},{"$f":"'DATOS DEPORTISTAS'!M159","v":"JESÚS YUS DÍEZ"}]
[null,{"$f":"'DATOS DEPORTISTAS'!V160","v":"OS NABATERS D.F."},{"$f":"'DATOS DEPORTISTAS'!I160","v":"JUVENIL"},{"$f":"'DATOS DEPORTISTAS'!M160","v":"LUIS FRANCISCO BOIRA GONZALO"}]
[null,{"$f":"'DATOS DEPORTISTAS'!V161","v":"CENTRO NATACION HELIOS"},{"$f":"'DATOS DEPORTISTAS'!I161","v":"SENIOR"},{"$f":"'DATOS DEPORTISTAS'!M161","v":"GONZALO ARTURO SOTOMAYOR MORA"}]
[null,{"$f":"'DATOS DEPORTISTAS'!V162","v":"OS NABATERS D.F."},{"$f":"'DATOS DEPORTISTAS'!I162","v":"SENIOR"},{"$f":"'DATOS DEPORTISTAS'!M162","v":"LEYA VICENTE MAGAÑA"}]
[null,{"$f":"'DATOS DEPORTISTAS'!V163","v":"OS NABATERS D.F."},{"$f":"'DATOS DEPORTISTAS'!I163","v":"SENIOR"},{"$f":"'DATOS DEPORTISTAS'!M163","v":"ALBA LÓPEZ CORDOVILLA"}]
[null,{"$f":"'DATOS DEPORTISTAS'!V164","v":"OS NABATERS D.F."},{"$f":"'DATOS DEPORTISTAS'!I164","v":"SENIOR"},{"$f":"'DATOS DEPORTISTAS'!M164","v":"ANDRÉS JIMÉNEZ LOBERA"}]
[null,{"$f":"'DATOS DEPORTISTAS'!V165","v":"CENTRO NATACION HELIOS"},{"$f":"'DATOS DEPORTISTAS'!I165","v":"VETERANO"},{"$f":"'DATOS DEPORTISTAS'!M165","v":"JAVIER BARRACHINA RODRÍGUEZ"}]
[null,{"$f":"'DATOS DEPORTISTAS'!V166","v":"CENTRO NATACION HELIOS"},{"$f":"'DATOS DEPORTISTAS'!I166","v":"VETERANO"},{"$f":"'DATOS DEPORTISTAS'!M166","v":"ANDRÉS BLANCO VELÁZQUEZ"}]
[null,{"$f":"'DATOS DEPORTISTAS'!V167","v":"CENTRO NATACION HELIOS"},{"$f":"'DATOS DEPORTISTAS'!I167","v":"VETERANO"},{"$f":"'DATOS DEPORTISTAS'!M167","v":"MARÍA PILAR PEÑA HERRERO"}]
[null,{"$f":"'DATOS DEPORTISTAS'!V168","v":"CENTRO NATACION HELIOS"},{"$f":"'DATOS DEPORTISTAS'!I168","v":"VETERANO"},{"$f":"'DATOS DEPORTISTAS'!M168","v":"RAMÓN ICHASO JIMÉNEZ"}]
[null,{"$f":"'DATOS DEPORTISTAS'!V169","v":"OS NABATERS D.F."},{"$f":"'DATOS DEPORTISTAS'!I169","v":"SENIOR"},{"$f":"'DATOS DEPORTISTAS'!M169","v":"GUILLÉN VICENTE MIRANDA"}]
[null,{"$f":"'DATOS DEPORTISTAS'!V170","v":"CENTRO NATACION HELIOS"},{"$f":"'DATOS DEPORTISTAS'!I170","v":"SENIOR"},{"$f":"'DATOS DEPORTISTAS'!M170","v":"RODRIGO SERGIO FLORES CASTILLO"}]
[null,{"$f":"'DATOS DEPORTISTAS'!V171","v":"OS NABATERS D.F."},{"$f":"'DATOS DEPORTISTAS'!I171","v":"SENIOR"},{"$f":"'DATOS DEPORTISTAS'!M171","v":"JORGE PONCE USÓN"}]
[null,{"$f":"'DATOS DEPORTISTAS'!V172","v":"OS NABATERS D.F."},{"$f":"'DATOS DEPORTISTAS'!I172","v":"VETERANO"},{"$f":"'DATOS DEPORTISTAS'!M172","v":"RAÚL DÍEZ DÍEZ"}]
[null,{"$f":"'DATOS DEPORTISTAS'!V173","v":"OS NABATERS D.F."},{"$f":"'DATOS DEPORTISTAS'!I173","v":"INFANTIL"},{"$f":"'DATOS DEPORTISTAS'!M173","v":"CÉSAR DÍEZ MOZOTA"}]
[null,{"$f":"'DATOS DEPORTISTAS'!V174","v":"OS NABATERS D.F."},{"$f":"'DATOS DEPORTISTAS'!I174","v":"SENIOR"},{"$f":"'DATOS DEPORTISTAS'!M174","v":"SUSANA PONCE USÓN"}]
[null,{"$f":"'DATOS DEPORTISTAS'!V175","v":"OS NABATERS D.F."},{"$f":"'DATOS DEPORTISTAS'!I175","v":"SENIOR"},{"$f":"'DATOS DEPORTISTAS'!M175","v":"ADRIÁN AZNAR SAMPER"}]
[null,{"$f":"'DATOS DEPORTISTAS'!V176","v":"OS NABATERS D.F."},{"$f":"'DATOS DEPORTISTAS'!I176","v":"SENIOR"},{"$f":"'DATOS DEPORTISTAS'!M176","v":"ANA RUBIO EZPELETA"}]
[null,{"$f":"'DATOS DEPORTISTAS'!V177","v":"OS NABATERS D.F."},{"$f":"'DATOS DEPORTISTAS'!I177","v":"SENIOR"},{"$f":"'DATOS DEPORTISTAS'!M177","v":"TATIANA CANO GALLEGO"}]
[null,{"$f":"'DATOS DEPORTISTAS'!V178","v":"OS NABATERS D.F."},{"$f":"'DATOS DEPORTISTAS'!I178","v":"SENIOR"},{"$f":"'DATOS DEPORTISTAS'!M178","v":"PEDRO OLLOQUI LÁZARO"}]
[null,{"$f":"'DATOS DEPORTISTAS'!V179","v":"OS NABATERS D.F."},{"$f":"'DATOS DEPORTISTAS'!I179","v":"INFANTIL"},{"$f":"'DATOS DEPORTISTAS'!M179","v":"ALICIA CABALLERO DE TORO"}]
[null,{"$f":"'DATOS DEPORTISTAS'!V180","v":"OS NABATERS D.F."},{"$f":"'DATOS DEPORTISTAS'!I180","v":"VETERANO"},{"$f":"'DATOS DEPORTISTAS'!M180","v":"ANDREA LARA MATAIX MONTANER"}]
[null,{"$f":"'DATOS DEPORTISTAS'!V181","v":"OS NABATERS D.F."},{"$f":"'DATOS DEPORTISTAS'!I181","v":"VETERANO"},{"$f":"'DATOS DEPORTISTAS'!M181","v":"JAVIER ROMEO GIL"}]
[null,{"$f":"'DATOS DEPORTISTAS'!V182","v":"OS NABATERS D.F."},{"$f":"'DATOS DEPORTISTAS'!I182","v":"ALEVIN"},{"$f":"'DATOS DEPORTISTAS'!M182","v":"LEO HIDALGO FERNÁNDEZ"}]
[null,{"$f":"'DATOS DEPORTISTAS'!V183","v":"CENTRO NATACION HELIOS"},{"$f":"'DATOS DEPORTISTAS'!I183","v":"VETERANO"},{"$f":"'DATOS DEPORTISTAS'!M183","v":"SERGIO LARROSA AZNAR"}]
[null,{"$f":"'DATOS DEPORTISTAS'!V184","v":"CENTRO NATACION HELIOS"},{"$f":"'DATOS DEPORTISTAS'!I184","v":"VETERANO"},{"$f":"'DATOS DEPORTISTAS'!M184","v":"JULIO BIELSA ARTIDIELLO"}]
[null,{"$f":"'DATOS DEPORTISTAS'!V185","v":"CENTRO NATACION HELIOS"},{"$f":"'DATOS DEPORTISTAS'!I185","v":"SENIOR"},{"$f":"'DATOS DEPORTISTAS'!M185","v":"CLAUDIA MARTÍN GONZÁLEZ"}]
[null,{"$f":"'DATOS DEPORTISTAS'!V186","v":"CENTRO NATACION HELIOS"},{"$f":"'DATOS DEPORTISTAS'!I186","v":"VETERANO"},{"$f":"'DATOS DEPORTISTAS'!M186","v":"ESMERALDA AGUAS GARCÍA"}]
[null,{"$f":"'DATOS DEPORTISTAS'!V187","v":"CENTRO NATACION HELIOS"},{"$f":"'DATOS DEPORTISTAS'!I187","v":"CADETE"},{"$f":"'DATOS DEPORTISTAS'!M187","v":"SOFÍA MONTANER ALFARO"}]
[null,{"$f":"'DATOS DEPORTISTAS'!V188","v":"CENTRO NATACION HELIOS"},{"$f":"'DATOS DEPORTISTAS'!I188","v":"SENIOR"},{"$f":"'DATOS DEPORTISTAS'!M188","v":"FRANCISCO DE ASÍS LACRUZ SANZ"}]
[null,{"$f":"'DATOS DEPORTISTAS'!V189","v":"CENTRO NATACION HELIOS"},{"$f":"'DATOS DEPORTISTAS'!I189","v":"VETERANO"},{"$f":"'DATOS DEPORTISTAS'!M189","v":"JOSÉ GABRIEL SEBASTIÁN BELANCHE"}]
[null,{"$f":"'DATOS DEPORTISTAS'!V190","v":"CENTRO NATACION HELIOS"},{"$f":"'DATOS DEPORTISTAS'!I190","v":"JUVENIL"},{"$f":"'DATOS DEPORTISTAS'!M190","v":"IKER ALONSO ROCHE"}]
[null,{"$f":"'DATOS DEPORTISTAS'!V191","v":"OS NABATERS D.F."},{"$f":"'DATOS DEPORTISTAS'!I191","v":"VETERANO"},{"$f":"'DATOS DEPORTISTAS'!M191","v":"MARÍA AZUCENA FERNÁNDEZ RUIZ"}]
[null,{"$f":"'DATOS DEPORTISTAS'!V192","v":"OS NABATERS D.F."},{"$f":"'DATOS DEPORTISTAS'!I192","v":"CADETE"},{"$f":"'DATOS DEPORTISTAS'!M192","v":"DAVID MARCOS GARCÍA"}]
[null,{"$f":"'DATOS DEPORTISTAS'!V193","v":"OS NABATERS D.F."},{"$f":"'DATOS DEPORTISTAS'!I193","v":"ALEVIN"},{"$f":"'DATOS DEPORTISTAS'!M193","v":"JORGE OBENSA SIERRA"}]
[null,{"$f":"'DATOS DEPORTISTAS'!V194","v":"CENTRO NATACION HELIOS"},{"$f":"'DATOS DEPORTISTAS'!I194","v":"SENIOR"},{"$f":"'DATOS DEPORTISTAS'!M194","v":"LEIRE PÉREZ DE ACHA"}]
[null,{"$f":"'DATOS DEPORTISTAS'!V195","v":"OS NABATERS D.F."},{"$f":"'DATOS DEPORTISTAS'!I195","v":"JUVENIL"},{"$f":"'DATOS DEPORTISTAS'!M195","v":"DARÍO CANO JIMÉNEZ"}]
[null,{"$f":"'DATOS DEPORTISTAS'!V196","v":"OS NABATERS D.F."},{"$f":"'DATOS DEPORTISTAS'!I196","v":"CADETE"},{"$f":"'DATOS DEPORTISTAS'!M196","v":"ALBERTO CIRIA FERNÁNDEZ"}]
[null,{"$f":"'DATOS DEPORTISTAS'!V197","v":"OS NABATERS D.F."},{"$f":"'DATOS DEPORTISTAS'!I197","v":"VETERANO"},{"$f":"'DATOS DEPORTISTAS'!M197","v":"ALICIA PILAR ESTEVAN EIXARCH"}]
[null,{"$f":"'DATOS DEPORTISTAS'!V198","v":"OS NABATERS D.F."},{"$f":"'DATOS DEPORTISTAS'!I198","v":"JUVENIL"},{"$f":"'DATOS DEPORTISTAS'!M198","v":"MANUEL FERNÁNDEZ MUNARRIZ"}]
[null,{"$f":"'DATOS DEPORTISTAS'!V199","v":"OS NABATERS D.F."},{"$f":"'DATOS DEPORTISTAS'!I199","v":"VETERANO"},{"$f":"'DATOS DEPORTISTAS'!M199","v":"SERGIO AURED ANTÓN"}]
[null,{"$f":"'DATOS DEPORTISTAS'!V200","v":"OS NABATERS D.F."},{"$f":"'DATOS DEPORTISTAS'!I200","v":"VETERANO"},{"$f":"'DATOS DEPORTISTAS'!M200","v":"DAVID OLMO NADAL"}]
[null,{"$f":"'DATOS DEPORTISTAS'!V201","v":"OS NABATERS D.F."},{"$f":"'DATOS DEPORTISTAS'!I201","v":"INFANTIL"},{"$f":"'DATOS DEPORTISTAS'!M201","v":"SIENA GIMENO BACHILLER"}]
[null,{"$f":"'DATOS DEPORTISTAS'!V202","v":"OS NABATERS D.F."},{"$f":"'DATOS DEPORTISTAS'!I202","v":"CADETE"},{"$f":"'DATOS DEPORTISTAS'!M202","v":"ALEJANDRO DUCE CASCANTE"}]
[null,{"$f":"'DATOS DEPORTISTAS'!V203","v":"OS NABATERS D.F."},{"$f":"'DATOS DEPORTISTAS'!I203","v":"SENIOR"},{"$f":"'DATOS DEPORTISTAS'!M203","v":"RAQUEL HERNÁNDEZ ROYO"}]
[null,{"$f":"'DATOS DEPORTISTAS'!V204","v":"OS NABATERS D.F."},{"$f":"'DATOS DEPORTISTAS'!I204","v":"VETERANO"},{"$f":"'DATOS DEPORTISTAS'!M204","v":"SANTIAGO LAVILLA TENÍAS"}]
[null,{"$f":"'DATOS DEPORTISTAS'!V205","v":"OS NABATERS D.F."},{"$f":"'DATOS DEPORTISTAS'!I205","v":"VETERANO"},{"$f":"'DATOS DEPORTISTAS'!M205","v":"JOSÉ LUIS HERNÁNDEZ PASCUAL"}]
[null,{"$f":"'DATOS DEPORTISTAS'!V206","v":"OS NABATERS D.F."},{"$f":"'DATOS DEPORTISTAS'!I206","v":"INFANTIL"},{"$f":"'DATOS DEPORTISTAS'!M206","v":"RUBÉN SORIA GARCÍA"}]
[null,{"$f":"'DATOS DEPORTISTAS'!V207","v":"OS NABATERS D.F."},{"$f":"'DATOS DEPORTISTAS'!I207","v":"SENIOR"},{"$f":"'DATOS DEPORTISTAS'!M207","v":"CELIA PEÑA ROMERO DE TEJADA"}]
[null,{"$f":"'DATOS DEPORTISTAS'!V208","v":"OS NABATERS D.F."},{"$f":"'DATOS DEPORTISTAS'!I208","v":"SENIOR"},{"$f":"'DATOS DEPORTISTAS'!M208","v":"ANDREA HERNANDO FERRER"}]
[null,{"$f":"'DATOS DEPORTISTAS'!V209","v":"OS NABATERS D.F."},{"$f":"'DATOS DEPORTISTAS'!I209","v":"SENIOR"},{"$f":"'DATOS DEPORTISTAS'!M209","v":"RAQUEL DE MIGUEL GRACIA"}]
[null,{"$f":"'DATOS DEPORTISTAS'!V210","v":"OS NABATERS D.F."},{"$f":"'DATOS DEPORTISTAS'!I210","v":"VETERANO"},{"$f":"'DATOS DEPORTISTAS'!M210","v":"MERCEDES GIMÉNEZ HERRERO"}]
[null,{"$f":"'DATOS DEPORTISTAS'!V211","v":"OS NABATERS D.F."},{"$f":"'DATOS DEPORTISTAS'!I211","v":"SENIOR"},{"$f":"'DATOS DEPORTISTAS'!M211","v":"JOSÉ LUIS ARBUES ANDRES"}]
[null,{"$f":"'DATOS DEPORTISTAS'!V212","v":"OS NABATERS D.F."},{"$f":"'DATOS DEPORTISTAS'!I212","v":"VETERANO"},{"$f":"'DATOS DEPORTISTAS'!M212","v":"CARMEN GÓMEZ RUBIO"}]
[null,{"$f":"'DATOS DEPORTISTAS'!V213","v":"OS NABATERS D.F."},{"$f":"'DATOS DEPORTISTAS'!I213","v":"VETERANO"},{"$f":"'DATOS DEPORTISTAS'!M213","v":"JOSÉ CARMELO RICO MORENO"}]
[null,{"$f":"'DATOS DEPORTISTAS'!V214","v":"OS NABATERS D.F."},{"$f":"'DATOS DEPORTISTAS'!I214","v":"VETERANO"},{"$f":"'DATOS DEPORTISTAS'!M214","v":"RAUL BURGUETE URIOL"}]
[null,{"$f":"'DATOS DEPORTISTAS'!V215","v":"OS NABATERS D.F."},{"$f":"'DATOS DEPORTISTAS'!I215","v":"VETERANO"},{"$f":"'DATOS DEPORTISTAS'!M215","v":"LAURA CHOMALI"}]
[null,{"$f":"'DATOS DEPORTISTAS'!V216","v":"OS NABATERS D.F."},{"$f":"'DATOS DEPORTISTAS'!I216","v":"SENIOR"},{"$f":"'DATOS DEPORTISTAS'!M216","v":"ALEJANDRO VILLACAMPA RÍOS"}]
[null,{"$f":"'DATOS DEPORTISTAS'!V224","v":0},{"$f":"'DATOS DEPORTISTAS'!I224","v":0},{"$f":"'DATOS DEPORTISTAS'!M224","v":0}]
[null,{"$f":"'DATOS DEPORTISTAS'!V225","v":0},{"$f":"'DATOS DEPORTISTAS'!I225","v":0},{"$f":"'DATOS DEPORTISTAS'!M225","v":0}]
[null,{"$f":"'DATOS DEPORTISTAS'!V226","v":0},{"$f":"'DATOS DEPORTISTAS'!I226","v":0},{"$f":"'DATOS DEPORTISTAS'!M226","v":0}]
[null,{"$f":"'DATOS DEPORTISTAS'!V227","v":0},{"$f":"'DATOS DEPORTISTAS'!I227","v":0},{"$f":"'DATOS DEPORTISTAS'!M227","v":0}]
[null,{"$f":"'DATOS DEPORTISTAS'!V228","v":0},{"$f":"'DATOS DEPORTISTAS'!I228","v":0},{"$f":"'DATOS DEPORTISTAS'!M228","v":0}]
[null,{"$f":"'DATOS DEPORTISTAS'!V229","v":0},{"$f":"'DATOS DEPORTISTAS'!I229","v":0},{"$f":"'DATOS DEPORTISTAS'!M229","v":0}]
[null,{"$f":"'DATOS DEPORTISTAS'!V230","v":0},{"$f":"'DATOS DEPORTISTAS'!I230","v":0},{"$f":"'DATOS DEPORTISTAS'!M230","v":0}]
[null,{"$f":"'DATOS DEPORTISTAS'!V231","v":0},{"$f":"'DATOS DEPORTISTAS'!I231","v":0},{"$f":"'DATOS DEPORTISTAS'!M231","v":0}]
[null,{"$f":"'DATOS DEPORTISTAS'!V232","v":0},{"$f":"'DATOS DEPORTISTAS'!I232","v":0},{"$f":"'DATOS DEPORTISTAS'!M232","v":0}]
[null,{"$f":"'DATOS DEPORTISTAS'!V233","v":0},{"$f":"'DATOS DEPORTISTAS'!I233","v":0},{"$f":"'DATOS DEPORTISTAS'!M233","v":0}]
[null,{"$f":"'DATOS DEPORTISTAS'!V234","v":0},{"$f":"'DATOS DEPORTISTAS'!I234","v":0},{"$f":"'DATOS DEPORTISTAS'!M234","v":0}]
[null,{"$f":"'DATOS DEPORTISTAS'!V235","v":0},{"$f":"'DATOS DEPORTISTAS'!I235","v":0},{"$f":"'DATOS DEPORTISTAS'!M235","v":0}]
[null,{"$f":"'DATOS DEPORTISTAS'!V236","v":0},{"$f":"'DATOS DEPORTISTAS'!I236","v":0},{"$f":"'DATOS DEPORTISTAS'!M236","v":0}]
[null,{"$f":"'DATOS DEPORTISTAS'!V237","v":0},{"$f":"'DATOS DEPORTISTAS'!I237","v":0},{"$f":"'DATOS DEPORTISTAS'!M237","v":0}]
[null,{"$f":"'DATOS DEPORTISTAS'!V238","v":0},{"$f":"'DATOS DEPORTISTAS'!I238","v":0},{"$f":"'DATOS DEPORTISTAS'!M238","v":0}]
[null,{"$f":"'DATOS DEPORTISTAS'!V239","v":0},{"$f":"'DATOS DEPORTISTAS'!I239","v":0},{"$f":"'DATOS DEPORTISTAS'!M239","v":0}]
[null,{"$f":"'DATOS DEPORTISTAS'!V240","v":0},{"$f":"'DATOS DEPORTISTAS'!I240","v":0},{"$f":"'DATOS DEPORTISTAS'!M240","v":0}]
[null,{"$f":"'DATOS DEPORTISTAS'!V241","v":0},{"$f":"'DATOS DEPORTISTAS'!I241","v":0},{"$f":"'DATOS DEPORTISTAS'!M241","v":0}]
[null,{"$f":"'DATOS DEPORTISTAS'!V242","v":0},{"$f":"'DATOS DEPORTISTAS'!I242","v":0},{"$f":"'DATOS DEPORTISTAS'!M242","v":0}]
[null,{"$f":"'DATOS DEPORTISTAS'!V243","v":0},{"$f":"'DATOS DEPORTISTAS'!I243","v":0},{"$f":"'DATOS DEPORTISTAS'!M243","v":0}]
[null,{"$f":"'DATOS DEPORTISTAS'!V244","v":0},{"$f":"'DATOS DEPORTISTAS'!I244","v":0},{"$f":"'DATOS DEPORTISTAS'!M244","v":0}]
[null,{"$f":"'DATOS DEPORTISTAS'!V245","v":0},{"$f":"'DATOS DEPORTISTAS'!I245","v":0},{"$f":"'DATOS DEPORTISTAS'!M245","v":0}]
[null,{"$f":"'DATOS DEPORTISTAS'!V246","v":0},{"$f":"'DATOS DEPORTISTAS'!I246","v":0},{"$f":"'DATOS DEPORTISTAS'!M246","v":0}]
[null,{"$f":"'DATOS DEPORTISTAS'!V247","v":0},{"$f":"'DATOS DEPORTISTAS'!I247","v":0},{"$f":"'DATOS DEPORTISTAS'!M247","v":0}]
[null,{"$f":"'DATOS DEPORTISTAS'!V248","v":0},{"$f":"'DATOS DEPORTISTAS'!I248","v":0},{"$f":"'DATOS DEPORTISTAS'!M248","v":0}]
[null,{"$f":"'DATOS DEPORTISTAS'!V249","v":0},{"$f":"'DATOS DEPORTISTAS'!I249","v":0},{"$f":"'DATOS DEPORTISTAS'!M249","v":0}]
[null,{"$f":"'DATOS DEPORTISTAS'!V250","v":0},{"$f":"'DATOS DEPORTISTAS'!I250","v":0},{"$f":"'DATOS DEPORTISTAS'!M250","v":0}]
[null,{"$f":"'DATOS DEPORTISTAS'!V251","v":0},{"$f":"'DATOS DEPORTISTAS'!I251","v":0},{"$f":"'DATOS DEPORTISTAS'!M251","v":0}]
[null,{"$f":"'DATOS DEPORTISTAS'!V252","v":0},{"$f":"'DATOS DEPORTISTAS'!I252","v":0},{"$f":"'DATOS DEPORTISTAS'!M252","v":0}]
[null,{"$f":"'DATOS DEPORTISTAS'!V253","v":0},{"$f":"'DATOS DEPORTISTAS'!I253","v":0},{"$f":"'DATOS DEPORTISTAS'!M253","v":0}]
[null,{"$f":"'DATOS DEPORTISTAS'!V254","v":0},{"$f":"'DATOS DEPORTISTAS'!I254","v":0},{"$f":"'DATOS DEPORTISTAS'!M254","v":0}]
[null,{"$f":"'DATOS DEPORTISTAS'!V255","v":0},{"$f":"'DATOS DEPORTISTAS'!I255","v":0},{"$f":"'DATOS DEPORTISTAS'!M255","v":0}]
[null,{"$f":"'DATOS DEPORTISTAS'!V256","v":0},{"$f":"'DATOS DEPORTISTAS'!I256","v":0},{"$f":"'DATOS DEPORTISTAS'!M256","v":0}]
[null,{"$f":"'DATOS DEPORTISTAS'!V257","v":0},{"$f":"'DATOS DEPORTISTAS'!I257","v":0},{"$f":"'DATOS DEPORTISTAS'!M257","v":0}]
[null,{"$f":"'DATOS DEPORTISTAS'!V258","v":0},{"$f":"'DATOS DEPORTISTAS'!I258","v":0},{"$f":"'DATOS DEPORTISTAS'!M258","v":0}]
[null,{"$f":"'DATOS DEPORTISTAS'!V259","v":0},{"$f":"'DATOS DEPORTISTAS'!I259","v":0},{"$f":"'DATOS DEPORTISTAS'!M259","v":0}]
[null,{"$f":"'DATOS DEPORTISTAS'!V260","v":0},{"$f":"'DATOS DEPORTISTAS'!I260","v":0},{"$f":"'DATOS DEPORTISTAS'!M260","v":0}]
[null,{"$f":"'DATOS DEPORTISTAS'!V261","v":0},{"$f":"'DATOS DEPORTISTAS'!I261","v":0},{"$f":"'DATOS DEPORTISTAS'!M261","v":0}]
[null,{"$f":"'DATOS DEPORTISTAS'!V262","v":0},{"$f":"'DATOS DEPORTISTAS'!I262","v":0},{"$f":"'DATOS DEPORTISTAS'!M262","v":0}]
[null,{"$f":"'DATOS DEPORTISTAS'!V263","v":0},{"$f":"'DATOS DEPORTISTAS'!I263","v":0},{"$f":"'DATOS DEPORTISTAS'!M263","v":0}]
[null,{"$f":"'DATOS DEPORTISTAS'!V264","v":0},{"$f":"'DATOS DEPORTISTAS'!I264","v":0},{"$f":"'DATOS DEPORTISTAS'!M264","v":0}]
[null,{"$f":"'DATOS DEPORTISTAS'!V265","v":0},{"$f":"'DATOS DEPORTISTAS'!I265","v":0},{"$f":"'DATOS DEPORTISTAS'!M265","v":0}]
[null,{"$f":"'DATOS DEPORTISTAS'!V266","v":0},{"$f":"'DATOS DEPORTISTAS'!I266","v":0},{"$f":"'DATOS DEPORTISTAS'!M266","v":0}]
[null,{"$f":"'DATOS DEPORTISTAS'!V267","v":0},{"$f":"'DATOS DEPORTISTAS'!I267","v":0},{"$f":"'DATOS DEPORTISTAS'!M267","v":0}]
[null,{"$f":"'DATOS DEPORTISTAS'!V268","v":0},{"$f":"'DATOS DEPORTISTAS'!I268","v":0},{"$f":"'DATOS DEPORTISTAS'!M268","v":0}]
[null,{"$f":"'DATOS DEPORTISTAS'!V269","v":0},{"$f":"'DATOS DEPORTISTAS'!I269","v":0},{"$f":"'DATOS DEPORTISTAS'!M269","v":0}]
[null,{"$f":"'DATOS DEPORTISTAS'!V270","v":0},{"$f":"'DATOS DEPORTISTAS'!I270","v":0},{"$f":"'DATOS DEPORTISTAS'!M270","v":0}]
[null,{"$f":"'DATOS DEPORTISTAS'!V271","v":0},{"$f":"'DATOS DEPORTISTAS'!I271","v":0},{"$f":"'DATOS DEPORTISTAS'!M271","v":0}]
[null,{"$f":"'DATOS DEPORTISTAS'!V272","v":0},{"$f":"'DATOS DEPORTISTAS'!I272","v":0},{"$f":"'DATOS DEPORTISTAS'!M272","v":0}]
[null,{"$f":"'DATOS DEPORTISTAS'!V273","v":0},{"$f":"'DATOS DEPORTISTAS'!I273","v":0},{"$f":"'DATOS DEPORTISTAS'!M273","v":0}]
[null,{"$f":"'DATOS DEPORTISTAS'!V274","v":0},{"$f":"'DATOS DEPORTISTAS'!I274","v":0},{"$f":"'DATOS DEPORTISTAS'!M274","v":0}]
[null,{"$f":"'DATOS DEPORTISTAS'!V275","v":0},{"$f":"'DATOS DEPORTISTAS'!I275","v":0},{"$f":"'DATOS DEPORTISTAS'!M275","v":0}]
[null,{"$f":"'DATOS DEPORTISTAS'!V276","v":0},{"$f":"'DATOS DEPORTISTAS'!I276","v":0},{"$f":"'DATOS DEPORTISTAS'!M276","v":0}]
[null,{"$f":"'DATOS DEPORTISTAS'!V277","v":0},{"$f":"'DATOS DEPORTISTAS'!I277","v":0},{"$f":"'DATOS DEPORTISTAS'!M277","v":0}]
[null,{"$f":"'DATOS DEPORTISTAS'!V278","v":0},{"$f":"'DATOS DEPORTISTAS'!I278","v":0},{"$f":"'DATOS DEPORTISTAS'!M278","v":0}]
[null,{"$f":"'DATOS DEPORTISTAS'!V279","v":0},{"$f":"'DATOS DEPORTISTAS'!I279","v":0},{"$f":"'DATOS DEPORTISTAS'!M279","v":0}]
[null,{"$f":"'DATOS DEPORTISTAS'!V280","v":0},{"$f":"'DATOS DEPORTISTAS'!I280","v":0},{"$f":"'DATOS DEPORTISTAS'!M280","v":0}]
[null,{"$f":"'DATOS DEPORTISTAS'!V281","v":0},{"$f":"'DATOS DEPORTISTAS'!I281","v":0},{"$f":"'DATOS DEPORTISTAS'!M281","v":0}]
[null,{"$f":"'DATOS DEPORTISTAS'!V282","v":0},{"$f":"'DATOS DEPORTISTAS'!I282","v":0},{"$f":"'DATOS DEPORTISTAS'!M282","v":0}]
[null,{"$f":"'DATOS DEPORTISTAS'!V283","v":0},{"$f":"'DATOS DEPORTISTAS'!I283","v":0},{"$f":"'DATOS DEPORTISTAS'!M283","v":0}]
[null,{"$f":"'DATOS DEPORTISTAS'!V284","v":0},{"$f":"'DATOS DEPORTISTAS'!I284","v":0},{"$f":"'DATOS DEPORTISTAS'!M284","v":0}]
[null,{"$f":"'DATOS DEPORTISTAS'!V285","v":0},{"$f":"'DATOS DEPORTISTAS'!I285","v":0},{"$f":"'DATOS DEPORTISTAS'!M285","v":0}]
[null,{"$f":"'DATOS DEPORTISTAS'!V286","v":0},{"$f":"'DATOS DEPORTISTAS'!I286","v":0},{"$f":"'DATOS DEPORTISTAS'!M286","v":0}]
[null,{"$f":"'DATOS DEPORTISTAS'!V287","v":0},{"$f":"'DATOS DEPORTISTAS'!I287","v":0},{"$f":"'DATOS DEPORTISTAS'!M287","v":0}]
[null,{"$f":"'DATOS DEPORTISTAS'!V288","v":0},{"$f":"'DATOS DEPORTISTAS'!I288","v":0},{"$f":"'DATOS DEPORTISTAS'!M288","v":0}]
[null,{"$f":"'DATOS DEPORTISTAS'!V289","v":0},{"$f":"'DATOS DEPORTISTAS'!I289","v":0},{"$f":"'DATOS DEPORTISTAS'!M289","v":0}]
[null,{"$f":"'DATOS DEPORTISTAS'!V290","v":0},{"$f":"'DATOS DEPORTISTAS'!I290","v":0},{"$f":"'DATOS DEPORTISTAS'!M290","v":0}]
[null,{"$f":"'DATOS DEPORTISTAS'!V291","v":0},{"$f":"'DATOS DEPORTISTAS'!I291","v":0},{"$f":"'DATOS DEPORTISTAS'!M291","v":0}]
[null,{"$f":"'DATOS DEPORTISTAS'!V292","v":0},{"$f":"'DATOS DEPORTISTAS'!I292","v":0},{"$f":"'DATOS DEPORTISTAS'!M292","v":0}]
[null,{"$f":"'DATOS DEPORTISTAS'!V293","v":0},{"$f":"'DATOS DEPORTISTAS'!I293","v":0},{"$f":"'DATOS DEPORTISTAS'!M293","v":0}]
[null,{"$f":"'DATOS DEPORTISTAS'!V294","v":0},{"$f":"'DATOS DEPORTISTAS'!I294","v":0},{"$f":"'DATOS DEPORTISTAS'!M294","v":0}]
[null,{"$f":"'DATOS DEPORTISTAS'!V295","v":0},{"$f":"'DATOS DEPORTISTAS'!I295","v":0},{"$f":"'DATOS DEPORTISTAS'!M295","v":0}]
[null,{"$f":"'DATOS DEPORTISTAS'!V296","v":0},{"$f":"'DATOS DEPORTISTAS'!I296","v":0},{"$f":"'DATOS DEPORTISTAS'!M296","v":0}]
[null,{"$f":"'DATOS DEPORTISTAS'!V297","v":0},{"$f":"'DATOS DEPORTISTAS'!I297","v":0},{"$f":"'DATOS DEPORTISTAS'!M297","v":0}]
[null,{"$f":"'DATOS DEPORTISTAS'!V298","v":0},{"$f":"'DATOS DEPORTISTAS'!I298","v":0},{"$f":"'DATOS DEPORTISTAS'!M298","v":0}]
[null,{"$f":"'DATOS DEPORTISTAS'!V299","v":0},{"$f":"'DATOS DEPORTISTAS'!I299","v":0},{"$f":"'DATOS DEPORTISTAS'!M299","v":0}]
[null,{"$f":"'DATOS DEPORTISTAS'!V300","v":0},{"$f":"'DATOS DEPORTISTAS'!I300","v":0},{"$f":"'DATOS DEPORTISTAS'!M300","v":0}]
[null,{"$f":"'DATOS DEPORTISTAS'!V301","v":0},{"$f":"'DATOS DEPORTISTAS'!I301","v":0},{"$f":"'DATOS DEPORTISTAS'!M301","v":0}]
[null,{"$f":"'DATOS DEPORTISTAS'!V302","v":0},{"$f":"'DATOS DEPORTISTAS'!I302","v":0},{"$f":"'DATOS DEPORTISTAS'!M302","v":0}]
[null,{"$f":"'DATOS DEPORTISTAS'!V303","v":0},{"$f":"'DATOS DEPORTISTAS'!I303","v":0},{"$f":"'DATOS DEPORTISTAS'!M303","v":0}]
[null,{"$f":"'DATOS DEPORTISTAS'!V304","v":0},{"$f":"'DATOS DEPORTISTAS'!I304","v":0},{"$f":"'DATOS DEPORTISTAS'!M304","v":0}]
[null,{"$f":"'DATOS DEPORTISTAS'!V305","v":0},{"$f":"'DATOS DEPORTISTAS'!I305","v":0},{"$f":"'DATOS DEPORTISTAS'!M305","v":0}]
[null,{"$f":"'DATOS DEPORTISTAS'!V306","v":0},{"$f":"'DATOS DEPORTISTAS'!I306","v":0},{"$f":"'DATOS DEPORTISTAS'!M306","v":0}]
[null,{"$f":"'DATOS DEPORTISTAS'!V307","v":0},{"$f":"'DATOS DEPORTISTAS'!I307","v":0},{"$f":"'DATOS DEPORTISTAS'!M307","v":0}]
[null,{"$f":"'DATOS DEPORTISTAS'!V308","v":0},{"$f":"'DATOS DEPORTISTAS'!I308","v":0},{"$f":"'DATOS DEPORTISTAS'!M308","v":0}]
[null,{"$f":"'DATOS DEPORTISTAS'!V309","v":0},{"$f":"'DATOS DEPORTISTAS'!I309","v":0},{"$f":"'DATOS DEPORTISTAS'!M309","v":0}]
[null,{"$f":"'DATOS DEPORTISTAS'!V310","v":0},{"$f":"'DATOS DEPORTISTAS'!I310","v":0},{"$f":"'DATOS DEPORTISTAS'!M310","v":0}]
[null,{"$f":"'DATOS DEPORTISTAS'!V311","v":0},{"$f":"'DATOS DEPORTISTAS'!I311","v":0},{"$f":"'DATOS DEPORTISTAS'!M311","v":0}]
[null,{"$f":"'DATOS DEPORTISTAS'!V312","v":0},{"$f":"'DATOS DEPORTISTAS'!I312","v":0},{"$f":"'DATOS DEPORTISTAS'!M312","v":0}]
[null,{"$f":"'DATOS DEPORTISTAS'!V313","v":0},{"$f":"'DATOS DEPORTISTAS'!I313","v":0},{"$f":"'DATOS DEPORTISTAS'!M313","v":0}]
[null,{"$f":"'DATOS DEPORTISTAS'!V314","v":0},{"$f":"'DATOS DEPORTISTAS'!I314","v":0},{"$f":"'DATOS DEPORTISTAS'!M314","v":0}]
[null,{"$f":"'DATOS DEPORTISTAS'!V315","v":0},{"$f":"'DATOS DEPORTISTAS'!I315","v":0},{"$f":"'DATOS DEPORTISTAS'!M315","v":0}]
[null,{"$f":"'DATOS DEPORTISTAS'!V316","v":0},{"$f":"'DATOS DEPORTISTAS'!I316","v":0},{"$f":"'DATOS DEPORTISTAS'!M316","v":0}]
[null,{"$f":"'DATOS DEPORTISTAS'!V317","v":0},{"$f":"'DATOS DEPORTISTAS'!I317","v":0},{"$f":"'DATOS DEPORTISTAS'!M317","v":0}]
[null,{"$f":"'DATOS DEPORTISTAS'!V318","v":0},{"$f":"'DATOS DEPORTISTAS'!I318","v":0},{"$f":"'DATOS DEPORTISTAS'!M318","v":0}]
[null,{"$f":"'DATOS DEPORTISTAS'!V319","v":0},{"$f":"'DATOS DEPORTISTAS'!I319","v":0},{"$f":"'DATOS DEPORTISTAS'!M319","v":0}]
[null,{"$f":"'DATOS DEPORTISTAS'!V320","v":0},{"$f":"'DATOS DEPORTISTAS'!I320","v":0},{"$f":"'DATOS DEPORTISTAS'!M320","v":0}]
[null,{"$f":"'DATOS DEPORTISTAS'!V321","v":0},{"$f":"'DATOS DEPORTISTAS'!I321","v":0},{"$f":"'DATOS DEPORTISTAS'!M321","v":0}]
[null,{"$f":"'DATOS DEPORTISTAS'!V322","v":0},{"$f":"'DATOS DEPORTISTAS'!I322","v":0},{"$f":"'DATOS DEPORTISTAS'!M322","v":0}]
[null,{"$f":"'DATOS DEPORTISTAS'!V323","v":0},{"$f":"'DATOS DEPORTISTAS'!I323","v":0},{"$f":"'DATOS DEPORTISTAS'!M323","v":0}]
[null,{"$f":"'DATOS DEPORTISTAS'!V324","v":0},{"$f":"'DATOS DEPORTISTAS'!I324","v":0},{"$f":"'DATOS DEPORTISTAS'!M324","v":0}]
[null,{"$f":"'DATOS DEPORTISTAS'!V325","v":0},{"$f":"'DATOS DEPORTISTAS'!I325","v":0},{"$f":"'DATOS DEPORTISTAS'!M325","v":0}]
[null,{"$f":"'DATOS DEPORTISTAS'!V326","v":0},{"$f":"'DATOS DEPORTISTAS'!I326","v":0},{"$f":"'DATOS DEPORTISTAS'!M326","v":0}]
[null,{"$f":"'DATOS DEPORTISTAS'!V327","v":0},{"$f":"'DATOS DEPORTISTAS'!I327","v":0},{"$f":"'DATOS DEPORTISTAS'!M327","v":0}]
[null,{"$f":"'DATOS DEPORTISTAS'!V328","v":0},{"$f":"'DATOS DEPORTISTAS'!I328","v":0},{"$f":"'DATOS DEPORTISTAS'!M328","v":0}]
[null,{"$f":"'DATOS DEPORTISTAS'!V329","v":0},{"$f":"'DATOS DEPORTISTAS'!I329","v":0},{"$f":"'DATOS DEPORTISTAS'!M329","v":0}]
[null,{"$f":"'DATOS DEPORTISTAS'!V330","v":0},{"$f":"'DATOS DEPORTISTAS'!I330","v":0},{"$f":"'DATOS DEPORTISTAS'!M330","v":0}]
[null,{"$f":"'DATOS DEPORTISTAS'!V331","v":0},{"$f":"'DATOS DEPORTISTAS'!I331","v":0},{"$f":"'DATOS DEPORTISTAS'!M331","v":0}]
[null,{"$f":"'DATOS DEPORTISTAS'!V332","v":0},{"$f":"'DATOS DEPORTISTAS'!I332","v":0},{"$f":"'DATOS DEPORTISTAS'!M332","v":0}]
[null,{"$f":"'DATOS DEPORTISTAS'!V333","v":0},{"$f":"'DATOS DEPORTISTAS'!I333","v":0},{"$f":"'DATOS DEPORTISTAS'!M333","v":0}]
[null,{"$f":"'DATOS DEPORTISTAS'!V334","v":0},{"$f":"'DATOS DEPORTISTAS'!I334","v":0},{"$f":"'DATOS DEPORTISTAS'!M334","v":0}]
[null,{"$f":"'DATOS DEPORTISTAS'!V335","v":0},{"$f":"'DATOS DEPORTISTAS'!I335","v":0},{"$f":"'DATOS DEPORTISTAS'!M335","v":0}]
[null,{"$f":"'DATOS DEPORTISTAS'!V336","v":0},{"$f":"'DATOS DEPORTISTAS'!I336","v":0},{"$f":"'DATOS DEPORTISTAS'!M336","v":0}]
[null,{"$f":"'DATOS DEPORTISTAS'!V337","v":0},{"$f":"'DATOS DEPORTISTAS'!I337","v":0},{"$f":"'DATOS DEPORTISTAS'!M337","v":0}]
[null,{"$f":"'DATOS DEPORTISTAS'!V338","v":0},{"$f":"'DATOS DEPORTISTAS'!I338","v":0},{"$f":"'DATOS DEPORTISTAS'!M338","v":0}]
[null,{"$f":"'DATOS DEPORTISTAS'!V339","v":0},{"$f":"'DATOS DEPORTISTAS'!I339","v":0},{"$f":"'DATOS DEPORTISTAS'!M339","v":0}]
[null,{"$f":"'DATOS DEPORTISTAS'!V469","v":0},{"$f":"'DATOS DEPORTISTAS'!I469","v":0},{"$f":"'DATOS DEPORTISTAS'!M469","v":0}]
[null,{"$f":"'DATOS DEPORTISTAS'!V470","v":0},{"$f":"'DATOS DEPORTISTAS'!I470","v":0},{"$f":"'DATOS DEPORTISTAS'!M470","v":0}]
[null,{"$f":"'DATOS DEPORTISTAS'!V471","v":0},{"$f":"'DATOS DEPORTISTAS'!I471","v":0},{"$f":"'DATOS DEPORTISTAS'!M471","v":0}]
[null,{"$f":"'DATOS DEPORTISTAS'!V472","v":0},{"$f":"'DATOS DEPORTISTAS'!I472","v":0},{"$f":"'DATOS DEPORTISTAS'!M472","v":0}]
[null,{"$f":"'DATOS DEPORTISTAS'!V473","v":0},{"$f":"'DATOS DEPORTISTAS'!I473","v":0},{"$f":"'DATOS DEPORTISTAS'!M473","v":0}]
[null,{"$f":"'DATOS DEPORTISTAS'!V474","v":0},{"$f":"'DATOS DEPORTISTAS'!I474","v":0},{"$f":"'DATOS DEPORTISTAS'!M474","v":0}]
[null,{"$f":"'DATOS DEPORTISTAS'!V475","v":0},{"$f":"'DATOS DEPORTISTAS'!I475","v":0},{"$f":"'DATOS DEPORTISTAS'!M475","v":0}]
[null,{"$f":"'DATOS DEPORTISTAS'!V476","v":0},{"$f":"'DATOS DEPORTISTAS'!I476","v":0},{"$f":"'DATOS DEPORTISTAS'!M476","v":0}]
[null,{"$f":"'DATOS DEPORTISTAS'!V477","v":0},{"$f":"'DATOS DEPORTISTAS'!I477","v":0},{"$f":"'DATOS DEPORTISTAS'!M477","v":0}]
[null,{"$f":"'DATOS DEPORTISTAS'!V478","v":0},{"$f":"'DATOS DEPORTISTAS'!I478","v":0},{"$f":"'DATOS DEPORTISTAS'!M478","v":0}]
[null,{"$f":"'DATOS DEPORTISTAS'!V479","v":0},{"$f":"'DATOS DEPORTISTAS'!I479","v":0},{"$f":"'DATOS DEPORTISTAS'!M479","v":0}]
[null,{"$f":"'DATOS DEPORTISTAS'!V480","v":0},{"$f":"'DATOS DEPORTISTAS'!I480","v":0},{"$f":"'DATOS DEPORTISTAS'!M480","v":0}]
[null,{"$f":"'DATOS DEPORTISTAS'!V481","v":0},{"$f":"'DATOS DEPORTISTAS'!V481","v":0},{"$f":"'DATOS DEPORTISTAS'!M481","v":0}]
[null,{"$f":"'DATOS DEPORTISTAS'!V482","v":0},{"$f":"'DATOS DEPORTISTAS'!I482","v":0},{"$f":"'DATOS DEPORTISTAS'!M482","v":0}]
[null,{"$f":"'DATOS DEPORTISTAS'!V483","v":0},{"$f":"'DATOS DEPORTISTAS'!V483","v":0},{"$f":"'DATOS DEPORTISTAS'!M483","v":0}]
[null,{"$f":"'DATOS DEPORTISTAS'!V484","v":0},{"$f":"'DATOS DEPORTISTAS'!I484","v":0},{"$f":"'DATOS DEPORTISTAS'!M484","v":0}]
[null,{"$f":"'DATOS DEPORTISTAS'!V485","v":0},{"$f":"'DATOS DEPORTISTAS'!I485","v":0},{"$f":"'DATOS DEPORTISTAS'!M485","v":0}]
[null,{"$f":"'DATOS DEPORTISTAS'!V486","v":0},{"$f":"'DATOS DEPORTISTAS'!I486","v":0},{"$f":"'DATOS DEPORTISTAS'!M486","v":0}]
[null,{"$f":"'DATOS DEPORTISTAS'!V487","v":0},{"$f":"'DATOS DEPORTISTAS'!I487","v":0},{"$f":"'DATOS DEPORTISTAS'!M487","v":0}]
[null,{"$f":"'DATOS DEPORTISTAS'!V488","v":0},{"$f":"'DATOS DEPORTISTAS'!I488","v":0},{"$f":"'DATOS DEPORTISTAS'!M488","v":0}]
[null,{"$f":"'DATOS DEPORTISTAS'!V489","v":0},{"$f":"'DATOS DEPORTISTAS'!I489","v":0},{"$f":"'DATOS DEPORTISTAS'!M489","v":0}]
[null,{"$f":"'DATOS DEPORTISTAS'!V490","v":0},{"$f":"'DATOS DEPORTISTAS'!I490","v":0},{"$f":"'DATOS DEPORTISTAS'!M490","v":0}]
[null,{"$f":"'DATOS DEPORTISTAS'!V491","v":0},{"$f":"'DATOS DEPORTISTAS'!I491","v":0},{"$f":"'DATOS DEPORTISTAS'!M491","v":0}]
[null,{"$f":"'DATOS DEPORTISTAS'!V492","v":0},{"$f":"'DATOS DEPORTISTAS'!I492","v":0},{"$f":"'DATOS DEPORTISTAS'!M492","v":0}]
[null,{"$f":"'DATOS DEPORTISTAS'!V493","v":0},{"$f":"'DATOS DEPORTISTAS'!I493","v":0},{"$f":"'DATOS DEPORTISTAS'!M493","v":0}]
[null,{"$f":"'DATOS DEPORTISTAS'!V494","v":0},{"$f":"'DATOS DEPORTISTAS'!I494","v":0},{"$f":"'DATOS DEPORTISTAS'!M494","v":0}]
[null,{"$f":"'DATOS DEPORTISTAS'!V495","v":0},{"$f":"'DATOS DEPORTISTAS'!I495","v":0},{"$f":"'DATOS DEPORTISTAS'!M495","v":0}]
[null,{"$f":"'DATOS DEPORTISTAS'!V496","v":0},{"$f":"'DATOS DEPORTISTAS'!I496","v":0},{"$f":"'DATOS DEPORTISTAS'!M496","v":0}]
[null,{"$f":"'DATOS DEPORTISTAS'!V497","v":0},{"$f":"'DATOS DEPORTISTAS'!I497","v":0},{"$f":"'DATOS DEPORTISTAS'!M497","v":0}]
[null,{"$f":"'DATOS DEPORTISTAS'!V498","v":0},{"$f":"'DATOS DEPORTISTAS'!I498","v":0},{"$f":"'DATOS DEPORTISTAS'!M498","v":0}]
[null,{"$f":"'DATOS DEPORTISTAS'!V499","v":0},{"$f":"'DATOS DEPORTISTAS'!I499","v":0},{"$f":"'DATOS DEPORTISTAS'!M499","v":0}]
[null,{"$f":"'DATOS DEPORTISTAS'!V500","v":0},{"$f":"'DATOS DEPORTISTAS'!I500","v":0},{"$f":"'DATOS DEPORTISTAS'!M500","v":0}]
[null,{"$f":"'DATOS DEPORTISTAS'!V501","v":0},{"$f":"'DATOS DEPORTISTAS'!I501","v":0},{"$f":"'DATOS DEPORTISTAS'!M501","v":0}]
[null,{"$f":"'DATOS DEPORTISTAS'!V502","v":0},{"$f":"'DATOS DEPORTISTAS'!I502","v":0},{"$f":"'DATOS DEPORTISTAS'!M502","v":0}]
[null,{"$f":"'DATOS DEPORTISTAS'!V503","v":0},{"$f":"'DATOS DEPORTISTAS'!I503","v":0},{"$f":"'DATOS DEPORTISTAS'!M503","v":0}]
[null,{"$f":"'DATOS DEPORTISTAS'!V504","v":0},{"$f":"'DATOS DEPORTISTAS'!I504","v":0},{"$f":"'DATOS DEPORTISTAS'!M504","v":0}]
[null,{"$f":"'DATOS DEPORTISTAS'!V505","v":0},{"$f":"'DATOS DEPORTISTAS'!I505","v":0},{"$f":"'DATOS DEPORTISTAS'!M505","v":0}]
[null,{"$f":"'DATOS DEPORTISTAS'!V506","v":0},{"$f":"'DATOS DEPORTISTAS'!I506","v":0},{"$f":"'DATOS DEPORTISTAS'!M506","v":0}]
[null,{"$f":"'DATOS DEPORTISTAS'!V507","v":0},{"$f":"'DATOS DEPORTISTAS'!I507","v":0},{"$f":"'DATOS DEPORTISTAS'!M507","v":0}]
[null,{"$f":"'DATOS DEPORTISTAS'!V508","v":0},{"$f":"'DATOS DEPORTISTAS'!I508","v":0},{"$f":"'DATOS DEPORTISTAS'!M508","v":0}]
[null,{"$f":"'DATOS DEPORTISTAS'!V509","v":0},{"$f":"'DATOS DEPORTISTAS'!I509","v":0},{"$f":"'DATOS DEPORTISTAS'!M509","v":0}]
[null,{"$f":"'DATOS DEPORTISTAS'!V510","v":0},{"$f":"'DATOS DEPORTISTAS'!I510","v":0},{"$f":"'DATOS DEPORTISTAS'!M510","v":0}]
[null,{"$f":"'DATOS DEPORTISTAS'!V511","v":0},{"$f":"'DATOS DEPORTISTAS'!I511","v":0},{"$f":"'DATOS DEPORTISTAS'!M511","v":0}]
[null,{"$f":"'DATOS DEPORTISTAS'!V512","v":0},{"$f":"'DATOS DEPORTISTAS'!I512","v":0},{"$f":"'DATOS DEPORTISTAS'!M512","v":0}]
[null,{"$f":"'DATOS DEPORTISTAS'!V513","v":0},{"$f":"'DATOS DEPORTISTAS'!I513","v":0},{"$f":"'DATOS DEPORTISTAS'!M513","v":0}]
[null,{"$f":"'DATOS DEPORTISTAS'!V514","v":0},{"$f":"'DATOS DEPORTISTAS'!I514","v":0},{"$f":"'DATOS DEPORTISTAS'!M514","v":0}]
[null,{"$f":"'DATOS DEPORTISTAS'!V515","v":0},{"$f":"'DATOS DEPORTISTAS'!I515","v":0},{"$f":"'DATOS DEPORTISTAS'!M515","v":0}]
[null,{"$f":"'DATOS DEPORTISTAS'!V516","v":0},{"$f":"'DATOS DEPORTISTAS'!I516","v":0},{"$f":"'DATOS DEPORTISTAS'!M516","v":0}]
[null,{"$f":"'DATOS DEPORTISTAS'!V517","v":0},{"$f":"'DATOS DEPORTISTAS'!I517","v":0},{"$f":"'DATOS DEPORTISTAS'!M517","v":0}]
[null,{"$f":"'DATOS DEPORTISTAS'!V518","v":0},{"$f":"'DATOS DEPORTISTAS'!I518","v":0},{"$f":"'DATOS DEPORTISTAS'!M518","v":0}]
[null,{"$f":"'DATOS DEPORTISTAS'!V519","v":0},{"$f":"'DATOS DEPORTISTAS'!I519","v":0},{"$f":"'DATOS DEPORTISTAS'!M519","v":0}]
[null,{"$f":"'DATOS DEPORTISTAS'!V520","v":0},{"$f":"'DATOS DEPORTISTAS'!I520","v":0},{"$f":"'DATOS DEPORTISTAS'!M520","v":0}]
[null,{"$f":"'DATOS DEPORTISTAS'!V521","v":0},{"$f":"'DATOS DEPORTISTAS'!I521","v":0},{"$f":"'DATOS DEPORTISTAS'!M521","v":0}]
[null,{"$f":"'DATOS DEPORTISTAS'!V522","v":0},{"$f":"'DATOS DEPORTISTAS'!I522","v":0},{"$f":"'DATOS DEPORTISTAS'!M522","v":0}]
[null,{"$f":"'DATOS DEPORTISTAS'!V523","v":0},{"$f":"'DATOS DEPORTISTAS'!I523","v":0},{"$f":"'DATOS DEPORTISTAS'!M523","v":0}]
[null,{"$f":"'DATOS DEPORTISTAS'!V524","v":0},{"$f":"'DATOS DEPORTISTAS'!I524","v":0},{"$f":"'DATOS DEPORTISTAS'!M524","v":0}]
[null,{"$f":"'DATOS DEPORTISTAS'!V525","v":0},{"$f":"'DATOS DEPORTISTAS'!I525","v":0},{"$f":"'DATOS DEPORTISTAS'!M525","v":0}]
[null,{"$f":"'DATOS DEPORTISTAS'!V526","v":0},{"$f":"'DATOS DEPORTISTAS'!I526","v":0},{"$f":"'DATOS DEPORTISTAS'!M526","v":0}]
[null,{"$f":"'DATOS DEPORTISTAS'!V527","v":0},{"$f":"'DATOS DEPORTISTAS'!I527","v":0},{"$f":"'DATOS DEPORTISTAS'!M527","v":0}]
[null,{"$f":"'DATOS DEPORTISTAS'!V528","v":0},{"$f":"'DATOS DEPORTISTAS'!I528","v":0},{"$f":"'DATOS DEPORTISTAS'!M528","v":0}]
[null,{"$f":"'DATOS DEPORTISTAS'!V529","v":0},{"$f":"'DATOS DEPORTISTAS'!I529","v":0},{"$f":"'DATOS DEPORTISTAS'!M529","v":0}]
[null,{"$f":"'DATOS DEPORTISTAS'!V530","v":0},{"$f":"'DATOS DEPORTISTAS'!I530","v":0},{"$f":"'DATOS DEPORTISTAS'!M530","v":0}]
[null,{"$f":"'DATOS DEPORTISTAS'!V531","v":0},{"$f":"'DATOS DEPORTISTAS'!I531","v":0},{"$f":"'DATOS DEPORTISTAS'!M531","v":0}]
[null,{"$f":"'DATOS DEPORTISTAS'!V532","v":0},{"$f":"'DATOS DEPORTISTAS'!I532","v":0},{"$f":"'DATOS DEPORTISTAS'!M532","v":0}]
[null,{"$f":"'DATOS DEPORTISTAS'!V533","v":0},{"$f":"'DATOS DEPORTISTAS'!I533","v":0},{"$f":"'DATOS DEPORTISTAS'!M533","v":0}]
[null,{"$f":"'DATOS DEPORTISTAS'!V534","v":0},{"$f":"'DATOS DEPORTISTAS'!I534","v":0},{"$f":"'DATOS DEPORTISTAS'!M534","v":0}]
[null,{"$f":"'DATOS DEPORTISTAS'!V535","v":0},{"$f":"'DATOS DEPORTISTAS'!I535","v":0},{"$f":"'DATOS DEPORTISTAS'!M535","v":0}]
[null,{"$f":"'DATOS DEPORTISTAS'!V536","v":0},{"$f":"'DATOS DEPORTISTAS'!I536","v":0},{"$f":"'DATOS DEPORTISTAS'!M536","v":0}]
[null,{"$f":"'DATOS DEPORTISTAS'!V537","v":0},{"$f":"'DATOS DEPORTISTAS'!I537","v":0},{"$f":"'DATOS DEPORTISTAS'!M537","v":0}]
[null,{"$f":"'DATOS DEPORTISTAS'!V538","v":0},{"$f":"'DATOS DEPORTISTAS'!I538","v":0},{"$f":"'DATOS DEPORTISTAS'!M538","v":0}]
[null,{"$f":"'DATOS DEPORTISTAS'!V539","v":0},{"$f":"'DATOS DEPORTISTAS'!I539","v":0},{"$f":"'DATOS DEPORTISTAS'!M539","v":0}]
[null,{"$f":"'DATOS DEPORTISTAS'!V540","v":0},{"$f":"'DATOS DEPORTISTAS'!I540","v":0},{"$f":"'DATOS DEPORTISTAS'!M540","v":0}]
[null,{"$f":"'DATOS DEPORTISTAS'!V541","v":0},{"$f":"'DATOS DEPORTISTAS'!I541","v":0},{"$f":"'DATOS DEPORTISTAS'!M541","v":0}]
[null,{"$f":"'DATOS DEPORTISTAS'!V542","v":0},{"$f":"'DATOS DEPORTISTAS'!I542","v":0},{"$f":"'DATOS DEPORTISTAS'!M542","v":0}]
[null,{"$f":"'DATOS DEPORTISTAS'!V543","v":0},{"$f":"'DATOS DEPORTISTAS'!I543","v":0},{"$f":"'DATOS DEPORTISTAS'!M543","v":0}]
[null,{"$f":"'DATOS DEPORTISTAS'!V544","v":0},{"$f":"'DATOS DEPORTISTAS'!I544","v":0},{"$f":"'DATOS DEPORTISTAS'!M544","v":0}]
[null,{"$f":"'DATOS DEPORTISTAS'!V545","v":0},{"$f":"'DATOS DEPORTISTAS'!I545","v":0},{"$f":"'DATOS DEPORTISTAS'!M545","v":0}]
[null,{"$f":"'DATOS DEPORTISTAS'!V546","v":0},{"$f":"'DATOS DEPORTISTAS'!I546","v":0},{"$f":"'DATOS DEPORTISTAS'!M546","v":0}]
[null,{"$f":"'DATOS DEPORTISTAS'!V547","v":0},{"$f":"'DATOS DEPORTISTAS'!I547","v":0},{"$f":"'DATOS DEPORTISTAS'!M547","v":0}]
[null,{"$f":"'DATOS DEPORTISTAS'!V548","v":0},{"$f":"'DATOS DEPORTISTAS'!I548","v":0},{"$f":"'DATOS DEPORTISTAS'!M548","v":0}]
[null,{"$f":"'DATOS DEPORTISTAS'!V549","v":0},{"$f":"'DATOS DEPORTISTAS'!I549","v":0},{"$f":"'DATOS DEPORTISTAS'!M549","v":0}]
[null,{"$f":"'DATOS DEPORTISTAS'!V550","v":0},{"$f":"'DATOS DEPORTISTAS'!I550","v":0},{"$f":"'DATOS DEPORTISTAS'!M550","v":0}]
[null,{"$f":"'DATOS DEPORTISTAS'!V551","v":0},{"$f":"'DATOS DEPORTISTAS'!I551","v":0},{"$f":"'DATOS DEPORTISTAS'!M551","v":0}]
[null,{"$f":"'DATOS DEPORTISTAS'!V552","v":0},{"$f":"'DATOS DEPORTISTAS'!I552","v":0},{"$f":"'DATOS DEPORTISTAS'!M552","v":0}]
[null,{"$f":"'DATOS DEPORTISTAS'!V553","v":0},{"$f":"'DATOS DEPORTISTAS'!I553","v":0},{"$f":"'DATOS DEPORTISTAS'!M553","v":0}]
[null,{"$f":"'DATOS DEPORTISTAS'!V554","v":0},{"$f":"'DATOS DEPORTISTAS'!I554","v":0},{"$f":"'DATOS DEPORTISTAS'!M554","v":0}]
[null,{"$f":"'DATOS DEPORTISTAS'!V555","v":0},{"$f":"'DATOS DEPORTISTAS'!I555","v":0},{"$f":"'DATOS DEPORTISTAS'!M555","v":0}]
[null,{"$f":"'DATOS DEPORTISTAS'!V556","v":0},{"$f":"'DATOS DEPORTISTAS'!I556","v":0},{"$f":"'DATOS DEPORTISTAS'!M556","v":0}]
[null,{"$f":"'DATOS DEPORTISTAS'!V557","v":0},{"$f":"'DATOS DEPORTISTAS'!I557","v":0},{"$f":"'DATOS DEPORTISTAS'!M557","v":0}]
[null,{"$f":"'DATOS DEPORTISTAS'!V558","v":0},{"$f":"'DATOS DEPORTISTAS'!I558","v":0},{"$f":"'DATOS DEPORTISTAS'!M558","v":0}]
[null,{"$f":"'DATOS DEPORTISTAS'!V559","v":0},{"$f":"'DATOS DEPORTISTAS'!I559","v":0},{"$f":"'DATOS DEPORTISTAS'!M559","v":0}]
[null,{"$f":"'DATOS DEPORTISTAS'!V560","v":0},{"$f":"'DATOS DEPORTISTAS'!I560","v":0},{"$f":"'DATOS DEPORTISTAS'!M560","v":0}]
[null,{"$f":"'DATOS DEPORTISTAS'!V561","v":0},{"$f":"'DATOS DEPORTISTAS'!I561","v":0},{"$f":"'DATOS DEPORTISTAS'!M561","v":0}]
[null,{"$f":"'DATOS DEPORTISTAS'!V562","v":0},{"$f":"'DATOS DEPORTISTAS'!I562","v":0},{"$f":"'DATOS DEPORTISTAS'!M562","v":0}]
[null,{"$f":"'DATOS DEPORTISTAS'!V563","v":0},{"$f":"'DATOS DEPORTISTAS'!I563","v":0},{"$f":"'DATOS DEPORTISTAS'!M563","v":0}]
[null,{"$f":"'DATOS DEPORTISTAS'!V564","v":0},{"$f":"'DATOS DEPORTISTAS'!I564","v":0},{"$f":"'DATOS DEPORTISTAS'!M564","v":0}]
[null,{"$f":"'DATOS DEPORTISTAS'!V565","v":0},{"$f":"'DATOS DEPORTISTAS'!I565","v":0},{"$f":"'DATOS DEPORTISTAS'!M565","v":0}]
[null,{"$f":"'DATOS DEPORTISTAS'!V566","v":0},{"$f":"'DATOS DEPORTISTAS'!I566","v":0},{"$f":"'DATOS DEPORTISTAS'!M566","v":0}]
[null,{"$f":"'DATOS DEPORTISTAS'!V567","v":0},{"$f":"'DATOS DEPORTISTAS'!I567","v":0},{"$f":"'DATOS DEPORTISTAS'!M567","v":0}]
[null,{"$f":"'DATOS DEPORTISTAS'!V568","v":0},{"$f":"'DATOS DEPORTISTAS'!I568","v":0},{"$f":"'DATOS DEPORTISTAS'!M568","v":0}]
[null,{"$f":"'DATOS DEPORTISTAS'!V569","v":0},{"$f":"'DATOS DEPORTISTAS'!I569","v":0},{"$f":"'DATOS DEPORTISTAS'!M569","v":0}]
[null,{"$f":"'DATOS DEPORTISTAS'!V570","v":0},{"$f":"'DATOS DEPORTISTAS'!I570","v":0},{"$f":"'DATOS DEPORTISTAS'!M570","v":0}]
[null,{"$f":"'DATOS DEPORTISTAS'!V571","v":0},{"$f":"'DATOS DEPORTISTAS'!I571","v":0},{"$f":"'DATOS DEPORTISTAS'!M571","v":0}]
[null,{"$f":"'DATOS DEPORTISTAS'!V572","v":0},{"$f":"'DATOS DEPORTISTAS'!I572","v":0},{"$f":"'DATOS DEPORTISTAS'!M572","v":0}]
[null,{"$f":"'DATOS DEPORTISTAS'!V573","v":0},{"$f":"'DATOS DEPORTISTAS'!I573","v":0},{"$f":"'DATOS DEPORTISTAS'!M573","v":0}]
[null,{"$f":"'DATOS DEPORTISTAS'!V574","v":0},{"$f":"'DATOS DEPORTISTAS'!I574","v":0},{"$f":"'DATOS DEPORTISTAS'!M574","v":0}]
[null,{"$f":"'DATOS DEPORTISTAS'!V575","v":0},{"$f":"'DATOS DEPORTISTAS'!I575","v":0},{"$f":"'DATOS DEPORTISTAS'!M575","v":0}]
[null,{"$f":"'DATOS DEPORTISTAS'!V576","v":0},{"$f":"'DATOS DEPORTISTAS'!I576","v":0},{"$f":"'DATOS DEPORTISTAS'!M576","v":0}]
[null,{"$f":"'DATOS DEPORTISTAS'!V577","v":0},{"$f":"'DATOS DEPORTISTAS'!I577","v":0},{"$f":"'DATOS DEPORTISTAS'!M577","v":0}]
[null,{"$f":"'DATOS DEPORTISTAS'!V578","v":0},{"$f":"'DATOS DEPORTISTAS'!I578","v":0},{"$f":"'DATOS DEPORTISTAS'!M578","v":0}]
[null,{"$f":"'DATOS DEPORTISTAS'!V579","v":0},{"$f":"'DATOS DEPORTISTAS'!I579","v":0},{"$f":"'DATOS DEPORTISTAS'!M579","v":0}]
[null,{"$f":"'DATOS DEPORTISTAS'!V580","v":0},{"$f":"'DATOS DEPORTISTAS'!I580","v":0},{"$f":"'DATOS DEPORTISTAS'!M580","v":0}]
[null,{"$f":"'DATOS DEPORTISTAS'!V581","v":0},{"$f":"'DATOS DEPORTISTAS'!I581","v":0},{"$f":"'DATOS DEPORTISTAS'!M581","v":0}]
[null,{"$f":"'DATOS DEPORTISTAS'!V582","v":0},{"$f":"'DATOS DEPORTISTAS'!I582","v":0},{"$f":"'DATOS DEPORTISTAS'!M582","v":0}]
[null,{"$f":"'DATOS DEPORTISTAS'!V583","v":0},{"$f":"'DATOS DEPORTISTAS'!I583","v":0},{"$f":"'DATOS DEPORTISTAS'!M583","v":0}]
[null,{"$f":"'DATOS DEPORTISTAS'!V584","v":0},{"$f":"'DATOS DEPORTISTAS'!I584","v":0},{"$f":"'DATOS DEPORTISTAS'!M584","v":0}]
[null,{"$f":"'DATOS DEPORTISTAS'!V585","v":0},{"$f":"'DATOS DEPORTISTAS'!I585","v":0},{"$f":"'DATOS DEPORTISTAS'!M585","v":0}]
[null,{"$f":"'DATOS DEPORTISTAS'!V586","v":0},{"$f":"'DATOS DEPORTISTAS'!I586","v":0},{"$f":"'DATOS DEPORTISTAS'!M586","v":0}]
[null,{"$f":"'DATOS DEPORTISTAS'!V587","v":0},{"$f":"'DATOS DEPORTISTAS'!I587","v":0},{"$f":"'DATOS DEPORTISTAS'!M587","v":0}]
[null,{"$f":"'DATOS DEPORTISTAS'!V588","v":0},{"$f":"'DATOS DEPORTISTAS'!I588","v":0},{"$f":"'DATOS DEPORTISTAS'!M588","v":0}]
[null,{"$f":"'DATOS DEPORTISTAS'!V589","v":0},{"$f":"'DATOS DEPORTISTAS'!V589","v":0},{"$f":"'DATOS DEPORTISTAS'!M589","v":0}]
[null,{"$f":"'DATOS DEPORTISTAS'!V590","v":0},{"$f":"'DATOS DEPORTISTAS'!I590","v":0},{"$f":"'DATOS DEPORTISTAS'!M590","v":0}]
[null,{"$f":"'DATOS DEPORTISTAS'!V591","v":0},{"$f":"'DATOS DEPORTISTAS'!I591","v":0},{"$f":"'DATOS DEPORTISTAS'!M591","v":0}]
[null,{"$f":"'DATOS DEPORTISTAS'!V592","v":0},{"$f":"'DATOS DEPORTISTAS'!I592","v":0},{"$f":"'DATOS DEPORTISTAS'!M592","v":0}]
[null,{"$f":"'DATOS DEPORTISTAS'!V593","v":0},{"$f":"'DATOS DEPORTISTAS'!I593","v":0},{"$f":"'DATOS DEPORTISTAS'!M593","v":0}]
[null,{"$f":"'DATOS DEPORTISTAS'!V594","v":0},{"$f":"'DATOS DEPORTISTAS'!I594","v":0},{"$f":"'DATOS DEPORTISTAS'!M594","v":0}]
[null,{"$f":"'DATOS DEPORTISTAS'!V595","v":0},{"$f":"'DATOS DEPORTISTAS'!I595","v":0},{"$f":"'DATOS DEPORTISTAS'!M595","v":0}]
[null,{"$f":"'DATOS DEPORTISTAS'!V596","v":0},{"$f":"'DATOS DEPORTISTAS'!I596","v":0},{"$f":"'DATOS DEPORTISTAS'!M596","v":0}]
[null,{"$f":"'DATOS DEPORTISTAS'!V597","v":0},{"$f":"'DATOS DEPORTISTAS'!I597","v":0},{"$f":"'DATOS DEPORTISTAS'!M597","v":0}]
[null,{"$f":"'DATOS DEPORTISTAS'!V598","v":0},{"$f":"'DATOS DEPORTISTAS'!I598","v":0},{"$f":"'DATOS DEPORTISTAS'!M598","v":0}]
[null,{"$f":"'DATOS DEPORTISTAS'!V599","v":0},{"$f":"'DATOS DEPORTISTAS'!I599","v":0},{"$f":"'DATOS DEPORTISTAS'!M599","v":0}]
[null,{"$f":"'DATOS DEPORTISTAS'!V600","v":0},{"$f":"'DATOS DEPORTISTAS'!I600","v":0},{"$f":"'DATOS DEPORTISTAS'!M600","v":0}]
[null,{"$f":"'DATOS DEPORTISTAS'!V601","v":0},{"$f":"'DATOS DEPORTISTAS'!I601","v":0},{"$f":"'DATOS DEPORTISTAS'!M601","v":0}]
[null,{"$f":"'DATOS DEPORTISTAS'!V602","v":0},{"$f":"'DATOS DEPORTISTAS'!I602","v":0},{"$f":"'DATOS DEPORTISTAS'!M602","v":0}]
[null,{"$f":"'DATOS DEPORTISTAS'!V603","v":0},{"$f":"'DATOS DEPORTISTAS'!I603","v":0},{"$f":"'DATOS DEPORTISTAS'!M603","v":0}]
[null,{"$f":"'DATOS DEPORTISTAS'!V604","v":0},{"$f":"'DATOS DEPORTISTAS'!I604","v":0},{"$f":"'DATOS DEPORTISTAS'!M604","v":0}]
[null,{"$f":"'DATOS DEPORTISTAS'!V605","v":0},{"$f":"'DATOS DEPORTISTAS'!I605","v":0},{"$f":"'DATOS DEPORTISTAS'!M605","v":0}]
[null,{"$f":"'DATOS DEPORTISTAS'!V606","v":0},{"$f":"'DATOS DEPORTISTAS'!I606","v":0},{"$f":"'DATOS DEPORTISTAS'!M606","v":0}]
[null,{"$f":"'DATOS DEPORTISTAS'!V607","v":0},{"$f":"'DATOS DEPORTISTAS'!I607","v":0},{"$f":"'DATOS DEPORTISTAS'!M607","v":0}]
[null,{"$f":"'DATOS DEPORTISTAS'!V608","v":0},{"$f":"'DATOS DEPORTISTAS'!I608","v":0},{"$f":"'DATOS DEPORTISTAS'!M608","v":0}]
[null,{"$f":"'DATOS DEPORTISTAS'!V609","v":0},{"$f":"'DATOS DEPORTISTAS'!I609","v":0},{"$f":"'DATOS DEPORTISTAS'!M609","v":0}]
[null,{"$f":"'DATOS DEPORTISTAS'!V610","v":0},{"$f":"'DATOS DEPORTISTAS'!I610","v":0},{"$f":"'DATOS DEPORTISTAS'!M610","v":0}]
[null,{"$f":"'DATOS DEPORTISTAS'!V611","v":0},{"$f":"'DATOS DEPORTISTAS'!I611","v":0},{"$f":"'DATOS DEPORTISTAS'!M611","v":0}]
[null,{"$f":"'DATOS DEPORTISTAS'!V612","v":0},{"$f":"'DATOS DEPORTISTAS'!I612","v":0},{"$f":"'DATOS DEPORTISTAS'!M612","v":0}]
[null,{"$f":"'DATOS DEPORTISTAS'!V613","v":0},{"$f":"'DATOS DEPORTISTAS'!I613","v":0},{"$f":"'DATOS DEPORTISTAS'!M613","v":0}]
[null,{"$f":"'DATOS DEPORTISTAS'!V614","v":0},{"$f":"'DATOS DEPORTISTAS'!I614","v":0},{"$f":"'DATOS DEPORTISTAS'!M614","v":0}]
[null,{"$f":"'DATOS DEPORTISTAS'!V615","v":0},{"$f":"'DATOS DEPORTISTAS'!I615","v":0},{"$f":"'DATOS DEPORTISTAS'!M615","v":0}]
[null,{"$f":"'DATOS DEPORTISTAS'!V616","v":0},{"$f":"'DATOS DEPORTISTAS'!I616","v":0},{"$f":"'DATOS DEPORTISTAS'!M616","v":0}]
[null,{"$f":"'DATOS DEPORTISTAS'!V617","v":0},{"$f":"'DATOS DEPORTISTAS'!I617","v":0},{"$f":"'DATOS DEPORTISTAS'!M617","v":0}]
[null,{"$f":"'DATOS DEPORTISTAS'!V618","v":0},{"$f":"'DATOS DEPORTISTAS'!I618","v":0},{"$f":"'DATOS DEPORTISTAS'!M618","v":0}]
[null,{"$f":"'DATOS DEPORTISTAS'!V619","v":0},{"$f":"'DATOS DEPORTISTAS'!I619","v":0},{"$f":"'DATOS DEPORTISTAS'!M619","v":0}]
[null,{"$f":"'DATOS DEPORTISTAS'!V620","v":0},{"$f":"'DATOS DEPORTISTAS'!V620","v":0},{"$f":"'DATOS DEPORTISTAS'!M620","v":0}]
[null,{"$f":"'DATOS DEPORTISTAS'!V621","v":0},{"$f":"'DATOS DEPORTISTAS'!I621","v":0},{"$f":"'DATOS DEPORTISTAS'!M621","v":0}]
[null,{"$f":"'DATOS DEPORTISTAS'!V622","v":0},{"$f":"'DATOS DEPORTISTAS'!I622","v":0},{"$f":"'DATOS DEPORTISTAS'!M622","v":0}]
[null,{"$f":"'DATOS DEPORTISTAS'!V623","v":0},{"$f":"'DATOS DEPORTISTAS'!I623","v":0},{"$f":"'DATOS DEPORTISTAS'!M623","v":0}]
[null,{"$f":"'DATOS DEPORTISTAS'!V624","v":0},{"$f":"'DATOS DEPORTISTAS'!I624","v":0},{"$f":"'DATOS DEPORTISTAS'!M624","v":0}]
[null,{"$f":"'DATOS DEPORTISTAS'!V625","v":0},{"$f":"'DATOS DEPORTISTAS'!I625","v":0},{"$f":"'DATOS DEPORTISTAS'!M625","v":0}]
[null,{"$f":"'DATOS DEPORTISTAS'!V626","v":0},{"$f":"'DATOS DEPORTISTAS'!I626","v":0},{"$f":"'DATOS DEPORTISTAS'!M626","v":0}]
[null,{"$f":"'DATOS DEPORTISTAS'!V627","v":0},{"$f":"'DATOS DEPORTISTAS'!I627","v":0},{"$f":"'DATOS DEPORTISTAS'!M627","v":0}]
[null,{"$f":"'DATOS DEPORTISTAS'!V628","v":0},{"$f":"'DATOS DEPORTISTAS'!I628","v":0},{"$f":"'DATOS DEPORTISTAS'!M628","v":0}]
[null,{"$f":"'DATOS DEPORTISTAS'!V629","v":0},{"$f":"'DATOS DEPORTISTAS'!I629","v":0},{"$f":"'DATOS DEPORTISTAS'!M629","v":0}]
[null,{"$f":"'DATOS DEPORTISTAS'!V630","v":0},{"$f":"'DATOS DEPORTISTAS'!I630","v":0},{"$f":"'DATOS DEPORTISTAS'!M630","v":0}]

{"sheet":"NAUTICO ZARAGOZA","index":10,"n_rows":20,"n_cols":29,"rows_kept":20,"cut":false,"hidden":true,"merged":[]}
[]
[null,null,null,null,null,null,"CLUB",null,"CATEGORIA"]
[null,null,null,null,null,null,{"$f":"_xlfn._xlws.SORT(_xlfn.UNIQUE(Tabla12[CLUB]))","v":0},null,{"$f":"_xlfn._xlws.SORT(_xlfn.UNIQUE(Tabla12[CAT.]))","v":0}]
[null,null,null,null,null,null,"ARAGÓN REMO",null,"ALEVIN"]
[null,null,null,null,null,null,"CAPRI MEQUINENZA",null,"BENJAMIN"]
[null,null,null,null,null,null,"CENTRO NATACION HELIOS",null,"CADETE"]
[null,null,null,null,null,null,"F.A.R.",null,"INFANTIL"]
[null,null,null,null,null,null,"NÁUTICO ZARAGOZA",null,"JUVENIL"]
[null,null,null,null,null,null,"OS NABATERS D.F.",null,"SENIOR"]
[null,null,null,null,null,null,null,null,"VETERANO"]
[]
[]
[]
[]
[null,null,"CLUB","CATEGORIA",null,null,"CLUB","CATEGORIA",null,null,"CLUB","CATEGORIA",null,null,"CLUB","CATEGORIA",null,null,"CLUB","CATEGORIA",null,null,"CLUB","CATEGORIA",null,null,"CLUB","CATEGORIA"]
[null,null,"NAUTICO ZARAGOZA","VETERANO",null,null,"NAUTICO ZARAGOZA","SENIOR",null,null,"NAUTICO ZARAGOZA","JUVENIL",null,null,"NAUTICO ZARAGOZA","CADETE",null,null,"NAUTICO ZARAGOZA","INFANTIL",null,null,"NAUTICO ZARAGOZA","ALEVIN",null,null,"NAUTICO ZARAGOZA","BENJAMIN"]
[]
[]
[null,null,"CLUB","CAT.","NOMBRE COMPLETO",null,"CLUB","CAT.","NOMBRE COMPLETO",null,"CLUB","CAT.","NOMBRE COMPLETO",null,"CLUB","CAT.","NOMBRE COMPLETO",null,"CLUB","CAT.","NOMBRE COMPLETO",null,"CLUB","CAT.","NOMBRE COMPLETO",null,"CLUB","CAT.","NOMBRE COMPLETO"]
[null,null,{"$f":"_xlfn._xlws.SORT(_xlfn._xlws.FILTER(FILTRADO,(Tabla12[CLUB]=C16)*(Tabla12[CAT.]=D16)),3,1)","v":{"$error":"#VALUE!"}},null,null,null,{"$f":"_xlfn._xlws.SORT(_xlfn._xlws.FILTER(FILTRADO,(Tabla12[CLUB]=G16)*(Tabla12[CAT.]=H16)),3,1)","v":{"$error":"#VALUE!"}},null,null,null,{"$f":"_xlfn._xlws.SORT(_xlfn._xlws.FILTER(FILTRADO,(Tabla12[CLUB]=K16)*(Tabla12[CAT.]=L16)),3,1)","v":{"$error":"#VALUE!"}},null,null,null,{"$f":"_xlfn._xlws.SORT(_xlfn._xlws.FILTER(FILTRADO,(Tabla12[CLUB]=O16)*(Tabla12[CAT.]=P16)),3,1)","v":{"$error":"#VALUE!"}},null,null,null,{"$f":"_xlfn._xlws.SORT(_xlfn._xlws.FILTER(FILTRADO,(Tabla12[CLUB]=S16)*(Tabla12[CAT.]=T16)),3,1)","v":{"$error":"#VALUE!"}},null,null,null,{"$f":"_xlfn._xlws.SORT(_xlfn._xlws.FILTER(FILTRADO,(Tabla12[CLUB]=W16)*(Tabla12[CAT.]=X16)),3,1)","v":{"$error":"#VALUE!"}},null,null,null,{"$f":"_xlfn._xlws.SORT(_xlfn._xlws.FILTER(FILTRADO,(Tabla12[CLUB]=AA16)*(Tabla12[CAT.]=AB16)),3,1)","v":{"$error":"#VALUE!"}}]

{"sheet":"OS NABATERS","index":11,"n_rows":47,"n_cols":29,"rows_kept":47,"cut":false,"hidden":true,"merged":[]}
[]
[null,null,null,null,null,null,"CLUB",null,"CATEGORIA"]
[null,null,null,null,null,null,{"$f":"_xlfn._xlws.SORT(_xlfn.UNIQUE(Tabla12[CLUB]))","v":0},null,{"$f":"_xlfn._xlws.SORT(_xlfn.UNIQUE(Tabla12[CAT.]))","v":0}]
[null,null,null,null,null,null,"ARAGÓN REMO",null,"ALEVIN"]
[null,null,null,null,null,null,"CAPRI MEQUINENZA",null,"BENJAMIN"]
[null,null,null,null,null,null,"CENTRO NATACION HELIOS",null,"CADETE"]
[null,null,null,null,null,null,"F.A.R.",null,"INFANTIL"]
[null,null,null,null,null,null,"NÁUTICO ZARAGOZA",null,"JUVENIL"]
[null,null,null,null,null,null,"OS NABATERS D.F.",null,"SENIOR"]
[null,null,null,null,null,null,null,null,"VETERANO"]
[]
[]
[]
[]
[null,null,"CLUB","CATEGORIA",null,null,"CLUB","CATEGORIA",null,null,"CLUB","CATEGORIA",null,null,"CLUB","CATEGORIA",null,null,"CLUB","CATEGORIA",null,null,"CLUB","CATEGORIA",null,null,"CLUB","CATEGORIA"]
[null,null,"OS NABATERS D.F.","VETERANO",null,null,"OS NABATERS D.F.","SENIOR",null,null,"OS NABATERS D.F.","JUVENIL",null,null,"OS NABATERS D.F.","CADETE",null,null,"OS NABATERS D.F.","INFANTIL",null,null,"OS NABATERS D.F.","ALEVIN",null,null,"OS NABATERS D.F.","BENJAMIN"]
[]
[]
[null,null,"CLUB","CAT.","NOMBRE COMPLETO",null,"CLUB","CAT.","NOMBRE COMPLETO",null,"CLUB","CAT.","NOMBRE COMPLETO",null,"CLUB","CAT.","NOMBRE COMPLETO",null,"CLUB","CAT.","NOMBRE COMPLETO",null,"CLUB","CAT.","NOMBRE COMPLETO",null,"CLUB","CAT.","NOMBRE COMPLETO"]
[null,null,{"$f":"_xlfn._xlws.SORT(_xlfn._xlws.FILTER(FILTRADO,(Tabla12[CLUB]=C16)*(Tabla12[CAT.]=D16)),3,1)","v":"OS NABATERS D.F."},"VETERANO","ALEJANDRO DEL AMO SANCHO",null,{"$f":"_xlfn._xlws.SORT(_xlfn._xlws.FILTER(FILTRADO,(Tabla12[CLUB]=G16)*(Tabla12[CAT.]=H16)),3,1)","v":"OS NABATERS D.F."},"SENIOR","ADRIÁN AZNAR SAMPER",null,{"$f":"_xlfn._xlws.SORT(_xlfn._xlws.FILTER(FILTRADO,(Tabla12[CLUB]=K16)*(Tabla12[CAT.]=L16)),3,1)","v":"OS NABATERS D.F."},"JUVENIL","DARÍO CANO JIMÉNEZ",null,{"$f":"_xlfn._xlws.SORT(_xlfn._xlws.FILTER(FILTRADO,(Tabla12[CLUB]=O16)*(Tabla12[CAT.]=P16)),3,1)","v":"OS NABATERS D.F."},"CADETE","ALBERTO CIRIA FERNÁNDEZ",null,{"$f":"_xlfn._xlws.SORT(_xlfn._xlws.FILTER(FILTRADO,(Tabla12[CLUB]=S16)*(Tabla12[CAT.]=T16)),3,1)","v":"OS NABATERS D.F."},"INFANTIL","ALICIA CABALLERO DE TORO",null,{"$f":"_xlfn._xlws.SORT(_xlfn._xlws.FILTER(FILTRADO,(Tabla12[CLUB]=W16)*(Tabla12[CAT.]=X16)),3,1)","v":"OS NABATERS D.F."},"ALEVIN","JORGE OBENSA SIERRA",null,{"$f":"_xlfn._xlws.SORT(_xlfn._xlws.FILTER(FILTRADO,(Tabla12[CLUB]=AA16)*(Tabla12[CAT.]=AB16)),3,1)","v":{"$error":"#VALUE!"}}]
[null,null,"OS NABATERS D.F.","VETERANO","ALICIA PILAR ESTEVAN EIXARCH",null,"OS NABATERS D.F.","SENIOR","ALBA LÓPEZ CORDOVILLA",null,"OS NABATERS D.F.","JUVENIL","LUIS FRANCISCO BOIRA GONZALO",null,"OS NABATERS D.F.","CADETE","ALEJANDRO DUCE CASCANTE",null,"OS NABATERS D.F.","INFANTIL","CÉSAR DÍEZ MOZOTA",null,"OS NABATERS D.F.","ALEVIN","LEO HIDALGO FERNÁNDEZ"]
[null,null,"OS NABATERS D.F.","VETERANO","ANDREA LARA MATAIX MONTANER",null,"OS NABATERS D.F.","SENIOR","ALEJANDRO VILLACAMPA RÍOS",null,"OS NABATERS D.F.","JUVENIL","MANUEL FERNÁNDEZ MUNARRIZ",null,"OS NABATERS D.F.","CADETE","DAVID MARCOS GARCÍA",null,"OS NABATERS D.F.","INFANTIL","RUBÉN SORIA GARCÍA"]
[null,null,"OS NABATERS D.F.","VETERANO","ÁNGEL AGUILERA ANDRÉS",null,"OS NABATERS D.F.","SENIOR","ANA RUBIO EZPELETA",null,null,null,null,null,null,null,null,null,"OS NABATERS D.F.","INFANTIL","SIENA GIMENO BACHILLER"]
[null,null,"OS NABATERS D.F.","VETERANO","ANTONIO ANSELMO SANCHO NAVARRO",null,"OS NABATERS D.F.","SENIOR","ANDREA HERNANDO FERRER"]
[null,null,"OS NABATERS D.F.","VETERANO","CARMEN GÓMEZ RUBIO",null,"OS NABATERS D.F.","SENIOR","ANDRÉS JIMÉNEZ LOBERA"]
[null,null,"OS NABATERS D.F.","VETERANO","DAVID OLMO NADAL",null,"OS NABATERS D.F.","SENIOR","CARLOTA LAPLANA DÍAZ"]
[null,null,"OS NABATERS D.F.","VETERANO","GABRIEL JOSÉ RUANO FERNÁNDEZ",null,"OS NABATERS D.F.","SENIOR","CELIA PEÑA ROMERO DE TEJADA"]
[null,null,"OS NABATERS D.F.","VETERANO","JAVIER ROMEO GIL",null,"OS NABATERS D.F.","SENIOR","GUILLÉN VICENTE MIRANDA"]
[null,null,"OS NABATERS D.F.","VETERANO","JESÚS YUS DÍEZ",null,"OS NABATERS D.F.","SENIOR","JORGE PONCE USÓN"]
[null,null,"OS NABATERS D.F.","VETERANO","JOSÉ CARMELO RICO MORENO",null,"OS NABATERS D.F.","SENIOR","JOSÉ LUIS ARBUES ANDRES"]
[null,null,"OS NABATERS D.F.","VETERANO","JOSÉ LUIS CAMBERO CENZANO",null,"OS NABATERS D.F.","SENIOR","LEYA VICENTE MAGAÑA"]
[null,null,"OS NABATERS D.F.","VETERANO","JOSÉ LUIS HERNÁNDEZ PASCUAL",null,"OS NABATERS D.F.","SENIOR","PEDRO OLLOQUI LÁZARO"]
[null,null,"OS NABATERS D.F.","VETERANO","JOSÉ MARÍA EMBARBA LABORDA",null,"OS NABATERS D.F.","SENIOR","RAQUEL DE MIGUEL GRACIA"]
[null,null,"OS NABATERS D.F.","VETERANO","LAURA CHOMALI",null,"OS NABATERS D.F.","SENIOR","RAQUEL HERNÁNDEZ ROYO"]
[null,null,"OS NABATERS D.F.","VETERANO","LUIS CARLOS BELLED LACASA",null,"OS NABATERS D.F.","SENIOR","SUSANA PONCE USÓN"]
[null,null,"OS NABATERS D.F.","VETERANO","LUIS JAVIER MELERO PASCUAL",null,"OS NABATERS D.F.","SENIOR","TATIANA CANO GALLEGO"]
[null,null,"OS NABATERS D.F.","VETERANO","MARÍA AZUCENA FERNÁNDEZ RUIZ"]
[null,null,"OS NABATERS D.F.","VETERANO","MERCEDES GIMÉNEZ HERRERO"]
[null,null,"OS NABATERS D.F.","VETERANO","MIGUEL BEA GONZÁLEZ"]
[null,null,"OS NABATERS D.F.","VETERANO","OMAR SEBASTIÁN BUSTÍN"]
[null,null,"OS NABATERS D.F.","VETERANO","PEDRO IGNACIO MARTÍNEZ CABELLO"]
[null,null,"OS NABATERS D.F.","VETERANO","RAUL BURGUETE URIOL"]
[null,null,"OS NABATERS D.F.","VETERANO","RAÚL DÍEZ DÍEZ"]
[null,null,"OS NABATERS D.F.","VETERANO","RICARDO SALILLAS MARTÍNEZ"]
[null,null,"OS NABATERS D.F.","VETERANO","ROBERTO NAVARRO CARRETERO"]
[null,null,"OS NABATERS D.F.","VETERANO","SANTIAGO LAVILLA TENÍAS"]
[null,null,"OS NABATERS D.F.","VETERANO","SERGIO AURED ANTÓN"]

{"sheet":"CAPRI MEQUINENZA","index":12,"n_rows":42,"n_cols":29,"rows_kept":42,"cut":false,"hidden":true,"merged":[]}
[]
[null,null,null,null,null,null,"CLUB",null,"CATEGORIA"]
[null,null,null,null,null,null,{"$f":"_xlfn._xlws.SORT(_xlfn.UNIQUE(Tabla12[CLUB]))","v":0},null,{"$f":"_xlfn._xlws.SORT(_xlfn.UNIQUE(Tabla12[CAT.]))","v":0}]
[null,null,null,null,null,null,"ARAGÓN REMO",null,"ALEVIN"]
[null,null,null,null,null,null,"CAPRI MEQUINENZA",null,"BENJAMIN"]
[null,null,null,null,null,null,"CENTRO NATACION HELIOS",null,"CADETE"]
[null,null,null,null,null,null,"F.A.R.",null,"INFANTIL"]
[null,null,null,null,null,null,"NÁUTICO ZARAGOZA",null,"JUVENIL"]
[null,null,null,null,null,null,"OS NABATERS D.F.",null,"SENIOR"]
[null,null,null,null,null,null,null,null,"VETERANO"]
[]
[]
[]
[]
[null,null,"CLUB","CATEGORIA",null,null,"CLUB","CATEGORIA",null,null,"CLUB","CATEGORIA",null,null,"CLUB","CATEGORIA",null,null,"CLUB","CATEGORIA",null,null,"CLUB","CATEGORIA",null,null,"CLUB","CATEGORIA"]
[null,null,"CAPRI MEQUINENZA","VETERANO",null,null,"CAPRI MEQUINENZA","SENIOR",null,null,"CAPRI MEQUINENZA","JUVENIL",null,null,"CAPRI MEQUINENZA","CADETE",null,null,"CAPRI MEQUINENZA","INFANTIL",null,null,"CAPRI MEQUINENZA","ALEVIN",null,null,"CAPRI MEQUINENZA","BENJAMIN"]
[]
[]
[null,null,"CLUB","CAT.","NOMBRE COMPLETO",null,"CLUB","CAT.","NOMBRE COMPLETO",null,"CLUB","CAT.","NOMBRE COMPLETO",null,"CLUB","CAT.","NOMBRE COMPLETO",null,"CLUB","CAT.","NOMBRE COMPLETO",null,"CLUB","CAT.","NOMBRE COMPLETO",null,"CLUB","CAT.","NOMBRE COMPLETO"]
[null,null,{"$f":"_xlfn._xlws.SORT(_xlfn._xlws.FILTER(FILTRADO,(Tabla12[CLUB]=C16)*(Tabla12[CAT.]=D16)),3,1)","v":"CAPRI MEQUINENZA"},"VETERANO","ALFONSO PÉREZ ALONSO",null,{"$f":"_xlfn._xlws.SORT(_xlfn._xlws.FILTER(FILTRADO,(Tabla12[CLUB]=G16)*(Tabla12[CAT.]=H16)),3,1)","v":"CAPRI MEQUINENZA"},"SENIOR","AARÓN MÁRQUEZ GUARDIOLA",null,{"$f":"_xlfn._xlws.SORT(_xlfn._xlws.FILTER(FILTRADO,(Tabla12[CLUB]=K16)*(Tabla12[CAT.]=L16)),3,1)","v":"CAPRI MEQUINENZA"},"JUVENIL","IRATXE IBARZ BERENGUER",null,{"$f":"_xlfn._xlws.SORT(_xlfn._xlws.FILTER(FILTRADO,(Tabla12[CLUB]=O16)*(Tabla12[CAT.]=P16)),3,1)","v":"CAPRI MEQUINENZA"},"CADETE","ABRIL GONZÁLEZ GARCÍA",null,{"$f":"_xlfn._xlws.SORT(_xlfn._xlws.FILTER(FILTRADO,(Tabla12[CLUB]=S16)*(Tabla12[CAT.]=T16)),3,1)","v":"CAPRI MEQUINENZA"},"INFANTIL","ALBA MARTÍNEZ CLAVERO",null,{"$f":"_xlfn._xlws.SORT(_xlfn._xlws.FILTER(FILTRADO,(Tabla12[CLUB]=W16)*(Tabla12[CAT.]=X16)),3,1)","v":"CAPRI MEQUINENZA"},"ALEVIN","ALEJANDRO CANTERO ANDRÉS",null,{"$f":"_xlfn._xlws.SORT(_xlfn._xlws.FILTER(FILTRADO,(Tabla12[CLUB]=AA16)*(Tabla12[CAT.]=AB16)),3,1)","v":"CAPRI MEQUINENZA"},"BENJAMIN","IBAI BLAS PEÑALVER"]
[null,null,"CAPRI MEQUINENZA","VETERANO","ANTONIO MIGUEL VERA RUBERT",null,"CAPRI MEQUINENZA","SENIOR","ELENA STEGHERR LLOP",null,"CAPRI MEQUINENZA","JUVENIL","MOHAMED ADAM RAHIBI VIDALLET",null,"CAPRI MEQUINENZA","CADETE","ALBA CUCHÍ NIUBÓ",null,"CAPRI MEQUINENZA","INFANTIL","IKER SANJUÁN SATORRES",null,"CAPRI MEQUINENZA","ALEVIN","ÁLEX CATALÁN MOYA",null,"CAPRI MEQUINENZA","BENJAMIN","IVÁN EXPÓSITO VARGAS"]
[null,null,"CAPRI MEQUINENZA","VETERANO","CARLOS SANJUAN SOLER",null,"CAPRI MEQUINENZA","SENIOR","GISELA HIERRO GARCÍA",null,"CAPRI MEQUINENZA","JUVENIL","PAULO GUIMERÁ JANIK",null,"CAPRI MEQUINENZA","CADETE","AROA CASTELLÓ VILA",null,"CAPRI MEQUINENZA","INFANTIL","IVÁN CASTELLNOU SOROLLA",null,"CAPRI MEQUINENZA","ALEVIN","ALICIA LLOP RUEDA",null,"CAPRI MEQUINENZA","BENJAMIN","MARC CASTELLÓ VILA"]
[null,null,"CAPRI MEQUINENZA","VETERANO","CONCEPCIÓN CASTRO ARANDA",null,"CAPRI MEQUINENZA","SENIOR","IVÁN GODIA SANCHO",null,"CAPRI MEQUINENZA","JUVENIL","YERAY MARTÍNEZ CLAVERO",null,"CAPRI MEQUINENZA","CADETE","IRENE BRUNA PALAU",null,"CAPRI MEQUINENZA","INFANTIL","ONA ESTRUGA LLOP",null,"CAPRI MEQUINENZA","ALEVIN","ANDREW PI MOSOVSKA",null,"CAPRI MEQUINENZA","BENJAMIN","MAX GUARDIOLA LOPERA"]
[null,null,"CAPRI MEQUINENZA","VETERANO","DANIEL CUCHÍ SAGARRA",null,"CAPRI MEQUINENZA","SENIOR","JULIA RAMI CASTRO",null,null,null,null,null,"CAPRI MEQUINENZA","CADETE","IRIA EXPÓSITO SORO",null,null,null,null,null,"CAPRI MEQUINENZA","ALEVIN","CARMEN RODES ESTRUGA",null,"CAPRI MEQUINENZA","BENJAMIN","NOA GARCÍA SERRANO"]
[null,null,"CAPRI MEQUINENZA","VETERANO","DAVID OLIVER CABALLÉ",null,"CAPRI MEQUINENZA","SENIOR","MARÍA PILAR GODIA PI",null,null,null,null,null,"CAPRI MEQUINENZA","CADETE","MARÍA ARROYO CABALLÉ",null,null,null,null,null,"CAPRI MEQUINENZA","ALEVIN","ENZO EXPÓSITO SORO",null,"CAPRI MEQUINENZA","BENJAMIN","PAULA CUCHÍ NIUBÓ"]
[null,null,"CAPRI MEQUINENZA","VETERANO","DAVID TORO SOLER",null,"CAPRI MEQUINENZA","SENIOR","MIGUEL RUBIO LAMBEA",null,null,null,null,null,"CAPRI MEQUINENZA","CADETE","MARINA CATALÁN MOYA",null,null,null,null,null,"CAPRI MEQUINENZA","ALEVIN","JOEL CHERTÓ JIMÉNEZ"]
[null,null,"CAPRI MEQUINENZA","VETERANO","EDUARDO ROMERA MURILLO",null,null,null,null,null,null,null,null,null,null,null,null,null,null,null,null,null,"CAPRI MEQUINENZA","ALEVIN","MARÍA AGUILAR ROMERO"]
[null,null,"CAPRI MEQUINENZA","VETERANO","ESTHER ANDRÉS CARRILLO",null,null,null,null,null,null,null,null,null,null,null,null,null,null,null,null,null,"CAPRI MEQUINENZA","ALEVIN","SAÚL VIU NOGUÉS"]
[null,null,"CAPRI MEQUINENZA","VETERANO","JESÚS MANUEL LLOP MONTULL",null,null,null,null,null,null,null,null,null,null,null,null,null,null,null,null,null,"CAPRI MEQUINENZA","ALEVIN","YUNE JUSTE IBARZ"]
[null,null,"CAPRI MEQUINENZA","VETERANO","JORDI CASTELLÓ ROCA"]
[null,null,"CAPRI MEQUINENZA","VETERANO","JUAN ANTONIO  CATALAN MULA"]
[null,null,"CAPRI MEQUINENZA","VETERANO","LORENA NOGUÉS NICOLÁS"]
[null,null,"CAPRI MEQUINENZA","VETERANO","MARÍA TERESA GODIA PI"]
[null,null,"CAPRI MEQUINENZA","VETERANO","MARISOL CLAVERO GARCÍA"]
[null,null,"CAPRI MEQUINENZA","VETERANO","MERITXELL  LLOP CALLIZO"]
[null,null,"CAPRI MEQUINENZA","VETERANO","ORIOL  MIR IBARZ"]
[null,null,"CAPRI MEQUINENZA","VETERANO","PATRYCJA JANIK"]
[null,null,"CAPRI MEQUINENZA","VETERANO","RAQUEL CABALLÉ SILVESTRE"]
[null,null,"CAPRI MEQUINENZA","VETERANO","ROSA MARÍA LLOP RIAU"]
[null,null,"CAPRI MEQUINENZA","VETERANO","ROSANA NIUBÓ SOROLLA"]
[null,null,"CAPRI MEQUINENZA","VETERANO","VÍCTOR ESTRUGA GIMENO"]
[null,null,"CAPRI MEQUINENZA","VETERANO","VICTORIA SANTAELLA MAIRELES"]

{"sheet":"ARAGON REMO","index":13,"n_rows":22,"n_cols":29,"rows_kept":22,"cut":false,"hidden":true,"merged":[]}
[]
[null,null,null,null,null,null,"CLUB",null,"CATEGORIA"]
[null,null,null,null,null,null,{"$f":"_xlfn._xlws.SORT(_xlfn.UNIQUE(Tabla12[CLUB]))","v":0},null,{"$f":"_xlfn._xlws.SORT(_xlfn.UNIQUE(Tabla12[CAT.]))","v":0}]
[null,null,null,null,null,null,"ARAGÓN REMO",null,"ALEVIN"]
[null,null,null,null,null,null,"CAPRI MEQUINENZA",null,"BENJAMIN"]
[null,null,null,null,null,null,"CENTRO NATACION HELIOS",null,"CADETE"]
[null,null,null,null,null,null,"F.A.R.",null,"INFANTIL"]
[null,null,null,null,null,null,"NÁUTICO ZARAGOZA",null,"JUVENIL"]
[null,null,null,null,null,null,"OS NABATERS D.F.",null,"SENIOR"]
[null,null,null,null,null,null,null,null,"VETERANO"]
[]
[]
[]
[]
[null,null,"CLUB","CATEGORIA",null,null,"CLUB","CATEGORIA",null,null,"CLUB","CATEGORIA",null,null,"CLUB","CATEGORIA",null,null,"CLUB","CATEGORIA",null,null,"CLUB","CATEGORIA",null,null,"CLUB","CATEGORIA"]
[null,null,"ARAGÓN REMO","VETERANO",null,null,"ARAGÓN REMO","SENIOR",null,null,"ARAGÓN REMO","JUVENIL",null,null,"ARAGÓN REMO","CADETE",null,null,"ARAGÓN REMO","INFANTIL",null,null,"ARAGÓN REMO","ALEVIN",null,null,"ARAGÓN REMO","BENJAMIN"]
[]
[]
[null,null,"CLUB","CAT.","NOMBRE COMPLETO",null,"CLUB","CAT.","NOMBRE COMPLETO",null,"CLUB","CAT.","NOMBRE COMPLETO",null,"CLUB","CAT.","NOMBRE COMPLETO",null,"CLUB","CAT.","NOMBRE COMPLETO",null,"CLUB","CAT.","NOMBRE COMPLETO",null,"CLUB","CAT.","NOMBRE COMPLETO"]
[null,null,{"$f":"_xlfn._xlws.SORT(_xlfn._xlws.FILTER(FILTRADO,(Tabla12[CLUB]=C16)*(Tabla12[CAT.]=D16)),3,1)","v":"ARAGÓN REMO"},"VETERANO","CARLOS MILLÁN BLASCO",null,{"$f":"_xlfn._xlws.SORT(_xlfn._xlws.FILTER(FILTRADO,(Tabla12[CLUB]=G16)*(Tabla12[CAT.]=H16)),3,1)","v":{"$error":"#VALUE!"}},null,null,null,{"$f":"_xlfn._xlws.SORT(_xlfn._xlws.FILTER(FILTRADO,(Tabla12[CLUB]=K16)*(Tabla12[CAT.]=L16)),3,1)","v":{"$error":"#VALUE!"}},null,null,null,{"$f":"_xlfn._xlws.SORT(_xlfn._xlws.FILTER(FILTRADO,(Tabla12[CLUB]=O16)*(Tabla12[CAT.]=P16)),3,1)","v":{"$error":"#VALUE!"}},null,null,null,{"$f":"_xlfn._xlws.SORT(_xlfn._xlws.FILTER(FILTRADO,(Tabla12[CLUB]=S16)*(Tabla12[CAT.]=T16)),3,1)","v":{"$error":"#VALUE!"}},null,null,null,{"$f":"_xlfn._xlws.SORT(_xlfn._xlws.FILTER(FILTRADO,(Tabla12[CLUB]=W16)*(Tabla12[CAT.]=X16)),3,1)","v":{"$error":"#VALUE!"}},null,null,null,{"$f":"_xlfn._xlws.SORT(_xlfn._xlws.FILTER(FILTRADO,(Tabla12[CLUB]=AA16)*(Tabla12[CAT.]=AB16)),3,1)","v":{"$error":"#VALUE!"}}]
[null,null,"ARAGÓN REMO","VETERANO","DAVID SAN JOSÉ SANTAMARÍA"]
[null,null,"ARAGÓN REMO","VETERANO","JOSÉ MANUEL LABARTA PINILLA"]

{"sheet":"REMO ZARAGOZA","index":14,"n_rows":20,"n_cols":29,"rows_kept":20,"cut":false,"hidden":true,"merged":[]}
[]
[null,null,null,null,null,null,"CLUB",null,"CATEGORIA"]
[null,null,null,null,null,null,{"$f":"_xlfn._xlws.SORT(_xlfn.UNIQUE(Tabla12[CLUB]))","v":0},null,{"$f":"_xlfn._xlws.SORT(_xlfn.UNIQUE(Tabla12[CAT.]))","v":0}]
[null,null,null,null,null,null,"ARAGÓN REMO",null,"ALEVIN"]
[null,null,null,null,null,null,"CAPRI MEQUINENZA",null,"BENJAMIN"]
[null,null,null,null,null,null,"CENTRO NATACION HELIOS",null,"CADETE"]
[null,null,null,null,null,null,"F.A.R.",null,"INFANTIL"]
[null,null,null,null,null,null,"NÁUTICO ZARAGOZA",null,"JUVENIL"]
[null,null,null,null,null,null,"OS NABATERS D.F.",null,"SENIOR"]
[null,null,null,null,null,null,null,null,"VETERANO"]
[]
[]
[]
[]
[null,null,"CLUB","CATEGORIA",null,null,"CLUB","CATEGORIA",null,null,"CLUB","CATEGORIA",null,null,"CLUB","CATEGORIA",null,null,"CLUB","CATEGORIA",null,null,"CLUB","CATEGORIA",null,null,"CLUB","CATEGORIA"]
[null,null,"REMO ZARAGOZA","VETERANO",null,null,"REMO ZARAGOZA","SENIOR",null,null,"REMO ZARAGOZA","JUVENIL",null,null,"REMO ZARAGOZA","CADETE",null,null,"REMO ZARAGOZA","INFANTIL",null,null,"REMO ZARAGOZA","ALEVIN",null,null,"REMO ZARAGOZA","BENJAMIN"]
[]
[]
[null,null,"CLUB","CAT.","NOMBRE COMPLETO",null,"CLUB","CAT.","NOMBRE COMPLETO",null,"CLUB","CAT.","NOMBRE COMPLETO",null,"CLUB","CAT.","NOMBRE COMPLETO",null,"CLUB","CAT.","NOMBRE COMPLETO",null,"CLUB","CAT.","NOMBRE COMPLETO",null,"CLUB","CAT.","NOMBRE COMPLETO"]
[null,null,{"$f":"_xlfn._xlws.SORT(_xlfn._xlws.FILTER(FILTRADO,(Tabla12[CLUB]=C16)*(Tabla12[CAT.]=D16)),3,1)","v":{"$error":"#VALUE!"}},null,null,null,{"$f":"_xlfn._xlws.SORT(_xlfn._xlws.FILTER(FILTRADO,(Tabla12[CLUB]=G16)*(Tabla12[CAT.]=H16)),3,1)","v":{"$error":"#VALUE!"}},null,null,null,{"$f":"_xlfn._xlws.SORT(_xlfn._xlws.FILTER(FILTRADO,(Tabla12[CLUB]=K16)*(Tabla12[CAT.]=L16)),3,1)","v":{"$error":"#VALUE!"}},null,null,null,{"$f":"_xlfn._xlws.SORT(_xlfn._xlws.FILTER(FILTRADO,(Tabla12[CLUB]=O16)*(Tabla12[CAT.]=P16)),3,1)","v":{"$error":"#VALUE!"}},null,null,null,{"$f":"_xlfn._xlws.SORT(_xlfn._xlws.FILTER(FILTRADO,(Tabla12[CLUB]=S16)*(Tabla12[CAT.]=T16)),3,1)","v":{"$error":"#VALUE!"}},null,null,null,{"$f":"_xlfn._xlws.SORT(_xlfn._xlws.FILTER(FILTRADO,(Tabla12[CLUB]=W16)*(Tabla12[CAT.]=X16)),3,1)","v":{"$error":"#VALUE!"}},null,null,null,{"$f":"_xlfn._xlws.SORT(_xlfn._xlws.FILTER(FILTRADO,(Tabla12[CLUB]=AA16)*(Tabla12[CAT.]=AB16)),3,1)","v":{"$error":"#VALUE!"}}]

{"sheet":"COMPETICIONES2026","index":15,"n_rows":10,"n_cols":4,"rows_kept":10,"cut":false,"hidden":true,"merged":[]}
[]
[]
[]
[null,null,null,"COMPETICION 2026"]
[null,null,null,"CAMPEONATO DE ARAGON DE REMOERGOMETRO"]
[null,null,null,"2ª JORNADA JDEE 25-26 "]
[null,null,null,"CTO. ARAGON DE VELOCIDAD (1x/2x)"]
[null,null,null,"CTO DE ARAGÓN DE REMO OLÍMPICO (TODOS)"]
[null,null,null,"REGATA LA SANTA"]
[null,null,null,"REGATA DE YOLAS"]